Workbook

Sheet Revision History (hidden)
B2: Revision History
C3: NStf-Fil | D3: =OrgCodeSelection -> RKB
B4: Version | C4: Date | D4: Change
B5: 31 | C5: 2020-07-31 | D5: First UDF Version
B6: 32 | C6: 2020-08-11 | D6: Updated ref data for RAJ (merged in RDD and RQ8, but incomplete as not all sites are ODS-registered to RAJ
B7: 33 | C7: 2020-08-28 | D7: remove UDFs and replace template with formula-based solution. | J7: DM-6913 | K7: SF
B8: 34 | C8: 2020-09-05 | D8: #VALUE! Fix - DM-6980
B9: 35 | C9: 2020-09-29 | D9: Ref data updates DM-6963
B10: 36 | C10: 2020-12-22 | D10: Ref data updates DM-7206
B11: 36.1 | C11: 2021-01-22 | D11: error changed to warning - AB - to be reviewed in April - major version required for next month
B12: 37 | C12: 2021-01-29 | D12: 4 x changes | E12: DM-8002
B13: 38 | C13: 2021-05-07 | D13: Added Brackley Community Hospital and Ward - Brackley to the ref data
B14: 39 | C14: 2021-05-28 | D14: DM-8935
B15: 40 | C15: 2021-06-24 | D15: DM-9177
B16: 41 | C16: 2021-07-28 | D16: DM-9528 - updated ref data
B17: 41.1 | C17: 2021-11-16 | D17: DM-10126
B18: 41.2 | C18: 2021-11-23 | D18: DM-10139

Sheet Control Panel
A1: X | V1: W = Warnings X = Errors -> | W1: =IF(OR(COUNTBLANK(Warnings!$E$14:$S$213)<>3000,COUNTBLANK(Warnings!$B$7:$K$7)<>10),"There may be issues with these data. Please review the Warnings tab for more information","") -> There may be issues with these data. Please review the Warnings tab for more information | X1: =IF($E$6="","You have not selected an Organistion",IF(COUNTBLANK('Trust - Frontsheet'!E16:AC215)=5000,"You have not entered any data. The submission will FAIL",IF(COUNTBLANK(Errors!$E$7:$K$206)<>1400,"There are errors on this sheet. This submission will FAIL. Please review the Errors tab for more information",""))) -> 
D2: Safe Staffing (Rota Fill Rates and CHPPD) Collection | X2: =IF($D$12="Please enable macros when using this template","Please enable macros when using this template","") -> 
D4: Please check that the data on this upload template is accurate before being submitted to SDCS. You are reminded that these figures will be published, and it is the responsibility of your organisation that these submitted figures are accurate and in line with national guidance. We will undertake basic validation checks on these figures post submission, and may come back to you with any queries we may have.
E6: RKB | F6: =VLOOKUP(OrgCodeSelection,Orgs,2,FALSE) -> UNIVERSITY HOSPITALS COVENTRY AND WARWICKSHIRE NHS TRUST
D12: =IF(ISERROR(MacroCheck(NOW())), "Please enable macros when using this template",IF($E$6="","No organisation has been selected. You cannot submit this template.",IF(COUNTBLANK(Errors!$E$7:$K$206)<>1400,"This template contains errors and will FAIL at submission. Please review the Errors tab for more information",IF(COUNTBLANK('Trust - Frontsheet'!E16:AC215)=5000,"You have not entered any data. The submission will FAIL","No errors have been found in this template. It will be accepted by the SDCS portal")))) -> No errors have been found in this template. It will be accepted by the SDCS portal | F12: =IF(OR(COUNTBLANK(Warnings!$E$14:$S$213)<>3000,COUNTBLANK(Warnings!$B$7:$K$7)<>10),"There may be issues with these data. Please review the Warnings tab for more information","") -> There may be issues with these data. Please review the Warnings tab for more information
D15: If you have any issues regarding this template please review the Important Information tab before contacting Data Collections
C25: If you have any further queries please contact
C26: england.patquality@nhs.net

Sheet Important Information

Sheet Trust - Frontsheet
D2: Safe Staffing (Rota Fill Rates and CHPPD) Collection
D5: Organisation: | E5: =IF(ISBLANK(OrgCodeSelection),"",OrgCodeSelection) -> RKB | F5: =IF(ISBLANK(OrgNameSelection),"",OrgNameSelection) -> UNIVERSITY HOSPITALS COVENTRY AND WARWICKSHIRE NHS TRUST | AC5: x
AD6: ="" -> 
F7: Please provide the URL to the page on your trust website where your staffing information is available
F8: (Please can you ensure that the URL you attach to the spreadsheet is correct and links to the correct web page and include 'http://' in your URL)
F9: https://www.uhcw.nhs.uk/caring-for-you/our-performance/
F10: =IFERROR(IF(COUNTBLANK(E16:AC215)=5000,"You have not entered any data. The submission will FAIL",IF(COUNTBLANK(Errors!$E$7:$K$206)<>1400,"There are errors on this sheet. This submission will FAIL. Please review the Errors tab for more information",IF(OR(COUNTBLANK(Warnings!$E$14:$S$213)<>3000,COUNTBLANK(Warnings!$B$7:$K$7)<>10),"There may be issues with these data. Please review the Warnings tab for more information",""))),"") -> There may be issues with these data. Please review the Warnings tab for more information
F11: Only complete sites your organisation is accountable for | I11: Day | Q11: Night | Y11: Allied Health Professionals | AC11: Cumulative count over the month of patients at 23:59 each day | AD11: Care Hours Per Patient Day (CHPPD) | AK11: Day | AO11: Night | AS11: Allied Health Professionals
D12: Hospital Site Details | F12: Ward name | G12: Main 2 Specialties on each ward With Covid Status | I12: Registered Nurses/Midwives | K12: Non-registered Nurses/Midwives (Care Staff) | M12: Registered Nursing Associates | O12: Non-registered Nursing Associates | Q12: Registered Nurses/Midwives | S12: Non-registered Nurses/Midwives (Care Staff) | U12: Registered Nursing Associates | W12: Non-registered Nursing Associates | Y12: Registered allied health professionals | AA12: Non-registered allied health professionals | AD12: Registered Nurses/Midwives | AE12: Non-registered Nurses/Midwives | AF12: Registered Nursing Associates | AG12: Non-registered Nursing Associates | AH12: Registered allied health professionals | AI12: Non-registered allied health professionals | AJ12: Overall | AK12: Average fill rate - Registered Nurses/Midwives (%) | AL12: Average fill rate - Non-registered Nurses/Midwives (care staff) (%) | AM12: Average fill rate - Registered Nursing Associates (%) | AN12: Average fill rate - Non-Registered Nursing Associates (%) | AO12: Average fill rate - Registered Nurses/Midwives (%) | AP12: Average fill rate - Non-registered Nurses/Midwives (care staff) (%) | AQ12: Average fill rate - Registered Nursing Associates (%) | AR12: Average fill rate - Non-Registered Nursing Associates (%) | AS12: Average fill rate - registered allied health professionals (AHP) (%) | AT12: Average fill rate - non-registered allied health professionals (AHP) (%)
A13: Site-Ward Concat | D13: Site code *The Site code is automatically populated when a Site name is selected | E13: Hospital Site name | G13: Specialty 1 | H13: Specialty 2 | I13: Total monthly planned staff hours | J13: Total monthly actual staff hours | K13: Total monthly planned staff hours | L13: Total monthly actual staff hours | M13: Total monthly planned staff hours | N13: Total monthly actual staff hours | O13: Total monthly planned staff hours | P13: Total monthly actual staff hours | Q13: Total monthly planned staff hours | R13: Total monthly actual staff hours | S13: Total monthly planned staff hours | T13: Total monthly actual staff hours | U13: Total monthly planned staff hours | V13: Total monthly actual staff hours | W13: Total monthly planned staff hours | X13: Total monthly actual staff hours | Y13: Total monthly planned staff hours | Z13: Total monthly actual staff hours | AA13: Total monthly planned staff hours | AB13: Total monthly actual staff hours
D14: SiteCode | E14: SiteName | F14: WardName | G14: Spec1 | H14: Spec2 | I14: RNM_Planned_Day | J14: RNM_Actual_Day | K14: NRNM_Planned_Day | L14: NRNM_Actual_Day | M14: RNA_Planned_Day | N14: RNA_Actual_Day | O14: NRNA_Planned_Day | P14: NRNA_Actual_Day | Q14: RNM_Planned_Night | R14: RNM_Actual_Night | S14: NRNM_Planned_Night | T14: NRNM_Actual_Night | U14: RNA_Planned_Night | V14: RNA_Actual_Night | W14: NRNA_Planned_Night | X14: NRNA_Actual_Night | Y14: RAHP_Planned | Z14: RAHP_Actual | AA14: NRAHP_Planned | AB14: NRAHP_Actual | AC14: PatientCount | AD14: CHPPD_RNM | AE14: CHPPD_NRNM | AF14: CHPPD_RNA | AG14: CHPPD_NRNA | AH14: CHPPD_RAHP | AI14: CHPPD_NRAHP | AJ14: CHPPD_Overall | AK14: AvgFR_RNM_Day | AL14: AvgFR_NRNM_Day | AM14: AvgFR_RNA_Day | AN14: AvgFR_NRNA_Day | AO14: AvgFR_RNM_Night | AP14: AvgFR_NRNM_Night | AQ14: AvgFR_RNA_Night | AR14: AvgFR_NRNA_Night | AS14: AvgFR_RAHP | AT14: AvgFR_NRAHP
F15: Total | I15: =SUM(INDIRECT("I16:I215")) -> 95186 | J15: =SUM(INDIRECT("J16:J215")) -> 80136 | K15: =SUM(INDIRECT("K16:K215")) -> 54159 | L15: =SUM(INDIRECT("L16:L215")) -> 47736 | M15: =SUM(INDIRECT("M16:M215")) -> 0 | N15: =SUM(INDIRECT("N16:N215")) -> 741 | O15: =SUM(INDIRECT("O16:O215")) -> 0 | P15: =SUM(INDIRECT("P16:P215")) -> 0 | Q15: =SUM(INDIRECT("Q16:Q215")) -> 75996 | R15: =SUM(INDIRECT("R16:R215")) -> 70125 | S15: =SUM(INDIRECT("S16:S215")) -> 41684 | T15: =SUM(INDIRECT("T16:T215")) -> 39278 | U15: =SUM(INDIRECT("U16:U215")) -> 0 | V15: =SUM(INDIRECT("V16:V215")) -> 103 | W15: =SUM(INDIRECT("W16:W215")) -> 0 | X15: =SUM(INDIRECT("X16:X215")) -> 0 | Y15: =SUM(INDIRECT("Y16:Y215")) -> 0 | Z15: =SUM(INDIRECT("Z16:Z215")) -> 0 | AA15: =SUM(INDIRECT("AA16:AA215")) -> 2817 | AB15: =SUM(INDIRECT("AB16:AB215")) -> 7534 | AC15: =SUM(INDIRECT("AC16:AC215")) -> 28879 | AD15: =IFERROR(IF(INDIRECT("$AC" &ROW()) ="","",SUM(INDIRECT("J" &ROW()),INDIRECT("R" & ROW()))/INDIRECT("$AC" &ROW())),"-") -> 5.2 | AE15: =IFERROR(IF(INDIRECT("$AC"&ROW())="","",SUM(INDIRECT("L"&ROW()),INDIRECT("T"&ROW()))/INDIRECT("$AC"&ROW())),"-") -> 3.0 | AF15: =IFERROR(IF(INDIRECT("$AC" &ROW())="","",SUM(INDIRECT("N" &ROW()),INDIRECT("V" &ROW()))/INDIRECT("$AC" &ROW())),"-") -> 0.0 | AG15: =IFERROR(IF(INDIRECT("$AC" &ROW())="","",SUM(INDIRECT("P" &ROW()),INDIRECT("X" &ROW()))/INDIRECT("$AC" &ROW())),"-") -> 0.0 | AH15: =IFERROR(IF(INDIRECT("$AC" &ROW())="","",INDIRECT("Z" &ROW())/INDIRECT("$AC" &ROW())),"-") -> 0.0 | AI15: =IFERROR(IF(INDIRECT("$AC" &ROW())="","",INDIRECT("AB" &ROW())/INDIRECT("$AC" &ROW())),"-") -> 0.3 | AJ15: =IFERROR(IF(AC15="","",SUM(J15,L15,N15,P15,R15,T15,V15,X15,Z15,AB15)/AC15),"-") -> 8.5 | AK15: =IFERROR(IF(INDIRECT("I" &ROW())="","",INDIRECT("J" &ROW())/INDIRECT("I" &ROW())),"-") -> 84% | AL15: =IFERROR(IF(INDIRECT("K" &ROW())="","",INDIRECT("L" &ROW())/INDIRECT("K" &ROW())),"-") -> 88% | AM15: =IFERROR(IF(INDIRECT("M" &ROW())="","",INDIRECT("N" &ROW())/INDIRECT("M" &ROW())),"-") -> - | AN15: =IFERROR(IF(INDIRECT("O" &ROW())="","",INDIRECT("P" &ROW())/INDIRECT("O" &ROW())),"-") -> - | AO15: =IFERROR(IF(INDIRECT("Q" &ROW())="","",INDIRECT("R" &ROW())/INDIRECT("Q" &ROW())),"-") -> 92% | AP15: =IFERROR(IF(INDIRECT("S" &ROW())="","",INDIRECT("T" &ROW())/INDIRECT("S" &ROW())),"-") -> 94% | AQ15: =IFERROR(IF(INDIRECT("U" &ROW())="","",INDIRECT("V" &ROW())/INDIRECT("U" &ROW())),"-") -> - | AR15: =IFERROR(IF(INDIRECT("W" &ROW())="","",INDIRECT("X" &ROW())/INDIRECT("W" &ROW())),"-") -> - | AS15: =IFERROR(IF(INDIRECT("Y" &ROW())="","",INDIRECT("Z" &ROW())/INDIRECT("Y" &ROW())),"-") -> - | AT15: =IFERROR(IF(INDIRECT("AA" &ROW())="","",INDIRECT("AB" &ROW())/INDIRECT("AA" &ROW())),"-") -> 267%
A16: =INDIRECT("D" & ROW())&INDIRECT("F" & ROW()) -> RKB02AMU 1 (Ward 12) | D16: =IFERROR(VLOOKUP($E$5&E16,Sites,4,FALSE),"") -> RKB02 | E16: COVENTRY AND WARWICKSHIRE HOSPITAL | F16: AMU 1 (Ward 12) | G16: 300 - GENERAL MEDICINE - STANDARD | I16: 2640 | J16: 2175 | K16: 1955 | L16: 1547 | M16: 0 | N16: 0 | O16: 0 | P16: 0 | Q16: 2518 | R16: 2326 | S16: 1764 | T16: 1498 | U16: 0 | V16: 0 | W16: 0 | X16: 0 | Y16: 0 | Z16: 0 | AA16: 0 | AB16: 0 | AC16: 904 | AD16: =IF(A16="","",IFERROR((VLOOKUP(A16,A16:AC216,10,0)+VLOOKUP(A16,A16:AC216,18,0))/VLOOKUP(A16,A16:AC216,29,0),"-")) -> 5.0 | AE16: =IF(A16="","",IFERROR((VLOOKUP(A16,A16:AC216,12,0)+VLOOKUP(A16,A16:AC216,20,0))/VLOOKUP(A16,A16:AC216,29,0),"-")) -> 3.4 | AF16: =IF(A16="","",IFERROR((VLOOKUP(A16,A16:AC216,14,0)+VLOOKUP(A16,A16:AC216,22,0))/VLOOKUP(A16,A16:AC216,29,0),"-")) -> 0.0 | AG16: =IF(A16="","",IFERROR((VLOOKUP(A16,A16:AC216,16,0)+VLOOKUP(A16,A16:AC216,24,0))/VLOOKUP(A16,A16:AC216,29,0),"-")) -> 0.0 | AH16: =IF(A16="","",IFERROR(VLOOKUP(A16,A16:AC216,26,0)/VLOOKUP(A16,A16:AC216,29,0),"-")) -> 0.0 | AI16: =IF(A16="","",IFERROR(VLOOKUP(A16,A16:AC216,28,0)/VLOOKUP(A16,A16:AC216,29,0),"-")) -> 0.0 | AJ16: =IF(A16="","",IFERROR((VLOOKUP(A16,A16:AC216,10,0)+VLOOKUP(A16,A16:AC216,12,0)+VLOOKUP(A16,A16:AC216,14,0)+VLOOKUP(A16,A16:AC216,16,0)+VLOOKUP(A16,A16:AC216,18,0)+VLOOKUP(A16,A16:AC216,20,0)+VLOOKUP(A16,A16:AC216,22,0)+VLOOKUP(A16,A16:AC216,24,0)+VLOOKUP(A16,A16:AC216,26,0)+VLOOKUP(A16,A16:AC216,28,0))/VLOOKUP(A16,A16:AC216,29,0),"-")) -> 8.3 | AK16: =IF(A16="","",IFERROR(VLOOKUP(A16,A16:AC216,10,0)/VLOOKUP(A16,A16:AC216,9,0),"-")) -> 82% | AL16: =IF(A16="","",IFERROR(VLOOKUP(A16,A16:AC216,12,0)/VLOOKUP(A16,A16:AC216,11,0),"-")) -> 79% | AM16: =IF(A16="","",IFERROR(VLOOKUP(A16,A16:AC216,14,0)/VLOOKUP(A16,A16:AC216,13,0),"-")) -> - | AN16: =IF(A16="","",IFERROR(VLOOKUP(A16,A16:AC216,16,0)/VLOOKUP(A16,A16:AC216,15,0),"-")) -> - | AO16: =IF(A16="","",IFERROR(VLOOKUP(A16,A16:AC216,18,0)/VLOOKUP(A16,A16:AC216,17,0),"-")) -> 92% | AP16: =IF(A16="","",IFERROR(VLOOKUP(A16,A16:AC216,20,0)/VLOOKUP(A16,A16:AC216,19,0),"-")) -> 85% | AQ16: =IF(A16="","",IFERROR(VLOOKUP(A16,A16:AC216,22,0)/VLOOKUP(A16,A16:AC216,21,0),"-")) -> - | AR16: =IF(A16="","",IFERROR(VLOOKUP(A16,A16:AC216,24,0)/VLOOKUP(A16,A16:AC216,23,0),"-")) -> - | AS16: =IF(A16="","",IFERROR(VLOOKUP(A16,A16:AC216,26,0)/VLOOKUP(A16,A16:AC216,25,0),"-")) -> - | AT16: =IF(A16="","",IFERROR(VLOOKUP(A16,A16:AC216,28,0)/VLOOKUP(A16,A16:AC216,27,0),"-")) -> -
A17: =INDIRECT("D" & ROW())&INDIRECT("F" & ROW()) -> RKB02AMU 2 (Ward 2) | D17: RKB02 | E17: COVENTRY AND WARWICKSHIRE HOSPITAL | F17: AMU 2 (Ward 2) | G17: 300 - GENERAL MEDICINE - STANDARD | I17: 737 | J17: 605 | K17: 833 | L17: 727 | M17: 0 | N17: 0 | O17: 0 | P17: 0 | Q17: 701 | R17: 633 | S17: 517 | T17: 494 | U17: 0 | V17: 0 | W17: 0 | X17: 0 | Y17: 0 | Z17: 0 | AA17: 0 | AB17: 0 | AC17: 220 | AD17: =IF(A17="","",IFERROR((VLOOKUP(A17,A17:AC217,10,0)+VLOOKUP(A17,A17:AC217,18,0))/VLOOKUP(A17,A17:AC217,29,0),"-")) -> 5.6 | AE17: =IF(A17="","",IFERROR((VLOOKUP(A17,A17:AC217,12,0)+VLOOKUP(A17,A17:AC217,20,0))/VLOOKUP(A17,A17:AC217,29,0),"-")) -> 5.6 | AF17: =IF(A17="","",IFERROR((VLOOKUP(A17,A17:AC217,14,0)+VLOOKUP(A17,A17:AC217,22,0))/VLOOKUP(A17,A17:AC217,29,0),"-")) -> 0.0 | AG17: =IF(A17="","",IFERROR((VLOOKUP(A17,A17:AC217,16,0)+VLOOKUP(A17,A17:AC217,24,0))/VLOOKUP(A17,A17:AC217,29,0),"-")) -> 0.0 | AH17: =IF(A17="","",IFERROR(VLOOKUP(A17,A17:AC217,26,0)/VLOOKUP(A17,A17:AC217,29,0),"-")) -> 0.0 | AI17: =IF(A17="","",IFERROR(VLOOKUP(A17,A17:AC217,28,0)/VLOOKUP(A17,A17:AC217,29,0),"-")) -> 0.0 | AJ17: =IF(A17="","",IFERROR((VLOOKUP(A17,A17:AC217,10,0)+VLOOKUP(A17,A17:AC217,12,0)+VLOOKUP(A17,A17:AC217,14,0)+VLOOKUP(A17,A17:AC217,16,0)+VLOOKUP(A17,A17:AC217,18,0)+VLOOKUP(A17,A17:AC217,20,0)+VLOOKUP(A17,A17:AC217,22,0)+VLOOKUP(A17,A17:AC217,24,0)+VLOOKUP(A17,A17:AC217,26,0)+VLOOKUP(A17,A17:AC217,28,0))/VLOOKUP(A17,A17:AC217,29,0),"-")) -> 11.2 | AK17: =IF(A17="","",IFERROR(VLOOKUP(A17,A17:AC217,10,0)/VLOOKUP(A17,A17:AC217,9,0),"-")) -> 82% | AL17: =IF(A17="","",IFERROR(VLOOKUP(A17,A17:AC217,12,0)/VLOOKUP(A17,A17:AC217,11,0),"-")) -> 87% | AM17: =IF(A17="","",IFERROR(VLOOKUP(A17,A17:AC217,14,0)/VLOOKUP(A17,A17:AC217,13,0),"-")) -> - | AN17: =IF(A17="","",IFERROR(VLOOKUP(A17,A17:AC217,16,0)/VLOOKUP(A17,A17:AC217,15,0),"-")) -> - | AO17: =IF(A17="","",IFERROR(VLOOKUP(A17,A17:AC217,18,0)/VLOOKUP(A17,A17:AC217,17,0),"-")) -> 90% | AP17: =IF(A17="","",IFERROR(VLOOKUP(A17,A17:AC217,20,0)/VLOOKUP(A17,A17:AC217,19,0),"-")) -> 96% | AQ17: =IF(A17="","",IFERROR(VLOOKUP(A17,A17:AC217,22,0)/VLOOKUP(A17,A17:AC217,21,0),"-")) -> - | AR17: =IF(A17="","",IFERROR(VLOOKUP(A17,A17:AC217,24,0)/VLOOKUP(A17,A17:AC217,23,0),"-")) -> - | AS17: =IF(A17="","",IFERROR(VLOOKUP(A17,A17:AC217,26,0)/VLOOKUP(A17,A17:AC217,25,0),"-")) -> - | AT17: =IF(A17="","",IFERROR(VLOOKUP(A17,A17:AC217,28,0)/VLOOKUP(A17,A17:AC217,27,0),"-")) -> -
A18: =INDIRECT("D" & ROW())&INDIRECT("F" & ROW()) -> RKB02AMU 3 (Ward 3) | D18: RKB02 | E18: COVENTRY AND WARWICKSHIRE HOSPITAL | F18: AMU 3 (Ward 3) | G18: 410 - RHEUMATOLOGY - STANDARD | I18: 1497 | J18: 1332 | K18: 1195 | L18: 1009 | M18: 0 | N18: 0 | O18: 0 | P18: 0 | Q18: 1081 | R18: 1035 | S18: 1046 | T18: 1027 | U18: 0 | V18: 0 | W18: 0 | X18: 0 | Y18: 0 | Z18: 0 | AA18: 0 | AB18: 23 | AC18: 749 | AD18: 3.2 | AE18: 2.7 | AF18: 0.0 | AG18: 0.0 | AH18: 0.0 | AI18: 0.0 | AJ18: 5.9 | AK18: 89% | AL18: 84% | AM18: - | AN18: - | AO18: 96% | AP18: 98% | AQ18: - | AR18: - | AS18: - | AT18: -
A19: =INDIRECT("D" & ROW())&INDIRECT("F" & ROW()) -> RKB02Cardiothoracic ITU | D19: RKB02 | E19: COVENTRY AND WARWICKSHIRE HOSPITAL | F19: Cardiothoracic ITU | G19: 170 - CARDIOTHORACIC SURGERY - STANDARD | I19: 4825 | J19: 4928 | K19: 582 | L19: 734 | M19: 0 | N19: 0 | O19: 0 | P19: 0 | Q19: 4381 | R19: 4268 | S19: 271 | T19: 283 | U19: 0 | V19: 0 | W19: 0 | X19: 0 | Y19: 0 | Z19: 0 | AA19: 0 | AB19: 75 | AC19: 495 | AD19: 18.6 | AE19: 2.1 | AF19: 0.0 | AG19: 0.0 | AH19: 0.0 | AI19: 0.2 | AJ19: 20.8 | AK19: 102% | AL19: 126% | AM19: - | AN19: - | AO19: 97% | AP19: 104% | AQ19: - | AR19: - | AS19: - | AT19: -
A20: =INDIRECT("D" & ROW())&INDIRECT("F" & ROW()) -> RKB02Coronary Care Unit | D20: RKB02 | E20: COVENTRY AND WARWICKSHIRE HOSPITAL | F20: Coronary Care Unit | G20: 320 - CARDIOLOGY - STANDARD | I20: 1038 | J20: 1037 | K20: 352 | L20: 342 | M20: 0 | N20: 0 | O20: 0 | P20: 0 | Q20: 1035 | R20: 1012 | S20: 11 | T20: 0 | U20: 0 | V20: 0 | W20: 0 | X20: 0 | Y20: 0 | Z20: 0 | AA20: 0 | AB20: 0 | AC20: 239 | AD20: 8.6 | AE20: 1.4 | AF20: 0.0 | AG20: 0.0 | AH20: 0.0 | AI20: 0.0 | AJ20: 10.0 | AK20: 100% | AL20: 97% | AM20: - | AN20: - | AO20: 98% | AP20: 0% | AQ20: - | AR20: - | AS20: - | AT20: -
A21: =INDIRECT("D" & ROW())&INDIRECT("F" & ROW()) -> RKB02Critical Care Unit | D21: RKB02 | E21: COVENTRY AND WARWICKSHIRE HOSPITAL | F21: Critical Care Unit | G21: 192 - CRITICAL CARE MEDICINE - STANDARD | I21: 10121 | J21: 8252 | K21: 1536 | L21: 1323 | M21: 0 | N21: 0 | O21: 0 | P21: 0 | Q21: 8799 | R21: 8535 | S21: 609 | T21: 552 | U21: 0 | V21: 0 | W21: 0 | X21: 0 | Y21: 0 | Z21: 0 | AA21: 0 | AB21: 115 | AC21: 654 | AD21: 25.7 | AE21: 2.9 | AF21: 0.0 | AG21: 0.0 | AH21: 0.0 | AI21: 0.2 | AJ21: 28.7 | AK21: 82% | AL21: 86% | AM21: - | AN21: - | AO21: 97% | AP21: 91% | AQ21: - | AR21: - | AS21: - | AT21: -
A22: =INDIRECT("D" & ROW())&INDIRECT("F" & ROW()) -> RKB02Labour Ward | D22: RKB02 | E22: COVENTRY AND WARWICKSHIRE HOSPITAL | F22: Labour Ward | G22: 501 - OBSTETRICS - STANDARD | I22: 5542 | J22: 2938 | K22: 737 | L22: 616 | M22: 0 | N22: 0 | O22: 0 | P22: 0 | Q22: 4089 | R22: 2298 | S22: 638 | T22: 546 | U22: 0 | V22: 0 | W22: 0 | X22: 0 | Y22: 0 | Z22: 0 | AA22: 0 | AB22: 83 | AC22: 372 | AD22: 14.1 | AE22: 3.1 | AF22: 0.0 | AG22: 0.0 | AH22: 0.0 | AI22: 0.2 | AJ22: 17.4 | AK22: 53% | AL22: 84% | AM22: - | AN22: - | AO22: 56% | AP22: 86% | AQ22: - | AR22: - | AS22: - | AT22: -
A23: =INDIRECT("D" & ROW())&INDIRECT("F" & ROW()) -> RKB02Major Trauma ECU | D23: RKB02 | E23: COVENTRY AND WARWICKSHIRE HOSPITAL | F23: Major Trauma ECU | G23: 110 - TRAUMA & ORTHOPAEDICS - STANDARD | I23: 1094 | J23: 752 | K23: 872 | L23: 574 | M23: 0 | N23: 0 | O23: 0 | P23: 0 | Q23: 989 | R23: 885 | S23: 414 | T23: 369 | U23: 0 | V23: 0 | W23: 0 | X23: 0 | Y23: 0 | Z23: 0 | AA23: 0 | AB23: 0 | AC23: 259 | AD23: 6.3 | AE23: 3.6 | AF23: 0.0 | AG23: 0.0 | AH23: 0.0 | AI23: 0.0 | AJ23: 10.0 | AK23: 69% | AL23: 66% | AM23: - | AN23: - | AO23: 89% | AP23: 89% | AQ23: - | AR23: - | AS23: - | AT23: -
A24: =INDIRECT("D" & ROW())&INDIRECT("F" & ROW()) -> RKB02NeoNatal Unit | D24: RKB02 | E24: COVENTRY AND WARWICKSHIRE HOSPITAL | F24: NeoNatal Unit | G24: 420 - PAEDIATRICS - STANDARD | I24: 4626 | J24: 3507 | K24: 885 | L24: 754 | M24: 0 | N24: 0 | O24: 0 | P24: 0 | Q24: 3922 | R24: 3504 | S24: 494 | T24: 318 | U24: 0 | V24: 0 | W24: 0 | X24: 0 | Y24: 0 | Z24: 0 | AA24: 1914 | AB24: 2295 | AC24: 771 | AD24: 9.1 | AE24: 1.4 | AF24: 0.0 | AG24: 0.0 | AH24: 0.0 | AI24: 3.0 | AJ24: 13.5 | AK24: 76% | AL24: 85% | AM24: - | AN24: - | AO24: 89% | AP24: 64% | AQ24: - | AR24: - | AS24: - | AT24: 120%
A25: =INDIRECT("D" & ROW())&INDIRECT("F" & ROW()) -> RKB02Paediatric HDU | D25: RKB02 | E25: COVENTRY AND WARWICKSHIRE HOSPITAL | F25: Paediatric HDU | G25: 420 - PAEDIATRICS - STANDARD | I25: 1075 | J25: 1021 | K25: 0 | L25: 52 | M25: 0 | N25: 0 | O25: 0 | P25: 0 | Q25: 1122 | R25: 925 | S25: 0 | T25: 67 | U25: 0 | V25: 0 | W25: 0 | X25: 0 | Y25: 0 | Z25: 0 | AA25: 0 | AB25: 59 | AC25: 129 | AD25: 15.1 | AE25: 0.9 | AF25: 0.0 | AG25: 0.0 | AH25: 0.0 | AI25: 0.5 | AJ25: 16.5 | AK25: 95% | AL25: - | AM25: - | AN25: - | AO25: 82% | AP25: - | AQ25: - | AR25: - | AS25: - | AT25: -
A26: =INDIRECT("D" & ROW())&INDIRECT("F" & ROW()) -> RKB02Surgical Pathway Wd10 | D26: RKB02 | E26: COVENTRY AND WARWICKSHIRE HOSPITAL | F26: Surgical Pathway Wd10 | G26: 100 - GENERAL SURGERY - PROTECTED | I26: 2088 | J26: 1843 | K26: 1370 | L26: 994 | M26: 0 | N26: 0 | O26: 0 | P26: 0 | Q26: 1173 | R26: 1058 | S26: 874 | T26: 782 | U26: 0 | V26: 0 | W26: 0 | X26: 0 | Y26: 0 | Z26: 0 | AA26: 0 | AB26: 23 | AC26: 574 | AD26: 5.1 | AE26: 3.1 | AF26: 0.0 | AG26: 0.0 | AH26: 0.0 | AI26: 0.0 | AJ26: 8.2 | AK26: 88% | AL26: 73% | AM26: - | AN26: - | AO26: 90% | AP26: 89% | AQ26: - | AR26: - | AS26: - | AT26: -
A27: =INDIRECT("D" & ROW())&INDIRECT("F" & ROW()) -> RKB02Surgical Wd22 Short Stay | D27: RKB02 | E27: COVENTRY AND WARWICKSHIRE HOSPITAL | F27: Surgical Wd22 Short Stay | G27: 100 - GENERAL SURGERY - STANDARD | I27: 1098 | J27: 987 | K27: 945 | L27: 671 | M27: 0 | N27: 0 | O27: 0 | P27: 0 | Q27: 1058 | R27: 922 | S27: 828 | T27: 713 | U27: 0 | V27: 103 | W27: 0 | X27: 0 | Y27: 0 | Z27: 0 | AA27: 0 | AB27: 66 | AC27: 477 | AD27: 4.0 | AE27: 2.9 | AF27: 0.2 | AG27: 0.0 | AH27: 0.0 | AI27: 0.1 | AJ27: 7.3 | AK27: 90% | AL27: 71% | AM27: - | AN27: - | AO27: 87% | AP27: 86% | AQ27: - | AR27: - | AS27: - | AT27: -
A28: =INDIRECT("D" & ROW())&INDIRECT("F" & ROW()) -> RKB02Ward 1 | D28: RKB02 | E28: COVENTRY AND WARWICKSHIRE HOSPITAL | F28: Ward 1 | G28: 302 - ENDOCRINOLOGY - STANDARD | I28: 2546 | J28: 2203 | K28: 1805 | L28: 1600 | M28: 0 | N28: 0 | O28: 0 | P28: 0 | Q28: 1748 | R28: 1680 | S28: 1506 | T28: 1414 | U28: 0 | V28: 0 | W28: 0 | X28: 0 | Y28: 0 | Z28: 0 | AA28: 0 | AB28: 184 | AC28: 967 | AD28: 4.0 | AE28: 3.1 | AF28: 0.0 | AG28: 0.0 | AH28: 0.0 | AI28: 0.2 | AJ28: 7.3 | AK28: 87% | AL28: 89% | AM28: - | AN28: - | AO28: 96% | AP28: 94% | AQ28: - | AR28: - | AS28: - | AT28: -
A29: =INDIRECT("D" & ROW())&INDIRECT("F" & ROW()) -> RKB02Ward 11 | D29: RKB02 | E29: COVENTRY AND WARWICKSHIRE HOSPITAL | F29: Ward 11 | G29: 170 - CARDIOTHORACIC SURGERY - STANDARD | I29: 926 | J29: 2093 | K29: 737 | L29: 940 | M29: 0 | N29: 0 | O29: 0 | P29: 0 | Q29: 735 | R29: 1666 | S29: 586 | T29: 1069 | U29: 0 | V29: 0 | W29: 0 | X29: 0 | Y29: 0 | Z29: 0 | AA29: 0 | AB29: 218 | AC29: 790 | AD29: 4.8 | AE29: 2.5 | AF29: 0.0 | AG29: 0.0 | AH29: 0.0 | AI29: 0.3 | AJ29: 7.6 | AK29: 226% | AL29: 128% | AM29: - | AN29: - | AO29: 227% | AP29: 182% | AQ29: - | AR29: - | AS29: - | AT29: -
A30: =INDIRECT("D" & ROW())&INDIRECT("F" & ROW()) -> RKB02Ward 14 | D30: RKB02 | E30: COVENTRY AND WARWICKSHIRE HOSPITAL | F30: Ward 14 | G30: 420 - PAEDIATRICS - STANDARD | I30: 1190 | J30: 1048 | K30: 372 | L30: 432 | M30: 0 | N30: 0 | O30: 0 | P30: 0 | Q30: 1036 | R30: 1066 | S30: 300 | T30: 316 | U30: 0 | V30: 0 | W30: 0 | X30: 0 | Y30: 0 | Z30: 0 | AA30: 0 | AB30: 111 | AC30: 267 | AD30: 7.9 | AE30: 2.8 | AF30: 0.0 | AG30: 0.0 | AH30: 0.0 | AI30: 0.4 | AJ30: 11.1 | AK30: 88% | AL30: 116% | AM30: - | AN30: - | AO30: 103% | AP30: 105% | AQ30: - | AR30: - | AS30: - | AT30: -
A31: =INDIRECT("D" & ROW())&INDIRECT("F" & ROW()) -> RKB02Ward 15 | D31: RKB02 | E31: COVENTRY AND WARWICKSHIRE HOSPITAL | F31: Ward 15 | G31: 420 - PAEDIATRICS - STANDARD | I31: 1581 | J31: 1301 | K31: 345 | L31: 401 | M31: 0 | N31: 0 | O31: 0 | P31: 0 | Q31: 1505 | R31: 1151 | S31: 270 | T31: 191 | U31: 0 | V31: 0 | W31: 0 | X31: 0 | Y31: 0 | Z31: 0 | AA31: 573 | AB31: 599 | AC31: 336 | AD31: 7.3 | AE31: 1.8 | AF31: 0.0 | AG31: 0.0 | AH31: 0.0 | AI31: 1.8 | AJ31: 10.8 | AK31: 82% | AL31: 116% | AM31: - | AN31: - | AO31: 76% | AP31: 71% | AQ31: - | AR31: - | AS31: - | AT31: 105%
A32: =INDIRECT("D" & ROW())&INDIRECT("F" & ROW()) -> RKB02Ward 16 | D32: RKB02 | E32: COVENTRY AND WARWICKSHIRE HOSPITAL | F32: Ward 16 | G32: 420 - PAEDIATRICS - STANDARD | I32: 2105 | J32: 1604 | K32: 832 | L32: 890 | M32: 0 | N32: 0 | O32: 0 | P32: 0 | Q32: 1276 | R32: 1062 | S32: 297 | T32: 352 | U32: 0 | V32: 0 | W32: 0 | X32: 0 | Y32: 0 | Z32: 0 | AA32: 0 | AB32: 281 | AC32: 509 | AD32: 5.2 | AE32: 2.4 | AF32: 0.0 | AG32: 0.0 | AH32: 0.0 | AI32: 0.6 | AJ32: 8.2 | AK32: 76% | AL32: 107% | AM32: - | AN32: - | AO32: 83% | AP32: 119% | AQ32: - | AR32: - | AS32: - | AT32: -
A33: =INDIRECT("D" & ROW())&INDIRECT("F" & ROW()) -> RKB02Ward 20 | D33: RKB02 | E33: COVENTRY AND WARWICKSHIRE HOSPITAL | F33: Ward 20 | G33: 430 - GERIATRIC MEDICINE - STANDARD | I33: 1786 | J33: 1672 | K33: 2192 | L33: 1970 | M33: 0 | N33: 0 | O33: 0 | P33: 0 | Q33: 1391 | R33: 1334 | S33: 1955 | T33: 1858 | U33: 0 | V33: 0 | W33: 0 | X33: 0 | Y33: 0 | Z33: 0 | AA33: 37 | AB33: 50 | AC33: 933 | AD33: 3.2 | AE33: 4.1 | AF33: 0.0 | AG33: 0.0 | AH33: 0.0 | AI33: 0.1 | AJ33: 7.4 | AK33: 94% | AL33: 90% | AM33: - | AN33: - | AO33: 96% | AP33: 95% | AQ33: - | AR33: - | AS33: - | AT33: 135%
A34: =INDIRECT("D" & ROW())&INDIRECT("F" & ROW()) -> RKB02Ward 20a | D34: RKB02 | E34: COVENTRY AND WARWICKSHIRE HOSPITAL | F34: Ward 20a | G34: 430 - GERIATRIC MEDICINE - STANDARD | I34: 1319 | J34: 1042 | K34: 1853 | L34: 1226 | M34: 0 | N34: 0 | O34: 0 | P34: 0 | Q34: 1046 | R34: 1000 | S34: 1299 | T34: 1219 | U34: 0 | V34: 0 | W34: 0 | X34: 0 | Y34: 0 | Z34: 0 | AA34: 0 | AB34: 254 | AC34: 709 | AD34: 2.9 | AE34: 3.4 | AF34: 0.0 | AG34: 0.0 | AH34: 0.0 | AI34: 0.4 | AJ34: 6.7 | AK34: 79% | AL34: 66% | AM34: - | AN34: - | AO34: 96% | AP34: 94% | AQ34: - | AR34: - | AS34: - | AT34: -
A35: =INDIRECT("D" & ROW())&INDIRECT("F" & ROW()) -> RKB02Ward 21 Cardiology | D35: RKB02 | E35: COVENTRY AND WARWICKSHIRE HOSPITAL | F35: Ward 21 Cardiology | G35: 320 - CARDIOLOGY - STANDARD | I35: 1730 | J35: 1597 | K35: 1027 | L35: 912 | M35: 0 | N35: 103 | O35: 0 | P35: 0 | Q35: 1391 | R35: 1363 | S35: 908 | T35: 851 | U35: 0 | V35: 0 | W35: 0 | X35: 0 | Y35: 0 | Z35: 0 | AA35: 0 | AB35: 0 | AC35: 760 | AD35: 3.9 | AE35: 2.3 | AF35: 0.1 | AG35: 0.0 | AH35: 0.0 | AI35: 0.0 | AJ35: 6.4 | AK35: 92% | AL35: 89% | AM35: - | AN35: - | AO35: 98% | AP35: 94% | AQ35: - | AR35: - | AS35: - | AT35: -
A36: =INDIRECT("D" & ROW())&INDIRECT("F" & ROW()) -> RKB02Ward 22 SAU New | D36: RKB02 | E36: COVENTRY AND WARWICKSHIRE HOSPITAL | F36: Ward 22 SAU New | G36: 100 - GENERAL SURGERY - STANDARD | I36: 717 | J36: 645 | K36: 737 | L36: 616 | M36: 0 | N36: 30 | O36: 0 | P36: 0 | Q36: 690 | R36: 678 | S36: 345 | T36: 333 | U36: 0 | V36: 0 | W36: 0 | X36: 0 | Y36: 0 | Z36: 0 | AA36: 0 | AB36: 4 | AC36: 324 | AD36: 4.1 | AE36: 2.9 | AF36: 0.1 | AG36: 0.0 | AH36: 0.0 | AI36: 0.0 | AJ36: 7.1 | AK36: 90% | AL36: 84% | AM36: - | AN36: - | AO36: 98% | AP36: 97% | AQ36: - | AR36: - | AS36: - | AT36: -
A37: =INDIRECT("D" & ROW())&INDIRECT("F" & ROW()) -> RKB02Ward 22a Vas | D37: RKB02 | E37: COVENTRY AND WARWICKSHIRE HOSPITAL | F37: Ward 22a Vas | G37: 100 - GENERAL SURGERY - STANDARD | I37: 746 | J37: 672 | K37: 876 | L37: 640 | M37: 0 | N37: 0 | O37: 0 | P37: 0 | Q37: 701 | R37: 691 | S37: 552 | T37: 425 | U37: 0 | V37: 0 | W37: 0 | X37: 0 | Y37: 0 | Z37: 0 | AA37: 0 | AB37: 0 | AC37: 349 | AD37: 3.9 | AE37: 3.1 | AF37: 0.0 | AG37: 0.0 | AH37: 0.0 | AI37: 0.0 | AJ37: 7.0 | AK37: 90% | AL37: 73% | AM37: - | AN37: - | AO37: 99% | AP37: 77% | AQ37: - | AR37: - | AS37: - | AT37: -
A38: =INDIRECT("D" & ROW())&INDIRECT("F" & ROW()) -> RKB02Ward 23 | D38: RKB02 | E38: COVENTRY AND WARWICKSHIRE HOSPITAL | F38: Ward 23 | G38: 502 - GYNAECOLOGY - STANDARD | I38: 790 | J38: 868 | K38: 395 | L38: 254 | M38: 0 | N38: 0 | O38: 0 | P38: 0 | Q38: 689 | R38: 678 | S38: 345 | T38: 309 | U38: 0 | V38: 0 | W38: 0 | X38: 0 | Y38: 0 | Z38: 0 | AA38: 0 | AB38: 0 | AC38: 295 | AD38: 5.2 | AE38: 1.9 | AF38: 0.0 | AG38: 0.0 | AH38: 0.0 | AI38: 0.0 | AJ38: 7.1 | AK38: 110% | AL38: 64% | AM38: - | AN38: - | AO38: 98% | AP38: 90% | AQ38: - | AR38: - | AS38: - | AT38: -
A39: =INDIRECT("D" & ROW())&INDIRECT("F" & ROW()) -> RKB02Ward 23 H&N - Urology | D39: RKB02 | E39: COVENTRY AND WARWICKSHIRE HOSPITAL | F39: Ward 23 H&N - Urology | G39: 100 - GENERAL SURGERY - STANDARD | I39: 1097 | J39: 854 | K39: 865 | L39: 782 | M39: 0 | N39: 0 | O39: 0 | P39: 0 | Q39: 684 | R39: 1015 | S39: 414 | T39: 725 | U39: 0 | V39: 0 | W39: 0 | X39: 0 | Y39: 0 | Z39: 0 | AA39: 0 | AB39: 80 | AC39: 432 | AD39: 4.3 | AE39: 3.5 | AF39: 0.0 | AG39: 0.0 | AH39: 0.0 | AI39: 0.2 | AJ39: 8.0 | AK39: 78% | AL39: 90% | AM39: - | AN39: - | AO39: 148% | AP39: 175% | AQ39: - | AR39: - | AS39: - | AT39: -
A40: =INDIRECT("D" & ROW())&INDIRECT("F" & ROW()) -> RKB02Ward 24 | D40: RKB02 | E40: COVENTRY AND WARWICKSHIRE HOSPITAL | F40: Ward 24 | G40: 501 - OBSTETRICS - STANDARD | I40: 1142 | J40: 1056 | K40: 419 | L40: 328 | M40: 0 | N40: 0 | O40: 0 | P40: 0 | Q40: 990 | R40: 545 | S40: 324 | T40: 323 | U40: 0 | V40: 0 | W40: 0 | X40: 0 | Y40: 0 | Z40: 0 | AA40: 0 | AB40: 26 | AC40: 519 | AD40: 3.1 | AE40: 1.3 | AF40: 0.0 | AG40: 0.0 | AH40: 0.0 | AI40: 0.1 | AJ40: 4.4 | AK40: 92% | AL40: 78% | AM40: - | AN40: - | AO40: 55% | AP40: 100% | AQ40: - | AR40: - | AS40: - | AT40: -
A41: =INDIRECT("D" & ROW())&INDIRECT("F" & ROW()) -> RKB02Ward 25 | D41: RKB02 | E41: COVENTRY AND WARWICKSHIRE HOSPITAL | F41: Ward 25 | G41: 501 - OBSTETRICS - STANDARD | I41: 2952 | J41: 1470 | K41: 1647 | L41: 1418 | M41: 0 | N41: 0 | O41: 0 | P41: 0 | Q41: 1577 | R41: 948 | S41: 1294 | T41: 1066 | U41: 0 | V41: 0 | W41: 0 | X41: 0 | Y41: 0 | Z41: 0 | AA41: 0 | AB41: 225 | AC41: 652 | AD41: 3.7 | AE41: 3.8 | AF41: 0.0 | AG41: 0.0 | AH41: 0.0 | AI41: 0.3 | AJ41: 7.9 | AK41: 50% | AL41: 86% | AM41: - | AN41: - | AO41: 60% | AP41: 82% | AQ41: - | AR41: - | AS41: - | AT41: -
A42: =INDIRECT("D" & ROW())&INDIRECT("F" & ROW()) -> RKB02Ward 30 | D42: RKB02 | E42: COVENTRY AND WARWICKSHIRE HOSPITAL | F42: Ward 30 | G42: 340 - RESPIRATORY MEDICINE - RISK MANAGED | I42: 2441 | J42: 1930 | K42: 1182 | L42: 1044 | M42: 0 | N42: 30 | O42: 0 | P42: 0 | Q42: 2265 | R42: 1920 | S42: 1092 | T42: 1062 | U42: 0 | V42: 0 | W42: 0 | X42: 0 | Y42: 0 | Z42: 0 | AA42: 0 | AB42: 442 | AC42: 733 | AD42: 5.3 | AE42: 2.9 | AF42: 0.0 | AG42: 0.0 | AH42: 0.0 | AI42: 0.6 | AJ42: 8.8 | AK42: 79% | AL42: 88% | AM42: - | AN42: - | AO42: 85% | AP42: 97% | AQ42: - | AR42: - | AS42: - | AT42: -
A43: =INDIRECT("D" & ROW())&INDIRECT("F" & ROW()) -> RKB02Ward 31 | D43: RKB02 | E43: COVENTRY AND WARWICKSHIRE HOSPITAL | F43: Ward 31 | G43: 340 - RESPIRATORY MEDICINE - RISK MANAGED | I43: 2139 | J43: 2030 | K43: 1262 | L43: 1203 | M43: 0 | N43: 0 | O43: 0 | P43: 0 | Q43: 1909 | R43: 1793 | S43: 1092 | T43: 1026 | U43: 0 | V43: 0 | W43: 0 | X43: 0 | Y43: 0 | Z43: 0 | AA43: 0 | AB43: 0 | AC43: 967 | AD43: 4.0 | AE43: 2.3 | AF43: 0.0 | AG43: 0.0 | AH43: 0.0 | AI43: 0.0 | AJ43: 6.3 | AK43: 95% | AL43: 95% | AM43: - | AN43: - | AO43: 94% | AP43: 94% | AQ43: - | AR43: - | AS43: - | AT43: -
A44: =INDIRECT("D" & ROW())&INDIRECT("F" & ROW()) -> RKB02Ward 31a | D44: RKB02 | E44: COVENTRY AND WARWICKSHIRE HOSPITAL | F44: Ward 31a | G44: 340 - RESPIRATORY MEDICINE - RISK MANAGED | I44: 1413 | J44: 1368 | K44: 1263 | L44: 997 | M44: 0 | N44: 0 | O44: 0 | P44: 0 | Q44: 1380 | R44: 1299 | S44: 851 | T44: 769 | U44: 0 | V44: 0 | W44: 0 | X44: 0 | Y44: 0 | Z44: 0 | AA44: 0 | AB44: 0 | AC44: 710 | AD44: 3.8 | AE44: 2.5 | AF44: 0.0 | AG44: 0.0 | AH44: 0.0 | AI44: 0.0 | AJ44: 6.2 | AK44: 97% | AL44: 79% | AM44: - | AN44: - | AO44: 94% | AP44: 90% | AQ44: - | AR44: - | AS44: - | AT44: -
A45: =INDIRECT("D" & ROW())&INDIRECT("F" & ROW()) -> RKB02Ward 32 Gastro | D45: RKB02 | E45: COVENTRY AND WARWICKSHIRE HOSPITAL | F45: Ward 32 Gastro | G45: 301 - GASTROENTEROLOGY - STANDARD | I45: 2061 | J45: 1966 | K45: 1690 | L45: 1551 | M45: 0 | N45: 0 | O45: 0 | P45: 0 | Q45: 1713 | R45: 1610 | S45: 1621 | T45: 1597 | U45: 0 | V45: 0 | W45: 0 | X45: 0 | Y45: 0 | Z45: 0 | AA45: 0 | AB45: 127 | AC45: 1014 | AD45: 3.5 | AE45: 3.1 | AF45: 0.0 | AG45: 0.0 | AH45: 0.0 | AI45: 0.1 | AJ45: 6.8 | AK45: 95% | AL45: 92% | AM45: - | AN45: - | AO45: 94% | AP45: 99% | AQ45: - | AR45: - | AS45: - | AT45: -
A46: =INDIRECT("D" & ROW())&INDIRECT("F" & ROW()) -> RKB02Ward 33 Surgery | D46: RKB02 | E46: COVENTRY AND WARWICKSHIRE HOSPITAL | F46: Ward 33 Surgery | G46: 100 - GENERAL SURGERY - STANDARD | I46: 1849 | J46: 1629 | K46: 1556 | L46: 1516 | M46: 0 | N46: 0 | O46: 0 | P46: 0 | Q46: 1426 | R46: 1368 | S46: 1150 | T46: 1063 | U46: 0 | V46: 0 | W46: 0 | X46: 0 | Y46: 0 | Z46: 0 | AA46: 0 | AB46: 69 | AC46: 753 | AD46: 4.0 | AE46: 3.4 | AF46: 0.0 | AG46: 0.0 | AH46: 0.0 | AI46: 0.1 | AJ46: 7.5 | AK46: 88% | AL46: 97% | AM46: - | AN46: - | AO46: 96% | AP46: 92% | AQ46: - | AR46: - | AS46: - | AT46: -
A47: =INDIRECT("D" & ROW())&INDIRECT("F" & ROW()) -> RKB02Ward 33/10 ECU & EPOC | D47: RKB02 | E47: COVENTRY AND WARWICKSHIRE HOSPITAL | F47: Ward 33/10 ECU & EPOC | G47: 100 - GENERAL SURGERY - STANDARD | I47: 2088 | J47: 2003 | K47: 983 | L47: 1162 | M47: 0 | N47: 0 | O47: 0 | P47: 0 | Q47: 1817 | R47: 1943 | S47: 716 | T47: 877 | U47: 0 | V47: 0 | W47: 0 | X47: 0 | Y47: 0 | Z47: 0 | AA47: 0 | AB47: 322 | AC47: 339 | AD47: 11.6 | AE47: 6.0 | AF47: 0.0 | AG47: 0.0 | AH47: 0.0 | AI47: 0.9 | AJ47: 18.6 | AK47: 96% | AL47: 118% | AM47: - | AN47: - | AO47: 107% | AP47: 122% | AQ47: - | AR47: - | AS47: - | AT47: -
A48: =INDIRECT("D" & ROW())&INDIRECT("F" & ROW()) -> RKB02Ward 34 | D48: =IFERROR(VLOOKUP($E$5&E48,Sites,4,FALSE),"") -> RKB02 | E48: COVENTRY AND WARWICKSHIRE HOSPITAL | F48: Ward 34 | G48: 303 - CLINICAL HAEMATOLOGY - STANDARD | I48: 1751 | J48: 1526 | K48: 449 | L48: 598 | M48: 0 | N48: 0 | O48: 0 | P48: 0 | Q48: 1368 | R48: 1299 | S48: 379 | T48: 356 | U48: 0 | V48: 0 | W48: 0 | X48: 0 | Y48: 0 | Z48: 0 | AA48: 0 | AB48: 96 | AC48: 471 | AD48: 6.0 | AE48: 2.0 | AF48: 0.0 | AG48: 0.0 | AH48: 0.0 | AI48: 0.2 | AJ48: 8.2 | AK48: 87% | AL48: 133% | AM48: - | AN48: - | AO48: 95% | AP48: 94% | AQ48: - | AR48: - | AS48: - | AT48: -
A49: =INDIRECT("D" & ROW())&INDIRECT("F" & ROW()) -> RKB02Ward 35 | D49: RKB02 | E49: COVENTRY AND WARWICKSHIRE HOSPITAL | F49: Ward 35 | G49: 800 - CLINICAL ONCOLOGY - STANDARD | I49: 2149 | J49: 1913 | K49: 941 | L49: 700 | M49: 0 | N49: 0 | O49: 0 | P49: 0 | Q49: 1384 | R49: 1372 | S49: 885 | T49: 753 | U49: 0 | V49: 0 | W49: 0 | X49: 0 | Y49: 0 | Z49: 0 | AA49: 0 | AB49: 34 | AC49: 820 | AD49: 4.0 | AE49: 1.8 | AF49: 0.0 | AG49: 0.0 | AH49: 0.0 | AI49: 0.0 | AJ49: 5.8 | AK49: 89% | AL49: 74% | AM49: - | AN49: - | AO49: 99% | AP49: 85% | AQ49: - | AR49: - | AS49: - | AT49: -
A50: =INDIRECT("D" & ROW())&INDIRECT("F" & ROW()) -> RKB02Ward 40 | D50: RKB02 | E50: COVENTRY AND WARWICKSHIRE HOSPITAL | F50: Ward 40 | G50: 430 - GERIATRIC MEDICINE - STANDARD | I50: 2350 | J50: 2029 | K50: 3290 | L50: 2950 | M50: 0 | N50: 0 | O50: 0 | P50: 0 | Q50: 1759 | R50: 1610 | S50: 2990 | T50: 2852 | U50: 0 | V50: 0 | W50: 0 | X50: 0 | Y50: 0 | Z50: 0 | AA50: 66 | AB50: 479 | AC50: 1277 | AD50: 2.8 | AE50: 4.5 | AF50: 0.0 | AG50: 0.0 | AH50: 0.0 | AI50: 0.4 | AJ50: 7.8 | AK50: 86% | AL50: 90% | AM50: - | AN50: - | AO50: 92% | AP50: 95% | AQ50: - | AR50: - | AS50: - | AT50: 726%
A51: =INDIRECT("D" & ROW())&INDIRECT("F" & ROW()) -> RKB02Ward 41 | D51: RKB02 | E51: COVENTRY AND WARWICKSHIRE HOSPITAL | F51: Ward 41 | G51: 400 - NEUROLOGY - STANDARD | I51: 2265 | J51: 1676 | K51: 1781 | L51: 1713 | M51: 0 | N51: 51 | O51: 0 | P51: 0 | Q51: 2070 | R51: 1943 | S51: 1044 | T51: 918 | U51: 0 | V51: 0 | W51: 0 | X51: 0 | Y51: 0 | Z51: 0 | AA51: 148 | AB51: 505 | AC51: 1008 | AD51: 3.6 | AE51: 2.6 | AF51: 0.1 | AG51: 0.0 | AH51: 0.0 | AI51: 0.5 | AJ51: 6.8 | AK51: 74% | AL51: 96% | AM51: - | AN51: - | AO51: 94% | AP51: 88% | AQ51: - | AR51: - | AS51: - | AT51: 341%
A52: =INDIRECT("D" & ROW())&INDIRECT("F" & ROW()) -> RKB02Ward 42 | D52: RKB02 | E52: COVENTRY AND WARWICKSHIRE HOSPITAL | F52: Ward 42 | G52: 400 - NEUROLOGY - STANDARD | I52: 1979 | J52: 1796 | K52: 1737 | L52: 1607 | M52: 0 | N52: 0 | O52: 0 | P52: 0 | Q52: 1403 | R52: 1291 | S52: 2035 | T52: 1948 | U52: 0 | V52: 0 | W52: 0 | X52: 0 | Y52: 0 | Z52: 0 | AA52: 0 | AB52: 19 | AC52: 996 | AD52: 3.1 | AE52: 3.6 | AF52: 0.0 | AG52: 0.0 | AH52: 0.0 | AI52: 0.0 | AJ52: 6.7 | AK52: 91% | AL52: 93% | AM52: - | AN52: - | AO52: 92% | AP52: 96% | AQ52: - | AR52: - | AS52: - | AT52: -
A53: =INDIRECT("D" & ROW())&INDIRECT("F" & ROW()) -> RKB02Ward 43 | D53: RKB02 | E53: COVENTRY AND WARWICKSHIRE HOSPITAL | F53: Ward 43 | G53: 150 - NEUROSURGERY - STANDARD | I53: 2961 | J53: 2215 | K53: 2564 | L53: 2156 | M53: 0 | N53: 72 | O53: 0 | P53: 0 | Q53: 2472 | R53: 2080 | S53: 2518 | T53: 2009 | U53: 0 | V53: 0 | W53: 0 | X53: 0 | Y53: 0 | Z53: 0 | AA53: 0 | AB53: 593 | AC53: 807 | AD53: 5.3 | AE53: 5.2 | AF53: 0.1 | AG53: 0.0 | AH53: 0.0 | AI53: 0.7 | AJ53: 11.3 | AK53: 75% | AL53: 84% | AM53: - | AN53: - | AO53: 84% | AP53: 80% | AQ53: - | AR53: - | AS53: - | AT53: -
A54: =INDIRECT("D" & ROW())&INDIRECT("F" & ROW()) -> RKB02Ward 50 Renal | D54: RKB02 | E54: COVENTRY AND WARWICKSHIRE HOSPITAL | F54: Ward 50 Renal | G54: 361 - NEPHROLOGY - STANDARD | I54: 1636 | J54: 1466 | K54: 1172 | L54: 1172 | M54: 0 | N54: 0 | O54: 0 | P54: 0 | Q54: 1414 | R54: 1310 | S54: 1426 | T54: 1322 | U54: 0 | V54: 0 | W54: 0 | X54: 0 | Y54: 0 | Z54: 0 | AA54: 0 | AB54: 0 | AC54: 727 | AD54: 3.8 | AE54: 3.4 | AF54: 0.0 | AG54: 0.0 | AH54: 0.0 | AI54: 0.0 | AJ54: 7.2 | AK54: 90% | AL54: 100% | AM54: - | AN54: - | AO54: 93% | AP54: 93% | AQ54: - | AR54: - | AS54: - | AT54: -
A55: =INDIRECT("D" & ROW())&INDIRECT("F" & ROW()) -> RKB02Ward 52 | D55: RKB02 | E55: COVENTRY AND WARWICKSHIRE HOSPITAL | F55: Ward 52 | G55: 110 - TRAUMA & ORTHOPAEDICS - STANDARD | I55: 2711 | J55: 2143 | K55: 1865 | L55: 1660 | M55: 0 | N55: 0 | O55: 0 | P55: 0 | Q55: 1403 | R55: 1380 | S55: 1219 | T55: 1087 | U55: 0 | V55: 0 | W55: 0 | X55: 0 | Y55: 0 | Z55: 0 | AA55: 0 | AB55: 0 | AC55: 1054 | AD55: 3.3 | AE55: 2.6 | AF55: 0.0 | AG55: 0.0 | AH55: 0.0 | AI55: 0.0 | AJ55: 5.9 | AK55: 79% | AL55: 89% | AM55: - | AN55: - | AO55: 98% | AP55: 89% | AQ55: - | AR55: - | AS55: - | AT55: -
A56: =INDIRECT("D" & ROW())&INDIRECT("F" & ROW()) -> RKB02Ward 53 | D56: RKB02 | E56: COVENTRY AND WARWICKSHIRE HOSPITAL | F56: Ward 53 | G56: 110 - TRAUMA & ORTHOPAEDICS - STANDARD | I56: 1725 | J56: 1699 | K56: 1448 | L56: 1449 | M56: 0 | N56: 161 | O56: 0 | P56: 0 | Q56: 1150 | R56: 1322 | S56: 1023 | T56: 1103 | U56: 0 | V56: 0 | W56: 0 | X56: 0 | Y56: 0 | Z56: 0 | AA56: 0 | AB56: 47 | AC56: 925 | AD56: 3.3 | AE56: 2.8 | AF56: 0.2 | AG56: 0.0 | AH56: 0.0 | AI56: 0.1 | AJ56: 6.2 | AK56: 98% | AL56: 100% | AM56: - | AN56: - | AO56: 115% | AP56: 108% | AQ56: - | AR56: - | AS56: - | AT56: -
A57: =INDIRECT("D" & ROW())&INDIRECT("F" & ROW()) -> RKB03Rugby Cedar Ward | D57: RKB03 | E57: HOSPITAL OF ST CROSS | F57: Rugby Cedar Ward | G57: 110 - TRAUMA & ORTHOPAEDICS - STANDARD | I57: 2608 | J57: 1866 | K57: 1733 | L57: 1040 | M57: 0 | N57: 159 | O57: 0 | P57: 0 | Q57: 1656 | R57: 1387 | S57: 1379 | T57: 1257 | U57: 0 | V57: 0 | W57: 0 | X57: 0 | Y57: 0 | Z57: 0 | AA57: 0 | AB57: 0 | AC57: 765 | AD57: 4.3 | AE57: 3.0 | AF57: 0.2 | AG57: 0.0 | AH57: 0.0 | AI57: 0.0 | AJ57: 7.5 | AK57: 72% | AL57: 60% | AM57: - | AN57: - | AO57: 84% | AP57: 91% | AQ57: - | AR57: - | AS57: - | AT57: -
A58: =INDIRECT("D" & ROW())&INDIRECT("F" & ROW()) -> RKB03Rugby Hoskyn Ward | D58: RKB03 | E58: HOSPITAL OF ST CROSS | F58: Rugby Hoskyn Ward | G58: 430 - GERIATRIC MEDICINE - STANDARD | I58: 1574 | J58: 1127 | K58: 1083 | L58: 976 | M58: 0 | N58: 135 | O58: 0 | P58: 0 | Q58: 1035 | R58: 1023 | S58: 1023 | T58: 837 | U58: 0 | V58: 0 | W58: 0 | X58: 0 | Y58: 0 | Z58: 0 | AA58: 30 | AB58: 30 | AC58: 591 | AD58: 3.6 | AE58: 3.1 | AF58: 0.2 | AG58: 0.0 | AH58: 0.0 | AI58: 0.1 | AJ58: 7.0 | AK58: 72% | AL58: 90% | AM58: - | AN58: - | AO58: 99% | AP58: 82% | AQ58: - | AR58: - | AS58: - | AT58: 100%
A59: =INDIRECT("D" & ROW())&INDIRECT("F" & ROW()) -> RKB03Rugby Mulberry Ward | D59: RKB03 | E59: HOSPITAL OF ST CROSS | F59: Rugby Mulberry Ward | G59: 314 - REHABILITATION - STANDARD | I59: 1165 | J59: 1138 | K59: 1341 | L59: 1149 | M59: 0 | N59: 0 | O59: 0 | P59: 0 | Q59: 1012 | R59: 943 | S59: 690 | T59: 701 | U59: 0 | V59: 0 | W59: 0 | X59: 0 | Y59: 0 | Z59: 0 | AA59: 49 | AB59: 0 | AC59: 635 | AD59: 3.3 | AE59: 2.9 | AF59: 0.0 | AG59: 0.0 | AH59: 0.0 | AI59: 0.0 | AJ59: 6.2 | AK59: 98% | AL59: 86% | AM59: - | AN59: - | AO59: 93% | AP59: 102% | AQ59: - | AR59: - | AS59: - | AT59: 0%
A60: =INDIRECT("D" & ROW())&INDIRECT("F" & ROW()) -> RKB03Rugby Oak Ward | D60: RKB03 | E60: HOSPITAL OF ST CROSS | F60: Rugby Oak Ward | G60: 314 - REHABILITATION - STANDARD | I60: 1313 | J60: 1114 | K60: 1455 | L60: 1341 | M60: 0 | N60: 0 | O60: 0 | P60: 0 | Q60: 1033 | R60: 954 | S60: 690 | T60: 641 | U60: 0 | V60: 0 | W60: 0 | X60: 0 | Y60: 0 | Z60: 0 | AA60: 0 | AB60: 0 | AC60: 602 | AD60: 3.4 | AE60: 3.3 | AF60: 0.0 | AG60: 0.0 | AH60: 0.0 | AI60: 0.0 | AJ60: 6.7 | AK60: 85% | AL60: 92% | AM60: - | AN60: - | AO60: 92% | AP60: 93% | AQ60: - | AR60: - | AS60: - | AT60: -
A61: =INDIRECT("D" & ROW())&INDIRECT("F" & ROW()) -> 
A62: =INDIRECT("D" & ROW())&INDIRECT("F" & ROW()) -> 
A63: =INDIRECT("D" & ROW())&INDIRECT("F" & ROW()) -> 
A64: =INDIRECT("D" & ROW())&INDIRECT("F" & ROW()) -> 
A65: =INDIRECT("D" & ROW())&INDIRECT("F" & ROW()) -> 
A66: =INDIRECT("D" & ROW())&INDIRECT("F" & ROW()) -> 
A67: =INDIRECT("D" & ROW())&INDIRECT("F" & ROW()) -> 
A68: =INDIRECT("D" & ROW())&INDIRECT("F" & ROW()) -> 
A69: =INDIRECT("D" & ROW())&INDIRECT("F" & ROW()) -> 
A70: =INDIRECT("D" & ROW())&INDIRECT("F" & ROW()) -> 
A71: =INDIRECT("D" & ROW())&INDIRECT("F" & ROW()) -> 
A72: =INDIRECT("D" & ROW())&INDIRECT("F" & ROW()) -> 
A73: =INDIRECT("D" & ROW())&INDIRECT("F" & ROW()) -> 
A74: =INDIRECT("D" & ROW())&INDIRECT("F" & ROW()) -> 
A75: =INDIRECT("D" & ROW())&INDIRECT("F" & ROW()) -> 
A76: =INDIRECT("D" & ROW())&INDIRECT("F" & ROW()) -> 
A77: =INDIRECT("D" & ROW())&INDIRECT("F" & ROW()) -> 
A78: =INDIRECT("D" & ROW())&INDIRECT("F" & ROW()) -> 
A79: =INDIRECT("D" & ROW())&INDIRECT("F" & ROW()) -> 
A80: =INDIRECT("D" & ROW())&INDIRECT("F" & ROW()) ->  | D80: =IFERROR(VLOOKUP($E$5&E80,Sites,4,FALSE),"") -> 
A81: =INDIRECT("D" & ROW())&INDIRECT("F" & ROW()) ->  | AD81: =IF(A81="","",IFERROR((VLOOKUP(A81,A81:AC281,10,0)+VLOOKUP(A81,A81:AC281,18,0))/VLOOKUP(A81,A81:AC281,29,0),"-")) ->  | AE81: =IF(A81="","",IFERROR((VLOOKUP(A81,A81:AC281,12,0)+VLOOKUP(A81,A81:AC281,20,0))/VLOOKUP(A81,A81:AC281,29,0),"-")) ->  | AF81: =IF(A81="","",IFERROR((VLOOKUP(A81,A81:AC281,14,0)+VLOOKUP(A81,A81:AC281,22,0))/VLOOKUP(A81,A81:AC281,29,0),"-")) ->  | AG81: =IF(A81="","",IFERROR((VLOOKUP(A81,A81:AC281,16,0)+VLOOKUP(A81,A81:AC281,24,0))/VLOOKUP(A81,A81:AC281,29,0),"-")) ->  | AH81: =IF(A81="","",IFERROR(VLOOKUP(A81,A81:AC281,26,0)/VLOOKUP(A81,A81:AC281,29,0),"-")) ->  | AI81: =IF(A81="","",IFERROR(VLOOKUP(A81,A81:AC281,28,0)/VLOOKUP(A81,A81:AC281,29,0),"-")) ->  | AJ81: =IF(A81="","",IFERROR((VLOOKUP(A81,A81:AC281,10,0)+VLOOKUP(A81,A81:AC281,12,0)+VLOOKUP(A81,A81:AC281,14,0)+VLOOKUP(A81,A81:AC281,16,0)+VLOOKUP(A81,A81:AC281,18,0)+VLOOKUP(A81,A81:AC281,20,0)+VLOOKUP(A81,A81:AC281,22,0)+VLOOKUP(A81,A81:AC281,24,0)+VLOOKUP(A81,A81:AC281,26,0)+VLOOKUP(A81,A81:AC281,28,0))/VLOOKUP(A81,A81:AC281,29,0),"-")) ->  | AK81: =IF(A81="","",IFERROR(VLOOKUP(A81,A81:AC281,10,0)/VLOOKUP(A81,A81:AC281,9,0),"-")) ->  | AL81: =IF(A81="","",IFERROR(VLOOKUP(A81,A81:AC281,12,0)/VLOOKUP(A81,A81:AC281,11,0),"-")) ->  | AM81: =IF(A81="","",IFERROR(VLOOKUP(A81,A81:AC281,14,0)/VLOOKUP(A81,A81:AC281,13,0),"-")) ->  | AN81: =IF(A81="","",IFERROR(VLOOKUP(A81,A81:AC281,16,0)/VLOOKUP(A81,A81:AC281,15,0),"-")) ->  | AO81: =IF(A81="","",IFERROR(VLOOKUP(A81,A81:AC281,18,0)/VLOOKUP(A81,A81:AC281,17,0),"-")) ->  | AP81: =IF(A81="","",IFERROR(VLOOKUP(A81,A81:AC281,20,0)/VLOOKUP(A81,A81:AC281,19,0),"-")) ->  | AQ81: =IF(A81="","",IFERROR(VLOOKUP(A81,A81:AC281,22,0)/VLOOKUP(A81,A81:AC281,21,0),"-")) ->  | AR81: =IF(A81="","",IFERROR(VLOOKUP(A81,A81:AC281,24,0)/VLOOKUP(A81,A81:AC281,23,0),"-")) ->  | AS81: =IF(A81="","",IFERROR(VLOOKUP(A81,A81:AC281,26,0)/VLOOKUP(A81,A81:AC281,25,0),"-")) ->  | AT81: =IF(A81="","",IFERROR(VLOOKUP(A81,A81:AC281,28,0)/VLOOKUP(A81,A81:AC281,27,0),"-")) -> 
A82: =INDIRECT("D" & ROW())&INDIRECT("F" & ROW()) -> 
A83: =INDIRECT("D" & ROW())&INDIRECT("F" & ROW()) -> 
A84: =INDIRECT("D" & ROW())&INDIRECT("F" & ROW()) -> 
A85: =INDIRECT("D" & ROW())&INDIRECT("F" & ROW()) -> 
A86: =INDIRECT("D" & ROW())&INDIRECT("F" & ROW()) -> 
A87: =INDIRECT("D" & ROW())&INDIRECT("F" & ROW()) -> 
A88: =INDIRECT("D" & ROW())&INDIRECT("F" & ROW()) -> 
A89: =INDIRECT("D" & ROW())&INDIRECT("F" & ROW()) -> 
A90: =INDIRECT("D" & ROW())&INDIRECT("F" & ROW()) -> 
A91: =INDIRECT("D" & ROW())&INDIRECT("F" & ROW()) -> 
A92: =INDIRECT("D" & ROW())&INDIRECT("F" & ROW()) -> 
A93: =INDIRECT("D" & ROW())&INDIRECT("F" & ROW()) -> 
A94: =INDIRECT("D" & ROW())&INDIRECT("F" & ROW()) -> 
A95: =INDIRECT("D" & ROW())&INDIRECT("F" & ROW()) -> 
A96: =INDIRECT("D" & ROW())&INDIRECT("F" & ROW()) -> 
A97: =INDIRECT("D" & ROW())&INDIRECT("F" & ROW()) -> 
A98: =INDIRECT("D" & ROW())&INDIRECT("F" & ROW()) -> 
A99: =INDIRECT("D" & ROW())&INDIRECT("F" & ROW()) -> 
A100: =INDIRECT("D" & ROW())&INDIRECT("F" & ROW()) -> 
A101: =INDIRECT("D" & ROW())&INDIRECT("F" & ROW()) -> 
A102: =INDIRECT("D" & ROW())&INDIRECT("F" & ROW()) -> 
A103: =INDIRECT("D" & ROW())&INDIRECT("F" & ROW()) -> 
A104: =INDIRECT("D" & ROW())&INDIRECT("F" & ROW()) -> 
A105: =INDIRECT("D" & ROW())&INDIRECT("F" & ROW()) -> 
A106: =INDIRECT("D" & ROW())&INDIRECT("F" & ROW()) -> 
A107: =INDIRECT("D" & ROW())&INDIRECT("F" & ROW()) -> 
A108: =INDIRECT("D" & ROW())&INDIRECT("F" & ROW()) -> 
A109: =INDIRECT("D" & ROW())&INDIRECT("F" & ROW()) -> 
A110: =INDIRECT("D" & ROW())&INDIRECT("F" & ROW()) -> 
A111: =INDIRECT("D" & ROW())&INDIRECT("F" & ROW()) -> 
A112: =INDIRECT("D" & ROW())&INDIRECT("F" & ROW()) ->  | D112: =IFERROR(VLOOKUP($E$5&E112,Sites,4,FALSE),"") -> 
A113: =INDIRECT("D" & ROW())&INDIRECT("F" & ROW()) -> 
A114: =INDIRECT("D" & ROW())&INDIRECT("F" & ROW()) -> 
A115: =INDIRECT("D" & ROW())&INDIRECT("F" & ROW()) -> 
A116: =INDIRECT("D" & ROW())&INDIRECT("F" & ROW()) -> 
A117: =INDIRECT("D" & ROW())&INDIRECT("F" & ROW()) -> 
A118: =INDIRECT("D" & ROW())&INDIRECT("F" & ROW()) -> 
A119: =INDIRECT("D" & ROW())&INDIRECT("F" & ROW()) -> 
A120: =INDIRECT("D" & ROW())&INDIRECT("F" & ROW()) -> 
A121: =INDIRECT("D" & ROW())&INDIRECT("F" & ROW()) -> 
A122: =INDIRECT("D" & ROW())&INDIRECT("F" & ROW()) -> 
A123: =INDIRECT("D" & ROW())&INDIRECT("F" & ROW()) -> 
A124: =INDIRECT("D" & ROW())&INDIRECT("F" & ROW()) -> 
A125: =INDIRECT("D" & ROW())&INDIRECT("F" & ROW()) -> 
A126: =INDIRECT("D" & ROW())&INDIRECT("F" & ROW()) -> 
A127: =INDIRECT("D" & ROW())&INDIRECT("F" & ROW()) -> 
A128: =INDIRECT("D" & ROW())&INDIRECT("F" & ROW()) -> 
A129: =INDIRECT("D" & ROW())&INDIRECT("F" & ROW()) -> 
A130: =INDIRECT("D" & ROW())&INDIRECT("F" & ROW()) -> 
A131: =INDIRECT("D" & ROW())&INDIRECT("F" & ROW()) -> 
A132: =INDIRECT("D" & ROW())&INDIRECT("F" & ROW()) -> 
A133: =INDIRECT("D" & ROW())&INDIRECT("F" & ROW()) -> 
A134: =INDIRECT("D" & ROW())&INDIRECT("F" & ROW()) -> 
A135: =INDIRECT("D" & ROW())&INDIRECT("F" & ROW()) -> 
A136: =INDIRECT("D" & ROW())&INDIRECT("F" & ROW()) -> 
A137: =INDIRECT("D" & ROW())&INDIRECT("F" & ROW()) -> 
A138: =INDIRECT("D" & ROW())&INDIRECT("F" & ROW()) -> 
A139: =INDIRECT("D" & ROW())&INDIRECT("F" & ROW()) -> 
A140: =INDIRECT("D" & ROW())&INDIRECT("F" & ROW()) -> 
A141: =INDIRECT("D" & ROW())&INDIRECT("F" & ROW()) -> 
A142: =INDIRECT("D" & ROW())&INDIRECT("F" & ROW()) -> 
A143: =INDIRECT("D" & ROW())&INDIRECT("F" & ROW()) -> 
A144: =INDIRECT("D" & ROW())&INDIRECT("F" & ROW()) ->  | D144: =IFERROR(VLOOKUP($E$5&E144,Sites,4,FALSE),"") -> 
A145: =INDIRECT("D" & ROW())&INDIRECT("F" & ROW()) ->  | AD145: =IF(A145="","",IFERROR((VLOOKUP(A145,A145:AC345,10,0)+VLOOKUP(A145,A145:AC345,18,0))/VLOOKUP(A145,A145:AC345,29,0),"-")) ->  | AE145: =IF(A145="","",IFERROR((VLOOKUP(A145,A145:AC345,12,0)+VLOOKUP(A145,A145:AC345,20,0))/VLOOKUP(A145,A145:AC345,29,0),"-")) ->  | AF145: =IF(A145="","",IFERROR((VLOOKUP(A145,A145:AC345,14,0)+VLOOKUP(A145,A145:AC345,22,0))/VLOOKUP(A145,A145:AC345,29,0),"-")) ->  | AG145: =IF(A145="","",IFERROR((VLOOKUP(A145,A145:AC345,16,0)+VLOOKUP(A145,A145:AC345,24,0))/VLOOKUP(A145,A145:AC345,29,0),"-")) ->  | AH145: =IF(A145="","",IFERROR(VLOOKUP(A145,A145:AC345,26,0)/VLOOKUP(A145,A145:AC345,29,0),"-")) ->  | AI145: =IF(A145="","",IFERROR(VLOOKUP(A145,A145:AC345,28,0)/VLOOKUP(A145,A145:AC345,29,0),"-")) ->  | AJ145: =IF(A145="","",IFERROR((VLOOKUP(A145,A145:AC345,10,0)+VLOOKUP(A145,A145:AC345,12,0)+VLOOKUP(A145,A145:AC345,14,0)+VLOOKUP(A145,A145:AC345,16,0)+VLOOKUP(A145,A145:AC345,18,0)+VLOOKUP(A145,A145:AC345,20,0)+VLOOKUP(A145,A145:AC345,22,0)+VLOOKUP(A145,A145:AC345,24,0)+VLOOKUP(A145,A145:AC345,26,0)+VLOOKUP(A145,A145:AC345,28,0))/VLOOKUP(A145,A145:AC345,29,0),"-")) ->  | AK145: =IF(A145="","",IFERROR(VLOOKUP(A145,A145:AC345,10,0)/VLOOKUP(A145,A145:AC345,9,0),"-")) ->  | AL145: =IF(A145="","",IFERROR(VLOOKUP(A145,A145:AC345,12,0)/VLOOKUP(A145,A145:AC345,11,0),"-")) ->  | AM145: =IF(A145="","",IFERROR(VLOOKUP(A145,A145:AC345,14,0)/VLOOKUP(A145,A145:AC345,13,0),"-")) ->  | AN145: =IF(A145="","",IFERROR(VLOOKUP(A145,A145:AC345,16,0)/VLOOKUP(A145,A145:AC345,15,0),"-")) ->  | AO145: =IF(A145="","",IFERROR(VLOOKUP(A145,A145:AC345,18,0)/VLOOKUP(A145,A145:AC345,17,0),"-")) ->  | AP145: =IF(A145="","",IFERROR(VLOOKUP(A145,A145:AC345,20,0)/VLOOKUP(A145,A145:AC345,19,0),"-")) ->  | AQ145: =IF(A145="","",IFERROR(VLOOKUP(A145,A145:AC345,22,0)/VLOOKUP(A145,A145:AC345,21,0),"-")) ->  | AR145: =IF(A145="","",IFERROR(VLOOKUP(A145,A145:AC345,24,0)/VLOOKUP(A145,A145:AC345,23,0),"-")) ->  | AS145: =IF(A145="","",IFERROR(VLOOKUP(A145,A145:AC345,26,0)/VLOOKUP(A145,A145:AC345,25,0),"-")) ->  | AT145: =IF(A145="","",IFERROR(VLOOKUP(A145,A145:AC345,28,0)/VLOOKUP(A145,A145:AC345,27,0),"-")) -> 
A146: =INDIRECT("D" & ROW())&INDIRECT("F" & ROW()) -> 
A147: =INDIRECT("D" & ROW())&INDIRECT("F" & ROW()) -> 
A148: =INDIRECT("D" & ROW())&INDIRECT("F" & ROW()) -> 
A149: =INDIRECT("D" & ROW())&INDIRECT("F" & ROW()) -> 
A150: =INDIRECT("D" & ROW())&INDIRECT("F" & ROW()) -> 
A151: =INDIRECT("D" & ROW())&INDIRECT("F" & ROW()) -> 
A152: =INDIRECT("D" & ROW())&INDIRECT("F" & ROW()) -> 
A153: =INDIRECT("D" & ROW())&INDIRECT("F" & ROW()) -> 
A154: =INDIRECT("D" & ROW())&INDIRECT("F" & ROW()) -> 
A155: =INDIRECT("D" & ROW())&INDIRECT("F" & ROW()) -> 
A156: =INDIRECT("D" & ROW())&INDIRECT("F" & ROW()) -> 
A157: =INDIRECT("D" & ROW())&INDIRECT("F" & ROW()) -> 
A158: =INDIRECT("D" & ROW())&INDIRECT("F" & ROW()) -> 
A159: =INDIRECT("D" & ROW())&INDIRECT("F" & ROW()) -> 
A160: =INDIRECT("D" & ROW())&INDIRECT("F" & ROW()) -> 
A161: =INDIRECT("D" & ROW())&INDIRECT("F" & ROW()) -> 
A162: =INDIRECT("D" & ROW())&INDIRECT("F" & ROW()) -> 
A163: =INDIRECT("D" & ROW())&INDIRECT("F" & ROW()) -> 
A164: =INDIRECT("D" & ROW())&INDIRECT("F" & ROW()) -> 
A165: =INDIRECT("D" & ROW())&INDIRECT("F" & ROW()) -> 
A166: =INDIRECT("D" & ROW())&INDIRECT("F" & ROW()) -> 
A167: =INDIRECT("D" & ROW())&INDIRECT("F" & ROW()) -> 
A168: =INDIRECT("D" & ROW())&INDIRECT("F" & ROW()) -> 
A169: =INDIRECT("D" & ROW())&INDIRECT("F" & ROW()) -> 
A170: =INDIRECT("D" & ROW())&INDIRECT("F" & ROW()) -> 
A171: =INDIRECT("D" & ROW())&INDIRECT("F" & ROW()) -> 
A172: =INDIRECT("D" & ROW())&INDIRECT("F" & ROW()) -> 
A173: =INDIRECT("D" & ROW())&INDIRECT("F" & ROW()) -> 
A174: =INDIRECT("D" & ROW())&INDIRECT("F" & ROW()) -> 
A175: =INDIRECT("D" & ROW())&INDIRECT("F" & ROW()) -> 
A176: =INDIRECT("D" & ROW())&INDIRECT("F" & ROW()) ->  | D176: =IFERROR(VLOOKUP($E$5&E176,Sites,4,FALSE),"") -> 
A177: =INDIRECT("D" & ROW())&INDIRECT("F" & ROW()) -> 
A178: =INDIRECT("D" & ROW())&INDIRECT("F" & ROW()) -> 
A179: =INDIRECT("D" & ROW())&INDIRECT("F" & ROW()) -> 
A180: =INDIRECT("D" & ROW())&INDIRECT("F" & ROW()) -> 
A181: =INDIRECT("D" & ROW())&INDIRECT("F" & ROW()) -> 
A182: =INDIRECT("D" & ROW())&INDIRECT("F" & ROW()) -> 
A183: =INDIRECT("D" & ROW())&INDIRECT("F" & ROW()) -> 
A184: =INDIRECT("D" & ROW())&INDIRECT("F" & ROW()) -> 
A185: =INDIRECT("D" & ROW())&INDIRECT("F" & ROW()) -> 
A186: =INDIRECT("D" & ROW())&INDIRECT("F" & ROW()) -> 
A187: =INDIRECT("D" & ROW())&INDIRECT("F" & ROW()) -> 
A188: =INDIRECT("D" & ROW())&INDIRECT("F" & ROW()) -> 
A189: =INDIRECT("D" & ROW())&INDIRECT("F" & ROW()) -> 
A190: =INDIRECT("D" & ROW())&INDIRECT("F" & ROW()) -> 
A191: =INDIRECT("D" & ROW())&INDIRECT("F" & ROW()) -> 
A192: =INDIRECT("D" & ROW())&INDIRECT("F" & ROW()) -> 
A193: =INDIRECT("D" & ROW())&INDIRECT("F" & ROW()) -> 
A194: =INDIRECT("D" & ROW())&INDIRECT("F" & ROW()) -> 
A195: =INDIRECT("D" & ROW())&INDIRECT("F" & ROW()) -> 
A196: =INDIRECT("D" & ROW())&INDIRECT("F" & ROW()) -> 
A197: =INDIRECT("D" & ROW())&INDIRECT("F" & ROW()) -> 
A198: =INDIRECT("D" & ROW())&INDIRECT("F" & ROW()) -> 
A199: =INDIRECT("D" & ROW())&INDIRECT("F" & ROW()) -> 
A200: =INDIRECT("D" & ROW())&INDIRECT("F" & ROW()) -> 
A201: =INDIRECT("D" & ROW())&INDIRECT("F" & ROW()) -> 
A202: =INDIRECT("D" & ROW())&INDIRECT("F" & ROW()) -> 
A203: =INDIRECT("D" & ROW())&INDIRECT("F" & ROW()) -> 
... 12 more rows

Sheet Errors
A4: Total Errors per column
E5: =SUM(--(LEN(E7:E206)>0)) -> 0 | F5: =SUM(--(LEN(F7:F206)>0)) -> 0 | G5: =SUM(--(LEN(G7:G206)>0)) -> 0 | H5: =SUM(--(LEN(H7:H206)>0)) -> 0 | I5: =SUM(--(LEN(I7:I206)>0)) -> 0 | J5: =SUM(--(LEN(J7:J206)>0)) -> 0 | K5: =SUM(--(LEN(K7:K206)>0)) -> 0 | L5: =SUM(--(LEN(L7:L206)>0)) -> 155
A6: Site-Ward Pair | B6: SiteCode | C6: Hospital Site Name | D6: Ward Name | E6: Format Checks | F6: Site Code Present? | G6: Ward Name present? | H6: At least 1 Specialty? | I6: Specialties in List? | J6: Matching Covid Statuses? | K6: Duplicate Site-Ward | L6: Blank Row?
A7: =IF('Trust - Frontsheet'!A16="","",'Trust - Frontsheet'!A16) -> RKB02AMU 1 (Ward 12) | B7: =IF('Trust - Frontsheet'!A16="","",'Trust - Frontsheet'!D16) -> RKB02 | C7: =IF(VLOOKUP(A7,'Trust - Frontsheet'!$A$16:$AC$215,5,0)="","",VLOOKUP(A7,'Trust - Frontsheet'!$A$16:$AC$216,5,0)) -> COVENTRY AND WARWICKSHIRE HOSPITAL | D7: =IF(VLOOKUP(A7,'Trust - Frontsheet'!$A$16:$AC$215,6,0)="","",VLOOKUP(A7,'Trust - Frontsheet'!$A$16:$AC$216,6,0)) -> AMU 1 (Ward 12) | E7: =IF(OR(SUMPRODUCT(--(ISTEXT('Trust - Frontsheet'!I16:AC16)))>0,SUMPRODUCT(--(ISERROR('Trust - Frontsheet'!AD16:AT16)))>0),"There is invalid data on this row",IF(SUMPRODUCT(--('Trust - Frontsheet'!I16:AC16<0))>0,"This row contains negative values",IF(AND(L7="This is a blank Row",COUNTBLANK(INDIRECT("L" & ROW() + 1 & ":L" & 206))>0),"No blank rows in the data",""))) ->  | F7: =IF(A7 = "","",IF('Trust - Frontsheet'!D16="", "Site code not present.","")) ->  | G7: =IF('Trust - Frontsheet'!D16="","",IF(VLOOKUP(A7,'Trust - Frontsheet'!$A$16:$AC$215,6,0)="","Ward name not present","")) ->  | H7: =IF(A7="","",IF(VLOOKUP(A7,'Trust - Frontsheet'!$A$16:$AC$215,7,0)="","Specialty 1 has not been selected","")) ->  | I7: =IF(A7="","",IF(OR(COUNTIF(Specialties,VLOOKUP(A7,'Trust - Frontsheet'!$A$16:$AC$215,7,0))=0, AND(COUNTIF(Specialties,VLOOKUP(A7,'Trust - Frontsheet'!$A$16:$AC$215,8,0))=0,VLOOKUP(A7,'Trust - Frontsheet'!$A$16:$AC$215,8,0)<>"")),"You have entered unacceptable specialties.","")) ->  | J7: =IF(A7="","",IF(AND(RIGHT(VLOOKUP(A7,'Trust - Frontsheet'!$A$16:$AC$215,7,0),3)<>RIGHT(VLOOKUP(A7,'Trust - Frontsheet'!$A$16:$AC$215,8,0),3),VLOOKUP(A7,'Trust - Frontsheet'!$A$16:$AC$215,8,0)<>""),"Covid statuses do not match","")) ->  | K7: =IF(A7="","",IF(COUNTIF($A$7:$A$206,A7)>1,"You have entered a duplicate site-ward pair","")) ->  | L7: =IF(SUMPRODUCT(--('Trust - Frontsheet'!$D16:$AC16=""))<>26,"","This is a blank row") -> 
A8: =IF('Trust - Frontsheet'!A17="","",'Trust - Frontsheet'!A17) -> RKB02AMU 2 (Ward 2) | B8: =IF('Trust - Frontsheet'!A17="","",'Trust - Frontsheet'!D17) -> RKB02 | C8: =IF(VLOOKUP(A8,'Trust - Frontsheet'!$A$16:$AC$215,5,0)="","",VLOOKUP(A8,'Trust - Frontsheet'!$A$16:$AC$216,5,0)) -> COVENTRY AND WARWICKSHIRE HOSPITAL | D8: =IF(VLOOKUP(A8,'Trust - Frontsheet'!$A$16:$AC$215,6,0)="","",VLOOKUP(A8,'Trust - Frontsheet'!$A$16:$AC$216,6,0)) -> AMU 2 (Ward 2) | E8: =IF(OR(SUMPRODUCT(--(ISTEXT('Trust - Frontsheet'!I17:AC17)))>0,SUMPRODUCT(--(ISERROR('Trust - Frontsheet'!AD17:AT17)))>0),"There is invalid data on this row",IF(SUMPRODUCT(--('Trust - Frontsheet'!I17:AC17<0))>0,"This row contains negative values",IF(AND(L8="This is a blank Row",COUNTBLANK(INDIRECT("L" & ROW() + 1 & ":L" & 206))>0),"No blank rows in the data",""))) ->  | F8: =IF(A8 = "","",IF('Trust - Frontsheet'!D17="", "Site code not present","")) ->  | G8: =IF('Trust - Frontsheet'!D17="","",IF(VLOOKUP(A8,'Trust - Frontsheet'!$A$16:$AC$215,6,0)="","Ward name not present","")) ->  | H8: =IF(A8="","",IF(VLOOKUP(A8,'Trust - Frontsheet'!$A$16:$AC$215,7,0)="","Specialty 1 has not been selected","")) ->  | I8: =IF(A8="","",IF(OR(COUNTIF(Specialties,VLOOKUP(A8,'Trust - Frontsheet'!$A$16:$AC$215,7,0))=0, AND(COUNTIF(Specialties,VLOOKUP(A8,'Trust - Frontsheet'!$A$16:$AC$215,8,0))=0,VLOOKUP(A8,'Trust - Frontsheet'!$A$16:$AC$215,8,0)<>"")),"You have entered unacceptable specialties.","")) ->  | J8: =IF(A8="","",IF(AND(RIGHT(VLOOKUP(A8,'Trust - Frontsheet'!$A$16:$AC$215,7,0),3)<>RIGHT(VLOOKUP(A8,'Trust - Frontsheet'!$A$16:$AC$215,8,0),3),VLOOKUP(A8,'Trust - Frontsheet'!$A$16:$AC$215,8,0)<>""),"Covid statuses do not match","")) ->  | K8: =IF(A8="","",IF(COUNTIF($A$7:$A$206,A8)>1,"You have entered a duplicate site-ward pair","")) ->  | L8: =IF(SUMPRODUCT(--('Trust - Frontsheet'!$D17:$AC17=""))<>26,"","This is a blank row") -> 
A9: =IF('Trust - Frontsheet'!A18="","",'Trust - Frontsheet'!A18) -> RKB02AMU 3 (Ward 3) | B9: =IF('Trust - Frontsheet'!A18="","",'Trust - Frontsheet'!D18) -> RKB02 | C9: =IF(VLOOKUP(A9,'Trust - Frontsheet'!$A$16:$AC$215,5,0)="","",VLOOKUP(A9,'Trust - Frontsheet'!$A$16:$AC$216,5,0)) -> COVENTRY AND WARWICKSHIRE HOSPITAL | D9: =IF(VLOOKUP(A9,'Trust - Frontsheet'!$A$16:$AC$215,6,0)="","",VLOOKUP(A9,'Trust - Frontsheet'!$A$16:$AC$216,6,0)) -> AMU 3 (Ward 3) | E9: =IF(OR(SUMPRODUCT(--(ISTEXT('Trust - Frontsheet'!I18:AC18)))>0,SUMPRODUCT(--(ISERROR('Trust - Frontsheet'!AD18:AT18)))>0),"There is invalid data on this row",IF(SUMPRODUCT(--('Trust - Frontsheet'!I18:AC18<0))>0,"This row contains negative values",IF(AND(L9="This is a blank Row",COUNTBLANK(INDIRECT("L" & ROW() + 1 & ":L" & 206))>0),"No blank rows in the data",""))) ->  | F9: =IF(A9 = "","",IF('Trust - Frontsheet'!D18="", "Site code not present","")) ->  | G9: =IF('Trust - Frontsheet'!D18="","",IF(VLOOKUP(A9,'Trust - Frontsheet'!$A$16:$AC$215,6,0)="","Ward name not present","")) ->  | H9: =IF(A9="","",IF(VLOOKUP(A9,'Trust - Frontsheet'!$A$16:$AC$215,7,0)="","Specialty 1 has not been selected","")) ->  | I9: =IF(A9="","",IF(OR(COUNTIF(Specialties,VLOOKUP(A9,'Trust - Frontsheet'!$A$16:$AC$215,7,0))=0, AND(COUNTIF(Specialties,VLOOKUP(A9,'Trust - Frontsheet'!$A$16:$AC$215,8,0))=0,VLOOKUP(A9,'Trust - Frontsheet'!$A$16:$AC$215,8,0)<>"")),"You have entered unacceptable specialties.","")) ->  | J9: =IF(A9="","",IF(AND(RIGHT(VLOOKUP(A9,'Trust - Frontsheet'!$A$16:$AC$215,7,0),3)<>RIGHT(VLOOKUP(A9,'Trust - Frontsheet'!$A$16:$AC$215,8,0),3),VLOOKUP(A9,'Trust - Frontsheet'!$A$16:$AC$215,8,0)<>""),"Covid statuses do not match","")) ->  | L9: =IF(SUMPRODUCT(--('Trust - Frontsheet'!$D18:$AC18=""))<>26,"","This is a blank row") -> 
A10: =IF('Trust - Frontsheet'!A19="","",'Trust - Frontsheet'!A19) -> RKB02Cardiothoracic ITU | B10: =IF('Trust - Frontsheet'!A19="","",'Trust - Frontsheet'!D19) -> RKB02 | C10: =IF(VLOOKUP(A10,'Trust - Frontsheet'!$A$16:$AC$215,5,0)="","",VLOOKUP(A10,'Trust - Frontsheet'!$A$16:$AC$216,5,0)) -> COVENTRY AND WARWICKSHIRE HOSPITAL | D10: =IF(VLOOKUP(A10,'Trust - Frontsheet'!$A$16:$AC$215,6,0)="","",VLOOKUP(A10,'Trust - Frontsheet'!$A$16:$AC$216,6,0)) -> Cardiothoracic ITU | E10: =IF(OR(SUMPRODUCT(--(ISTEXT('Trust - Frontsheet'!I19:AC19)))>0,SUMPRODUCT(--(ISERROR('Trust - Frontsheet'!AD19:AT19)))>0),"There is invalid data on this row",IF(SUMPRODUCT(--('Trust - Frontsheet'!I19:AC19<0))>0,"This row contains negative values",IF(AND(L10="This is a blank Row",COUNTBLANK(INDIRECT("L" & ROW() + 1 & ":L" & 206))>0),"No blank rows in the data",""))) ->  | F10: =IF(A10 = "","",IF('Trust - Frontsheet'!D19="", "Site code not present","")) ->  | G10: =IF('Trust - Frontsheet'!D19="","",IF(VLOOKUP(A10,'Trust - Frontsheet'!$A$16:$AC$215,6,0)="","Ward name not present","")) ->  | H10: =IF(A10="","",IF(VLOOKUP(A10,'Trust - Frontsheet'!$A$16:$AC$215,7,0)="","Specialty 1 has not been selected","")) ->  | I10: =IF(A10="","",IF(OR(COUNTIF(Specialties,VLOOKUP(A10,'Trust - Frontsheet'!$A$16:$AC$215,7,0))=0, AND(COUNTIF(Specialties,VLOOKUP(A10,'Trust - Frontsheet'!$A$16:$AC$215,8,0))=0,VLOOKUP(A10,'Trust - Frontsheet'!$A$16:$AC$215,8,0)<>"")),"You have entered unacceptable specialties.","")) ->  | J10: =IF(A10="","",IF(AND(RIGHT(VLOOKUP(A10,'Trust - Frontsheet'!$A$16:$AC$215,7,0),3)<>RIGHT(VLOOKUP(A10,'Trust - Frontsheet'!$A$16:$AC$215,8,0),3),VLOOKUP(A10,'Trust - Frontsheet'!$A$16:$AC$215,8,0)<>""),"Covid statuses do not match","")) ->  | L10: =IF(SUMPRODUCT(--('Trust - Frontsheet'!$D19:$AC19=""))<>26,"","This is a blank row") -> 
A11: =IF('Trust - Frontsheet'!A20="","",'Trust - Frontsheet'!A20) -> RKB02Coronary Care Unit | B11: =IF('Trust - Frontsheet'!A20="","",'Trust - Frontsheet'!D20) -> RKB02 | C11: =IF(VLOOKUP(A11,'Trust - Frontsheet'!$A$16:$AC$215,5,0)="","",VLOOKUP(A11,'Trust - Frontsheet'!$A$16:$AC$216,5,0)) -> COVENTRY AND WARWICKSHIRE HOSPITAL | D11: =IF(VLOOKUP(A11,'Trust - Frontsheet'!$A$16:$AC$215,6,0)="","",VLOOKUP(A11,'Trust - Frontsheet'!$A$16:$AC$216,6,0)) -> Coronary Care Unit | E11: =IF(OR(SUMPRODUCT(--(ISTEXT('Trust - Frontsheet'!I20:AC20)))>0,SUMPRODUCT(--(ISERROR('Trust - Frontsheet'!AD20:AT20)))>0),"There is invalid data on this row",IF(SUMPRODUCT(--('Trust - Frontsheet'!I20:AC20<0))>0,"This row contains negative values",IF(AND(L11="This is a blank Row",COUNTBLANK(INDIRECT("L" & ROW() + 1 & ":L" & 206))>0),"No blank rows in the data",""))) ->  | F11: =IF(A11 = "","",IF('Trust - Frontsheet'!D20="", "Site code not present","")) ->  | G11: =IF('Trust - Frontsheet'!D20="","",IF(VLOOKUP(A11,'Trust - Frontsheet'!$A$16:$AC$215,6,0)="","Ward name not present","")) ->  | H11: =IF(A11="","",IF(VLOOKUP(A11,'Trust - Frontsheet'!$A$16:$AC$215,7,0)="","Specialty 1 has not been selected","")) ->  | I11: =IF(A11="","",IF(OR(COUNTIF(Specialties,VLOOKUP(A11,'Trust - Frontsheet'!$A$16:$AC$215,7,0))=0, AND(COUNTIF(Specialties,VLOOKUP(A11,'Trust - Frontsheet'!$A$16:$AC$215,8,0))=0,VLOOKUP(A11,'Trust - Frontsheet'!$A$16:$AC$215,8,0)<>"")),"You have entered unacceptable specialties.","")) ->  | J11: =IF(A11="","",IF(AND(RIGHT(VLOOKUP(A11,'Trust - Frontsheet'!$A$16:$AC$215,7,0),3)<>RIGHT(VLOOKUP(A11,'Trust - Frontsheet'!$A$16:$AC$215,8,0),3),VLOOKUP(A11,'Trust - Frontsheet'!$A$16:$AC$215,8,0)<>""),"Covid statuses do not match","")) ->  | L11: =IF(SUMPRODUCT(--('Trust - Frontsheet'!$D20:$AC20=""))<>26,"","This is a blank row") -> 
A12: =IF('Trust - Frontsheet'!A21="","",'Trust - Frontsheet'!A21) -> RKB02Critical Care Unit | B12: =IF('Trust - Frontsheet'!A21="","",'Trust - Frontsheet'!D21) -> RKB02 | C12: =IF(VLOOKUP(A12,'Trust - Frontsheet'!$A$16:$AC$215,5,0)="","",VLOOKUP(A12,'Trust - Frontsheet'!$A$16:$AC$216,5,0)) -> COVENTRY AND WARWICKSHIRE HOSPITAL | D12: =IF(VLOOKUP(A12,'Trust - Frontsheet'!$A$16:$AC$215,6,0)="","",VLOOKUP(A12,'Trust - Frontsheet'!$A$16:$AC$216,6,0)) -> Critical Care Unit | E12: =IF(OR(SUMPRODUCT(--(ISTEXT('Trust - Frontsheet'!I21:AC21)))>0,SUMPRODUCT(--(ISERROR('Trust - Frontsheet'!AD21:AT21)))>0),"There is invalid data on this row",IF(SUMPRODUCT(--('Trust - Frontsheet'!I21:AC21<0))>0,"This row contains negative values",IF(AND(L12="This is a blank Row",COUNTBLANK(INDIRECT("L" & ROW() + 1 & ":L" & 206))>0),"No blank rows in the data",""))) ->  | F12: =IF(A12 = "","",IF('Trust - Frontsheet'!D21="", "Site code not present","")) ->  | G12: =IF('Trust - Frontsheet'!D21="","",IF(VLOOKUP(A12,'Trust - Frontsheet'!$A$16:$AC$215,6,0)="","Ward name not present","")) ->  | H12: =IF(A12="","",IF(VLOOKUP(A12,'Trust - Frontsheet'!$A$16:$AC$215,7,0)="","Specialty 1 has not been selected","")) ->  | I12: =IF(A12="","",IF(OR(COUNTIF(Specialties,VLOOKUP(A12,'Trust - Frontsheet'!$A$16:$AC$215,7,0))=0, AND(COUNTIF(Specialties,VLOOKUP(A12,'Trust - Frontsheet'!$A$16:$AC$215,8,0))=0,VLOOKUP(A12,'Trust - Frontsheet'!$A$16:$AC$215,8,0)<>"")),"You have entered unacceptable specialties.","")) ->  | J12: =IF(A12="","",IF(AND(RIGHT(VLOOKUP(A12,'Trust - Frontsheet'!$A$16:$AC$215,7,0),3)<>RIGHT(VLOOKUP(A12,'Trust - Frontsheet'!$A$16:$AC$215,8,0),3),VLOOKUP(A12,'Trust - Frontsheet'!$A$16:$AC$215,8,0)<>""),"Covid statuses do not match","")) ->  | L12: =IF(SUMPRODUCT(--('Trust - Frontsheet'!$D21:$AC21=""))<>26,"","This is a blank row") -> 
A13: =IF('Trust - Frontsheet'!A22="","",'Trust - Frontsheet'!A22) -> RKB02Labour Ward | B13: =IF('Trust - Frontsheet'!A22="","",'Trust - Frontsheet'!D22) -> RKB02 | C13: =IF(VLOOKUP(A13,'Trust - Frontsheet'!$A$16:$AC$215,5,0)="","",VLOOKUP(A13,'Trust - Frontsheet'!$A$16:$AC$216,5,0)) -> COVENTRY AND WARWICKSHIRE HOSPITAL | D13: =IF(VLOOKUP(A13,'Trust - Frontsheet'!$A$16:$AC$215,6,0)="","",VLOOKUP(A13,'Trust - Frontsheet'!$A$16:$AC$216,6,0)) -> Labour Ward | E13: =IF(OR(SUMPRODUCT(--(ISTEXT('Trust - Frontsheet'!I22:AC22)))>0,SUMPRODUCT(--(ISERROR('Trust - Frontsheet'!AD22:AT22)))>0),"There is invalid data on this row",IF(SUMPRODUCT(--('Trust - Frontsheet'!I22:AC22<0))>0,"This row contains negative values",IF(AND(L13="This is a blank Row",COUNTBLANK(INDIRECT("L" & ROW() + 1 & ":L" & 206))>0),"No blank rows in the data",""))) ->  | F13: =IF(A13 = "","",IF('Trust - Frontsheet'!D22="", "Site code not present","")) ->  | G13: =IF('Trust - Frontsheet'!D22="","",IF(VLOOKUP(A13,'Trust - Frontsheet'!$A$16:$AC$215,6,0)="","Ward name not present","")) ->  | H13: =IF(A13="","",IF(VLOOKUP(A13,'Trust - Frontsheet'!$A$16:$AC$215,7,0)="","Specialty 1 has not been selected","")) ->  | I13: =IF(A13="","",IF(OR(COUNTIF(Specialties,VLOOKUP(A13,'Trust - Frontsheet'!$A$16:$AC$215,7,0))=0, AND(COUNTIF(Specialties,VLOOKUP(A13,'Trust - Frontsheet'!$A$16:$AC$215,8,0))=0,VLOOKUP(A13,'Trust - Frontsheet'!$A$16:$AC$215,8,0)<>"")),"You have entered unacceptable specialties.","")) ->  | J13: =IF(A13="","",IF(AND(RIGHT(VLOOKUP(A13,'Trust - Frontsheet'!$A$16:$AC$215,7,0),3)<>RIGHT(VLOOKUP(A13,'Trust - Frontsheet'!$A$16:$AC$215,8,0),3),VLOOKUP(A13,'Trust - Frontsheet'!$A$16:$AC$215,8,0)<>""),"Covid statuses do not match","")) ->  | L13: =IF(SUMPRODUCT(--('Trust - Frontsheet'!$D22:$AC22=""))<>26,"","This is a blank row") -> 
A14: =IF('Trust - Frontsheet'!A23="","",'Trust - Frontsheet'!A23) -> RKB02Major Trauma ECU | B14: =IF('Trust - Frontsheet'!A23="","",'Trust - Frontsheet'!D23) -> RKB02 | C14: =IF(VLOOKUP(A14,'Trust - Frontsheet'!$A$16:$AC$215,5,0)="","",VLOOKUP(A14,'Trust - Frontsheet'!$A$16:$AC$216,5,0)) -> COVENTRY AND WARWICKSHIRE HOSPITAL | D14: =IF(VLOOKUP(A14,'Trust - Frontsheet'!$A$16:$AC$215,6,0)="","",VLOOKUP(A14,'Trust - Frontsheet'!$A$16:$AC$216,6,0)) -> Major Trauma ECU | E14: =IF(OR(SUMPRODUCT(--(ISTEXT('Trust - Frontsheet'!I23:AC23)))>0,SUMPRODUCT(--(ISERROR('Trust - Frontsheet'!AD23:AT23)))>0),"There is invalid data on this row",IF(SUMPRODUCT(--('Trust - Frontsheet'!I23:AC23<0))>0,"This row contains negative values",IF(AND(L14="This is a blank Row",COUNTBLANK(INDIRECT("L" & ROW() + 1 & ":L" & 206))>0),"No blank rows in the data",""))) ->  | F14: =IF(A14 = "","",IF('Trust - Frontsheet'!D23="", "Site code not present","")) ->  | G14: =IF('Trust - Frontsheet'!D23="","",IF(VLOOKUP(A14,'Trust - Frontsheet'!$A$16:$AC$215,6,0)="","Ward name not present","")) ->  | H14: =IF(A14="","",IF(VLOOKUP(A14,'Trust - Frontsheet'!$A$16:$AC$215,7,0)="","Specialty 1 has not been selected","")) ->  | I14: =IF(A14="","",IF(OR(COUNTIF(Specialties,VLOOKUP(A14,'Trust - Frontsheet'!$A$16:$AC$215,7,0))=0, AND(COUNTIF(Specialties,VLOOKUP(A14,'Trust - Frontsheet'!$A$16:$AC$215,8,0))=0,VLOOKUP(A14,'Trust - Frontsheet'!$A$16:$AC$215,8,0)<>"")),"You have entered unacceptable specialties.","")) ->  | J14: =IF(A14="","",IF(AND(RIGHT(VLOOKUP(A14,'Trust - Frontsheet'!$A$16:$AC$215,7,0),3)<>RIGHT(VLOOKUP(A14,'Trust - Frontsheet'!$A$16:$AC$215,8,0),3),VLOOKUP(A14,'Trust - Frontsheet'!$A$16:$AC$215,8,0)<>""),"Covid statuses do not match","")) ->  | L14: =IF(SUMPRODUCT(--('Trust - Frontsheet'!$D23:$AC23=""))<>26,"","This is a blank row") -> 
A15: =IF('Trust - Frontsheet'!A24="","",'Trust - Frontsheet'!A24) -> RKB02NeoNatal Unit | B15: =IF('Trust - Frontsheet'!A24="","",'Trust - Frontsheet'!D24) -> RKB02 | C15: =IF(VLOOKUP(A15,'Trust - Frontsheet'!$A$16:$AC$215,5,0)="","",VLOOKUP(A15,'Trust - Frontsheet'!$A$16:$AC$216,5,0)) -> COVENTRY AND WARWICKSHIRE HOSPITAL | D15: =IF(VLOOKUP(A15,'Trust - Frontsheet'!$A$16:$AC$215,6,0)="","",VLOOKUP(A15,'Trust - Frontsheet'!$A$16:$AC$216,6,0)) -> NeoNatal Unit | E15: =IF(OR(SUMPRODUCT(--(ISTEXT('Trust - Frontsheet'!I24:AC24)))>0,SUMPRODUCT(--(ISERROR('Trust - Frontsheet'!AD24:AT24)))>0),"There is invalid data on this row",IF(SUMPRODUCT(--('Trust - Frontsheet'!I24:AC24<0))>0,"This row contains negative values",IF(AND(L15="This is a blank Row",COUNTBLANK(INDIRECT("L" & ROW() + 1 & ":L" & 206))>0),"No blank rows in the data",""))) ->  | F15: =IF(A15 = "","",IF('Trust - Frontsheet'!D24="", "Site code not present","")) ->  | G15: =IF('Trust - Frontsheet'!D24="","",IF(VLOOKUP(A15,'Trust - Frontsheet'!$A$16:$AC$215,6,0)="","Ward name not present","")) ->  | H15: =IF(A15="","",IF(VLOOKUP(A15,'Trust - Frontsheet'!$A$16:$AC$215,7,0)="","Specialty 1 has not been selected","")) ->  | I15: =IF(A15="","",IF(OR(COUNTIF(Specialties,VLOOKUP(A15,'Trust - Frontsheet'!$A$16:$AC$215,7,0))=0, AND(COUNTIF(Specialties,VLOOKUP(A15,'Trust - Frontsheet'!$A$16:$AC$215,8,0))=0,VLOOKUP(A15,'Trust - Frontsheet'!$A$16:$AC$215,8,0)<>"")),"You have entered unacceptable specialties.","")) ->  | J15: =IF(A15="","",IF(AND(RIGHT(VLOOKUP(A15,'Trust - Frontsheet'!$A$16:$AC$215,7,0),3)<>RIGHT(VLOOKUP(A15,'Trust - Frontsheet'!$A$16:$AC$215,8,0),3),VLOOKUP(A15,'Trust - Frontsheet'!$A$16:$AC$215,8,0)<>""),"Covid statuses do not match","")) ->  | L15: =IF(SUMPRODUCT(--('Trust - Frontsheet'!$D24:$AC24=""))<>26,"","This is a blank row") -> 
A16: =IF('Trust - Frontsheet'!A25="","",'Trust - Frontsheet'!A25) -> RKB02Paediatric HDU | B16: =IF('Trust - Frontsheet'!A25="","",'Trust - Frontsheet'!D25) -> RKB02 | C16: =IF(VLOOKUP(A16,'Trust - Frontsheet'!$A$16:$AC$215,5,0)="","",VLOOKUP(A16,'Trust - Frontsheet'!$A$16:$AC$216,5,0)) -> COVENTRY AND WARWICKSHIRE HOSPITAL | D16: =IF(VLOOKUP(A16,'Trust - Frontsheet'!$A$16:$AC$215,6,0)="","",VLOOKUP(A16,'Trust - Frontsheet'!$A$16:$AC$216,6,0)) -> Paediatric HDU | E16: =IF(OR(SUMPRODUCT(--(ISTEXT('Trust - Frontsheet'!I25:AC25)))>0,SUMPRODUCT(--(ISERROR('Trust - Frontsheet'!AD25:AT25)))>0),"There is invalid data on this row",IF(SUMPRODUCT(--('Trust - Frontsheet'!I25:AC25<0))>0,"This row contains negative values",IF(AND(L16="This is a blank Row",COUNTBLANK(INDIRECT("L" & ROW() + 1 & ":L" & 206))>0),"No blank rows in the data",""))) ->  | F16: =IF(A16 = "","",IF('Trust - Frontsheet'!D25="", "Site code not present","")) ->  | G16: =IF('Trust - Frontsheet'!D25="","",IF(VLOOKUP(A16,'Trust - Frontsheet'!$A$16:$AC$215,6,0)="","Ward name not present","")) ->  | H16: =IF(A16="","",IF(VLOOKUP(A16,'Trust - Frontsheet'!$A$16:$AC$215,7,0)="","Specialty 1 has not been selected","")) ->  | I16: =IF(A16="","",IF(OR(COUNTIF(Specialties,VLOOKUP(A16,'Trust - Frontsheet'!$A$16:$AC$215,7,0))=0, AND(COUNTIF(Specialties,VLOOKUP(A16,'Trust - Frontsheet'!$A$16:$AC$215,8,0))=0,VLOOKUP(A16,'Trust - Frontsheet'!$A$16:$AC$215,8,0)<>"")),"You have entered unacceptable specialties.","")) ->  | J16: =IF(A16="","",IF(AND(RIGHT(VLOOKUP(A16,'Trust - Frontsheet'!$A$16:$AC$215,7,0),3)<>RIGHT(VLOOKUP(A16,'Trust - Frontsheet'!$A$16:$AC$215,8,0),3),VLOOKUP(A16,'Trust - Frontsheet'!$A$16:$AC$215,8,0)<>""),"Covid statuses do not match","")) ->  | L16: =IF(SUMPRODUCT(--('Trust - Frontsheet'!$D25:$AC25=""))<>26,"","This is a blank row") -> 
A17: =IF('Trust - Frontsheet'!A26="","",'Trust - Frontsheet'!A26) -> RKB02Surgical Pathway Wd10 | B17: =IF('Trust - Frontsheet'!A26="","",'Trust - Frontsheet'!D26) -> RKB02 | C17: =IF(VLOOKUP(A17,'Trust - Frontsheet'!$A$16:$AC$215,5,0)="","",VLOOKUP(A17,'Trust - Frontsheet'!$A$16:$AC$216,5,0)) -> COVENTRY AND WARWICKSHIRE HOSPITAL | D17: =IF(VLOOKUP(A17,'Trust - Frontsheet'!$A$16:$AC$215,6,0)="","",VLOOKUP(A17,'Trust - Frontsheet'!$A$16:$AC$216,6,0)) -> Surgical Pathway Wd10 | E17: =IF(OR(SUMPRODUCT(--(ISTEXT('Trust - Frontsheet'!I26:AC26)))>0,SUMPRODUCT(--(ISERROR('Trust - Frontsheet'!AD26:AT26)))>0),"There is invalid data on this row",IF(SUMPRODUCT(--('Trust - Frontsheet'!I26:AC26<0))>0,"This row contains negative values",IF(AND(L17="This is a blank Row",COUNTBLANK(INDIRECT("L" & ROW() + 1 & ":L" & 206))>0),"No blank rows in the data",""))) ->  | F17: =IF(A17 = "","",IF('Trust - Frontsheet'!D26="", "Site code not present","")) ->  | G17: =IF('Trust - Frontsheet'!D26="","",IF(VLOOKUP(A17,'Trust - Frontsheet'!$A$16:$AC$215,6,0)="","Ward name not present","")) ->  | H17: =IF(A17="","",IF(VLOOKUP(A17,'Trust - Frontsheet'!$A$16:$AC$215,7,0)="","Specialty 1 has not been selected","")) ->  | I17: =IF(A17="","",IF(OR(COUNTIF(Specialties,VLOOKUP(A17,'Trust - Frontsheet'!$A$16:$AC$215,7,0))=0, AND(COUNTIF(Specialties,VLOOKUP(A17,'Trust - Frontsheet'!$A$16:$AC$215,8,0))=0,VLOOKUP(A17,'Trust - Frontsheet'!$A$16:$AC$215,8,0)<>"")),"You have entered unacceptable specialties.","")) ->  | J17: =IF(A17="","",IF(AND(RIGHT(VLOOKUP(A17,'Trust - Frontsheet'!$A$16:$AC$215,7,0),3)<>RIGHT(VLOOKUP(A17,'Trust - Frontsheet'!$A$16:$AC$215,8,0),3),VLOOKUP(A17,'Trust - Frontsheet'!$A$16:$AC$215,8,0)<>""),"Covid statuses do not match","")) ->  | L17: =IF(SUMPRODUCT(--('Trust - Frontsheet'!$D26:$AC26=""))<>26,"","This is a blank row") -> 
A18: =IF('Trust - Frontsheet'!A27="","",'Trust - Frontsheet'!A27) -> RKB02Surgical Wd22 Short Stay | B18: =IF('Trust - Frontsheet'!A27="","",'Trust - Frontsheet'!D27) -> RKB02 | C18: =IF(VLOOKUP(A18,'Trust - Frontsheet'!$A$16:$AC$215,5,0)="","",VLOOKUP(A18,'Trust - Frontsheet'!$A$16:$AC$216,5,0)) -> COVENTRY AND WARWICKSHIRE HOSPITAL | D18: =IF(VLOOKUP(A18,'Trust - Frontsheet'!$A$16:$AC$215,6,0)="","",VLOOKUP(A18,'Trust - Frontsheet'!$A$16:$AC$216,6,0)) -> Surgical Wd22 Short Stay | E18: =IF(OR(SUMPRODUCT(--(ISTEXT('Trust - Frontsheet'!I27:AC27)))>0,SUMPRODUCT(--(ISERROR('Trust - Frontsheet'!AD27:AT27)))>0),"There is invalid data on this row",IF(SUMPRODUCT(--('Trust - Frontsheet'!I27:AC27<0))>0,"This row contains negative values",IF(AND(L18="This is a blank Row",COUNTBLANK(INDIRECT("L" & ROW() + 1 & ":L" & 206))>0),"No blank rows in the data",""))) ->  | F18: =IF(A18 = "","",IF('Trust - Frontsheet'!D27="", "Site code not present","")) ->  | G18: =IF('Trust - Frontsheet'!D27="","",IF(VLOOKUP(A18,'Trust - Frontsheet'!$A$16:$AC$215,6,0)="","Ward name not present","")) ->  | H18: =IF(A18="","",IF(VLOOKUP(A18,'Trust - Frontsheet'!$A$16:$AC$215,7,0)="","Specialty 1 has not been selected","")) ->  | I18: =IF(A18="","",IF(OR(COUNTIF(Specialties,VLOOKUP(A18,'Trust - Frontsheet'!$A$16:$AC$215,7,0))=0, AND(COUNTIF(Specialties,VLOOKUP(A18,'Trust - Frontsheet'!$A$16:$AC$215,8,0))=0,VLOOKUP(A18,'Trust - Frontsheet'!$A$16:$AC$215,8,0)<>"")),"You have entered unacceptable specialties.","")) ->  | J18: =IF(A18="","",IF(AND(RIGHT(VLOOKUP(A18,'Trust - Frontsheet'!$A$16:$AC$215,7,0),3)<>RIGHT(VLOOKUP(A18,'Trust - Frontsheet'!$A$16:$AC$215,8,0),3),VLOOKUP(A18,'Trust - Frontsheet'!$A$16:$AC$215,8,0)<>""),"Covid statuses do not match","")) ->  | L18: =IF(SUMPRODUCT(--('Trust - Frontsheet'!$D27:$AC27=""))<>26,"","This is a blank row") -> 
A19: =IF('Trust - Frontsheet'!A28="","",'Trust - Frontsheet'!A28) -> RKB02Ward 1 | B19: =IF('Trust - Frontsheet'!A28="","",'Trust - Frontsheet'!D28) -> RKB02 | C19: =IF(VLOOKUP(A19,'Trust - Frontsheet'!$A$16:$AC$215,5,0)="","",VLOOKUP(A19,'Trust - Frontsheet'!$A$16:$AC$216,5,0)) -> COVENTRY AND WARWICKSHIRE HOSPITAL | D19: =IF(VLOOKUP(A19,'Trust - Frontsheet'!$A$16:$AC$215,6,0)="","",VLOOKUP(A19,'Trust - Frontsheet'!$A$16:$AC$216,6,0)) -> Ward 1 | E19: =IF(OR(SUMPRODUCT(--(ISTEXT('Trust - Frontsheet'!I28:AC28)))>0,SUMPRODUCT(--(ISERROR('Trust - Frontsheet'!AD28:AT28)))>0),"There is invalid data on this row",IF(SUMPRODUCT(--('Trust - Frontsheet'!I28:AC28<0))>0,"This row contains negative values",IF(AND(L19="This is a blank Row",COUNTBLANK(INDIRECT("L" & ROW() + 1 & ":L" & 206))>0),"No blank rows in the data",""))) ->  | F19: =IF(A19 = "","",IF('Trust - Frontsheet'!D28="", "Site code not present","")) ->  | G19: =IF('Trust - Frontsheet'!D28="","",IF(VLOOKUP(A19,'Trust - Frontsheet'!$A$16:$AC$215,6,0)="","Ward name not present","")) ->  | H19: =IF(A19="","",IF(VLOOKUP(A19,'Trust - Frontsheet'!$A$16:$AC$215,7,0)="","Specialty 1 has not been selected","")) ->  | I19: =IF(A19="","",IF(OR(COUNTIF(Specialties,VLOOKUP(A19,'Trust - Frontsheet'!$A$16:$AC$215,7,0))=0, AND(COUNTIF(Specialties,VLOOKUP(A19,'Trust - Frontsheet'!$A$16:$AC$215,8,0))=0,VLOOKUP(A19,'Trust - Frontsheet'!$A$16:$AC$215,8,0)<>"")),"You have entered unacceptable specialties.","")) ->  | J19: =IF(A19="","",IF(AND(RIGHT(VLOOKUP(A19,'Trust - Frontsheet'!$A$16:$AC$215,7,0),3)<>RIGHT(VLOOKUP(A19,'Trust - Frontsheet'!$A$16:$AC$215,8,0),3),VLOOKUP(A19,'Trust - Frontsheet'!$A$16:$AC$215,8,0)<>""),"Covid statuses do not match","")) ->  | L19: =IF(SUMPRODUCT(--('Trust - Frontsheet'!$D28:$AC28=""))<>26,"","This is a blank row") -> 
A20: =IF('Trust - Frontsheet'!A29="","",'Trust - Frontsheet'!A29) -> RKB02Ward 11 | B20: =IF('Trust - Frontsheet'!A29="","",'Trust - Frontsheet'!D29) -> RKB02 | C20: =IF(VLOOKUP(A20,'Trust - Frontsheet'!$A$16:$AC$215,5,0)="","",VLOOKUP(A20,'Trust - Frontsheet'!$A$16:$AC$216,5,0)) -> COVENTRY AND WARWICKSHIRE HOSPITAL | D20: =IF(VLOOKUP(A20,'Trust - Frontsheet'!$A$16:$AC$215,6,0)="","",VLOOKUP(A20,'Trust - Frontsheet'!$A$16:$AC$216,6,0)) -> Ward 11 | E20: =IF(OR(SUMPRODUCT(--(ISTEXT('Trust - Frontsheet'!I29:AC29)))>0,SUMPRODUCT(--(ISERROR('Trust - Frontsheet'!AD29:AT29)))>0),"There is invalid data on this row",IF(SUMPRODUCT(--('Trust - Frontsheet'!I29:AC29<0))>0,"This row contains negative values",IF(AND(L20="This is a blank Row",COUNTBLANK(INDIRECT("L" & ROW() + 1 & ":L" & 206))>0),"No blank rows in the data",""))) ->  | F20: =IF(A20 = "","",IF('Trust - Frontsheet'!D29="", "Site code not present","")) ->  | G20: =IF('Trust - Frontsheet'!D29="","",IF(VLOOKUP(A20,'Trust - Frontsheet'!$A$16:$AC$215,6,0)="","Ward name not present","")) ->  | H20: =IF(A20="","",IF(VLOOKUP(A20,'Trust - Frontsheet'!$A$16:$AC$215,7,0)="","Specialty 1 has not been selected","")) ->  | I20: =IF(A20="","",IF(OR(COUNTIF(Specialties,VLOOKUP(A20,'Trust - Frontsheet'!$A$16:$AC$215,7,0))=0, AND(COUNTIF(Specialties,VLOOKUP(A20,'Trust - Frontsheet'!$A$16:$AC$215,8,0))=0,VLOOKUP(A20,'Trust - Frontsheet'!$A$16:$AC$215,8,0)<>"")),"You have entered unacceptable specialties.","")) ->  | J20: =IF(A20="","",IF(AND(RIGHT(VLOOKUP(A20,'Trust - Frontsheet'!$A$16:$AC$215,7,0),3)<>RIGHT(VLOOKUP(A20,'Trust - Frontsheet'!$A$16:$AC$215,8,0),3),VLOOKUP(A20,'Trust - Frontsheet'!$A$16:$AC$215,8,0)<>""),"Covid statuses do not match","")) ->  | L20: =IF(SUMPRODUCT(--('Trust - Frontsheet'!$D29:$AC29=""))<>26,"","This is a blank row") -> 
A21: =IF('Trust - Frontsheet'!A30="","",'Trust - Frontsheet'!A30) -> RKB02Ward 14 | B21: =IF('Trust - Frontsheet'!A30="","",'Trust - Frontsheet'!D30) -> RKB02 | C21: =IF(VLOOKUP(A21,'Trust - Frontsheet'!$A$16:$AC$215,5,0)="","",VLOOKUP(A21,'Trust - Frontsheet'!$A$16:$AC$216,5,0)) -> COVENTRY AND WARWICKSHIRE HOSPITAL | D21: =IF(VLOOKUP(A21,'Trust - Frontsheet'!$A$16:$AC$215,6,0)="","",VLOOKUP(A21,'Trust - Frontsheet'!$A$16:$AC$216,6,0)) -> Ward 14 | E21: =IF(OR(SUMPRODUCT(--(ISTEXT('Trust - Frontsheet'!I30:AC30)))>0,SUMPRODUCT(--(ISERROR('Trust - Frontsheet'!AD30:AT30)))>0),"There is invalid data on this row",IF(SUMPRODUCT(--('Trust - Frontsheet'!I30:AC30<0))>0,"This row contains negative values",IF(AND(L21="This is a blank Row",COUNTBLANK(INDIRECT("L" & ROW() + 1 & ":L" & 206))>0),"No blank rows in the data",""))) ->  | F21: =IF(A21 = "","",IF('Trust - Frontsheet'!D30="", "Site code not present","")) ->  | G21: =IF('Trust - Frontsheet'!D30="","",IF(VLOOKUP(A21,'Trust - Frontsheet'!$A$16:$AC$215,6,0)="","Ward name not present","")) ->  | H21: =IF(A21="","",IF(VLOOKUP(A21,'Trust - Frontsheet'!$A$16:$AC$215,7,0)="","Specialty 1 has not been selected","")) ->  | I21: =IF(A21="","",IF(OR(COUNTIF(Specialties,VLOOKUP(A21,'Trust - Frontsheet'!$A$16:$AC$215,7,0))=0, AND(COUNTIF(Specialties,VLOOKUP(A21,'Trust - Frontsheet'!$A$16:$AC$215,8,0))=0,VLOOKUP(A21,'Trust - Frontsheet'!$A$16:$AC$215,8,0)<>"")),"You have entered unacceptable specialties.","")) ->  | J21: =IF(A21="","",IF(AND(RIGHT(VLOOKUP(A21,'Trust - Frontsheet'!$A$16:$AC$215,7,0),3)<>RIGHT(VLOOKUP(A21,'Trust - Frontsheet'!$A$16:$AC$215,8,0),3),VLOOKUP(A21,'Trust - Frontsheet'!$A$16:$AC$215,8,0)<>""),"Covid statuses do not match","")) ->  | L21: =IF(SUMPRODUCT(--('Trust - Frontsheet'!$D30:$AC30=""))<>26,"","This is a blank row") -> 
A22: =IF('Trust - Frontsheet'!A31="","",'Trust - Frontsheet'!A31) -> RKB02Ward 15 | B22: =IF('Trust - Frontsheet'!A31="","",'Trust - Frontsheet'!D31) -> RKB02 | C22: =IF(VLOOKUP(A22,'Trust - Frontsheet'!$A$16:$AC$215,5,0)="","",VLOOKUP(A22,'Trust - Frontsheet'!$A$16:$AC$216,5,0)) -> COVENTRY AND WARWICKSHIRE HOSPITAL | D22: =IF(VLOOKUP(A22,'Trust - Frontsheet'!$A$16:$AC$215,6,0)="","",VLOOKUP(A22,'Trust - Frontsheet'!$A$16:$AC$216,6,0)) -> Ward 15 | E22: =IF(OR(SUMPRODUCT(--(ISTEXT('Trust - Frontsheet'!I31:AC31)))>0,SUMPRODUCT(--(ISERROR('Trust - Frontsheet'!AD31:AT31)))>0),"There is invalid data on this row",IF(SUMPRODUCT(--('Trust - Frontsheet'!I31:AC31<0))>0,"This row contains negative values",IF(AND(L22="This is a blank Row",COUNTBLANK(INDIRECT("L" & ROW() + 1 & ":L" & 206))>0),"No blank rows in the data",""))) ->  | F22: =IF(A22 = "","",IF('Trust - Frontsheet'!D31="", "Site code not present","")) ->  | G22: =IF('Trust - Frontsheet'!D31="","",IF(VLOOKUP(A22,'Trust - Frontsheet'!$A$16:$AC$215,6,0)="","Ward name not present","")) ->  | H22: =IF(A22="","",IF(VLOOKUP(A22,'Trust - Frontsheet'!$A$16:$AC$215,7,0)="","Specialty 1 has not been selected","")) ->  | I22: =IF(A22="","",IF(OR(COUNTIF(Specialties,VLOOKUP(A22,'Trust - Frontsheet'!$A$16:$AC$215,7,0))=0, AND(COUNTIF(Specialties,VLOOKUP(A22,'Trust - Frontsheet'!$A$16:$AC$215,8,0))=0,VLOOKUP(A22,'Trust - Frontsheet'!$A$16:$AC$215,8,0)<>"")),"You have entered unacceptable specialties.","")) ->  | J22: =IF(A22="","",IF(AND(RIGHT(VLOOKUP(A22,'Trust - Frontsheet'!$A$16:$AC$215,7,0),3)<>RIGHT(VLOOKUP(A22,'Trust - Frontsheet'!$A$16:$AC$215,8,0),3),VLOOKUP(A22,'Trust - Frontsheet'!$A$16:$AC$215,8,0)<>""),"Covid statuses do not match","")) ->  | L22: =IF(SUMPRODUCT(--('Trust - Frontsheet'!$D31:$AC31=""))<>26,"","This is a blank row") -> 
A23: =IF('Trust - Frontsheet'!A32="","",'Trust - Frontsheet'!A32) -> RKB02Ward 16 | B23: =IF('Trust - Frontsheet'!A32="","",'Trust - Frontsheet'!D32) -> RKB02 | C23: =IF(VLOOKUP(A23,'Trust - Frontsheet'!$A$16:$AC$215,5,0)="","",VLOOKUP(A23,'Trust - Frontsheet'!$A$16:$AC$216,5,0)) -> COVENTRY AND WARWICKSHIRE HOSPITAL | D23: =IF(VLOOKUP(A23,'Trust - Frontsheet'!$A$16:$AC$215,6,0)="","",VLOOKUP(A23,'Trust - Frontsheet'!$A$16:$AC$216,6,0)) -> Ward 16 | E23: =IF(OR(SUMPRODUCT(--(ISTEXT('Trust - Frontsheet'!I32:AC32)))>0,SUMPRODUCT(--(ISERROR('Trust - Frontsheet'!AD32:AT32)))>0),"There is invalid data on this row",IF(SUMPRODUCT(--('Trust - Frontsheet'!I32:AC32<0))>0,"This row contains negative values",IF(AND(L23="This is a blank Row",COUNTBLANK(INDIRECT("L" & ROW() + 1 & ":L" & 206))>0),"No blank rows in the data",""))) ->  | F23: =IF(A23 = "","",IF('Trust - Frontsheet'!D32="", "Site code not present","")) ->  | G23: =IF('Trust - Frontsheet'!D32="","",IF(VLOOKUP(A23,'Trust - Frontsheet'!$A$16:$AC$215,6,0)="","Ward name not present","")) ->  | H23: =IF(A23="","",IF(VLOOKUP(A23,'Trust - Frontsheet'!$A$16:$AC$215,7,0)="","Specialty 1 has not been selected","")) ->  | I23: =IF(A23="","",IF(OR(COUNTIF(Specialties,VLOOKUP(A23,'Trust - Frontsheet'!$A$16:$AC$215,7,0))=0, AND(COUNTIF(Specialties,VLOOKUP(A23,'Trust - Frontsheet'!$A$16:$AC$215,8,0))=0,VLOOKUP(A23,'Trust - Frontsheet'!$A$16:$AC$215,8,0)<>"")),"You have entered unacceptable specialties.","")) ->  | J23: =IF(A23="","",IF(AND(RIGHT(VLOOKUP(A23,'Trust - Frontsheet'!$A$16:$AC$215,7,0),3)<>RIGHT(VLOOKUP(A23,'Trust - Frontsheet'!$A$16:$AC$215,8,0),3),VLOOKUP(A23,'Trust - Frontsheet'!$A$16:$AC$215,8,0)<>""),"Covid statuses do not match","")) ->  | L23: =IF(SUMPRODUCT(--('Trust - Frontsheet'!$D32:$AC32=""))<>26,"","This is a blank row") -> 
A24: =IF('Trust - Frontsheet'!A33="","",'Trust - Frontsheet'!A33) -> RKB02Ward 20 | B24: =IF('Trust - Frontsheet'!A33="","",'Trust - Frontsheet'!D33) -> RKB02 | C24: =IF(VLOOKUP(A24,'Trust - Frontsheet'!$A$16:$AC$215,5,0)="","",VLOOKUP(A24,'Trust - Frontsheet'!$A$16:$AC$216,5,0)) -> COVENTRY AND WARWICKSHIRE HOSPITAL | D24: =IF(VLOOKUP(A24,'Trust - Frontsheet'!$A$16:$AC$215,6,0)="","",VLOOKUP(A24,'Trust - Frontsheet'!$A$16:$AC$216,6,0)) -> Ward 20 | E24: =IF(OR(SUMPRODUCT(--(ISTEXT('Trust - Frontsheet'!I33:AC33)))>0,SUMPRODUCT(--(ISERROR('Trust - Frontsheet'!AD33:AT33)))>0),"There is invalid data on this row",IF(SUMPRODUCT(--('Trust - Frontsheet'!I33:AC33<0))>0,"This row contains negative values",IF(AND(L24="This is a blank Row",COUNTBLANK(INDIRECT("L" & ROW() + 1 & ":L" & 206))>0),"No blank rows in the data",""))) ->  | F24: =IF(A24 = "","",IF('Trust - Frontsheet'!D33="", "Site code not present","")) ->  | G24: =IF('Trust - Frontsheet'!D33="","",IF(VLOOKUP(A24,'Trust - Frontsheet'!$A$16:$AC$215,6,0)="","Ward name not present","")) ->  | H24: =IF(A24="","",IF(VLOOKUP(A24,'Trust - Frontsheet'!$A$16:$AC$215,7,0)="","Specialty 1 has not been selected","")) ->  | I24: =IF(A24="","",IF(OR(COUNTIF(Specialties,VLOOKUP(A24,'Trust - Frontsheet'!$A$16:$AC$215,7,0))=0, AND(COUNTIF(Specialties,VLOOKUP(A24,'Trust - Frontsheet'!$A$16:$AC$215,8,0))=0,VLOOKUP(A24,'Trust - Frontsheet'!$A$16:$AC$215,8,0)<>"")),"You have entered unacceptable specialties.","")) ->  | J24: =IF(A24="","",IF(AND(RIGHT(VLOOKUP(A24,'Trust - Frontsheet'!$A$16:$AC$215,7,0),3)<>RIGHT(VLOOKUP(A24,'Trust - Frontsheet'!$A$16:$AC$215,8,0),3),VLOOKUP(A24,'Trust - Frontsheet'!$A$16:$AC$215,8,0)<>""),"Covid statuses do not match","")) ->  | L24: =IF(SUMPRODUCT(--('Trust - Frontsheet'!$D33:$AC33=""))<>26,"","This is a blank row") -> 
A25: =IF('Trust - Frontsheet'!A34="","",'Trust - Frontsheet'!A34) -> RKB02Ward 20a | B25: =IF('Trust - Frontsheet'!A34="","",'Trust - Frontsheet'!D34) -> RKB02 | C25: =IF(VLOOKUP(A25,'Trust - Frontsheet'!$A$16:$AC$215,5,0)="","",VLOOKUP(A25,'Trust - Frontsheet'!$A$16:$AC$216,5,0)) -> COVENTRY AND WARWICKSHIRE HOSPITAL | D25: =IF(VLOOKUP(A25,'Trust - Frontsheet'!$A$16:$AC$215,6,0)="","",VLOOKUP(A25,'Trust - Frontsheet'!$A$16:$AC$216,6,0)) -> Ward 20a | E25: =IF(OR(SUMPRODUCT(--(ISTEXT('Trust - Frontsheet'!I34:AC34)))>0,SUMPRODUCT(--(ISERROR('Trust - Frontsheet'!AD34:AT34)))>0),"There is invalid data on this row",IF(SUMPRODUCT(--('Trust - Frontsheet'!I34:AC34<0))>0,"This row contains negative values",IF(AND(L25="This is a blank Row",COUNTBLANK(INDIRECT("L" & ROW() + 1 & ":L" & 206))>0),"No blank rows in the data",""))) ->  | F25: =IF(A25 = "","",IF('Trust - Frontsheet'!D34="", "Site code not present","")) ->  | G25: =IF('Trust - Frontsheet'!D34="","",IF(VLOOKUP(A25,'Trust - Frontsheet'!$A$16:$AC$215,6,0)="","Ward name not present","")) ->  | H25: =IF(A25="","",IF(VLOOKUP(A25,'Trust - Frontsheet'!$A$16:$AC$215,7,0)="","Specialty 1 has not been selected","")) ->  | I25: =IF(A25="","",IF(OR(COUNTIF(Specialties,VLOOKUP(A25,'Trust - Frontsheet'!$A$16:$AC$215,7,0))=0, AND(COUNTIF(Specialties,VLOOKUP(A25,'Trust - Frontsheet'!$A$16:$AC$215,8,0))=0,VLOOKUP(A25,'Trust - Frontsheet'!$A$16:$AC$215,8,0)<>"")),"You have entered unacceptable specialties.","")) ->  | J25: =IF(A25="","",IF(AND(RIGHT(VLOOKUP(A25,'Trust - Frontsheet'!$A$16:$AC$215,7,0),3)<>RIGHT(VLOOKUP(A25,'Trust - Frontsheet'!$A$16:$AC$215,8,0),3),VLOOKUP(A25,'Trust - Frontsheet'!$A$16:$AC$215,8,0)<>""),"Covid statuses do not match","")) ->  | L25: =IF(SUMPRODUCT(--('Trust - Frontsheet'!$D34:$AC34=""))<>26,"","This is a blank row") -> 
A26: =IF('Trust - Frontsheet'!A35="","",'Trust - Frontsheet'!A35) -> RKB02Ward 21 Cardiology | B26: =IF('Trust - Frontsheet'!A35="","",'Trust - Frontsheet'!D35) -> RKB02 | C26: =IF(VLOOKUP(A26,'Trust - Frontsheet'!$A$16:$AC$215,5,0)="","",VLOOKUP(A26,'Trust - Frontsheet'!$A$16:$AC$216,5,0)) -> COVENTRY AND WARWICKSHIRE HOSPITAL | D26: =IF(VLOOKUP(A26,'Trust - Frontsheet'!$A$16:$AC$215,6,0)="","",VLOOKUP(A26,'Trust - Frontsheet'!$A$16:$AC$216,6,0)) -> Ward 21 Cardiology | E26: =IF(OR(SUMPRODUCT(--(ISTEXT('Trust - Frontsheet'!I35:AC35)))>0,SUMPRODUCT(--(ISERROR('Trust - Frontsheet'!AD35:AT35)))>0),"There is invalid data on this row",IF(SUMPRODUCT(--('Trust - Frontsheet'!I35:AC35<0))>0,"This row contains negative values",IF(AND(L26="This is a blank Row",COUNTBLANK(INDIRECT("L" & ROW() + 1 & ":L" & 206))>0),"No blank rows in the data",""))) ->  | F26: =IF(A26 = "","",IF('Trust - Frontsheet'!D35="", "Site code not present","")) ->  | G26: =IF('Trust - Frontsheet'!D35="","",IF(VLOOKUP(A26,'Trust - Frontsheet'!$A$16:$AC$215,6,0)="","Ward name not present","")) ->  | H26: =IF(A26="","",IF(VLOOKUP(A26,'Trust - Frontsheet'!$A$16:$AC$215,7,0)="","Specialty 1 has not been selected","")) ->  | I26: =IF(A26="","",IF(OR(COUNTIF(Specialties,VLOOKUP(A26,'Trust - Frontsheet'!$A$16:$AC$215,7,0))=0, AND(COUNTIF(Specialties,VLOOKUP(A26,'Trust - Frontsheet'!$A$16:$AC$215,8,0))=0,VLOOKUP(A26,'Trust - Frontsheet'!$A$16:$AC$215,8,0)<>"")),"You have entered unacceptable specialties.","")) ->  | J26: =IF(A26="","",IF(AND(RIGHT(VLOOKUP(A26,'Trust - Frontsheet'!$A$16:$AC$215,7,0),3)<>RIGHT(VLOOKUP(A26,'Trust - Frontsheet'!$A$16:$AC$215,8,0),3),VLOOKUP(A26,'Trust - Frontsheet'!$A$16:$AC$215,8,0)<>""),"Covid statuses do not match","")) ->  | L26: =IF(SUMPRODUCT(--('Trust - Frontsheet'!$D35:$AC35=""))<>26,"","This is a blank row") -> 
A27: =IF('Trust - Frontsheet'!A36="","",'Trust - Frontsheet'!A36) -> RKB02Ward 22 SAU New | B27: =IF('Trust - Frontsheet'!A36="","",'Trust - Frontsheet'!D36) -> RKB02 | C27: =IF(VLOOKUP(A27,'Trust - Frontsheet'!$A$16:$AC$215,5,0)="","",VLOOKUP(A27,'Trust - Frontsheet'!$A$16:$AC$216,5,0)) -> COVENTRY AND WARWICKSHIRE HOSPITAL | D27: =IF(VLOOKUP(A27,'Trust - Frontsheet'!$A$16:$AC$215,6,0)="","",VLOOKUP(A27,'Trust - Frontsheet'!$A$16:$AC$216,6,0)) -> Ward 22 SAU New | E27: =IF(OR(SUMPRODUCT(--(ISTEXT('Trust - Frontsheet'!I36:AC36)))>0,SUMPRODUCT(--(ISERROR('Trust - Frontsheet'!AD36:AT36)))>0),"There is invalid data on this row",IF(SUMPRODUCT(--('Trust - Frontsheet'!I36:AC36<0))>0,"This row contains negative values",IF(AND(L27="This is a blank Row",COUNTBLANK(INDIRECT("L" & ROW() + 1 & ":L" & 206))>0),"No blank rows in the data",""))) ->  | F27: =IF(A27 = "","",IF('Trust - Frontsheet'!D36="", "Site code not present","")) ->  | G27: =IF('Trust - Frontsheet'!D36="","",IF(VLOOKUP(A27,'Trust - Frontsheet'!$A$16:$AC$215,6,0)="","Ward name not present","")) ->  | H27: =IF(A27="","",IF(VLOOKUP(A27,'Trust - Frontsheet'!$A$16:$AC$215,7,0)="","Specialty 1 has not been selected","")) ->  | I27: =IF(A27="","",IF(OR(COUNTIF(Specialties,VLOOKUP(A27,'Trust - Frontsheet'!$A$16:$AC$215,7,0))=0, AND(COUNTIF(Specialties,VLOOKUP(A27,'Trust - Frontsheet'!$A$16:$AC$215,8,0))=0,VLOOKUP(A27,'Trust - Frontsheet'!$A$16:$AC$215,8,0)<>"")),"You have entered unacceptable specialties.","")) ->  | J27: =IF(A27="","",IF(AND(RIGHT(VLOOKUP(A27,'Trust - Frontsheet'!$A$16:$AC$215,7,0),3)<>RIGHT(VLOOKUP(A27,'Trust - Frontsheet'!$A$16:$AC$215,8,0),3),VLOOKUP(A27,'Trust - Frontsheet'!$A$16:$AC$215,8,0)<>""),"Covid statuses do not match","")) ->  | L27: =IF(SUMPRODUCT(--('Trust - Frontsheet'!$D36:$AC36=""))<>26,"","This is a blank row") -> 
A28: =IF('Trust - Frontsheet'!A37="","",'Trust - Frontsheet'!A37) -> RKB02Ward 22a Vas | B28: =IF('Trust - Frontsheet'!A37="","",'Trust - Frontsheet'!D37) -> RKB02 | C28: =IF(VLOOKUP(A28,'Trust - Frontsheet'!$A$16:$AC$215,5,0)="","",VLOOKUP(A28,'Trust - Frontsheet'!$A$16:$AC$216,5,0)) -> COVENTRY AND WARWICKSHIRE HOSPITAL | D28: =IF(VLOOKUP(A28,'Trust - Frontsheet'!$A$16:$AC$215,6,0)="","",VLOOKUP(A28,'Trust - Frontsheet'!$A$16:$AC$216,6,0)) -> Ward 22a Vas | E28: =IF(OR(SUMPRODUCT(--(ISTEXT('Trust - Frontsheet'!I37:AC37)))>0,SUMPRODUCT(--(ISERROR('Trust - Frontsheet'!AD37:AT37)))>0),"There is invalid data on this row",IF(SUMPRODUCT(--('Trust - Frontsheet'!I37:AC37<0))>0,"This row contains negative values",IF(AND(L28="This is a blank Row",COUNTBLANK(INDIRECT("L" & ROW() + 1 & ":L" & 206))>0),"No blank rows in the data",""))) ->  | F28: =IF(A28 = "","",IF('Trust - Frontsheet'!D37="", "Site code not present","")) ->  | G28: =IF('Trust - Frontsheet'!D37="","",IF(VLOOKUP(A28,'Trust - Frontsheet'!$A$16:$AC$215,6,0)="","Ward name not present","")) ->  | H28: =IF(A28="","",IF(VLOOKUP(A28,'Trust - Frontsheet'!$A$16:$AC$215,7,0)="","Specialty 1 has not been selected","")) ->  | I28: =IF(A28="","",IF(OR(COUNTIF(Specialties,VLOOKUP(A28,'Trust - Frontsheet'!$A$16:$AC$215,7,0))=0, AND(COUNTIF(Specialties,VLOOKUP(A28,'Trust - Frontsheet'!$A$16:$AC$215,8,0))=0,VLOOKUP(A28,'Trust - Frontsheet'!$A$16:$AC$215,8,0)<>"")),"You have entered unacceptable specialties.","")) ->  | J28: =IF(A28="","",IF(AND(RIGHT(VLOOKUP(A28,'Trust - Frontsheet'!$A$16:$AC$215,7,0),3)<>RIGHT(VLOOKUP(A28,'Trust - Frontsheet'!$A$16:$AC$215,8,0),3),VLOOKUP(A28,'Trust - Frontsheet'!$A$16:$AC$215,8,0)<>""),"Covid statuses do not match","")) ->  | L28: =IF(SUMPRODUCT(--('Trust - Frontsheet'!$D37:$AC37=""))<>26,"","This is a blank row") -> 
A29: =IF('Trust - Frontsheet'!A38="","",'Trust - Frontsheet'!A38) -> RKB02Ward 23 | B29: =IF('Trust - Frontsheet'!A38="","",'Trust - Frontsheet'!D38) -> RKB02 | C29: =IF(VLOOKUP(A29,'Trust - Frontsheet'!$A$16:$AC$215,5,0)="","",VLOOKUP(A29,'Trust - Frontsheet'!$A$16:$AC$216,5,0)) -> COVENTRY AND WARWICKSHIRE HOSPITAL | D29: =IF(VLOOKUP(A29,'Trust - Frontsheet'!$A$16:$AC$215,6,0)="","",VLOOKUP(A29,'Trust - Frontsheet'!$A$16:$AC$216,6,0)) -> Ward 23 | E29: =IF(OR(SUMPRODUCT(--(ISTEXT('Trust - Frontsheet'!I38:AC38)))>0,SUMPRODUCT(--(ISERROR('Trust - Frontsheet'!AD38:AT38)))>0),"There is invalid data on this row",IF(SUMPRODUCT(--('Trust - Frontsheet'!I38:AC38<0))>0,"This row contains negative values",IF(AND(L29="This is a blank Row",COUNTBLANK(INDIRECT("L" & ROW() + 1 & ":L" & 206))>0),"No blank rows in the data",""))) ->  | F29: =IF(A29 = "","",IF('Trust - Frontsheet'!D38="", "Site code not present","")) ->  | G29: =IF('Trust - Frontsheet'!D38="","",IF(VLOOKUP(A29,'Trust - Frontsheet'!$A$16:$AC$215,6,0)="","Ward name not present","")) ->  | H29: =IF(A29="","",IF(VLOOKUP(A29,'Trust - Frontsheet'!$A$16:$AC$215,7,0)="","Specialty 1 has not been selected","")) ->  | I29: =IF(A29="","",IF(OR(COUNTIF(Specialties,VLOOKUP(A29,'Trust - Frontsheet'!$A$16:$AC$215,7,0))=0, AND(COUNTIF(Specialties,VLOOKUP(A29,'Trust - Frontsheet'!$A$16:$AC$215,8,0))=0,VLOOKUP(A29,'Trust - Frontsheet'!$A$16:$AC$215,8,0)<>"")),"You have entered unacceptable specialties.","")) ->  | J29: =IF(A29="","",IF(AND(RIGHT(VLOOKUP(A29,'Trust - Frontsheet'!$A$16:$AC$215,7,0),3)<>RIGHT(VLOOKUP(A29,'Trust - Frontsheet'!$A$16:$AC$215,8,0),3),VLOOKUP(A29,'Trust - Frontsheet'!$A$16:$AC$215,8,0)<>""),"Covid statuses do not match","")) ->  | L29: =IF(SUMPRODUCT(--('Trust - Frontsheet'!$D38:$AC38=""))<>26,"","This is a blank row") -> 
A30: =IF('Trust - Frontsheet'!A39="","",'Trust - Frontsheet'!A39) -> RKB02Ward 23 H&N - Urology | B30: =IF('Trust - Frontsheet'!A39="","",'Trust - Frontsheet'!D39) -> RKB02 | C30: =IF(VLOOKUP(A30,'Trust - Frontsheet'!$A$16:$AC$215,5,0)="","",VLOOKUP(A30,'Trust - Frontsheet'!$A$16:$AC$216,5,0)) -> COVENTRY AND WARWICKSHIRE HOSPITAL | D30: =IF(VLOOKUP(A30,'Trust - Frontsheet'!$A$16:$AC$215,6,0)="","",VLOOKUP(A30,'Trust - Frontsheet'!$A$16:$AC$216,6,0)) -> Ward 23 H&N - Urology | E30: =IF(OR(SUMPRODUCT(--(ISTEXT('Trust - Frontsheet'!I39:AC39)))>0,SUMPRODUCT(--(ISERROR('Trust - Frontsheet'!AD39:AT39)))>0),"There is invalid data on this row",IF(SUMPRODUCT(--('Trust - Frontsheet'!I39:AC39<0))>0,"This row contains negative values",IF(AND(L30="This is a blank Row",COUNTBLANK(INDIRECT("L" & ROW() + 1 & ":L" & 206))>0),"No blank rows in the data",""))) ->  | F30: =IF(A30 = "","",IF('Trust - Frontsheet'!D39="", "Site code not present","")) ->  | G30: =IF('Trust - Frontsheet'!D39="","",IF(VLOOKUP(A30,'Trust - Frontsheet'!$A$16:$AC$215,6,0)="","Ward name not present","")) ->  | H30: =IF(A30="","",IF(VLOOKUP(A30,'Trust - Frontsheet'!$A$16:$AC$215,7,0)="","Specialty 1 has not been selected","")) ->  | I30: =IF(A30="","",IF(OR(COUNTIF(Specialties,VLOOKUP(A30,'Trust - Frontsheet'!$A$16:$AC$215,7,0))=0, AND(COUNTIF(Specialties,VLOOKUP(A30,'Trust - Frontsheet'!$A$16:$AC$215,8,0))=0,VLOOKUP(A30,'Trust - Frontsheet'!$A$16:$AC$215,8,0)<>"")),"You have entered unacceptable specialties.","")) ->  | J30: =IF(A30="","",IF(AND(RIGHT(VLOOKUP(A30,'Trust - Frontsheet'!$A$16:$AC$215,7,0),3)<>RIGHT(VLOOKUP(A30,'Trust - Frontsheet'!$A$16:$AC$215,8,0),3),VLOOKUP(A30,'Trust - Frontsheet'!$A$16:$AC$215,8,0)<>""),"Covid statuses do not match","")) ->  | L30: =IF(SUMPRODUCT(--('Trust - Frontsheet'!$D39:$AC39=""))<>26,"","This is a blank row") -> 
A31: =IF('Trust - Frontsheet'!A40="","",'Trust - Frontsheet'!A40) -> RKB02Ward 24 | B31: =IF('Trust - Frontsheet'!A40="","",'Trust - Frontsheet'!D40) -> RKB02 | C31: =IF(VLOOKUP(A31,'Trust - Frontsheet'!$A$16:$AC$215,5,0)="","",VLOOKUP(A31,'Trust - Frontsheet'!$A$16:$AC$216,5,0)) -> COVENTRY AND WARWICKSHIRE HOSPITAL | D31: =IF(VLOOKUP(A31,'Trust - Frontsheet'!$A$16:$AC$215,6,0)="","",VLOOKUP(A31,'Trust - Frontsheet'!$A$16:$AC$216,6,0)) -> Ward 24 | E31: =IF(OR(SUMPRODUCT(--(ISTEXT('Trust - Frontsheet'!I40:AC40)))>0,SUMPRODUCT(--(ISERROR('Trust - Frontsheet'!AD40:AT40)))>0),"There is invalid data on this row",IF(SUMPRODUCT(--('Trust - Frontsheet'!I40:AC40<0))>0,"This row contains negative values",IF(AND(L31="This is a blank Row",COUNTBLANK(INDIRECT("L" & ROW() + 1 & ":L" & 206))>0),"No blank rows in the data",""))) ->  | F31: =IF(A31 = "","",IF('Trust - Frontsheet'!D40="", "Site code not present","")) ->  | G31: =IF('Trust - Frontsheet'!D40="","",IF(VLOOKUP(A31,'Trust - Frontsheet'!$A$16:$AC$215,6,0)="","Ward name not present","")) ->  | H31: =IF(A31="","",IF(VLOOKUP(A31,'Trust - Frontsheet'!$A$16:$AC$215,7,0)="","Specialty 1 has not been selected","")) ->  | I31: =IF(A31="","",IF(OR(COUNTIF(Specialties,VLOOKUP(A31,'Trust - Frontsheet'!$A$16:$AC$215,7,0))=0, AND(COUNTIF(Specialties,VLOOKUP(A31,'Trust - Frontsheet'!$A$16:$AC$215,8,0))=0,VLOOKUP(A31,'Trust - Frontsheet'!$A$16:$AC$215,8,0)<>"")),"You have entered unacceptable specialties.","")) ->  | J31: =IF(A31="","",IF(AND(RIGHT(VLOOKUP(A31,'Trust - Frontsheet'!$A$16:$AC$215,7,0),3)<>RIGHT(VLOOKUP(A31,'Trust - Frontsheet'!$A$16:$AC$215,8,0),3),VLOOKUP(A31,'Trust - Frontsheet'!$A$16:$AC$215,8,0)<>""),"Covid statuses do not match","")) ->  | L31: =IF(SUMPRODUCT(--('Trust - Frontsheet'!$D40:$AC40=""))<>26,"","This is a blank row") -> 
A32: =IF('Trust - Frontsheet'!A41="","",'Trust - Frontsheet'!A41) -> RKB02Ward 25 | B32: =IF('Trust - Frontsheet'!A41="","",'Trust - Frontsheet'!D41) -> RKB02 | C32: =IF(VLOOKUP(A32,'Trust - Frontsheet'!$A$16:$AC$215,5,0)="","",VLOOKUP(A32,'Trust - Frontsheet'!$A$16:$AC$216,5,0)) -> COVENTRY AND WARWICKSHIRE HOSPITAL | D32: =IF(VLOOKUP(A32,'Trust - Frontsheet'!$A$16:$AC$215,6,0)="","",VLOOKUP(A32,'Trust - Frontsheet'!$A$16:$AC$216,6,0)) -> Ward 25 | E32: =IF(OR(SUMPRODUCT(--(ISTEXT('Trust - Frontsheet'!I41:AC41)))>0,SUMPRODUCT(--(ISERROR('Trust - Frontsheet'!AD41:AT41)))>0),"There is invalid data on this row",IF(SUMPRODUCT(--('Trust - Frontsheet'!I41:AC41<0))>0,"This row contains negative values",IF(AND(L32="This is a blank Row",COUNTBLANK(INDIRECT("L" & ROW() + 1 & ":L" & 206))>0),"No blank rows in the data",""))) ->  | F32: =IF(A32 = "","",IF('Trust - Frontsheet'!D41="", "Site code not present","")) ->  | G32: =IF('Trust - Frontsheet'!D41="","",IF(VLOOKUP(A32,'Trust - Frontsheet'!$A$16:$AC$215,6,0)="","Ward name not present","")) ->  | H32: =IF(A32="","",IF(VLOOKUP(A32,'Trust - Frontsheet'!$A$16:$AC$215,7,0)="","Specialty 1 has not been selected","")) ->  | I32: =IF(A32="","",IF(OR(COUNTIF(Specialties,VLOOKUP(A32,'Trust - Frontsheet'!$A$16:$AC$215,7,0))=0, AND(COUNTIF(Specialties,VLOOKUP(A32,'Trust - Frontsheet'!$A$16:$AC$215,8,0))=0,VLOOKUP(A32,'Trust - Frontsheet'!$A$16:$AC$215,8,0)<>"")),"You have entered unacceptable specialties.","")) ->  | J32: =IF(A32="","",IF(AND(RIGHT(VLOOKUP(A32,'Trust - Frontsheet'!$A$16:$AC$215,7,0),3)<>RIGHT(VLOOKUP(A32,'Trust - Frontsheet'!$A$16:$AC$215,8,0),3),VLOOKUP(A32,'Trust - Frontsheet'!$A$16:$AC$215,8,0)<>""),"Covid statuses do not match","")) ->  | L32: =IF(SUMPRODUCT(--('Trust - Frontsheet'!$D41:$AC41=""))<>26,"","This is a blank row") -> 
A33: =IF('Trust - Frontsheet'!A42="","",'Trust - Frontsheet'!A42) -> RKB02Ward 30 | B33: =IF('Trust - Frontsheet'!A42="","",'Trust - Frontsheet'!D42) -> RKB02 | C33: =IF(VLOOKUP(A33,'Trust - Frontsheet'!$A$16:$AC$215,5,0)="","",VLOOKUP(A33,'Trust - Frontsheet'!$A$16:$AC$216,5,0)) -> COVENTRY AND WARWICKSHIRE HOSPITAL | D33: =IF(VLOOKUP(A33,'Trust - Frontsheet'!$A$16:$AC$215,6,0)="","",VLOOKUP(A33,'Trust - Frontsheet'!$A$16:$AC$216,6,0)) -> Ward 30 | E33: =IF(OR(SUMPRODUCT(--(ISTEXT('Trust - Frontsheet'!I42:AC42)))>0,SUMPRODUCT(--(ISERROR('Trust - Frontsheet'!AD42:AT42)))>0),"There is invalid data on this row",IF(SUMPRODUCT(--('Trust - Frontsheet'!I42:AC42<0))>0,"This row contains negative values",IF(AND(L33="This is a blank Row",COUNTBLANK(INDIRECT("L" & ROW() + 1 & ":L" & 206))>0),"No blank rows in the data",""))) ->  | F33: =IF(A33 = "","",IF('Trust - Frontsheet'!D42="", "Site code not present","")) ->  | G33: =IF('Trust - Frontsheet'!D42="","",IF(VLOOKUP(A33,'Trust - Frontsheet'!$A$16:$AC$215,6,0)="","Ward name not present","")) ->  | H33: =IF(A33="","",IF(VLOOKUP(A33,'Trust - Frontsheet'!$A$16:$AC$215,7,0)="","Specialty 1 has not been selected","")) ->  | I33: =IF(A33="","",IF(OR(COUNTIF(Specialties,VLOOKUP(A33,'Trust - Frontsheet'!$A$16:$AC$215,7,0))=0, AND(COUNTIF(Specialties,VLOOKUP(A33,'Trust - Frontsheet'!$A$16:$AC$215,8,0))=0,VLOOKUP(A33,'Trust - Frontsheet'!$A$16:$AC$215,8,0)<>"")),"You have entered unacceptable specialties.","")) ->  | J33: =IF(A33="","",IF(AND(RIGHT(VLOOKUP(A33,'Trust - Frontsheet'!$A$16:$AC$215,7,0),3)<>RIGHT(VLOOKUP(A33,'Trust - Frontsheet'!$A$16:$AC$215,8,0),3),VLOOKUP(A33,'Trust - Frontsheet'!$A$16:$AC$215,8,0)<>""),"Covid statuses do not match","")) ->  | L33: =IF(SUMPRODUCT(--('Trust - Frontsheet'!$D42:$AC42=""))<>26,"","This is a blank row") -> 
A34: =IF('Trust - Frontsheet'!A43="","",'Trust - Frontsheet'!A43) -> RKB02Ward 31 | B34: =IF('Trust - Frontsheet'!A43="","",'Trust - Frontsheet'!D43) -> RKB02 | C34: =IF(VLOOKUP(A34,'Trust - Frontsheet'!$A$16:$AC$215,5,0)="","",VLOOKUP(A34,'Trust - Frontsheet'!$A$16:$AC$216,5,0)) -> COVENTRY AND WARWICKSHIRE HOSPITAL | D34: =IF(VLOOKUP(A34,'Trust - Frontsheet'!$A$16:$AC$215,6,0)="","",VLOOKUP(A34,'Trust - Frontsheet'!$A$16:$AC$216,6,0)) -> Ward 31 | E34: =IF(OR(SUMPRODUCT(--(ISTEXT('Trust - Frontsheet'!I43:AC43)))>0,SUMPRODUCT(--(ISERROR('Trust - Frontsheet'!AD43:AT43)))>0),"There is invalid data on this row",IF(SUMPRODUCT(--('Trust - Frontsheet'!I43:AC43<0))>0,"This row contains negative values",IF(AND(L34="This is a blank Row",COUNTBLANK(INDIRECT("L" & ROW() + 1 & ":L" & 206))>0),"No blank rows in the data",""))) ->  | F34: =IF(A34 = "","",IF('Trust - Frontsheet'!D43="", "Site code not present","")) ->  | G34: =IF('Trust - Frontsheet'!D43="","",IF(VLOOKUP(A34,'Trust - Frontsheet'!$A$16:$AC$215,6,0)="","Ward name not present","")) ->  | H34: =IF(A34="","",IF(VLOOKUP(A34,'Trust - Frontsheet'!$A$16:$AC$215,7,0)="","Specialty 1 has not been selected","")) ->  | I34: =IF(A34="","",IF(OR(COUNTIF(Specialties,VLOOKUP(A34,'Trust - Frontsheet'!$A$16:$AC$215,7,0))=0, AND(COUNTIF(Specialties,VLOOKUP(A34,'Trust - Frontsheet'!$A$16:$AC$215,8,0))=0,VLOOKUP(A34,'Trust - Frontsheet'!$A$16:$AC$215,8,0)<>"")),"You have entered unacceptable specialties.","")) ->  | J34: =IF(A34="","",IF(AND(RIGHT(VLOOKUP(A34,'Trust - Frontsheet'!$A$16:$AC$215,7,0),3)<>RIGHT(VLOOKUP(A34,'Trust - Frontsheet'!$A$16:$AC$215,8,0),3),VLOOKUP(A34,'Trust - Frontsheet'!$A$16:$AC$215,8,0)<>""),"Covid statuses do not match","")) ->  | L34: =IF(SUMPRODUCT(--('Trust - Frontsheet'!$D43:$AC43=""))<>26,"","This is a blank row") -> 
A35: =IF('Trust - Frontsheet'!A44="","",'Trust - Frontsheet'!A44) -> RKB02Ward 31a | B35: =IF('Trust - Frontsheet'!A44="","",'Trust - Frontsheet'!D44) -> RKB02 | C35: =IF(VLOOKUP(A35,'Trust - Frontsheet'!$A$16:$AC$215,5,0)="","",VLOOKUP(A35,'Trust - Frontsheet'!$A$16:$AC$216,5,0)) -> COVENTRY AND WARWICKSHIRE HOSPITAL | D35: =IF(VLOOKUP(A35,'Trust - Frontsheet'!$A$16:$AC$215,6,0)="","",VLOOKUP(A35,'Trust - Frontsheet'!$A$16:$AC$216,6,0)) -> Ward 31a | E35: =IF(OR(SUMPRODUCT(--(ISTEXT('Trust - Frontsheet'!I44:AC44)))>0,SUMPRODUCT(--(ISERROR('Trust - Frontsheet'!AD44:AT44)))>0),"There is invalid data on this row",IF(SUMPRODUCT(--('Trust - Frontsheet'!I44:AC44<0))>0,"This row contains negative values",IF(AND(L35="This is a blank Row",COUNTBLANK(INDIRECT("L" & ROW() + 1 & ":L" & 206))>0),"No blank rows in the data",""))) ->  | F35: =IF(A35 = "","",IF('Trust - Frontsheet'!D44="", "Site code not present","")) ->  | G35: =IF('Trust - Frontsheet'!D44="","",IF(VLOOKUP(A35,'Trust - Frontsheet'!$A$16:$AC$215,6,0)="","Ward name not present","")) ->  | H35: =IF(A35="","",IF(VLOOKUP(A35,'Trust - Frontsheet'!$A$16:$AC$215,7,0)="","Specialty 1 has not been selected","")) ->  | I35: =IF(A35="","",IF(OR(COUNTIF(Specialties,VLOOKUP(A35,'Trust - Frontsheet'!$A$16:$AC$215,7,0))=0, AND(COUNTIF(Specialties,VLOOKUP(A35,'Trust - Frontsheet'!$A$16:$AC$215,8,0))=0,VLOOKUP(A35,'Trust - Frontsheet'!$A$16:$AC$215,8,0)<>"")),"You have entered unacceptable specialties.","")) ->  | J35: =IF(A35="","",IF(AND(RIGHT(VLOOKUP(A35,'Trust - Frontsheet'!$A$16:$AC$215,7,0),3)<>RIGHT(VLOOKUP(A35,'Trust - Frontsheet'!$A$16:$AC$215,8,0),3),VLOOKUP(A35,'Trust - Frontsheet'!$A$16:$AC$215,8,0)<>""),"Covid statuses do not match","")) ->  | L35: =IF(SUMPRODUCT(--('Trust - Frontsheet'!$D44:$AC44=""))<>26,"","This is a blank row") -> 
A36: =IF('Trust - Frontsheet'!A45="","",'Trust - Frontsheet'!A45) -> RKB02Ward 32 Gastro | B36: =IF('Trust - Frontsheet'!A45="","",'Trust - Frontsheet'!D45) -> RKB02 | C36: =IF(VLOOKUP(A36,'Trust - Frontsheet'!$A$16:$AC$215,5,0)="","",VLOOKUP(A36,'Trust - Frontsheet'!$A$16:$AC$216,5,0)) -> COVENTRY AND WARWICKSHIRE HOSPITAL | D36: =IF(VLOOKUP(A36,'Trust - Frontsheet'!$A$16:$AC$215,6,0)="","",VLOOKUP(A36,'Trust - Frontsheet'!$A$16:$AC$216,6,0)) -> Ward 32 Gastro | E36: =IF(OR(SUMPRODUCT(--(ISTEXT('Trust - Frontsheet'!I45:AC45)))>0,SUMPRODUCT(--(ISERROR('Trust - Frontsheet'!AD45:AT45)))>0),"There is invalid data on this row",IF(SUMPRODUCT(--('Trust - Frontsheet'!I45:AC45<0))>0,"This row contains negative values",IF(AND(L36="This is a blank Row",COUNTBLANK(INDIRECT("L" & ROW() + 1 & ":L" & 206))>0),"No blank rows in the data",""))) ->  | F36: =IF(A36 = "","",IF('Trust - Frontsheet'!D45="", "Site code not present","")) ->  | G36: =IF('Trust - Frontsheet'!D45="","",IF(VLOOKUP(A36,'Trust - Frontsheet'!$A$16:$AC$215,6,0)="","Ward name not present","")) ->  | H36: =IF(A36="","",IF(VLOOKUP(A36,'Trust - Frontsheet'!$A$16:$AC$215,7,0)="","Specialty 1 has not been selected","")) ->  | I36: =IF(A36="","",IF(OR(COUNTIF(Specialties,VLOOKUP(A36,'Trust - Frontsheet'!$A$16:$AC$215,7,0))=0, AND(COUNTIF(Specialties,VLOOKUP(A36,'Trust - Frontsheet'!$A$16:$AC$215,8,0))=0,VLOOKUP(A36,'Trust - Frontsheet'!$A$16:$AC$215,8,0)<>"")),"You have entered unacceptable specialties.","")) ->  | J36: =IF(A36="","",IF(AND(RIGHT(VLOOKUP(A36,'Trust - Frontsheet'!$A$16:$AC$215,7,0),3)<>RIGHT(VLOOKUP(A36,'Trust - Frontsheet'!$A$16:$AC$215,8,0),3),VLOOKUP(A36,'Trust - Frontsheet'!$A$16:$AC$215,8,0)<>""),"Covid statuses do not match","")) ->  | L36: =IF(SUMPRODUCT(--('Trust - Frontsheet'!$D45:$AC45=""))<>26,"","This is a blank row") -> 
A37: =IF('Trust - Frontsheet'!A46="","",'Trust - Frontsheet'!A46) -> RKB02Ward 33 Surgery | B37: =IF('Trust - Frontsheet'!A46="","",'Trust - Frontsheet'!D46) -> RKB02 | C37: =IF(VLOOKUP(A37,'Trust - Frontsheet'!$A$16:$AC$215,5,0)="","",VLOOKUP(A37,'Trust - Frontsheet'!$A$16:$AC$216,5,0)) -> COVENTRY AND WARWICKSHIRE HOSPITAL | D37: =IF(VLOOKUP(A37,'Trust - Frontsheet'!$A$16:$AC$215,6,0)="","",VLOOKUP(A37,'Trust - Frontsheet'!$A$16:$AC$216,6,0)) -> Ward 33 Surgery | E37: =IF(OR(SUMPRODUCT(--(ISTEXT('Trust - Frontsheet'!I46:AC46)))>0,SUMPRODUCT(--(ISERROR('Trust - Frontsheet'!AD46:AT46)))>0),"There is invalid data on this row",IF(SUMPRODUCT(--('Trust - Frontsheet'!I46:AC46<0))>0,"This row contains negative values",IF(AND(L37="This is a blank Row",COUNTBLANK(INDIRECT("L" & ROW() + 1 & ":L" & 206))>0),"No blank rows in the data",""))) ->  | F37: =IF(A37 = "","",IF('Trust - Frontsheet'!D46="", "Site code not present","")) ->  | G37: =IF('Trust - Frontsheet'!D46="","",IF(VLOOKUP(A37,'Trust - Frontsheet'!$A$16:$AC$215,6,0)="","Ward name not present","")) ->  | H37: =IF(A37="","",IF(VLOOKUP(A37,'Trust - Frontsheet'!$A$16:$AC$215,7,0)="","Specialty 1 has not been selected","")) ->  | I37: =IF(A37="","",IF(OR(COUNTIF(Specialties,VLOOKUP(A37,'Trust - Frontsheet'!$A$16:$AC$215,7,0))=0, AND(COUNTIF(Specialties,VLOOKUP(A37,'Trust - Frontsheet'!$A$16:$AC$215,8,0))=0,VLOOKUP(A37,'Trust - Frontsheet'!$A$16:$AC$215,8,0)<>"")),"You have entered unacceptable specialties.","")) ->  | J37: =IF(A37="","",IF(AND(RIGHT(VLOOKUP(A37,'Trust - Frontsheet'!$A$16:$AC$215,7,0),3)<>RIGHT(VLOOKUP(A37,'Trust - Frontsheet'!$A$16:$AC$215,8,0),3),VLOOKUP(A37,'Trust - Frontsheet'!$A$16:$AC$215,8,0)<>""),"Covid statuses do not match","")) ->  | L37: =IF(SUMPRODUCT(--('Trust - Frontsheet'!$D46:$AC46=""))<>26,"","This is a blank row") -> 
A38: =IF('Trust - Frontsheet'!A47="","",'Trust - Frontsheet'!A47) -> RKB02Ward 33/10 ECU & EPOC | B38: =IF('Trust - Frontsheet'!A47="","",'Trust - Frontsheet'!D47) -> RKB02 | C38: =IF(VLOOKUP(A38,'Trust - Frontsheet'!$A$16:$AC$215,5,0)="","",VLOOKUP(A38,'Trust - Frontsheet'!$A$16:$AC$216,5,0)) -> COVENTRY AND WARWICKSHIRE HOSPITAL | D38: =IF(VLOOKUP(A38,'Trust - Frontsheet'!$A$16:$AC$215,6,0)="","",VLOOKUP(A38,'Trust - Frontsheet'!$A$16:$AC$216,6,0)) -> Ward 33/10 ECU & EPOC | E38: =IF(OR(SUMPRODUCT(--(ISTEXT('Trust - Frontsheet'!I47:AC47)))>0,SUMPRODUCT(--(ISERROR('Trust - Frontsheet'!AD47:AT47)))>0),"There is invalid data on this row",IF(SUMPRODUCT(--('Trust - Frontsheet'!I47:AC47<0))>0,"This row contains negative values",IF(AND(L38="This is a blank Row",COUNTBLANK(INDIRECT("L" & ROW() + 1 & ":L" & 206))>0),"No blank rows in the data",""))) ->  | F38: =IF(A38 = "","",IF('Trust - Frontsheet'!D47="", "Site code not present","")) ->  | G38: =IF('Trust - Frontsheet'!D47="","",IF(VLOOKUP(A38,'Trust - Frontsheet'!$A$16:$AC$215,6,0)="","Ward name not present","")) ->  | H38: =IF(A38="","",IF(VLOOKUP(A38,'Trust - Frontsheet'!$A$16:$AC$215,7,0)="","Specialty 1 has not been selected","")) ->  | I38: =IF(A38="","",IF(OR(COUNTIF(Specialties,VLOOKUP(A38,'Trust - Frontsheet'!$A$16:$AC$215,7,0))=0, AND(COUNTIF(Specialties,VLOOKUP(A38,'Trust - Frontsheet'!$A$16:$AC$215,8,0))=0,VLOOKUP(A38,'Trust - Frontsheet'!$A$16:$AC$215,8,0)<>"")),"You have entered unacceptable specialties.","")) ->  | J38: =IF(A38="","",IF(AND(RIGHT(VLOOKUP(A38,'Trust - Frontsheet'!$A$16:$AC$215,7,0),3)<>RIGHT(VLOOKUP(A38,'Trust - Frontsheet'!$A$16:$AC$215,8,0),3),VLOOKUP(A38,'Trust - Frontsheet'!$A$16:$AC$215,8,0)<>""),"Covid statuses do not match","")) ->  | L38: =IF(SUMPRODUCT(--('Trust - Frontsheet'!$D47:$AC47=""))<>26,"","This is a blank row") -> 
A39: =IF('Trust - Frontsheet'!A48="","",'Trust - Frontsheet'!A48) -> RKB02Ward 34 | B39: =IF('Trust - Frontsheet'!A48="","",'Trust - Frontsheet'!D48) -> RKB02 | C39: =IF(VLOOKUP(A39,'Trust - Frontsheet'!$A$16:$AC$215,5,0)="","",VLOOKUP(A39,'Trust - Frontsheet'!$A$16:$AC$216,5,0)) -> COVENTRY AND WARWICKSHIRE HOSPITAL | D39: =IF(VLOOKUP(A39,'Trust - Frontsheet'!$A$16:$AC$215,6,0)="","",VLOOKUP(A39,'Trust - Frontsheet'!$A$16:$AC$216,6,0)) -> Ward 34 | E39: =IF(OR(SUMPRODUCT(--(ISTEXT('Trust - Frontsheet'!I48:AC48)))>0,SUMPRODUCT(--(ISERROR('Trust - Frontsheet'!AD48:AT48)))>0),"There is invalid data on this row",IF(SUMPRODUCT(--('Trust - Frontsheet'!I48:AC48<0))>0,"This row contains negative values",IF(AND(L39="This is a blank Row",COUNTBLANK(INDIRECT("L" & ROW() + 1 & ":L" & 206))>0),"No blank rows in the data",""))) ->  | F39: =IF(A39 = "","",IF('Trust - Frontsheet'!D48="", "Site code not present","")) ->  | G39: =IF('Trust - Frontsheet'!D48="","",IF(VLOOKUP(A39,'Trust - Frontsheet'!$A$16:$AC$215,6,0)="","Ward name not present","")) ->  | H39: =IF(A39="","",IF(VLOOKUP(A39,'Trust - Frontsheet'!$A$16:$AC$215,7,0)="","Specialty 1 has not been selected","")) ->  | I39: =IF(A39="","",IF(OR(COUNTIF(Specialties,VLOOKUP(A39,'Trust - Frontsheet'!$A$16:$AC$215,7,0))=0, AND(COUNTIF(Specialties,VLOOKUP(A39,'Trust - Frontsheet'!$A$16:$AC$215,8,0))=0,VLOOKUP(A39,'Trust - Frontsheet'!$A$16:$AC$215,8,0)<>"")),"You have entered unacceptable specialties.","")) ->  | J39: =IF(A39="","",IF(AND(RIGHT(VLOOKUP(A39,'Trust - Frontsheet'!$A$16:$AC$215,7,0),3)<>RIGHT(VLOOKUP(A39,'Trust - Frontsheet'!$A$16:$AC$215,8,0),3),VLOOKUP(A39,'Trust - Frontsheet'!$A$16:$AC$215,8,0)<>""),"Covid statuses do not match","")) ->  | L39: =IF(SUMPRODUCT(--('Trust - Frontsheet'!$D48:$AC48=""))<>26,"","This is a blank row") -> 
A40: =IF('Trust - Frontsheet'!A49="","",'Trust - Frontsheet'!A49) -> RKB02Ward 35 | B40: =IF('Trust - Frontsheet'!A49="","",'Trust - Frontsheet'!D49) -> RKB02 | C40: =IF(VLOOKUP(A40,'Trust - Frontsheet'!$A$16:$AC$215,5,0)="","",VLOOKUP(A40,'Trust - Frontsheet'!$A$16:$AC$216,5,0)) -> COVENTRY AND WARWICKSHIRE HOSPITAL | D40: =IF(VLOOKUP(A40,'Trust - Frontsheet'!$A$16:$AC$215,6,0)="","",VLOOKUP(A40,'Trust - Frontsheet'!$A$16:$AC$216,6,0)) -> Ward 35 | E40: =IF(OR(SUMPRODUCT(--(ISTEXT('Trust - Frontsheet'!I49:AC49)))>0,SUMPRODUCT(--(ISERROR('Trust - Frontsheet'!AD49:AT49)))>0),"There is invalid data on this row",IF(SUMPRODUCT(--('Trust - Frontsheet'!I49:AC49<0))>0,"This row contains negative values",IF(AND(L40="This is a blank Row",COUNTBLANK(INDIRECT("L" & ROW() + 1 & ":L" & 206))>0),"No blank rows in the data",""))) ->  | F40: =IF(A40 = "","",IF('Trust - Frontsheet'!D49="", "Site code not present","")) ->  | G40: =IF('Trust - Frontsheet'!D49="","",IF(VLOOKUP(A40,'Trust - Frontsheet'!$A$16:$AC$215,6,0)="","Ward name not present","")) ->  | H40: =IF(A40="","",IF(VLOOKUP(A40,'Trust - Frontsheet'!$A$16:$AC$215,7,0)="","Specialty 1 has not been selected","")) ->  | I40: =IF(A40="","",IF(OR(COUNTIF(Specialties,VLOOKUP(A40,'Trust - Frontsheet'!$A$16:$AC$215,7,0))=0, AND(COUNTIF(Specialties,VLOOKUP(A40,'Trust - Frontsheet'!$A$16:$AC$215,8,0))=0,VLOOKUP(A40,'Trust - Frontsheet'!$A$16:$AC$215,8,0)<>"")),"You have entered unacceptable specialties.","")) ->  | J40: =IF(A40="","",IF(AND(RIGHT(VLOOKUP(A40,'Trust - Frontsheet'!$A$16:$AC$215,7,0),3)<>RIGHT(VLOOKUP(A40,'Trust - Frontsheet'!$A$16:$AC$215,8,0),3),VLOOKUP(A40,'Trust - Frontsheet'!$A$16:$AC$215,8,0)<>""),"Covid statuses do not match","")) ->  | L40: =IF(SUMPRODUCT(--('Trust - Frontsheet'!$D49:$AC49=""))<>26,"","This is a blank row") -> 
A41: =IF('Trust - Frontsheet'!A50="","",'Trust - Frontsheet'!A50) -> RKB02Ward 40 | B41: =IF('Trust - Frontsheet'!A50="","",'Trust - Frontsheet'!D50) -> RKB02 | C41: =IF(VLOOKUP(A41,'Trust - Frontsheet'!$A$16:$AC$215,5,0)="","",VLOOKUP(A41,'Trust - Frontsheet'!$A$16:$AC$216,5,0)) -> COVENTRY AND WARWICKSHIRE HOSPITAL | D41: =IF(VLOOKUP(A41,'Trust - Frontsheet'!$A$16:$AC$215,6,0)="","",VLOOKUP(A41,'Trust - Frontsheet'!$A$16:$AC$216,6,0)) -> Ward 40 | E41: =IF(OR(SUMPRODUCT(--(ISTEXT('Trust - Frontsheet'!I50:AC50)))>0,SUMPRODUCT(--(ISERROR('Trust - Frontsheet'!AD50:AT50)))>0),"There is invalid data on this row",IF(SUMPRODUCT(--('Trust - Frontsheet'!I50:AC50<0))>0,"This row contains negative values",IF(AND(L41="This is a blank Row",COUNTBLANK(INDIRECT("L" & ROW() + 1 & ":L" & 206))>0),"No blank rows in the data",""))) ->  | F41: =IF(A41 = "","",IF('Trust - Frontsheet'!D50="", "Site code not present","")) ->  | G41: =IF('Trust - Frontsheet'!D50="","",IF(VLOOKUP(A41,'Trust - Frontsheet'!$A$16:$AC$215,6,0)="","Ward name not present","")) ->  | H41: =IF(A41="","",IF(VLOOKUP(A41,'Trust - Frontsheet'!$A$16:$AC$215,7,0)="","Specialty 1 has not been selected","")) ->  | I41: =IF(A41="","",IF(OR(COUNTIF(Specialties,VLOOKUP(A41,'Trust - Frontsheet'!$A$16:$AC$215,7,0))=0, AND(COUNTIF(Specialties,VLOOKUP(A41,'Trust - Frontsheet'!$A$16:$AC$215,8,0))=0,VLOOKUP(A41,'Trust - Frontsheet'!$A$16:$AC$215,8,0)<>"")),"You have entered unacceptable specialties.","")) ->  | J41: =IF(A41="","",IF(AND(RIGHT(VLOOKUP(A41,'Trust - Frontsheet'!$A$16:$AC$215,7,0),3)<>RIGHT(VLOOKUP(A41,'Trust - Frontsheet'!$A$16:$AC$215,8,0),3),VLOOKUP(A41,'Trust - Frontsheet'!$A$16:$AC$215,8,0)<>""),"Covid statuses do not match","")) ->  | L41: =IF(SUMPRODUCT(--('Trust - Frontsheet'!$D50:$AC50=""))<>26,"","This is a blank row") -> 
A42: =IF('Trust - Frontsheet'!A51="","",'Trust - Frontsheet'!A51) -> RKB02Ward 41 | B42: =IF('Trust - Frontsheet'!A51="","",'Trust - Frontsheet'!D51) -> RKB02 | C42: =IF(VLOOKUP(A42,'Trust - Frontsheet'!$A$16:$AC$215,5,0)="","",VLOOKUP(A42,'Trust - Frontsheet'!$A$16:$AC$216,5,0)) -> COVENTRY AND WARWICKSHIRE HOSPITAL | D42: =IF(VLOOKUP(A42,'Trust - Frontsheet'!$A$16:$AC$215,6,0)="","",VLOOKUP(A42,'Trust - Frontsheet'!$A$16:$AC$216,6,0)) -> Ward 41 | E42: =IF(OR(SUMPRODUCT(--(ISTEXT('Trust - Frontsheet'!I51:AC51)))>0,SUMPRODUCT(--(ISERROR('Trust - Frontsheet'!AD51:AT51)))>0),"There is invalid data on this row",IF(SUMPRODUCT(--('Trust - Frontsheet'!I51:AC51<0))>0,"This row contains negative values",IF(AND(L42="This is a blank Row",COUNTBLANK(INDIRECT("L" & ROW() + 1 & ":L" & 206))>0),"No blank rows in the data",""))) ->  | F42: =IF(A42 = "","",IF('Trust - Frontsheet'!D51="", "Site code not present","")) ->  | G42: =IF('Trust - Frontsheet'!D51="","",IF(VLOOKUP(A42,'Trust - Frontsheet'!$A$16:$AC$215,6,0)="","Ward name not present","")) ->  | H42: =IF(A42="","",IF(VLOOKUP(A42,'Trust - Frontsheet'!$A$16:$AC$215,7,0)="","Specialty 1 has not been selected","")) ->  | I42: =IF(A42="","",IF(OR(COUNTIF(Specialties,VLOOKUP(A42,'Trust - Frontsheet'!$A$16:$AC$215,7,0))=0, AND(COUNTIF(Specialties,VLOOKUP(A42,'Trust - Frontsheet'!$A$16:$AC$215,8,0))=0,VLOOKUP(A42,'Trust - Frontsheet'!$A$16:$AC$215,8,0)<>"")),"You have entered unacceptable specialties.","")) ->  | J42: =IF(A42="","",IF(AND(RIGHT(VLOOKUP(A42,'Trust - Frontsheet'!$A$16:$AC$215,7,0),3)<>RIGHT(VLOOKUP(A42,'Trust - Frontsheet'!$A$16:$AC$215,8,0),3),VLOOKUP(A42,'Trust - Frontsheet'!$A$16:$AC$215,8,0)<>""),"Covid statuses do not match","")) ->  | L42: =IF(SUMPRODUCT(--('Trust - Frontsheet'!$D51:$AC51=""))<>26,"","This is a blank row") -> 
A43: =IF('Trust - Frontsheet'!A52="","",'Trust - Frontsheet'!A52) -> RKB02Ward 42 | B43: =IF('Trust - Frontsheet'!A52="","",'Trust - Frontsheet'!D52) -> RKB02 | C43: =IF(VLOOKUP(A43,'Trust - Frontsheet'!$A$16:$AC$215,5,0)="","",VLOOKUP(A43,'Trust - Frontsheet'!$A$16:$AC$216,5,0)) -> COVENTRY AND WARWICKSHIRE HOSPITAL | D43: =IF(VLOOKUP(A43,'Trust - Frontsheet'!$A$16:$AC$215,6,0)="","",VLOOKUP(A43,'Trust - Frontsheet'!$A$16:$AC$216,6,0)) -> Ward 42 | E43: =IF(OR(SUMPRODUCT(--(ISTEXT('Trust - Frontsheet'!I52:AC52)))>0,SUMPRODUCT(--(ISERROR('Trust - Frontsheet'!AD52:AT52)))>0),"There is invalid data on this row",IF(SUMPRODUCT(--('Trust - Frontsheet'!I52:AC52<0))>0,"This row contains negative values",IF(AND(L43="This is a blank Row",COUNTBLANK(INDIRECT("L" & ROW() + 1 & ":L" & 206))>0),"No blank rows in the data",""))) ->  | F43: =IF(A43 = "","",IF('Trust - Frontsheet'!D52="", "Site code not present","")) ->  | G43: =IF('Trust - Frontsheet'!D52="","",IF(VLOOKUP(A43,'Trust - Frontsheet'!$A$16:$AC$215,6,0)="","Ward name not present","")) ->  | H43: =IF(A43="","",IF(VLOOKUP(A43,'Trust - Frontsheet'!$A$16:$AC$215,7,0)="","Specialty 1 has not been selected","")) ->  | I43: =IF(A43="","",IF(OR(COUNTIF(Specialties,VLOOKUP(A43,'Trust - Frontsheet'!$A$16:$AC$215,7,0))=0, AND(COUNTIF(Specialties,VLOOKUP(A43,'Trust - Frontsheet'!$A$16:$AC$215,8,0))=0,VLOOKUP(A43,'Trust - Frontsheet'!$A$16:$AC$215,8,0)<>"")),"You have entered unacceptable specialties.","")) ->  | J43: =IF(A43="","",IF(AND(RIGHT(VLOOKUP(A43,'Trust - Frontsheet'!$A$16:$AC$215,7,0),3)<>RIGHT(VLOOKUP(A43,'Trust - Frontsheet'!$A$16:$AC$215,8,0),3),VLOOKUP(A43,'Trust - Frontsheet'!$A$16:$AC$215,8,0)<>""),"Covid statuses do not match","")) ->  | L43: =IF(SUMPRODUCT(--('Trust - Frontsheet'!$D52:$AC52=""))<>26,"","This is a blank row") -> 
A44: =IF('Trust - Frontsheet'!A53="","",'Trust - Frontsheet'!A53) -> RKB02Ward 43 | B44: =IF('Trust - Frontsheet'!A53="","",'Trust - Frontsheet'!D53) -> RKB02 | C44: =IF(VLOOKUP(A44,'Trust - Frontsheet'!$A$16:$AC$215,5,0)="","",VLOOKUP(A44,'Trust - Frontsheet'!$A$16:$AC$216,5,0)) -> COVENTRY AND WARWICKSHIRE HOSPITAL | D44: =IF(VLOOKUP(A44,'Trust - Frontsheet'!$A$16:$AC$215,6,0)="","",VLOOKUP(A44,'Trust - Frontsheet'!$A$16:$AC$216,6,0)) -> Ward 43 | E44: =IF(OR(SUMPRODUCT(--(ISTEXT('Trust - Frontsheet'!I53:AC53)))>0,SUMPRODUCT(--(ISERROR('Trust - Frontsheet'!AD53:AT53)))>0),"There is invalid data on this row",IF(SUMPRODUCT(--('Trust - Frontsheet'!I53:AC53<0))>0,"This row contains negative values",IF(AND(L44="This is a blank Row",COUNTBLANK(INDIRECT("L" & ROW() + 1 & ":L" & 206))>0),"No blank rows in the data",""))) ->  | F44: =IF(A44 = "","",IF('Trust - Frontsheet'!D53="", "Site code not present","")) ->  | G44: =IF('Trust - Frontsheet'!D53="","",IF(VLOOKUP(A44,'Trust - Frontsheet'!$A$16:$AC$215,6,0)="","Ward name not present","")) ->  | H44: =IF(A44="","",IF(VLOOKUP(A44,'Trust - Frontsheet'!$A$16:$AC$215,7,0)="","Specialty 1 has not been selected","")) ->  | I44: =IF(A44="","",IF(OR(COUNTIF(Specialties,VLOOKUP(A44,'Trust - Frontsheet'!$A$16:$AC$215,7,0))=0, AND(COUNTIF(Specialties,VLOOKUP(A44,'Trust - Frontsheet'!$A$16:$AC$215,8,0))=0,VLOOKUP(A44,'Trust - Frontsheet'!$A$16:$AC$215,8,0)<>"")),"You have entered unacceptable specialties.","")) ->  | J44: =IF(A44="","",IF(AND(RIGHT(VLOOKUP(A44,'Trust - Frontsheet'!$A$16:$AC$215,7,0),3)<>RIGHT(VLOOKUP(A44,'Trust - Frontsheet'!$A$16:$AC$215,8,0),3),VLOOKUP(A44,'Trust - Frontsheet'!$A$16:$AC$215,8,0)<>""),"Covid statuses do not match","")) ->  | L44: =IF(SUMPRODUCT(--('Trust - Frontsheet'!$D53:$AC53=""))<>26,"","This is a blank row") -> 
A45: =IF('Trust - Frontsheet'!A54="","",'Trust - Frontsheet'!A54) -> RKB02Ward 50 Renal | B45: =IF('Trust - Frontsheet'!A54="","",'Trust - Frontsheet'!D54) -> RKB02 | C45: =IF(VLOOKUP(A45,'Trust - Frontsheet'!$A$16:$AC$215,5,0)="","",VLOOKUP(A45,'Trust - Frontsheet'!$A$16:$AC$216,5,0)) -> COVENTRY AND WARWICKSHIRE HOSPITAL | D45: =IF(VLOOKUP(A45,'Trust - Frontsheet'!$A$16:$AC$215,6,0)="","",VLOOKUP(A45,'Trust - Frontsheet'!$A$16:$AC$216,6,0)) -> Ward 50 Renal | E45: =IF(OR(SUMPRODUCT(--(ISTEXT('Trust - Frontsheet'!I54:AC54)))>0,SUMPRODUCT(--(ISERROR('Trust - Frontsheet'!AD54:AT54)))>0),"There is invalid data on this row",IF(SUMPRODUCT(--('Trust - Frontsheet'!I54:AC54<0))>0,"This row contains negative values",IF(AND(L45="This is a blank Row",COUNTBLANK(INDIRECT("L" & ROW() + 1 & ":L" & 206))>0),"No blank rows in the data",""))) ->  | F45: =IF(A45 = "","",IF('Trust - Frontsheet'!D54="", "Site code not present","")) ->  | G45: =IF('Trust - Frontsheet'!D54="","",IF(VLOOKUP(A45,'Trust - Frontsheet'!$A$16:$AC$215,6,0)="","Ward name not present","")) ->  | H45: =IF(A45="","",IF(VLOOKUP(A45,'Trust - Frontsheet'!$A$16:$AC$215,7,0)="","Specialty 1 has not been selected","")) ->  | I45: =IF(A45="","",IF(OR(COUNTIF(Specialties,VLOOKUP(A45,'Trust - Frontsheet'!$A$16:$AC$215,7,0))=0, AND(COUNTIF(Specialties,VLOOKUP(A45,'Trust - Frontsheet'!$A$16:$AC$215,8,0))=0,VLOOKUP(A45,'Trust - Frontsheet'!$A$16:$AC$215,8,0)<>"")),"You have entered unacceptable specialties.","")) ->  | J45: =IF(A45="","",IF(AND(RIGHT(VLOOKUP(A45,'Trust - Frontsheet'!$A$16:$AC$215,7,0),3)<>RIGHT(VLOOKUP(A45,'Trust - Frontsheet'!$A$16:$AC$215,8,0),3),VLOOKUP(A45,'Trust - Frontsheet'!$A$16:$AC$215,8,0)<>""),"Covid statuses do not match","")) ->  | L45: =IF(SUMPRODUCT(--('Trust - Frontsheet'!$D54:$AC54=""))<>26,"","This is a blank row") -> 
A46: =IF('Trust - Frontsheet'!A55="","",'Trust - Frontsheet'!A55) -> RKB02Ward 52 | B46: =IF('Trust - Frontsheet'!A55="","",'Trust - Frontsheet'!D55) -> RKB02 | C46: =IF(VLOOKUP(A46,'Trust - Frontsheet'!$A$16:$AC$215,5,0)="","",VLOOKUP(A46,'Trust - Frontsheet'!$A$16:$AC$216,5,0)) -> COVENTRY AND WARWICKSHIRE HOSPITAL | D46: =IF(VLOOKUP(A46,'Trust - Frontsheet'!$A$16:$AC$215,6,0)="","",VLOOKUP(A46,'Trust - Frontsheet'!$A$16:$AC$216,6,0)) -> Ward 52 | E46: =IF(OR(SUMPRODUCT(--(ISTEXT('Trust - Frontsheet'!I55:AC55)))>0,SUMPRODUCT(--(ISERROR('Trust - Frontsheet'!AD55:AT55)))>0),"There is invalid data on this row",IF(SUMPRODUCT(--('Trust - Frontsheet'!I55:AC55<0))>0,"This row contains negative values",IF(AND(L46="This is a blank Row",COUNTBLANK(INDIRECT("L" & ROW() + 1 & ":L" & 206))>0),"No blank rows in the data",""))) ->  | F46: =IF(A46 = "","",IF('Trust - Frontsheet'!D55="", "Site code not present","")) ->  | G46: =IF('Trust - Frontsheet'!D55="","",IF(VLOOKUP(A46,'Trust - Frontsheet'!$A$16:$AC$215,6,0)="","Ward name not present","")) ->  | H46: =IF(A46="","",IF(VLOOKUP(A46,'Trust - Frontsheet'!$A$16:$AC$215,7,0)="","Specialty 1 has not been selected","")) ->  | I46: =IF(A46="","",IF(OR(COUNTIF(Specialties,VLOOKUP(A46,'Trust - Frontsheet'!$A$16:$AC$215,7,0))=0, AND(COUNTIF(Specialties,VLOOKUP(A46,'Trust - Frontsheet'!$A$16:$AC$215,8,0))=0,VLOOKUP(A46,'Trust - Frontsheet'!$A$16:$AC$215,8,0)<>"")),"You have entered unacceptable specialties.","")) ->  | J46: =IF(A46="","",IF(AND(RIGHT(VLOOKUP(A46,'Trust - Frontsheet'!$A$16:$AC$215,7,0),3)<>RIGHT(VLOOKUP(A46,'Trust - Frontsheet'!$A$16:$AC$215,8,0),3),VLOOKUP(A46,'Trust - Frontsheet'!$A$16:$AC$215,8,0)<>""),"Covid statuses do not match","")) ->  | L46: =IF(SUMPRODUCT(--('Trust - Frontsheet'!$D55:$AC55=""))<>26,"","This is a blank row") -> 
A47: =IF('Trust - Frontsheet'!A56="","",'Trust - Frontsheet'!A56) -> RKB02Ward 53 | B47: =IF('Trust - Frontsheet'!A56="","",'Trust - Frontsheet'!D56) -> RKB02 | C47: =IF(VLOOKUP(A47,'Trust - Frontsheet'!$A$16:$AC$215,5,0)="","",VLOOKUP(A47,'Trust - Frontsheet'!$A$16:$AC$216,5,0)) -> COVENTRY AND WARWICKSHIRE HOSPITAL | D47: =IF(VLOOKUP(A47,'Trust - Frontsheet'!$A$16:$AC$215,6,0)="","",VLOOKUP(A47,'Trust - Frontsheet'!$A$16:$AC$216,6,0)) -> Ward 53 | E47: =IF(OR(SUMPRODUCT(--(ISTEXT('Trust - Frontsheet'!I56:AC56)))>0,SUMPRODUCT(--(ISERROR('Trust - Frontsheet'!AD56:AT56)))>0),"There is invalid data on this row",IF(SUMPRODUCT(--('Trust - Frontsheet'!I56:AC56<0))>0,"This row contains negative values",IF(AND(L47="This is a blank Row",COUNTBLANK(INDIRECT("L" & ROW() + 1 & ":L" & 206))>0),"No blank rows in the data",""))) ->  | F47: =IF(A47 = "","",IF('Trust - Frontsheet'!D56="", "Site code not present","")) ->  | G47: =IF('Trust - Frontsheet'!D56="","",IF(VLOOKUP(A47,'Trust - Frontsheet'!$A$16:$AC$215,6,0)="","Ward name not present","")) ->  | H47: =IF(A47="","",IF(VLOOKUP(A47,'Trust - Frontsheet'!$A$16:$AC$215,7,0)="","Specialty 1 has not been selected","")) ->  | I47: =IF(A47="","",IF(OR(COUNTIF(Specialties,VLOOKUP(A47,'Trust - Frontsheet'!$A$16:$AC$215,7,0))=0, AND(COUNTIF(Specialties,VLOOKUP(A47,'Trust - Frontsheet'!$A$16:$AC$215,8,0))=0,VLOOKUP(A47,'Trust - Frontsheet'!$A$16:$AC$215,8,0)<>"")),"You have entered unacceptable specialties.","")) ->  | J47: =IF(A47="","",IF(AND(RIGHT(VLOOKUP(A47,'Trust - Frontsheet'!$A$16:$AC$215,7,0),3)<>RIGHT(VLOOKUP(A47,'Trust - Frontsheet'!$A$16:$AC$215,8,0),3),VLOOKUP(A47,'Trust - Frontsheet'!$A$16:$AC$215,8,0)<>""),"Covid statuses do not match","")) ->  | L47: =IF(SUMPRODUCT(--('Trust - Frontsheet'!$D56:$AC56=""))<>26,"","This is a blank row") -> 
A48: =IF('Trust - Frontsheet'!A57="","",'Trust - Frontsheet'!A57) -> RKB03Rugby Cedar Ward | B48: =IF('Trust - Frontsheet'!A57="","",'Trust - Frontsheet'!D57) -> RKB03 | C48: =IF(VLOOKUP(A48,'Trust - Frontsheet'!$A$16:$AC$215,5,0)="","",VLOOKUP(A48,'Trust - Frontsheet'!$A$16:$AC$216,5,0)) -> HOSPITAL OF ST CROSS | D48: =IF(VLOOKUP(A48,'Trust - Frontsheet'!$A$16:$AC$215,6,0)="","",VLOOKUP(A48,'Trust - Frontsheet'!$A$16:$AC$216,6,0)) -> Rugby Cedar Ward | E48: =IF(OR(SUMPRODUCT(--(ISTEXT('Trust - Frontsheet'!I57:AC57)))>0,SUMPRODUCT(--(ISERROR('Trust - Frontsheet'!AD57:AT57)))>0),"There is invalid data on this row",IF(SUMPRODUCT(--('Trust - Frontsheet'!I57:AC57<0))>0,"This row contains negative values",IF(AND(L48="This is a blank Row",COUNTBLANK(INDIRECT("L" & ROW() + 1 & ":L" & 206))>0),"No blank rows in the data",""))) ->  | F48: =IF(A48 = "","",IF('Trust - Frontsheet'!D57="", "Site code not present","")) ->  | G48: =IF('Trust - Frontsheet'!D57="","",IF(VLOOKUP(A48,'Trust - Frontsheet'!$A$16:$AC$215,6,0)="","Ward name not present","")) ->  | H48: =IF(A48="","",IF(VLOOKUP(A48,'Trust - Frontsheet'!$A$16:$AC$215,7,0)="","Specialty 1 has not been selected","")) ->  | I48: =IF(A48="","",IF(OR(COUNTIF(Specialties,VLOOKUP(A48,'Trust - Frontsheet'!$A$16:$AC$215,7,0))=0, AND(COUNTIF(Specialties,VLOOKUP(A48,'Trust - Frontsheet'!$A$16:$AC$215,8,0))=0,VLOOKUP(A48,'Trust - Frontsheet'!$A$16:$AC$215,8,0)<>"")),"You have entered unacceptable specialties.","")) ->  | J48: =IF(A48="","",IF(AND(RIGHT(VLOOKUP(A48,'Trust - Frontsheet'!$A$16:$AC$215,7,0),3)<>RIGHT(VLOOKUP(A48,'Trust - Frontsheet'!$A$16:$AC$215,8,0),3),VLOOKUP(A48,'Trust - Frontsheet'!$A$16:$AC$215,8,0)<>""),"Covid statuses do not match","")) ->  | L48: =IF(SUMPRODUCT(--('Trust - Frontsheet'!$D57:$AC57=""))<>26,"","This is a blank row") -> 
A49: =IF('Trust - Frontsheet'!A58="","",'Trust - Frontsheet'!A58) -> RKB03Rugby Hoskyn Ward | B49: =IF('Trust - Frontsheet'!A58="","",'Trust - Frontsheet'!D58) -> RKB03 | C49: =IF(VLOOKUP(A49,'Trust - Frontsheet'!$A$16:$AC$215,5,0)="","",VLOOKUP(A49,'Trust - Frontsheet'!$A$16:$AC$216,5,0)) -> HOSPITAL OF ST CROSS | D49: =IF(VLOOKUP(A49,'Trust - Frontsheet'!$A$16:$AC$215,6,0)="","",VLOOKUP(A49,'Trust - Frontsheet'!$A$16:$AC$216,6,0)) -> Rugby Hoskyn Ward | E49: =IF(OR(SUMPRODUCT(--(ISTEXT('Trust - Frontsheet'!I58:AC58)))>0,SUMPRODUCT(--(ISERROR('Trust - Frontsheet'!AD58:AT58)))>0),"There is invalid data on this row",IF(SUMPRODUCT(--('Trust - Frontsheet'!I58:AC58<0))>0,"This row contains negative values",IF(AND(L49="This is a blank Row",COUNTBLANK(INDIRECT("L" & ROW() + 1 & ":L" & 206))>0),"No blank rows in the data",""))) ->  | F49: =IF(A49 = "","",IF('Trust - Frontsheet'!D58="", "Site code not present","")) ->  | G49: =IF('Trust - Frontsheet'!D58="","",IF(VLOOKUP(A49,'Trust - Frontsheet'!$A$16:$AC$215,6,0)="","Ward name not present","")) ->  | H49: =IF(A49="","",IF(VLOOKUP(A49,'Trust - Frontsheet'!$A$16:$AC$215,7,0)="","Specialty 1 has not been selected","")) ->  | I49: =IF(A49="","",IF(OR(COUNTIF(Specialties,VLOOKUP(A49,'Trust - Frontsheet'!$A$16:$AC$215,7,0))=0, AND(COUNTIF(Specialties,VLOOKUP(A49,'Trust - Frontsheet'!$A$16:$AC$215,8,0))=0,VLOOKUP(A49,'Trust - Frontsheet'!$A$16:$AC$215,8,0)<>"")),"You have entered unacceptable specialties.","")) ->  | J49: =IF(A49="","",IF(AND(RIGHT(VLOOKUP(A49,'Trust - Frontsheet'!$A$16:$AC$215,7,0),3)<>RIGHT(VLOOKUP(A49,'Trust - Frontsheet'!$A$16:$AC$215,8,0),3),VLOOKUP(A49,'Trust - Frontsheet'!$A$16:$AC$215,8,0)<>""),"Covid statuses do not match","")) ->  | L49: =IF(SUMPRODUCT(--('Trust - Frontsheet'!$D58:$AC58=""))<>26,"","This is a blank row") -> 
A50: =IF('Trust - Frontsheet'!A59="","",'Trust - Frontsheet'!A59) -> RKB03Rugby Mulberry Ward | B50: =IF('Trust - Frontsheet'!A59="","",'Trust - Frontsheet'!D59) -> RKB03 | C50: =IF(VLOOKUP(A50,'Trust - Frontsheet'!$A$16:$AC$215,5,0)="","",VLOOKUP(A50,'Trust - Frontsheet'!$A$16:$AC$216,5,0)) -> HOSPITAL OF ST CROSS | D50: =IF(VLOOKUP(A50,'Trust - Frontsheet'!$A$16:$AC$215,6,0)="","",VLOOKUP(A50,'Trust - Frontsheet'!$A$16:$AC$216,6,0)) -> Rugby Mulberry Ward | E50: =IF(OR(SUMPRODUCT(--(ISTEXT('Trust - Frontsheet'!I59:AC59)))>0,SUMPRODUCT(--(ISERROR('Trust - Frontsheet'!AD59:AT59)))>0),"There is invalid data on this row",IF(SUMPRODUCT(--('Trust - Frontsheet'!I59:AC59<0))>0,"This row contains negative values",IF(AND(L50="This is a blank Row",COUNTBLANK(INDIRECT("L" & ROW() + 1 & ":L" & 206))>0),"No blank rows in the data",""))) ->  | F50: =IF(A50 = "","",IF('Trust - Frontsheet'!D59="", "Site code not present","")) ->  | G50: =IF('Trust - Frontsheet'!D59="","",IF(VLOOKUP(A50,'Trust - Frontsheet'!$A$16:$AC$215,6,0)="","Ward name not present","")) ->  | H50: =IF(A50="","",IF(VLOOKUP(A50,'Trust - Frontsheet'!$A$16:$AC$215,7,0)="","Specialty 1 has not been selected","")) ->  | I50: =IF(A50="","",IF(OR(COUNTIF(Specialties,VLOOKUP(A50,'Trust - Frontsheet'!$A$16:$AC$215,7,0))=0, AND(COUNTIF(Specialties,VLOOKUP(A50,'Trust - Frontsheet'!$A$16:$AC$215,8,0))=0,VLOOKUP(A50,'Trust - Frontsheet'!$A$16:$AC$215,8,0)<>"")),"You have entered unacceptable specialties.","")) ->  | J50: =IF(A50="","",IF(AND(RIGHT(VLOOKUP(A50,'Trust - Frontsheet'!$A$16:$AC$215,7,0),3)<>RIGHT(VLOOKUP(A50,'Trust - Frontsheet'!$A$16:$AC$215,8,0),3),VLOOKUP(A50,'Trust - Frontsheet'!$A$16:$AC$215,8,0)<>""),"Covid statuses do not match","")) ->  | L50: =IF(SUMPRODUCT(--('Trust - Frontsheet'!$D59:$AC59=""))<>26,"","This is a blank row") -> 
A51: =IF('Trust - Frontsheet'!A60="","",'Trust - Frontsheet'!A60) -> RKB03Rugby Oak Ward | B51: =IF('Trust - Frontsheet'!A60="","",'Trust - Frontsheet'!D60) -> RKB03 | C51: =IF(VLOOKUP(A51,'Trust - Frontsheet'!$A$16:$AC$215,5,0)="","",VLOOKUP(A51,'Trust - Frontsheet'!$A$16:$AC$216,5,0)) -> HOSPITAL OF ST CROSS | D51: =IF(VLOOKUP(A51,'Trust - Frontsheet'!$A$16:$AC$215,6,0)="","",VLOOKUP(A51,'Trust - Frontsheet'!$A$16:$AC$216,6,0)) -> Rugby Oak Ward | E51: =IF(OR(SUMPRODUCT(--(ISTEXT('Trust - Frontsheet'!I60:AC60)))>0,SUMPRODUCT(--(ISERROR('Trust - Frontsheet'!AD60:AT60)))>0),"There is invalid data on this row",IF(SUMPRODUCT(--('Trust - Frontsheet'!I60:AC60<0))>0,"This row contains negative values",IF(AND(L51="This is a blank Row",COUNTBLANK(INDIRECT("L" & ROW() + 1 & ":L" & 206))>0),"No blank rows in the data",""))) ->  | F51: =IF(A51 = "","",IF('Trust - Frontsheet'!D60="", "Site code not present","")) ->  | G51: =IF('Trust - Frontsheet'!D60="","",IF(VLOOKUP(A51,'Trust - Frontsheet'!$A$16:$AC$215,6,0)="","Ward name not present","")) ->  | H51: =IF(A51="","",IF(VLOOKUP(A51,'Trust - Frontsheet'!$A$16:$AC$215,7,0)="","Specialty 1 has not been selected","")) ->  | I51: =IF(A51="","",IF(OR(COUNTIF(Specialties,VLOOKUP(A51,'Trust - Frontsheet'!$A$16:$AC$215,7,0))=0, AND(COUNTIF(Specialties,VLOOKUP(A51,'Trust - Frontsheet'!$A$16:$AC$215,8,0))=0,VLOOKUP(A51,'Trust - Frontsheet'!$A$16:$AC$215,8,0)<>"")),"You have entered unacceptable specialties.","")) ->  | J51: =IF(A51="","",IF(AND(RIGHT(VLOOKUP(A51,'Trust - Frontsheet'!$A$16:$AC$215,7,0),3)<>RIGHT(VLOOKUP(A51,'Trust - Frontsheet'!$A$16:$AC$215,8,0),3),VLOOKUP(A51,'Trust - Frontsheet'!$A$16:$AC$215,8,0)<>""),"Covid statuses do not match","")) ->  | L51: =IF(SUMPRODUCT(--('Trust - Frontsheet'!$D60:$AC60=""))<>26,"","This is a blank row") -> 
A52: =IF('Trust - Frontsheet'!A61="","",'Trust - Frontsheet'!A61) ->  | B52: =IF('Trust - Frontsheet'!A61="","",'Trust - Frontsheet'!D61) ->  | C52: =IF(VLOOKUP(A52,'Trust - Frontsheet'!$A$16:$AC$215,5,0)="","",VLOOKUP(A52,'Trust - Frontsheet'!$A$16:$AC$216,5,0)) ->  | D52: =IF(VLOOKUP(A52,'Trust - Frontsheet'!$A$16:$AC$215,6,0)="","",VLOOKUP(A52,'Trust - Frontsheet'!$A$16:$AC$216,6,0)) ->  | E52: =IF(OR(SUMPRODUCT(--(ISTEXT('Trust - Frontsheet'!I61:AC61)))>0,SUMPRODUCT(--(ISERROR('Trust - Frontsheet'!AD61:AT61)))>0),"There is invalid data on this row",IF(SUMPRODUCT(--('Trust - Frontsheet'!I61:AC61<0))>0,"This row contains negative values",IF(AND(L52="This is a blank Row",COUNTBLANK(INDIRECT("L" & ROW() + 1 & ":L" & 206))>0),"No blank rows in the data",""))) ->  | F52: =IF(A52 = "","",IF('Trust - Frontsheet'!D61="", "Site code not present","")) ->  | G52: =IF('Trust - Frontsheet'!D61="","",IF(VLOOKUP(A52,'Trust - Frontsheet'!$A$16:$AC$215,6,0)="","Ward name not present","")) ->  | H52: =IF(A52="","",IF(VLOOKUP(A52,'Trust - Frontsheet'!$A$16:$AC$215,7,0)="","Specialty 1 has not been selected","")) ->  | I52: =IF(A52="","",IF(OR(COUNTIF(Specialties,VLOOKUP(A52,'Trust - Frontsheet'!$A$16:$AC$215,7,0))=0, AND(COUNTIF(Specialties,VLOOKUP(A52,'Trust - Frontsheet'!$A$16:$AC$215,8,0))=0,VLOOKUP(A52,'Trust - Frontsheet'!$A$16:$AC$215,8,0)<>"")),"You have entered unacceptable specialties.","")) ->  | J52: =IF(A52="","",IF(AND(RIGHT(VLOOKUP(A52,'Trust - Frontsheet'!$A$16:$AC$215,7,0),3)<>RIGHT(VLOOKUP(A52,'Trust - Frontsheet'!$A$16:$AC$215,8,0),3),VLOOKUP(A52,'Trust - Frontsheet'!$A$16:$AC$215,8,0)<>""),"Covid statuses do not match","")) ->  | L52: =IF(SUMPRODUCT(--('Trust - Frontsheet'!$D61:$AC61=""))<>26,"","This is a blank row") -> This is a blank row
A53: =IF('Trust - Frontsheet'!A62="","",'Trust - Frontsheet'!A62) ->  | B53: =IF('Trust - Frontsheet'!A62="","",'Trust - Frontsheet'!D62) ->  | C53: =IF(VLOOKUP(A53,'Trust - Frontsheet'!$A$16:$AC$215,5,0)="","",VLOOKUP(A53,'Trust - Frontsheet'!$A$16:$AC$216,5,0)) ->  | D53: =IF(VLOOKUP(A53,'Trust - Frontsheet'!$A$16:$AC$215,6,0)="","",VLOOKUP(A53,'Trust - Frontsheet'!$A$16:$AC$216,6,0)) ->  | E53: =IF(OR(SUMPRODUCT(--(ISTEXT('Trust - Frontsheet'!I62:AC62)))>0,SUMPRODUCT(--(ISERROR('Trust - Frontsheet'!AD62:AT62)))>0),"There is invalid data on this row",IF(SUMPRODUCT(--('Trust - Frontsheet'!I62:AC62<0))>0,"This row contains negative values",IF(AND(L53="This is a blank Row",COUNTBLANK(INDIRECT("L" & ROW() + 1 & ":L" & 206))>0),"No blank rows in the data",""))) ->  | F53: =IF(A53 = "","",IF('Trust - Frontsheet'!D62="", "Site code not present","")) ->  | G53: =IF('Trust - Frontsheet'!D62="","",IF(VLOOKUP(A53,'Trust - Frontsheet'!$A$16:$AC$215,6,0)="","Ward name not present","")) ->  | H53: =IF(A53="","",IF(VLOOKUP(A53,'Trust - Frontsheet'!$A$16:$AC$215,7,0)="","Specialty 1 has not been selected","")) ->  | I53: =IF(A53="","",IF(OR(COUNTIF(Specialties,VLOOKUP(A53,'Trust - Frontsheet'!$A$16:$AC$215,7,0))=0, AND(COUNTIF(Specialties,VLOOKUP(A53,'Trust - Frontsheet'!$A$16:$AC$215,8,0))=0,VLOOKUP(A53,'Trust - Frontsheet'!$A$16:$AC$215,8,0)<>"")),"You have entered unacceptable specialties.","")) ->  | J53: =IF(A53="","",IF(AND(RIGHT(VLOOKUP(A53,'Trust - Frontsheet'!$A$16:$AC$215,7,0),3)<>RIGHT(VLOOKUP(A53,'Trust - Frontsheet'!$A$16:$AC$215,8,0),3),VLOOKUP(A53,'Trust - Frontsheet'!$A$16:$AC$215,8,0)<>""),"Covid statuses do not match","")) ->  | L53: =IF(SUMPRODUCT(--('Trust - Frontsheet'!$D62:$AC62=""))<>26,"","This is a blank row") -> This is a blank row
A54: =IF('Trust - Frontsheet'!A63="","",'Trust - Frontsheet'!A63) ->  | B54: =IF('Trust - Frontsheet'!A63="","",'Trust - Frontsheet'!D63) ->  | C54: =IF(VLOOKUP(A54,'Trust - Frontsheet'!$A$16:$AC$215,5,0)="","",VLOOKUP(A54,'Trust - Frontsheet'!$A$16:$AC$216,5,0)) ->  | D54: =IF(VLOOKUP(A54,'Trust - Frontsheet'!$A$16:$AC$215,6,0)="","",VLOOKUP(A54,'Trust - Frontsheet'!$A$16:$AC$216,6,0)) ->  | E54: =IF(OR(SUMPRODUCT(--(ISTEXT('Trust - Frontsheet'!I63:AC63)))>0,SUMPRODUCT(--(ISERROR('Trust - Frontsheet'!AD63:AT63)))>0),"There is invalid data on this row",IF(SUMPRODUCT(--('Trust - Frontsheet'!I63:AC63<0))>0,"This row contains negative values",IF(AND(L54="This is a blank Row",COUNTBLANK(INDIRECT("L" & ROW() + 1 & ":L" & 206))>0),"No blank rows in the data",""))) ->  | F54: =IF(A54 = "","",IF('Trust - Frontsheet'!D63="", "Site code not present","")) ->  | G54: =IF('Trust - Frontsheet'!D63="","",IF(VLOOKUP(A54,'Trust - Frontsheet'!$A$16:$AC$215,6,0)="","Ward name not present","")) ->  | H54: =IF(A54="","",IF(VLOOKUP(A54,'Trust - Frontsheet'!$A$16:$AC$215,7,0)="","Specialty 1 has not been selected","")) ->  | I54: =IF(A54="","",IF(OR(COUNTIF(Specialties,VLOOKUP(A54,'Trust - Frontsheet'!$A$16:$AC$215,7,0))=0, AND(COUNTIF(Specialties,VLOOKUP(A54,'Trust - Frontsheet'!$A$16:$AC$215,8,0))=0,VLOOKUP(A54,'Trust - Frontsheet'!$A$16:$AC$215,8,0)<>"")),"You have entered unacceptable specialties.","")) ->  | J54: =IF(A54="","",IF(AND(RIGHT(VLOOKUP(A54,'Trust - Frontsheet'!$A$16:$AC$215,7,0),3)<>RIGHT(VLOOKUP(A54,'Trust - Frontsheet'!$A$16:$AC$215,8,0),3),VLOOKUP(A54,'Trust - Frontsheet'!$A$16:$AC$215,8,0)<>""),"Covid statuses do not match","")) ->  | L54: =IF(SUMPRODUCT(--('Trust - Frontsheet'!$D63:$AC63=""))<>26,"","This is a blank row") -> This is a blank row
A55: =IF('Trust - Frontsheet'!A64="","",'Trust - Frontsheet'!A64) ->  | B55: =IF('Trust - Frontsheet'!A64="","",'Trust - Frontsheet'!D64) ->  | C55: =IF(VLOOKUP(A55,'Trust - Frontsheet'!$A$16:$AC$215,5,0)="","",VLOOKUP(A55,'Trust - Frontsheet'!$A$16:$AC$216,5,0)) ->  | D55: =IF(VLOOKUP(A55,'Trust - Frontsheet'!$A$16:$AC$215,6,0)="","",VLOOKUP(A55,'Trust - Frontsheet'!$A$16:$AC$216,6,0)) ->  | E55: =IF(OR(SUMPRODUCT(--(ISTEXT('Trust - Frontsheet'!I64:AC64)))>0,SUMPRODUCT(--(ISERROR('Trust - Frontsheet'!AD64:AT64)))>0),"There is invalid data on this row",IF(SUMPRODUCT(--('Trust - Frontsheet'!I64:AC64<0))>0,"This row contains negative values",IF(AND(L55="This is a blank Row",COUNTBLANK(INDIRECT("L" & ROW() + 1 & ":L" & 206))>0),"No blank rows in the data",""))) ->  | F55: =IF(A55 = "","",IF('Trust - Frontsheet'!D64="", "Site code not present","")) ->  | G55: =IF('Trust - Frontsheet'!D64="","",IF(VLOOKUP(A55,'Trust - Frontsheet'!$A$16:$AC$215,6,0)="","Ward name not present","")) ->  | H55: =IF(A55="","",IF(VLOOKUP(A55,'Trust - Frontsheet'!$A$16:$AC$215,7,0)="","Specialty 1 has not been selected","")) ->  | I55: =IF(A55="","",IF(OR(COUNTIF(Specialties,VLOOKUP(A55,'Trust - Frontsheet'!$A$16:$AC$215,7,0))=0, AND(COUNTIF(Specialties,VLOOKUP(A55,'Trust - Frontsheet'!$A$16:$AC$215,8,0))=0,VLOOKUP(A55,'Trust - Frontsheet'!$A$16:$AC$215,8,0)<>"")),"You have entered unacceptable specialties.","")) ->  | J55: =IF(A55="","",IF(AND(RIGHT(VLOOKUP(A55,'Trust - Frontsheet'!$A$16:$AC$215,7,0),3)<>RIGHT(VLOOKUP(A55,'Trust - Frontsheet'!$A$16:$AC$215,8,0),3),VLOOKUP(A55,'Trust - Frontsheet'!$A$16:$AC$215,8,0)<>""),"Covid statuses do not match","")) ->  | L55: =IF(SUMPRODUCT(--('Trust - Frontsheet'!$D64:$AC64=""))<>26,"","This is a blank row") -> This is a blank row
A56: =IF('Trust - Frontsheet'!A65="","",'Trust - Frontsheet'!A65) ->  | B56: =IF('Trust - Frontsheet'!A65="","",'Trust - Frontsheet'!D65) ->  | C56: =IF(VLOOKUP(A56,'Trust - Frontsheet'!$A$16:$AC$215,5,0)="","",VLOOKUP(A56,'Trust - Frontsheet'!$A$16:$AC$216,5,0)) ->  | D56: =IF(VLOOKUP(A56,'Trust - Frontsheet'!$A$16:$AC$215,6,0)="","",VLOOKUP(A56,'Trust - Frontsheet'!$A$16:$AC$216,6,0)) ->  | E56: =IF(OR(SUMPRODUCT(--(ISTEXT('Trust - Frontsheet'!I65:AC65)))>0,SUMPRODUCT(--(ISERROR('Trust - Frontsheet'!AD65:AT65)))>0),"There is invalid data on this row",IF(SUMPRODUCT(--('Trust - Frontsheet'!I65:AC65<0))>0,"This row contains negative values",IF(AND(L56="This is a blank Row",COUNTBLANK(INDIRECT("L" & ROW() + 1 & ":L" & 206))>0),"No blank rows in the data",""))) ->  | F56: =IF(A56 = "","",IF('Trust - Frontsheet'!D65="", "Site code not present","")) ->  | G56: =IF('Trust - Frontsheet'!D65="","",IF(VLOOKUP(A56,'Trust - Frontsheet'!$A$16:$AC$215,6,0)="","Ward name not present","")) ->  | H56: =IF(A56="","",IF(VLOOKUP(A56,'Trust - Frontsheet'!$A$16:$AC$215,7,0)="","Specialty 1 has not been selected","")) ->  | I56: =IF(A56="","",IF(OR(COUNTIF(Specialties,VLOOKUP(A56,'Trust - Frontsheet'!$A$16:$AC$215,7,0))=0, AND(COUNTIF(Specialties,VLOOKUP(A56,'Trust - Frontsheet'!$A$16:$AC$215,8,0))=0,VLOOKUP(A56,'Trust - Frontsheet'!$A$16:$AC$215,8,0)<>"")),"You have entered unacceptable specialties.","")) ->  | J56: =IF(A56="","",IF(AND(RIGHT(VLOOKUP(A56,'Trust - Frontsheet'!$A$16:$AC$215,7,0),3)<>RIGHT(VLOOKUP(A56,'Trust - Frontsheet'!$A$16:$AC$215,8,0),3),VLOOKUP(A56,'Trust - Frontsheet'!$A$16:$AC$215,8,0)<>""),"Covid statuses do not match","")) ->  | L56: =IF(SUMPRODUCT(--('Trust - Frontsheet'!$D65:$AC65=""))<>26,"","This is a blank row") -> This is a blank row
A57: =IF('Trust - Frontsheet'!A66="","",'Trust - Frontsheet'!A66) ->  | B57: =IF('Trust - Frontsheet'!A66="","",'Trust - Frontsheet'!D66) ->  | C57: =IF(VLOOKUP(A57,'Trust - Frontsheet'!$A$16:$AC$215,5,0)="","",VLOOKUP(A57,'Trust - Frontsheet'!$A$16:$AC$216,5,0)) ->  | D57: =IF(VLOOKUP(A57,'Trust - Frontsheet'!$A$16:$AC$215,6,0)="","",VLOOKUP(A57,'Trust - Frontsheet'!$A$16:$AC$216,6,0)) ->  | E57: =IF(OR(SUMPRODUCT(--(ISTEXT('Trust - Frontsheet'!I66:AC66)))>0,SUMPRODUCT(--(ISERROR('Trust - Frontsheet'!AD66:AT66)))>0),"There is invalid data on this row",IF(SUMPRODUCT(--('Trust - Frontsheet'!I66:AC66<0))>0,"This row contains negative values",IF(AND(L57="This is a blank Row",COUNTBLANK(INDIRECT("L" & ROW() + 1 & ":L" & 206))>0),"No blank rows in the data",""))) ->  | F57: =IF(A57 = "","",IF('Trust - Frontsheet'!D66="", "Site code not present","")) ->  | G57: =IF('Trust - Frontsheet'!D66="","",IF(VLOOKUP(A57,'Trust - Frontsheet'!$A$16:$AC$215,6,0)="","Ward name not present","")) ->  | H57: =IF(A57="","",IF(VLOOKUP(A57,'Trust - Frontsheet'!$A$16:$AC$215,7,0)="","Specialty 1 has not been selected","")) ->  | I57: =IF(A57="","",IF(OR(COUNTIF(Specialties,VLOOKUP(A57,'Trust - Frontsheet'!$A$16:$AC$215,7,0))=0, AND(COUNTIF(Specialties,VLOOKUP(A57,'Trust - Frontsheet'!$A$16:$AC$215,8,0))=0,VLOOKUP(A57,'Trust - Frontsheet'!$A$16:$AC$215,8,0)<>"")),"You have entered unacceptable specialties.","")) ->  | J57: =IF(A57="","",IF(AND(RIGHT(VLOOKUP(A57,'Trust - Frontsheet'!$A$16:$AC$215,7,0),3)<>RIGHT(VLOOKUP(A57,'Trust - Frontsheet'!$A$16:$AC$215,8,0),3),VLOOKUP(A57,'Trust - Frontsheet'!$A$16:$AC$215,8,0)<>""),"Covid statuses do not match","")) ->  | L57: =IF(SUMPRODUCT(--('Trust - Frontsheet'!$D66:$AC66=""))<>26,"","This is a blank row") -> This is a blank row
A58: =IF('Trust - Frontsheet'!A67="","",'Trust - Frontsheet'!A67) ->  | B58: =IF('Trust - Frontsheet'!A67="","",'Trust - Frontsheet'!D67) ->  | C58: =IF(VLOOKUP(A58,'Trust - Frontsheet'!$A$16:$AC$215,5,0)="","",VLOOKUP(A58,'Trust - Frontsheet'!$A$16:$AC$216,5,0)) ->  | D58: =IF(VLOOKUP(A58,'Trust - Frontsheet'!$A$16:$AC$215,6,0)="","",VLOOKUP(A58,'Trust - Frontsheet'!$A$16:$AC$216,6,0)) ->  | E58: =IF(OR(SUMPRODUCT(--(ISTEXT('Trust - Frontsheet'!I67:AC67)))>0,SUMPRODUCT(--(ISERROR('Trust - Frontsheet'!AD67:AT67)))>0),"There is invalid data on this row",IF(SUMPRODUCT(--('Trust - Frontsheet'!I67:AC67<0))>0,"This row contains negative values",IF(AND(L58="This is a blank Row",COUNTBLANK(INDIRECT("L" & ROW() + 1 & ":L" & 206))>0),"No blank rows in the data",""))) ->  | F58: =IF(A58 = "","",IF('Trust - Frontsheet'!D67="", "Site code not present","")) ->  | G58: =IF('Trust - Frontsheet'!D67="","",IF(VLOOKUP(A58,'Trust - Frontsheet'!$A$16:$AC$215,6,0)="","Ward name not present","")) ->  | H58: =IF(A58="","",IF(VLOOKUP(A58,'Trust - Frontsheet'!$A$16:$AC$215,7,0)="","Specialty 1 has not been selected","")) ->  | I58: =IF(A58="","",IF(OR(COUNTIF(Specialties,VLOOKUP(A58,'Trust - Frontsheet'!$A$16:$AC$215,7,0))=0, AND(COUNTIF(Specialties,VLOOKUP(A58,'Trust - Frontsheet'!$A$16:$AC$215,8,0))=0,VLOOKUP(A58,'Trust - Frontsheet'!$A$16:$AC$215,8,0)<>"")),"You have entered unacceptable specialties.","")) ->  | J58: =IF(A58="","",IF(AND(RIGHT(VLOOKUP(A58,'Trust - Frontsheet'!$A$16:$AC$215,7,0),3)<>RIGHT(VLOOKUP(A58,'Trust - Frontsheet'!$A$16:$AC$215,8,0),3),VLOOKUP(A58,'Trust - Frontsheet'!$A$16:$AC$215,8,0)<>""),"Covid statuses do not match","")) ->  | L58: =IF(SUMPRODUCT(--('Trust - Frontsheet'!$D67:$AC67=""))<>26,"","This is a blank row") -> This is a blank row
A59: =IF('Trust - Frontsheet'!A68="","",'Trust - Frontsheet'!A68) ->  | B59: =IF('Trust - Frontsheet'!A68="","",'Trust - Frontsheet'!D68) ->  | C59: =IF(VLOOKUP(A59,'Trust - Frontsheet'!$A$16:$AC$215,5,0)="","",VLOOKUP(A59,'Trust - Frontsheet'!$A$16:$AC$216,5,0)) ->  | D59: =IF(VLOOKUP(A59,'Trust - Frontsheet'!$A$16:$AC$215,6,0)="","",VLOOKUP(A59,'Trust - Frontsheet'!$A$16:$AC$216,6,0)) ->  | E59: =IF(OR(SUMPRODUCT(--(ISTEXT('Trust - Frontsheet'!I68:AC68)))>0,SUMPRODUCT(--(ISERROR('Trust - Frontsheet'!AD68:AT68)))>0),"There is invalid data on this row",IF(SUMPRODUCT(--('Trust - Frontsheet'!I68:AC68<0))>0,"This row contains negative values",IF(AND(L59="This is a blank Row",COUNTBLANK(INDIRECT("L" & ROW() + 1 & ":L" & 206))>0),"No blank rows in the data",""))) ->  | F59: =IF(A59 = "","",IF('Trust - Frontsheet'!D68="", "Site code not present","")) ->  | G59: =IF('Trust - Frontsheet'!D68="","",IF(VLOOKUP(A59,'Trust - Frontsheet'!$A$16:$AC$215,6,0)="","Ward name not present","")) ->  | H59: =IF(A59="","",IF(VLOOKUP(A59,'Trust - Frontsheet'!$A$16:$AC$215,7,0)="","Specialty 1 has not been selected","")) ->  | I59: =IF(A59="","",IF(OR(COUNTIF(Specialties,VLOOKUP(A59,'Trust - Frontsheet'!$A$16:$AC$215,7,0))=0, AND(COUNTIF(Specialties,VLOOKUP(A59,'Trust - Frontsheet'!$A$16:$AC$215,8,0))=0,VLOOKUP(A59,'Trust - Frontsheet'!$A$16:$AC$215,8,0)<>"")),"You have entered unacceptable specialties.","")) ->  | J59: =IF(A59="","",IF(AND(RIGHT(VLOOKUP(A59,'Trust - Frontsheet'!$A$16:$AC$215,7,0),3)<>RIGHT(VLOOKUP(A59,'Trust - Frontsheet'!$A$16:$AC$215,8,0),3),VLOOKUP(A59,'Trust - Frontsheet'!$A$16:$AC$215,8,0)<>""),"Covid statuses do not match","")) ->  | L59: =IF(SUMPRODUCT(--('Trust - Frontsheet'!$D68:$AC68=""))<>26,"","This is a blank row") -> This is a blank row
A60: =IF('Trust - Frontsheet'!A69="","",'Trust - Frontsheet'!A69) ->  | B60: =IF('Trust - Frontsheet'!A69="","",'Trust - Frontsheet'!D69) ->  | C60: =IF(VLOOKUP(A60,'Trust - Frontsheet'!$A$16:$AC$215,5,0)="","",VLOOKUP(A60,'Trust - Frontsheet'!$A$16:$AC$216,5,0)) ->  | D60: =IF(VLOOKUP(A60,'Trust - Frontsheet'!$A$16:$AC$215,6,0)="","",VLOOKUP(A60,'Trust - Frontsheet'!$A$16:$AC$216,6,0)) ->  | E60: =IF(OR(SUMPRODUCT(--(ISTEXT('Trust - Frontsheet'!I69:AC69)))>0,SUMPRODUCT(--(ISERROR('Trust - Frontsheet'!AD69:AT69)))>0),"There is invalid data on this row",IF(SUMPRODUCT(--('Trust - Frontsheet'!I69:AC69<0))>0,"This row contains negative values",IF(AND(L60="This is a blank Row",COUNTBLANK(INDIRECT("L" & ROW() + 1 & ":L" & 206))>0),"No blank rows in the data",""))) ->  | F60: =IF(A60 = "","",IF('Trust - Frontsheet'!D69="", "Site code not present","")) ->  | G60: =IF('Trust - Frontsheet'!D69="","",IF(VLOOKUP(A60,'Trust - Frontsheet'!$A$16:$AC$215,6,0)="","Ward name not present","")) ->  | H60: =IF(A60="","",IF(VLOOKUP(A60,'Trust - Frontsheet'!$A$16:$AC$215,7,0)="","Specialty 1 has not been selected","")) ->  | I60: =IF(A60="","",IF(OR(COUNTIF(Specialties,VLOOKUP(A60,'Trust - Frontsheet'!$A$16:$AC$215,7,0))=0, AND(COUNTIF(Specialties,VLOOKUP(A60,'Trust - Frontsheet'!$A$16:$AC$215,8,0))=0,VLOOKUP(A60,'Trust - Frontsheet'!$A$16:$AC$215,8,0)<>"")),"You have entered unacceptable specialties.","")) ->  | J60: =IF(A60="","",IF(AND(RIGHT(VLOOKUP(A60,'Trust - Frontsheet'!$A$16:$AC$215,7,0),3)<>RIGHT(VLOOKUP(A60,'Trust - Frontsheet'!$A$16:$AC$215,8,0),3),VLOOKUP(A60,'Trust - Frontsheet'!$A$16:$AC$215,8,0)<>""),"Covid statuses do not match","")) ->  | L60: =IF(SUMPRODUCT(--('Trust - Frontsheet'!$D69:$AC69=""))<>26,"","This is a blank row") -> This is a blank row
A61: =IF('Trust - Frontsheet'!A70="","",'Trust - Frontsheet'!A70) ->  | B61: =IF('Trust - Frontsheet'!A70="","",'Trust - Frontsheet'!D70) ->  | C61: =IF(VLOOKUP(A61,'Trust - Frontsheet'!$A$16:$AC$215,5,0)="","",VLOOKUP(A61,'Trust - Frontsheet'!$A$16:$AC$216,5,0)) ->  | D61: =IF(VLOOKUP(A61,'Trust - Frontsheet'!$A$16:$AC$215,6,0)="","",VLOOKUP(A61,'Trust - Frontsheet'!$A$16:$AC$216,6,0)) ->  | E61: =IF(OR(SUMPRODUCT(--(ISTEXT('Trust - Frontsheet'!I70:AC70)))>0,SUMPRODUCT(--(ISERROR('Trust - Frontsheet'!AD70:AT70)))>0),"There is invalid data on this row",IF(SUMPRODUCT(--('Trust - Frontsheet'!I70:AC70<0))>0,"This row contains negative values",IF(AND(L61="This is a blank Row",COUNTBLANK(INDIRECT("L" & ROW() + 1 & ":L" & 206))>0),"No blank rows in the data",""))) ->  | F61: =IF(A61 = "","",IF('Trust - Frontsheet'!D70="", "Site code not present","")) ->  | G61: =IF('Trust - Frontsheet'!D70="","",IF(VLOOKUP(A61,'Trust - Frontsheet'!$A$16:$AC$215,6,0)="","Ward name not present","")) ->  | H61: =IF(A61="","",IF(VLOOKUP(A61,'Trust - Frontsheet'!$A$16:$AC$215,7,0)="","Specialty 1 has not been selected","")) ->  | I61: =IF(A61="","",IF(OR(COUNTIF(Specialties,VLOOKUP(A61,'Trust - Frontsheet'!$A$16:$AC$215,7,0))=0, AND(COUNTIF(Specialties,VLOOKUP(A61,'Trust - Frontsheet'!$A$16:$AC$215,8,0))=0,VLOOKUP(A61,'Trust - Frontsheet'!$A$16:$AC$215,8,0)<>"")),"You have entered unacceptable specialties.","")) ->  | J61: =IF(A61="","",IF(AND(RIGHT(VLOOKUP(A61,'Trust - Frontsheet'!$A$16:$AC$215,7,0),3)<>RIGHT(VLOOKUP(A61,'Trust - Frontsheet'!$A$16:$AC$215,8,0),3),VLOOKUP(A61,'Trust - Frontsheet'!$A$16:$AC$215,8,0)<>""),"Covid statuses do not match","")) ->  | L61: =IF(SUMPRODUCT(--('Trust - Frontsheet'!$D70:$AC70=""))<>26,"","This is a blank row") -> This is a blank row
A62: =IF('Trust - Frontsheet'!A71="","",'Trust - Frontsheet'!A71) ->  | B62: =IF('Trust - Frontsheet'!A71="","",'Trust - Frontsheet'!D71) ->  | C62: =IF(VLOOKUP(A62,'Trust - Frontsheet'!$A$16:$AC$215,5,0)="","",VLOOKUP(A62,'Trust - Frontsheet'!$A$16:$AC$216,5,0)) ->  | D62: =IF(VLOOKUP(A62,'Trust - Frontsheet'!$A$16:$AC$215,6,0)="","",VLOOKUP(A62,'Trust - Frontsheet'!$A$16:$AC$216,6,0)) ->  | E62: =IF(OR(SUMPRODUCT(--(ISTEXT('Trust - Frontsheet'!I71:AC71)))>0,SUMPRODUCT(--(ISERROR('Trust - Frontsheet'!AD71:AT71)))>0),"There is invalid data on this row",IF(SUMPRODUCT(--('Trust - Frontsheet'!I71:AC71<0))>0,"This row contains negative values",IF(AND(L62="This is a blank Row",COUNTBLANK(INDIRECT("L" & ROW() + 1 & ":L" & 206))>0),"No blank rows in the data",""))) ->  | F62: =IF(A62 = "","",IF('Trust - Frontsheet'!D71="", "Site code not present","")) ->  | G62: =IF('Trust - Frontsheet'!D71="","",IF(VLOOKUP(A62,'Trust - Frontsheet'!$A$16:$AC$215,6,0)="","Ward name not present","")) ->  | H62: =IF(A62="","",IF(VLOOKUP(A62,'Trust - Frontsheet'!$A$16:$AC$215,7,0)="","Specialty 1 has not been selected","")) ->  | I62: =IF(A62="","",IF(OR(COUNTIF(Specialties,VLOOKUP(A62,'Trust - Frontsheet'!$A$16:$AC$215,7,0))=0, AND(COUNTIF(Specialties,VLOOKUP(A62,'Trust - Frontsheet'!$A$16:$AC$215,8,0))=0,VLOOKUP(A62,'Trust - Frontsheet'!$A$16:$AC$215,8,0)<>"")),"You have entered unacceptable specialties.","")) ->  | J62: =IF(A62="","",IF(AND(RIGHT(VLOOKUP(A62,'Trust - Frontsheet'!$A$16:$AC$215,7,0),3)<>RIGHT(VLOOKUP(A62,'Trust - Frontsheet'!$A$16:$AC$215,8,0),3),VLOOKUP(A62,'Trust - Frontsheet'!$A$16:$AC$215,8,0)<>""),"Covid statuses do not match","")) ->  | L62: =IF(SUMPRODUCT(--('Trust - Frontsheet'!$D71:$AC71=""))<>26,"","This is a blank row") -> This is a blank row
A63: =IF('Trust - Frontsheet'!A72="","",'Trust - Frontsheet'!A72) ->  | B63: =IF('Trust - Frontsheet'!A72="","",'Trust - Frontsheet'!D72) ->  | C63: =IF(VLOOKUP(A63,'Trust - Frontsheet'!$A$16:$AC$215,5,0)="","",VLOOKUP(A63,'Trust - Frontsheet'!$A$16:$AC$216,5,0)) ->  | D63: =IF(VLOOKUP(A63,'Trust - Frontsheet'!$A$16:$AC$215,6,0)="","",VLOOKUP(A63,'Trust - Frontsheet'!$A$16:$AC$216,6,0)) ->  | E63: =IF(OR(SUMPRODUCT(--(ISTEXT('Trust - Frontsheet'!I72:AC72)))>0,SUMPRODUCT(--(ISERROR('Trust - Frontsheet'!AD72:AT72)))>0),"There is invalid data on this row",IF(SUMPRODUCT(--('Trust - Frontsheet'!I72:AC72<0))>0,"This row contains negative values",IF(AND(L63="This is a blank Row",COUNTBLANK(INDIRECT("L" & ROW() + 1 & ":L" & 206))>0),"No blank rows in the data",""))) ->  | F63: =IF(A63 = "","",IF('Trust - Frontsheet'!D72="", "Site code not present","")) ->  | G63: =IF('Trust - Frontsheet'!D72="","",IF(VLOOKUP(A63,'Trust - Frontsheet'!$A$16:$AC$215,6,0)="","Ward name not present","")) ->  | H63: =IF(A63="","",IF(VLOOKUP(A63,'Trust - Frontsheet'!$A$16:$AC$215,7,0)="","Specialty 1 has not been selected","")) ->  | I63: =IF(A63="","",IF(OR(COUNTIF(Specialties,VLOOKUP(A63,'Trust - Frontsheet'!$A$16:$AC$215,7,0))=0, AND(COUNTIF(Specialties,VLOOKUP(A63,'Trust - Frontsheet'!$A$16:$AC$215,8,0))=0,VLOOKUP(A63,'Trust - Frontsheet'!$A$16:$AC$215,8,0)<>"")),"You have entered unacceptable specialties.","")) ->  | J63: =IF(A63="","",IF(AND(RIGHT(VLOOKUP(A63,'Trust - Frontsheet'!$A$16:$AC$215,7,0),3)<>RIGHT(VLOOKUP(A63,'Trust - Frontsheet'!$A$16:$AC$215,8,0),3),VLOOKUP(A63,'Trust - Frontsheet'!$A$16:$AC$215,8,0)<>""),"Covid statuses do not match","")) ->  | L63: =IF(SUMPRODUCT(--('Trust - Frontsheet'!$D72:$AC72=""))<>26,"","This is a blank row") -> This is a blank row
A64: =IF('Trust - Frontsheet'!A73="","",'Trust - Frontsheet'!A73) ->  | B64: =IF('Trust - Frontsheet'!A73="","",'Trust - Frontsheet'!D73) ->  | C64: =IF(VLOOKUP(A64,'Trust - Frontsheet'!$A$16:$AC$215,5,0)="","",VLOOKUP(A64,'Trust - Frontsheet'!$A$16:$AC$216,5,0)) ->  | D64: =IF(VLOOKUP(A64,'Trust - Frontsheet'!$A$16:$AC$215,6,0)="","",VLOOKUP(A64,'Trust - Frontsheet'!$A$16:$AC$216,6,0)) ->  | E64: =IF(OR(SUMPRODUCT(--(ISTEXT('Trust - Frontsheet'!I73:AC73)))>0,SUMPRODUCT(--(ISERROR('Trust - Frontsheet'!AD73:AT73)))>0),"There is invalid data on this row",IF(SUMPRODUCT(--('Trust - Frontsheet'!I73:AC73<0))>0,"This row contains negative values",IF(AND(L64="This is a blank Row",COUNTBLANK(INDIRECT("L" & ROW() + 1 & ":L" & 206))>0),"No blank rows in the data",""))) ->  | F64: =IF(A64 = "","",IF('Trust - Frontsheet'!D73="", "Site code not present","")) ->  | G64: =IF('Trust - Frontsheet'!D73="","",IF(VLOOKUP(A64,'Trust - Frontsheet'!$A$16:$AC$215,6,0)="","Ward name not present","")) ->  | H64: =IF(A64="","",IF(VLOOKUP(A64,'Trust - Frontsheet'!$A$16:$AC$215,7,0)="","Specialty 1 has not been selected","")) ->  | I64: =IF(A64="","",IF(OR(COUNTIF(Specialties,VLOOKUP(A64,'Trust - Frontsheet'!$A$16:$AC$215,7,0))=0, AND(COUNTIF(Specialties,VLOOKUP(A64,'Trust - Frontsheet'!$A$16:$AC$215,8,0))=0,VLOOKUP(A64,'Trust - Frontsheet'!$A$16:$AC$215,8,0)<>"")),"You have entered unacceptable specialties.","")) ->  | J64: =IF(A64="","",IF(AND(RIGHT(VLOOKUP(A64,'Trust - Frontsheet'!$A$16:$AC$215,7,0),3)<>RIGHT(VLOOKUP(A64,'Trust - Frontsheet'!$A$16:$AC$215,8,0),3),VLOOKUP(A64,'Trust - Frontsheet'!$A$16:$AC$215,8,0)<>""),"Covid statuses do not match","")) ->  | L64: =IF(SUMPRODUCT(--('Trust - Frontsheet'!$D73:$AC73=""))<>26,"","This is a blank row") -> This is a blank row
A65: =IF('Trust - Frontsheet'!A74="","",'Trust - Frontsheet'!A74) ->  | B65: =IF('Trust - Frontsheet'!A74="","",'Trust - Frontsheet'!D74) ->  | C65: =IF(VLOOKUP(A65,'Trust - Frontsheet'!$A$16:$AC$215,5,0)="","",VLOOKUP(A65,'Trust - Frontsheet'!$A$16:$AC$216,5,0)) ->  | D65: =IF(VLOOKUP(A65,'Trust - Frontsheet'!$A$16:$AC$215,6,0)="","",VLOOKUP(A65,'Trust - Frontsheet'!$A$16:$AC$216,6,0)) ->  | E65: =IF(OR(SUMPRODUCT(--(ISTEXT('Trust - Frontsheet'!I74:AC74)))>0,SUMPRODUCT(--(ISERROR('Trust - Frontsheet'!AD74:AT74)))>0),"There is invalid data on this row",IF(SUMPRODUCT(--('Trust - Frontsheet'!I74:AC74<0))>0,"This row contains negative values",IF(AND(L65="This is a blank Row",COUNTBLANK(INDIRECT("L" & ROW() + 1 & ":L" & 206))>0),"No blank rows in the data",""))) ->  | F65: =IF(A65 = "","",IF('Trust - Frontsheet'!D74="", "Site code not present","")) ->  | G65: =IF('Trust - Frontsheet'!D74="","",IF(VLOOKUP(A65,'Trust - Frontsheet'!$A$16:$AC$215,6,0)="","Ward name not present","")) ->  | H65: =IF(A65="","",IF(VLOOKUP(A65,'Trust - Frontsheet'!$A$16:$AC$215,7,0)="","Specialty 1 has not been selected","")) ->  | I65: =IF(A65="","",IF(OR(COUNTIF(Specialties,VLOOKUP(A65,'Trust - Frontsheet'!$A$16:$AC$215,7,0))=0, AND(COUNTIF(Specialties,VLOOKUP(A65,'Trust - Frontsheet'!$A$16:$AC$215,8,0))=0,VLOOKUP(A65,'Trust - Frontsheet'!$A$16:$AC$215,8,0)<>"")),"You have entered unacceptable specialties.","")) ->  | J65: =IF(A65="","",IF(AND(RIGHT(VLOOKUP(A65,'Trust - Frontsheet'!$A$16:$AC$215,7,0),3)<>RIGHT(VLOOKUP(A65,'Trust - Frontsheet'!$A$16:$AC$215,8,0),3),VLOOKUP(A65,'Trust - Frontsheet'!$A$16:$AC$215,8,0)<>""),"Covid statuses do not match","")) ->  | L65: =IF(SUMPRODUCT(--('Trust - Frontsheet'!$D74:$AC74=""))<>26,"","This is a blank row") -> This is a blank row
A66: =IF('Trust - Frontsheet'!A75="","",'Trust - Frontsheet'!A75) ->  | B66: =IF('Trust - Frontsheet'!A75="","",'Trust - Frontsheet'!D75) ->  | C66: =IF(VLOOKUP(A66,'Trust - Frontsheet'!$A$16:$AC$215,5,0)="","",VLOOKUP(A66,'Trust - Frontsheet'!$A$16:$AC$216,5,0)) ->  | D66: =IF(VLOOKUP(A66,'Trust - Frontsheet'!$A$16:$AC$215,6,0)="","",VLOOKUP(A66,'Trust - Frontsheet'!$A$16:$AC$216,6,0)) ->  | E66: =IF(OR(SUMPRODUCT(--(ISTEXT('Trust - Frontsheet'!I75:AC75)))>0,SUMPRODUCT(--(ISERROR('Trust - Frontsheet'!AD75:AT75)))>0),"There is invalid data on this row",IF(SUMPRODUCT(--('Trust - Frontsheet'!I75:AC75<0))>0,"This row contains negative values",IF(AND(L66="This is a blank Row",COUNTBLANK(INDIRECT("L" & ROW() + 1 & ":L" & 206))>0),"No blank rows in the data",""))) ->  | F66: =IF(A66 = "","",IF('Trust - Frontsheet'!D75="", "Site code not present","")) ->  | G66: =IF('Trust - Frontsheet'!D75="","",IF(VLOOKUP(A66,'Trust - Frontsheet'!$A$16:$AC$215,6,0)="","Ward name not present","")) ->  | H66: =IF(A66="","",IF(VLOOKUP(A66,'Trust - Frontsheet'!$A$16:$AC$215,7,0)="","Specialty 1 has not been selected","")) ->  | I66: =IF(A66="","",IF(OR(COUNTIF(Specialties,VLOOKUP(A66,'Trust - Frontsheet'!$A$16:$AC$215,7,0))=0, AND(COUNTIF(Specialties,VLOOKUP(A66,'Trust - Frontsheet'!$A$16:$AC$215,8,0))=0,VLOOKUP(A66,'Trust - Frontsheet'!$A$16:$AC$215,8,0)<>"")),"You have entered unacceptable specialties.","")) ->  | J66: =IF(A66="","",IF(AND(RIGHT(VLOOKUP(A66,'Trust - Frontsheet'!$A$16:$AC$215,7,0),3)<>RIGHT(VLOOKUP(A66,'Trust - Frontsheet'!$A$16:$AC$215,8,0),3),VLOOKUP(A66,'Trust - Frontsheet'!$A$16:$AC$215,8,0)<>""),"Covid statuses do not match","")) ->  | L66: =IF(SUMPRODUCT(--('Trust - Frontsheet'!$D75:$AC75=""))<>26,"","This is a blank row") -> This is a blank row
A67: =IF('Trust - Frontsheet'!A76="","",'Trust - Frontsheet'!A76) ->  | B67: =IF('Trust - Frontsheet'!A76="","",'Trust - Frontsheet'!D76) ->  | C67: =IF(VLOOKUP(A67,'Trust - Frontsheet'!$A$16:$AC$215,5,0)="","",VLOOKUP(A67,'Trust - Frontsheet'!$A$16:$AC$216,5,0)) ->  | D67: =IF(VLOOKUP(A67,'Trust - Frontsheet'!$A$16:$AC$215,6,0)="","",VLOOKUP(A67,'Trust - Frontsheet'!$A$16:$AC$216,6,0)) ->  | E67: =IF(OR(SUMPRODUCT(--(ISTEXT('Trust - Frontsheet'!I76:AC76)))>0,SUMPRODUCT(--(ISERROR('Trust - Frontsheet'!AD76:AT76)))>0),"There is invalid data on this row",IF(SUMPRODUCT(--('Trust - Frontsheet'!I76:AC76<0))>0,"This row contains negative values",IF(AND(L67="This is a blank Row",COUNTBLANK(INDIRECT("L" & ROW() + 1 & ":L" & 206))>0),"No blank rows in the data",""))) ->  | F67: =IF(A67 = "","",IF('Trust - Frontsheet'!D76="", "Site code not present","")) ->  | G67: =IF('Trust - Frontsheet'!D76="","",IF(VLOOKUP(A67,'Trust - Frontsheet'!$A$16:$AC$215,6,0)="","Ward name not present","")) ->  | H67: =IF(A67="","",IF(VLOOKUP(A67,'Trust - Frontsheet'!$A$16:$AC$215,7,0)="","Specialty 1 has not been selected","")) ->  | I67: =IF(A67="","",IF(OR(COUNTIF(Specialties,VLOOKUP(A67,'Trust - Frontsheet'!$A$16:$AC$215,7,0))=0, AND(COUNTIF(Specialties,VLOOKUP(A67,'Trust - Frontsheet'!$A$16:$AC$215,8,0))=0,VLOOKUP(A67,'Trust - Frontsheet'!$A$16:$AC$215,8,0)<>"")),"You have entered unacceptable specialties.","")) ->  | J67: =IF(A67="","",IF(AND(RIGHT(VLOOKUP(A67,'Trust - Frontsheet'!$A$16:$AC$215,7,0),3)<>RIGHT(VLOOKUP(A67,'Trust - Frontsheet'!$A$16:$AC$215,8,0),3),VLOOKUP(A67,'Trust - Frontsheet'!$A$16:$AC$215,8,0)<>""),"Covid statuses do not match","")) ->  | L67: =IF(SUMPRODUCT(--('Trust - Frontsheet'!$D76:$AC76=""))<>26,"","This is a blank row") -> This is a blank row
A68: =IF('Trust - Frontsheet'!A77="","",'Trust - Frontsheet'!A77) ->  | B68: =IF('Trust - Frontsheet'!A77="","",'Trust - Frontsheet'!D77) ->  | C68: =IF(VLOOKUP(A68,'Trust - Frontsheet'!$A$16:$AC$215,5,0)="","",VLOOKUP(A68,'Trust - Frontsheet'!$A$16:$AC$216,5,0)) ->  | D68: =IF(VLOOKUP(A68,'Trust - Frontsheet'!$A$16:$AC$215,6,0)="","",VLOOKUP(A68,'Trust - Frontsheet'!$A$16:$AC$216,6,0)) ->  | E68: =IF(OR(SUMPRODUCT(--(ISTEXT('Trust - Frontsheet'!I77:AC77)))>0,SUMPRODUCT(--(ISERROR('Trust - Frontsheet'!AD77:AT77)))>0),"There is invalid data on this row",IF(SUMPRODUCT(--('Trust - Frontsheet'!I77:AC77<0))>0,"This row contains negative values",IF(AND(L68="This is a blank Row",COUNTBLANK(INDIRECT("L" & ROW() + 1 & ":L" & 206))>0),"No blank rows in the data",""))) ->  | F68: =IF(A68 = "","",IF('Trust - Frontsheet'!D77="", "Site code not present","")) ->  | G68: =IF('Trust - Frontsheet'!D77="","",IF(VLOOKUP(A68,'Trust - Frontsheet'!$A$16:$AC$215,6,0)="","Ward name not present","")) ->  | H68: =IF(A68="","",IF(VLOOKUP(A68,'Trust - Frontsheet'!$A$16:$AC$215,7,0)="","Specialty 1 has not been selected","")) ->  | I68: =IF(A68="","",IF(OR(COUNTIF(Specialties,VLOOKUP(A68,'Trust - Frontsheet'!$A$16:$AC$215,7,0))=0, AND(COUNTIF(Specialties,VLOOKUP(A68,'Trust - Frontsheet'!$A$16:$AC$215,8,0))=0,VLOOKUP(A68,'Trust - Frontsheet'!$A$16:$AC$215,8,0)<>"")),"You have entered unacceptable specialties.","")) ->  | J68: =IF(A68="","",IF(AND(RIGHT(VLOOKUP(A68,'Trust - Frontsheet'!$A$16:$AC$215,7,0),3)<>RIGHT(VLOOKUP(A68,'Trust - Frontsheet'!$A$16:$AC$215,8,0),3),VLOOKUP(A68,'Trust - Frontsheet'!$A$16:$AC$215,8,0)<>""),"Covid statuses do not match","")) ->  | L68: =IF(SUMPRODUCT(--('Trust - Frontsheet'!$D77:$AC77=""))<>26,"","This is a blank row") -> This is a blank row
A69: =IF('Trust - Frontsheet'!A78="","",'Trust - Frontsheet'!A78) ->  | B69: =IF('Trust - Frontsheet'!A78="","",'Trust - Frontsheet'!D78) ->  | C69: =IF(VLOOKUP(A69,'Trust - Frontsheet'!$A$16:$AC$215,5,0)="","",VLOOKUP(A69,'Trust - Frontsheet'!$A$16:$AC$216,5,0)) ->  | D69: =IF(VLOOKUP(A69,'Trust - Frontsheet'!$A$16:$AC$215,6,0)="","",VLOOKUP(A69,'Trust - Frontsheet'!$A$16:$AC$216,6,0)) ->  | E69: =IF(OR(SUMPRODUCT(--(ISTEXT('Trust - Frontsheet'!I78:AC78)))>0,SUMPRODUCT(--(ISERROR('Trust - Frontsheet'!AD78:AT78)))>0),"There is invalid data on this row",IF(SUMPRODUCT(--('Trust - Frontsheet'!I78:AC78<0))>0,"This row contains negative values",IF(AND(L69="This is a blank Row",COUNTBLANK(INDIRECT("L" & ROW() + 1 & ":L" & 206))>0),"No blank rows in the data",""))) ->  | F69: =IF(A69 = "","",IF('Trust - Frontsheet'!D78="", "Site code not present","")) ->  | G69: =IF('Trust - Frontsheet'!D78="","",IF(VLOOKUP(A69,'Trust - Frontsheet'!$A$16:$AC$215,6,0)="","Ward name not present","")) ->  | H69: =IF(A69="","",IF(VLOOKUP(A69,'Trust - Frontsheet'!$A$16:$AC$215,7,0)="","Specialty 1 has not been selected","")) ->  | I69: =IF(A69="","",IF(OR(COUNTIF(Specialties,VLOOKUP(A69,'Trust - Frontsheet'!$A$16:$AC$215,7,0))=0, AND(COUNTIF(Specialties,VLOOKUP(A69,'Trust - Frontsheet'!$A$16:$AC$215,8,0))=0,VLOOKUP(A69,'Trust - Frontsheet'!$A$16:$AC$215,8,0)<>"")),"You have entered unacceptable specialties.","")) ->  | J69: =IF(A69="","",IF(AND(RIGHT(VLOOKUP(A69,'Trust - Frontsheet'!$A$16:$AC$215,7,0),3)<>RIGHT(VLOOKUP(A69,'Trust - Frontsheet'!$A$16:$AC$215,8,0),3),VLOOKUP(A69,'Trust - Frontsheet'!$A$16:$AC$215,8,0)<>""),"Covid statuses do not match","")) ->  | L69: =IF(SUMPRODUCT(--('Trust - Frontsheet'!$D78:$AC78=""))<>26,"","This is a blank row") -> This is a blank row
A70: =IF('Trust - Frontsheet'!A79="","",'Trust - Frontsheet'!A79) ->  | B70: =IF('Trust - Frontsheet'!A79="","",'Trust - Frontsheet'!D79) ->  | C70: =IF(VLOOKUP(A70,'Trust - Frontsheet'!$A$16:$AC$215,5,0)="","",VLOOKUP(A70,'Trust - Frontsheet'!$A$16:$AC$216,5,0)) ->  | D70: =IF(VLOOKUP(A70,'Trust - Frontsheet'!$A$16:$AC$215,6,0)="","",VLOOKUP(A70,'Trust - Frontsheet'!$A$16:$AC$216,6,0)) ->  | E70: =IF(OR(SUMPRODUCT(--(ISTEXT('Trust - Frontsheet'!I79:AC79)))>0,SUMPRODUCT(--(ISERROR('Trust - Frontsheet'!AD79:AT79)))>0),"There is invalid data on this row",IF(SUMPRODUCT(--('Trust - Frontsheet'!I79:AC79<0))>0,"This row contains negative values",IF(AND(L70="This is a blank Row",COUNTBLANK(INDIRECT("L" & ROW() + 1 & ":L" & 206))>0),"No blank rows in the data",""))) ->  | F70: =IF(A70 = "","",IF('Trust - Frontsheet'!D79="", "Site code not present","")) ->  | G70: =IF('Trust - Frontsheet'!D79="","",IF(VLOOKUP(A70,'Trust - Frontsheet'!$A$16:$AC$215,6,0)="","Ward name not present","")) ->  | H70: =IF(A70="","",IF(VLOOKUP(A70,'Trust - Frontsheet'!$A$16:$AC$215,7,0)="","Specialty 1 has not been selected","")) ->  | I70: =IF(A70="","",IF(OR(COUNTIF(Specialties,VLOOKUP(A70,'Trust - Frontsheet'!$A$16:$AC$215,7,0))=0, AND(COUNTIF(Specialties,VLOOKUP(A70,'Trust - Frontsheet'!$A$16:$AC$215,8,0))=0,VLOOKUP(A70,'Trust - Frontsheet'!$A$16:$AC$215,8,0)<>"")),"You have entered unacceptable specialties.","")) ->  | J70: =IF(A70="","",IF(AND(RIGHT(VLOOKUP(A70,'Trust - Frontsheet'!$A$16:$AC$215,7,0),3)<>RIGHT(VLOOKUP(A70,'Trust - Frontsheet'!$A$16:$AC$215,8,0),3),VLOOKUP(A70,'Trust - Frontsheet'!$A$16:$AC$215,8,0)<>""),"Covid statuses do not match","")) ->  | L70: =IF(SUMPRODUCT(--('Trust - Frontsheet'!$D79:$AC79=""))<>26,"","This is a blank row") -> This is a blank row
A71: =IF('Trust - Frontsheet'!A80="","",'Trust - Frontsheet'!A80) ->  | B71: =IF('Trust - Frontsheet'!A80="","",'Trust - Frontsheet'!D80) ->  | C71: =IF(VLOOKUP(A71,'Trust - Frontsheet'!$A$16:$AC$215,5,0)="","",VLOOKUP(A71,'Trust - Frontsheet'!$A$16:$AC$216,5,0)) ->  | D71: =IF(VLOOKUP(A71,'Trust - Frontsheet'!$A$16:$AC$215,6,0)="","",VLOOKUP(A71,'Trust - Frontsheet'!$A$16:$AC$216,6,0)) ->  | E71: =IF(OR(SUMPRODUCT(--(ISTEXT('Trust - Frontsheet'!I80:AC80)))>0,SUMPRODUCT(--(ISERROR('Trust - Frontsheet'!AD80:AT80)))>0),"There is invalid data on this row",IF(SUMPRODUCT(--('Trust - Frontsheet'!I80:AC80<0))>0,"This row contains negative values",IF(AND(L71="This is a blank Row",COUNTBLANK(INDIRECT("L" & ROW() + 1 & ":L" & 206))>0),"No blank rows in the data",""))) ->  | F71: =IF(A71 = "","",IF('Trust - Frontsheet'!D80="", "Site code not present","")) ->  | G71: =IF('Trust - Frontsheet'!D80="","",IF(VLOOKUP(A71,'Trust - Frontsheet'!$A$16:$AC$215,6,0)="","Ward name not present","")) ->  | H71: =IF(A71="","",IF(VLOOKUP(A71,'Trust - Frontsheet'!$A$16:$AC$215,7,0)="","Specialty 1 has not been selected","")) ->  | I71: =IF(A71="","",IF(OR(COUNTIF(Specialties,VLOOKUP(A71,'Trust - Frontsheet'!$A$16:$AC$215,7,0))=0, AND(COUNTIF(Specialties,VLOOKUP(A71,'Trust - Frontsheet'!$A$16:$AC$215,8,0))=0,VLOOKUP(A71,'Trust - Frontsheet'!$A$16:$AC$215,8,0)<>"")),"You have entered unacceptable specialties.","")) ->  | J71: =IF(A71="","",IF(AND(RIGHT(VLOOKUP(A71,'Trust - Frontsheet'!$A$16:$AC$215,7,0),3)<>RIGHT(VLOOKUP(A71,'Trust - Frontsheet'!$A$16:$AC$215,8,0),3),VLOOKUP(A71,'Trust - Frontsheet'!$A$16:$AC$215,8,0)<>""),"Covid statuses do not match","")) ->  | L71: =IF(SUMPRODUCT(--('Trust - Frontsheet'!$D80:$AC80=""))<>26,"","This is a blank row") -> This is a blank row
A72: =IF('Trust - Frontsheet'!A81="","",'Trust - Frontsheet'!A81) ->  | B72: =IF('Trust - Frontsheet'!A81="","",'Trust - Frontsheet'!D81) ->  | C72: =IF(VLOOKUP(A72,'Trust - Frontsheet'!$A$16:$AC$215,5,0)="","",VLOOKUP(A72,'Trust - Frontsheet'!$A$16:$AC$216,5,0)) ->  | D72: =IF(VLOOKUP(A72,'Trust - Frontsheet'!$A$16:$AC$215,6,0)="","",VLOOKUP(A72,'Trust - Frontsheet'!$A$16:$AC$216,6,0)) ->  | E72: =IF(OR(SUMPRODUCT(--(ISTEXT('Trust - Frontsheet'!I81:AC81)))>0,SUMPRODUCT(--(ISERROR('Trust - Frontsheet'!AD81:AT81)))>0),"There is invalid data on this row",IF(SUMPRODUCT(--('Trust - Frontsheet'!I81:AC81<0))>0,"This row contains negative values",IF(AND(L72="This is a blank Row",COUNTBLANK(INDIRECT("L" & ROW() + 1 & ":L" & 206))>0),"No blank rows in the data",""))) ->  | F72: =IF(A72 = "","",IF('Trust - Frontsheet'!D81="", "Site code not present","")) ->  | G72: =IF('Trust - Frontsheet'!D81="","",IF(VLOOKUP(A72,'Trust - Frontsheet'!$A$16:$AC$215,6,0)="","Ward name not present","")) ->  | H72: =IF(A72="","",IF(VLOOKUP(A72,'Trust - Frontsheet'!$A$16:$AC$215,7,0)="","Specialty 1 has not been selected","")) ->  | I72: =IF(A72="","",IF(OR(COUNTIF(Specialties,VLOOKUP(A72,'Trust - Frontsheet'!$A$16:$AC$215,7,0))=0, AND(COUNTIF(Specialties,VLOOKUP(A72,'Trust - Frontsheet'!$A$16:$AC$215,8,0))=0,VLOOKUP(A72,'Trust - Frontsheet'!$A$16:$AC$215,8,0)<>"")),"You have entered unacceptable specialties.","")) ->  | J72: =IF(A72="","",IF(AND(RIGHT(VLOOKUP(A72,'Trust - Frontsheet'!$A$16:$AC$215,7,0),3)<>RIGHT(VLOOKUP(A72,'Trust - Frontsheet'!$A$16:$AC$215,8,0),3),VLOOKUP(A72,'Trust - Frontsheet'!$A$16:$AC$215,8,0)<>""),"Covid statuses do not match","")) ->  | K72: =IF(A72="","",IF(COUNTIF($A$7:$A$206,A72)>1,"You have entered a duplicate site-ward pair","")) ->  | L72: =IF(SUMPRODUCT(--('Trust - Frontsheet'!$D81:$AC81=""))<>26,"","This is a blank row") -> This is a blank row
A73: =IF('Trust - Frontsheet'!A82="","",'Trust - Frontsheet'!A82) ->  | B73: =IF('Trust - Frontsheet'!A82="","",'Trust - Frontsheet'!D82) ->  | C73: =IF(VLOOKUP(A73,'Trust - Frontsheet'!$A$16:$AC$215,5,0)="","",VLOOKUP(A73,'Trust - Frontsheet'!$A$16:$AC$216,5,0)) ->  | D73: =IF(VLOOKUP(A73,'Trust - Frontsheet'!$A$16:$AC$215,6,0)="","",VLOOKUP(A73,'Trust - Frontsheet'!$A$16:$AC$216,6,0)) ->  | E73: =IF(OR(SUMPRODUCT(--(ISTEXT('Trust - Frontsheet'!I82:AC82)))>0,SUMPRODUCT(--(ISERROR('Trust - Frontsheet'!AD82:AT82)))>0),"There is invalid data on this row",IF(SUMPRODUCT(--('Trust - Frontsheet'!I82:AC82<0))>0,"This row contains negative values",IF(AND(L73="This is a blank Row",COUNTBLANK(INDIRECT("L" & ROW() + 1 & ":L" & 206))>0),"No blank rows in the data",""))) ->  | F73: =IF(A73 = "","",IF('Trust - Frontsheet'!D82="", "Site code not present","")) ->  | G73: =IF('Trust - Frontsheet'!D82="","",IF(VLOOKUP(A73,'Trust - Frontsheet'!$A$16:$AC$215,6,0)="","Ward name not present","")) ->  | H73: =IF(A73="","",IF(VLOOKUP(A73,'Trust - Frontsheet'!$A$16:$AC$215,7,0)="","Specialty 1 has not been selected","")) ->  | I73: =IF(A73="","",IF(OR(COUNTIF(Specialties,VLOOKUP(A73,'Trust - Frontsheet'!$A$16:$AC$215,7,0))=0, AND(COUNTIF(Specialties,VLOOKUP(A73,'Trust - Frontsheet'!$A$16:$AC$215,8,0))=0,VLOOKUP(A73,'Trust - Frontsheet'!$A$16:$AC$215,8,0)<>"")),"You have entered unacceptable specialties.","")) ->  | J73: =IF(A73="","",IF(AND(RIGHT(VLOOKUP(A73,'Trust - Frontsheet'!$A$16:$AC$215,7,0),3)<>RIGHT(VLOOKUP(A73,'Trust - Frontsheet'!$A$16:$AC$215,8,0),3),VLOOKUP(A73,'Trust - Frontsheet'!$A$16:$AC$215,8,0)<>""),"Covid statuses do not match","")) ->  | L73: =IF(SUMPRODUCT(--('Trust - Frontsheet'!$D82:$AC82=""))<>26,"","This is a blank row") -> This is a blank row
A74: =IF('Trust - Frontsheet'!A83="","",'Trust - Frontsheet'!A83) ->  | B74: =IF('Trust - Frontsheet'!A83="","",'Trust - Frontsheet'!D83) ->  | C74: =IF(VLOOKUP(A74,'Trust - Frontsheet'!$A$16:$AC$215,5,0)="","",VLOOKUP(A74,'Trust - Frontsheet'!$A$16:$AC$216,5,0)) ->  | D74: =IF(VLOOKUP(A74,'Trust - Frontsheet'!$A$16:$AC$215,6,0)="","",VLOOKUP(A74,'Trust - Frontsheet'!$A$16:$AC$216,6,0)) ->  | E74: =IF(OR(SUMPRODUCT(--(ISTEXT('Trust - Frontsheet'!I83:AC83)))>0,SUMPRODUCT(--(ISERROR('Trust - Frontsheet'!AD83:AT83)))>0),"There is invalid data on this row",IF(SUMPRODUCT(--('Trust - Frontsheet'!I83:AC83<0))>0,"This row contains negative values",IF(AND(L74="This is a blank Row",COUNTBLANK(INDIRECT("L" & ROW() + 1 & ":L" & 206))>0),"No blank rows in the data",""))) ->  | F74: =IF(A74 = "","",IF('Trust - Frontsheet'!D83="", "Site code not present","")) ->  | G74: =IF('Trust - Frontsheet'!D83="","",IF(VLOOKUP(A74,'Trust - Frontsheet'!$A$16:$AC$215,6,0)="","Ward name not present","")) ->  | H74: =IF(A74="","",IF(VLOOKUP(A74,'Trust - Frontsheet'!$A$16:$AC$215,7,0)="","Specialty 1 has not been selected","")) ->  | I74: =IF(A74="","",IF(OR(COUNTIF(Specialties,VLOOKUP(A74,'Trust - Frontsheet'!$A$16:$AC$215,7,0))=0, AND(COUNTIF(Specialties,VLOOKUP(A74,'Trust - Frontsheet'!$A$16:$AC$215,8,0))=0,VLOOKUP(A74,'Trust - Frontsheet'!$A$16:$AC$215,8,0)<>"")),"You have entered unacceptable specialties.","")) ->  | J74: =IF(A74="","",IF(AND(RIGHT(VLOOKUP(A74,'Trust - Frontsheet'!$A$16:$AC$215,7,0),3)<>RIGHT(VLOOKUP(A74,'Trust - Frontsheet'!$A$16:$AC$215,8,0),3),VLOOKUP(A74,'Trust - Frontsheet'!$A$16:$AC$215,8,0)<>""),"Covid statuses do not match","")) ->  | L74: =IF(SUMPRODUCT(--('Trust - Frontsheet'!$D83:$AC83=""))<>26,"","This is a blank row") -> This is a blank row
A75: =IF('Trust - Frontsheet'!A84="","",'Trust - Frontsheet'!A84) ->  | B75: =IF('Trust - Frontsheet'!A84="","",'Trust - Frontsheet'!D84) ->  | C75: =IF(VLOOKUP(A75,'Trust - Frontsheet'!$A$16:$AC$215,5,0)="","",VLOOKUP(A75,'Trust - Frontsheet'!$A$16:$AC$216,5,0)) ->  | D75: =IF(VLOOKUP(A75,'Trust - Frontsheet'!$A$16:$AC$215,6,0)="","",VLOOKUP(A75,'Trust - Frontsheet'!$A$16:$AC$216,6,0)) ->  | E75: =IF(OR(SUMPRODUCT(--(ISTEXT('Trust - Frontsheet'!I84:AC84)))>0,SUMPRODUCT(--(ISERROR('Trust - Frontsheet'!AD84:AT84)))>0),"There is invalid data on this row",IF(SUMPRODUCT(--('Trust - Frontsheet'!I84:AC84<0))>0,"This row contains negative values",IF(AND(L75="This is a blank Row",COUNTBLANK(INDIRECT("L" & ROW() + 1 & ":L" & 206))>0),"No blank rows in the data",""))) ->  | F75: =IF(A75 = "","",IF('Trust - Frontsheet'!D84="", "Site code not present","")) ->  | G75: =IF('Trust - Frontsheet'!D84="","",IF(VLOOKUP(A75,'Trust - Frontsheet'!$A$16:$AC$215,6,0)="","Ward name not present","")) ->  | H75: =IF(A75="","",IF(VLOOKUP(A75,'Trust - Frontsheet'!$A$16:$AC$215,7,0)="","Specialty 1 has not been selected","")) ->  | I75: =IF(A75="","",IF(OR(COUNTIF(Specialties,VLOOKUP(A75,'Trust - Frontsheet'!$A$16:$AC$215,7,0))=0, AND(COUNTIF(Specialties,VLOOKUP(A75,'Trust - Frontsheet'!$A$16:$AC$215,8,0))=0,VLOOKUP(A75,'Trust - Frontsheet'!$A$16:$AC$215,8,0)<>"")),"You have entered unacceptable specialties.","")) ->  | J75: =IF(A75="","",IF(AND(RIGHT(VLOOKUP(A75,'Trust - Frontsheet'!$A$16:$AC$215,7,0),3)<>RIGHT(VLOOKUP(A75,'Trust - Frontsheet'!$A$16:$AC$215,8,0),3),VLOOKUP(A75,'Trust - Frontsheet'!$A$16:$AC$215,8,0)<>""),"Covid statuses do not match","")) ->  | L75: =IF(SUMPRODUCT(--('Trust - Frontsheet'!$D84:$AC84=""))<>26,"","This is a blank row") -> This is a blank row
A76: =IF('Trust - Frontsheet'!A85="","",'Trust - Frontsheet'!A85) ->  | B76: =IF('Trust - Frontsheet'!A85="","",'Trust - Frontsheet'!D85) ->  | C76: =IF(VLOOKUP(A76,'Trust - Frontsheet'!$A$16:$AC$215,5,0)="","",VLOOKUP(A76,'Trust - Frontsheet'!$A$16:$AC$216,5,0)) ->  | D76: =IF(VLOOKUP(A76,'Trust - Frontsheet'!$A$16:$AC$215,6,0)="","",VLOOKUP(A76,'Trust - Frontsheet'!$A$16:$AC$216,6,0)) ->  | E76: =IF(OR(SUMPRODUCT(--(ISTEXT('Trust - Frontsheet'!I85:AC85)))>0,SUMPRODUCT(--(ISERROR('Trust - Frontsheet'!AD85:AT85)))>0),"There is invalid data on this row",IF(SUMPRODUCT(--('Trust - Frontsheet'!I85:AC85<0))>0,"This row contains negative values",IF(AND(L76="This is a blank Row",COUNTBLANK(INDIRECT("L" & ROW() + 1 & ":L" & 206))>0),"No blank rows in the data",""))) ->  | F76: =IF(A76 = "","",IF('Trust - Frontsheet'!D85="", "Site code not present","")) ->  | G76: =IF('Trust - Frontsheet'!D85="","",IF(VLOOKUP(A76,'Trust - Frontsheet'!$A$16:$AC$215,6,0)="","Ward name not present","")) ->  | H76: =IF(A76="","",IF(VLOOKUP(A76,'Trust - Frontsheet'!$A$16:$AC$215,7,0)="","Specialty 1 has not been selected","")) ->  | I76: =IF(A76="","",IF(OR(COUNTIF(Specialties,VLOOKUP(A76,'Trust - Frontsheet'!$A$16:$AC$215,7,0))=0, AND(COUNTIF(Specialties,VLOOKUP(A76,'Trust - Frontsheet'!$A$16:$AC$215,8,0))=0,VLOOKUP(A76,'Trust - Frontsheet'!$A$16:$AC$215,8,0)<>"")),"You have entered unacceptable specialties.","")) ->  | J76: =IF(A76="","",IF(AND(RIGHT(VLOOKUP(A76,'Trust - Frontsheet'!$A$16:$AC$215,7,0),3)<>RIGHT(VLOOKUP(A76,'Trust - Frontsheet'!$A$16:$AC$215,8,0),3),VLOOKUP(A76,'Trust - Frontsheet'!$A$16:$AC$215,8,0)<>""),"Covid statuses do not match","")) ->  | L76: =IF(SUMPRODUCT(--('Trust - Frontsheet'!$D85:$AC85=""))<>26,"","This is a blank row") -> This is a blank row
A77: =IF('Trust - Frontsheet'!A86="","",'Trust - Frontsheet'!A86) ->  | B77: =IF('Trust - Frontsheet'!A86="","",'Trust - Frontsheet'!D86) ->  | C77: =IF(VLOOKUP(A77,'Trust - Frontsheet'!$A$16:$AC$215,5,0)="","",VLOOKUP(A77,'Trust - Frontsheet'!$A$16:$AC$216,5,0)) ->  | D77: =IF(VLOOKUP(A77,'Trust - Frontsheet'!$A$16:$AC$215,6,0)="","",VLOOKUP(A77,'Trust - Frontsheet'!$A$16:$AC$216,6,0)) ->  | E77: =IF(OR(SUMPRODUCT(--(ISTEXT('Trust - Frontsheet'!I86:AC86)))>0,SUMPRODUCT(--(ISERROR('Trust - Frontsheet'!AD86:AT86)))>0),"There is invalid data on this row",IF(SUMPRODUCT(--('Trust - Frontsheet'!I86:AC86<0))>0,"This row contains negative values",IF(AND(L77="This is a blank Row",COUNTBLANK(INDIRECT("L" & ROW() + 1 & ":L" & 206))>0),"No blank rows in the data",""))) ->  | F77: =IF(A77 = "","",IF('Trust - Frontsheet'!D86="", "Site code not present","")) ->  | G77: =IF('Trust - Frontsheet'!D86="","",IF(VLOOKUP(A77,'Trust - Frontsheet'!$A$16:$AC$215,6,0)="","Ward name not present","")) ->  | H77: =IF(A77="","",IF(VLOOKUP(A77,'Trust - Frontsheet'!$A$16:$AC$215,7,0)="","Specialty 1 has not been selected","")) ->  | I77: =IF(A77="","",IF(OR(COUNTIF(Specialties,VLOOKUP(A77,'Trust - Frontsheet'!$A$16:$AC$215,7,0))=0, AND(COUNTIF(Specialties,VLOOKUP(A77,'Trust - Frontsheet'!$A$16:$AC$215,8,0))=0,VLOOKUP(A77,'Trust - Frontsheet'!$A$16:$AC$215,8,0)<>"")),"You have entered unacceptable specialties.","")) ->  | J77: =IF(A77="","",IF(AND(RIGHT(VLOOKUP(A77,'Trust - Frontsheet'!$A$16:$AC$215,7,0),3)<>RIGHT(VLOOKUP(A77,'Trust - Frontsheet'!$A$16:$AC$215,8,0),3),VLOOKUP(A77,'Trust - Frontsheet'!$A$16:$AC$215,8,0)<>""),"Covid statuses do not match","")) ->  | L77: =IF(SUMPRODUCT(--('Trust - Frontsheet'!$D86:$AC86=""))<>26,"","This is a blank row") -> This is a blank row
A78: =IF('Trust - Frontsheet'!A87="","",'Trust - Frontsheet'!A87) ->  | B78: =IF('Trust - Frontsheet'!A87="","",'Trust - Frontsheet'!D87) ->  | C78: =IF(VLOOKUP(A78,'Trust - Frontsheet'!$A$16:$AC$215,5,0)="","",VLOOKUP(A78,'Trust - Frontsheet'!$A$16:$AC$216,5,0)) ->  | D78: =IF(VLOOKUP(A78,'Trust - Frontsheet'!$A$16:$AC$215,6,0)="","",VLOOKUP(A78,'Trust - Frontsheet'!$A$16:$AC$216,6,0)) ->  | E78: =IF(OR(SUMPRODUCT(--(ISTEXT('Trust - Frontsheet'!I87:AC87)))>0,SUMPRODUCT(--(ISERROR('Trust - Frontsheet'!AD87:AT87)))>0),"There is invalid data on this row",IF(SUMPRODUCT(--('Trust - Frontsheet'!I87:AC87<0))>0,"This row contains negative values",IF(AND(L78="This is a blank Row",COUNTBLANK(INDIRECT("L" & ROW() + 1 & ":L" & 206))>0),"No blank rows in the data",""))) ->  | F78: =IF(A78 = "","",IF('Trust - Frontsheet'!D87="", "Site code not present","")) ->  | G78: =IF('Trust - Frontsheet'!D87="","",IF(VLOOKUP(A78,'Trust - Frontsheet'!$A$16:$AC$215,6,0)="","Ward name not present","")) ->  | H78: =IF(A78="","",IF(VLOOKUP(A78,'Trust - Frontsheet'!$A$16:$AC$215,7,0)="","Specialty 1 has not been selected","")) ->  | I78: =IF(A78="","",IF(OR(COUNTIF(Specialties,VLOOKUP(A78,'Trust - Frontsheet'!$A$16:$AC$215,7,0))=0, AND(COUNTIF(Specialties,VLOOKUP(A78,'Trust - Frontsheet'!$A$16:$AC$215,8,0))=0,VLOOKUP(A78,'Trust - Frontsheet'!$A$16:$AC$215,8,0)<>"")),"You have entered unacceptable specialties.","")) ->  | J78: =IF(A78="","",IF(AND(RIGHT(VLOOKUP(A78,'Trust - Frontsheet'!$A$16:$AC$215,7,0),3)<>RIGHT(VLOOKUP(A78,'Trust - Frontsheet'!$A$16:$AC$215,8,0),3),VLOOKUP(A78,'Trust - Frontsheet'!$A$16:$AC$215,8,0)<>""),"Covid statuses do not match","")) ->  | L78: =IF(SUMPRODUCT(--('Trust - Frontsheet'!$D87:$AC87=""))<>26,"","This is a blank row") -> This is a blank row
A79: =IF('Trust - Frontsheet'!A88="","",'Trust - Frontsheet'!A88) ->  | B79: =IF('Trust - Frontsheet'!A88="","",'Trust - Frontsheet'!D88) ->  | C79: =IF(VLOOKUP(A79,'Trust - Frontsheet'!$A$16:$AC$215,5,0)="","",VLOOKUP(A79,'Trust - Frontsheet'!$A$16:$AC$216,5,0)) ->  | D79: =IF(VLOOKUP(A79,'Trust - Frontsheet'!$A$16:$AC$215,6,0)="","",VLOOKUP(A79,'Trust - Frontsheet'!$A$16:$AC$216,6,0)) ->  | E79: =IF(OR(SUMPRODUCT(--(ISTEXT('Trust - Frontsheet'!I88:AC88)))>0,SUMPRODUCT(--(ISERROR('Trust - Frontsheet'!AD88:AT88)))>0),"There is invalid data on this row",IF(SUMPRODUCT(--('Trust - Frontsheet'!I88:AC88<0))>0,"This row contains negative values",IF(AND(L79="This is a blank Row",COUNTBLANK(INDIRECT("L" & ROW() + 1 & ":L" & 206))>0),"No blank rows in the data",""))) ->  | F79: =IF(A79 = "","",IF('Trust - Frontsheet'!D88="", "Site code not present","")) ->  | G79: =IF('Trust - Frontsheet'!D88="","",IF(VLOOKUP(A79,'Trust - Frontsheet'!$A$16:$AC$215,6,0)="","Ward name not present","")) ->  | H79: =IF(A79="","",IF(VLOOKUP(A79,'Trust - Frontsheet'!$A$16:$AC$215,7,0)="","Specialty 1 has not been selected","")) ->  | I79: =IF(A79="","",IF(OR(COUNTIF(Specialties,VLOOKUP(A79,'Trust - Frontsheet'!$A$16:$AC$215,7,0))=0, AND(COUNTIF(Specialties,VLOOKUP(A79,'Trust - Frontsheet'!$A$16:$AC$215,8,0))=0,VLOOKUP(A79,'Trust - Frontsheet'!$A$16:$AC$215,8,0)<>"")),"You have entered unacceptable specialties.","")) ->  | J79: =IF(A79="","",IF(AND(RIGHT(VLOOKUP(A79,'Trust - Frontsheet'!$A$16:$AC$215,7,0),3)<>RIGHT(VLOOKUP(A79,'Trust - Frontsheet'!$A$16:$AC$215,8,0),3),VLOOKUP(A79,'Trust - Frontsheet'!$A$16:$AC$215,8,0)<>""),"Covid statuses do not match","")) ->  | L79: =IF(SUMPRODUCT(--('Trust - Frontsheet'!$D88:$AC88=""))<>26,"","This is a blank row") -> This is a blank row
A80: =IF('Trust - Frontsheet'!A89="","",'Trust - Frontsheet'!A89) ->  | B80: =IF('Trust - Frontsheet'!A89="","",'Trust - Frontsheet'!D89) ->  | C80: =IF(VLOOKUP(A80,'Trust - Frontsheet'!$A$16:$AC$215,5,0)="","",VLOOKUP(A80,'Trust - Frontsheet'!$A$16:$AC$216,5,0)) ->  | D80: =IF(VLOOKUP(A80,'Trust - Frontsheet'!$A$16:$AC$215,6,0)="","",VLOOKUP(A80,'Trust - Frontsheet'!$A$16:$AC$216,6,0)) ->  | E80: =IF(OR(SUMPRODUCT(--(ISTEXT('Trust - Frontsheet'!I89:AC89)))>0,SUMPRODUCT(--(ISERROR('Trust - Frontsheet'!AD89:AT89)))>0),"There is invalid data on this row",IF(SUMPRODUCT(--('Trust - Frontsheet'!I89:AC89<0))>0,"This row contains negative values",IF(AND(L80="This is a blank Row",COUNTBLANK(INDIRECT("L" & ROW() + 1 & ":L" & 206))>0),"No blank rows in the data",""))) ->  | F80: =IF(A80 = "","",IF('Trust - Frontsheet'!D89="", "Site code not present","")) ->  | G80: =IF('Trust - Frontsheet'!D89="","",IF(VLOOKUP(A80,'Trust - Frontsheet'!$A$16:$AC$215,6,0)="","Ward name not present","")) ->  | H80: =IF(A80="","",IF(VLOOKUP(A80,'Trust - Frontsheet'!$A$16:$AC$215,7,0)="","Specialty 1 has not been selected","")) ->  | I80: =IF(A80="","",IF(OR(COUNTIF(Specialties,VLOOKUP(A80,'Trust - Frontsheet'!$A$16:$AC$215,7,0))=0, AND(COUNTIF(Specialties,VLOOKUP(A80,'Trust - Frontsheet'!$A$16:$AC$215,8,0))=0,VLOOKUP(A80,'Trust - Frontsheet'!$A$16:$AC$215,8,0)<>"")),"You have entered unacceptable specialties.","")) ->  | J80: =IF(A80="","",IF(AND(RIGHT(VLOOKUP(A80,'Trust - Frontsheet'!$A$16:$AC$215,7,0),3)<>RIGHT(VLOOKUP(A80,'Trust - Frontsheet'!$A$16:$AC$215,8,0),3),VLOOKUP(A80,'Trust - Frontsheet'!$A$16:$AC$215,8,0)<>""),"Covid statuses do not match","")) ->  | L80: =IF(SUMPRODUCT(--('Trust - Frontsheet'!$D89:$AC89=""))<>26,"","This is a blank row") -> This is a blank row
A81: =IF('Trust - Frontsheet'!A90="","",'Trust - Frontsheet'!A90) ->  | B81: =IF('Trust - Frontsheet'!A90="","",'Trust - Frontsheet'!D90) ->  | C81: =IF(VLOOKUP(A81,'Trust - Frontsheet'!$A$16:$AC$215,5,0)="","",VLOOKUP(A81,'Trust - Frontsheet'!$A$16:$AC$216,5,0)) ->  | D81: =IF(VLOOKUP(A81,'Trust - Frontsheet'!$A$16:$AC$215,6,0)="","",VLOOKUP(A81,'Trust - Frontsheet'!$A$16:$AC$216,6,0)) ->  | E81: =IF(OR(SUMPRODUCT(--(ISTEXT('Trust - Frontsheet'!I90:AC90)))>0,SUMPRODUCT(--(ISERROR('Trust - Frontsheet'!AD90:AT90)))>0),"There is invalid data on this row",IF(SUMPRODUCT(--('Trust - Frontsheet'!I90:AC90<0))>0,"This row contains negative values",IF(AND(L81="This is a blank Row",COUNTBLANK(INDIRECT("L" & ROW() + 1 & ":L" & 206))>0),"No blank rows in the data",""))) ->  | F81: =IF(A81 = "","",IF('Trust - Frontsheet'!D90="", "Site code not present","")) ->  | G81: =IF('Trust - Frontsheet'!D90="","",IF(VLOOKUP(A81,'Trust - Frontsheet'!$A$16:$AC$215,6,0)="","Ward name not present","")) ->  | H81: =IF(A81="","",IF(VLOOKUP(A81,'Trust - Frontsheet'!$A$16:$AC$215,7,0)="","Specialty 1 has not been selected","")) ->  | I81: =IF(A81="","",IF(OR(COUNTIF(Specialties,VLOOKUP(A81,'Trust - Frontsheet'!$A$16:$AC$215,7,0))=0, AND(COUNTIF(Specialties,VLOOKUP(A81,'Trust - Frontsheet'!$A$16:$AC$215,8,0))=0,VLOOKUP(A81,'Trust - Frontsheet'!$A$16:$AC$215,8,0)<>"")),"You have entered unacceptable specialties.","")) ->  | J81: =IF(A81="","",IF(AND(RIGHT(VLOOKUP(A81,'Trust - Frontsheet'!$A$16:$AC$215,7,0),3)<>RIGHT(VLOOKUP(A81,'Trust - Frontsheet'!$A$16:$AC$215,8,0),3),VLOOKUP(A81,'Trust - Frontsheet'!$A$16:$AC$215,8,0)<>""),"Covid statuses do not match","")) ->  | L81: =IF(SUMPRODUCT(--('Trust - Frontsheet'!$D90:$AC90=""))<>26,"","This is a blank row") -> This is a blank row
A82: =IF('Trust - Frontsheet'!A91="","",'Trust - Frontsheet'!A91) ->  | B82: =IF('Trust - Frontsheet'!A91="","",'Trust - Frontsheet'!D91) ->  | C82: =IF(VLOOKUP(A82,'Trust - Frontsheet'!$A$16:$AC$215,5,0)="","",VLOOKUP(A82,'Trust - Frontsheet'!$A$16:$AC$216,5,0)) ->  | D82: =IF(VLOOKUP(A82,'Trust - Frontsheet'!$A$16:$AC$215,6,0)="","",VLOOKUP(A82,'Trust - Frontsheet'!$A$16:$AC$216,6,0)) ->  | E82: =IF(OR(SUMPRODUCT(--(ISTEXT('Trust - Frontsheet'!I91:AC91)))>0,SUMPRODUCT(--(ISERROR('Trust - Frontsheet'!AD91:AT91)))>0),"There is invalid data on this row",IF(SUMPRODUCT(--('Trust - Frontsheet'!I91:AC91<0))>0,"This row contains negative values",IF(AND(L82="This is a blank Row",COUNTBLANK(INDIRECT("L" & ROW() + 1 & ":L" & 206))>0),"No blank rows in the data",""))) ->  | F82: =IF(A82 = "","",IF('Trust - Frontsheet'!D91="", "Site code not present","")) ->  | G82: =IF('Trust - Frontsheet'!D91="","",IF(VLOOKUP(A82,'Trust - Frontsheet'!$A$16:$AC$215,6,0)="","Ward name not present","")) ->  | H82: =IF(A82="","",IF(VLOOKUP(A82,'Trust - Frontsheet'!$A$16:$AC$215,7,0)="","Specialty 1 has not been selected","")) ->  | I82: =IF(A82="","",IF(OR(COUNTIF(Specialties,VLOOKUP(A82,'Trust - Frontsheet'!$A$16:$AC$215,7,0))=0, AND(COUNTIF(Specialties,VLOOKUP(A82,'Trust - Frontsheet'!$A$16:$AC$215,8,0))=0,VLOOKUP(A82,'Trust - Frontsheet'!$A$16:$AC$215,8,0)<>"")),"You have entered unacceptable specialties.","")) ->  | J82: =IF(A82="","",IF(AND(RIGHT(VLOOKUP(A82,'Trust - Frontsheet'!$A$16:$AC$215,7,0),3)<>RIGHT(VLOOKUP(A82,'Trust - Frontsheet'!$A$16:$AC$215,8,0),3),VLOOKUP(A82,'Trust - Frontsheet'!$A$16:$AC$215,8,0)<>""),"Covid statuses do not match","")) ->  | L82: =IF(SUMPRODUCT(--('Trust - Frontsheet'!$D91:$AC91=""))<>26,"","This is a blank row") -> This is a blank row
A83: =IF('Trust - Frontsheet'!A92="","",'Trust - Frontsheet'!A92) ->  | B83: =IF('Trust - Frontsheet'!A92="","",'Trust - Frontsheet'!D92) ->  | C83: =IF(VLOOKUP(A83,'Trust - Frontsheet'!$A$16:$AC$215,5,0)="","",VLOOKUP(A83,'Trust - Frontsheet'!$A$16:$AC$216,5,0)) ->  | D83: =IF(VLOOKUP(A83,'Trust - Frontsheet'!$A$16:$AC$215,6,0)="","",VLOOKUP(A83,'Trust - Frontsheet'!$A$16:$AC$216,6,0)) ->  | E83: =IF(OR(SUMPRODUCT(--(ISTEXT('Trust - Frontsheet'!I92:AC92)))>0,SUMPRODUCT(--(ISERROR('Trust - Frontsheet'!AD92:AT92)))>0),"There is invalid data on this row",IF(SUMPRODUCT(--('Trust - Frontsheet'!I92:AC92<0))>0,"This row contains negative values",IF(AND(L83="This is a blank Row",COUNTBLANK(INDIRECT("L" & ROW() + 1 & ":L" & 206))>0),"No blank rows in the data",""))) ->  | F83: =IF(A83 = "","",IF('Trust - Frontsheet'!D92="", "Site code not present","")) ->  | G83: =IF('Trust - Frontsheet'!D92="","",IF(VLOOKUP(A83,'Trust - Frontsheet'!$A$16:$AC$215,6,0)="","Ward name not present","")) ->  | H83: =IF(A83="","",IF(VLOOKUP(A83,'Trust - Frontsheet'!$A$16:$AC$215,7,0)="","Specialty 1 has not been selected","")) ->  | I83: =IF(A83="","",IF(OR(COUNTIF(Specialties,VLOOKUP(A83,'Trust - Frontsheet'!$A$16:$AC$215,7,0))=0, AND(COUNTIF(Specialties,VLOOKUP(A83,'Trust - Frontsheet'!$A$16:$AC$215,8,0))=0,VLOOKUP(A83,'Trust - Frontsheet'!$A$16:$AC$215,8,0)<>"")),"You have entered unacceptable specialties.","")) ->  | J83: =IF(A83="","",IF(AND(RIGHT(VLOOKUP(A83,'Trust - Frontsheet'!$A$16:$AC$215,7,0),3)<>RIGHT(VLOOKUP(A83,'Trust - Frontsheet'!$A$16:$AC$215,8,0),3),VLOOKUP(A83,'Trust - Frontsheet'!$A$16:$AC$215,8,0)<>""),"Covid statuses do not match","")) ->  | L83: =IF(SUMPRODUCT(--('Trust - Frontsheet'!$D92:$AC92=""))<>26,"","This is a blank row") -> This is a blank row
A84: =IF('Trust - Frontsheet'!A93="","",'Trust - Frontsheet'!A93) ->  | B84: =IF('Trust - Frontsheet'!A93="","",'Trust - Frontsheet'!D93) ->  | C84: =IF(VLOOKUP(A84,'Trust - Frontsheet'!$A$16:$AC$215,5,0)="","",VLOOKUP(A84,'Trust - Frontsheet'!$A$16:$AC$216,5,0)) ->  | D84: =IF(VLOOKUP(A84,'Trust - Frontsheet'!$A$16:$AC$215,6,0)="","",VLOOKUP(A84,'Trust - Frontsheet'!$A$16:$AC$216,6,0)) ->  | E84: =IF(OR(SUMPRODUCT(--(ISTEXT('Trust - Frontsheet'!I93:AC93)))>0,SUMPRODUCT(--(ISERROR('Trust - Frontsheet'!AD93:AT93)))>0),"There is invalid data on this row",IF(SUMPRODUCT(--('Trust - Frontsheet'!I93:AC93<0))>0,"This row contains negative values",IF(AND(L84="This is a blank Row",COUNTBLANK(INDIRECT("L" & ROW() + 1 & ":L" & 206))>0),"No blank rows in the data",""))) ->  | F84: =IF(A84 = "","",IF('Trust - Frontsheet'!D93="", "Site code not present","")) ->  | G84: =IF('Trust - Frontsheet'!D93="","",IF(VLOOKUP(A84,'Trust - Frontsheet'!$A$16:$AC$215,6,0)="","Ward name not present","")) ->  | H84: =IF(A84="","",IF(VLOOKUP(A84,'Trust - Frontsheet'!$A$16:$AC$215,7,0)="","Specialty 1 has not been selected","")) ->  | I84: =IF(A84="","",IF(OR(COUNTIF(Specialties,VLOOKUP(A84,'Trust - Frontsheet'!$A$16:$AC$215,7,0))=0, AND(COUNTIF(Specialties,VLOOKUP(A84,'Trust - Frontsheet'!$A$16:$AC$215,8,0))=0,VLOOKUP(A84,'Trust - Frontsheet'!$A$16:$AC$215,8,0)<>"")),"You have entered unacceptable specialties.","")) ->  | J84: =IF(A84="","",IF(AND(RIGHT(VLOOKUP(A84,'Trust - Frontsheet'!$A$16:$AC$215,7,0),3)<>RIGHT(VLOOKUP(A84,'Trust - Frontsheet'!$A$16:$AC$215,8,0),3),VLOOKUP(A84,'Trust - Frontsheet'!$A$16:$AC$215,8,0)<>""),"Covid statuses do not match","")) ->  | L84: =IF(SUMPRODUCT(--('Trust - Frontsheet'!$D93:$AC93=""))<>26,"","This is a blank row") -> This is a blank row
A85: =IF('Trust - Frontsheet'!A94="","",'Trust - Frontsheet'!A94) ->  | B85: =IF('Trust - Frontsheet'!A94="","",'Trust - Frontsheet'!D94) ->  | C85: =IF(VLOOKUP(A85,'Trust - Frontsheet'!$A$16:$AC$215,5,0)="","",VLOOKUP(A85,'Trust - Frontsheet'!$A$16:$AC$216,5,0)) ->  | D85: =IF(VLOOKUP(A85,'Trust - Frontsheet'!$A$16:$AC$215,6,0)="","",VLOOKUP(A85,'Trust - Frontsheet'!$A$16:$AC$216,6,0)) ->  | E85: =IF(OR(SUMPRODUCT(--(ISTEXT('Trust - Frontsheet'!I94:AC94)))>0,SUMPRODUCT(--(ISERROR('Trust - Frontsheet'!AD94:AT94)))>0),"There is invalid data on this row",IF(SUMPRODUCT(--('Trust - Frontsheet'!I94:AC94<0))>0,"This row contains negative values",IF(AND(L85="This is a blank Row",COUNTBLANK(INDIRECT("L" & ROW() + 1 & ":L" & 206))>0),"No blank rows in the data",""))) ->  | F85: =IF(A85 = "","",IF('Trust - Frontsheet'!D94="", "Site code not present","")) ->  | G85: =IF('Trust - Frontsheet'!D94="","",IF(VLOOKUP(A85,'Trust - Frontsheet'!$A$16:$AC$215,6,0)="","Ward name not present","")) ->  | H85: =IF(A85="","",IF(VLOOKUP(A85,'Trust - Frontsheet'!$A$16:$AC$215,7,0)="","Specialty 1 has not been selected","")) ->  | I85: =IF(A85="","",IF(OR(COUNTIF(Specialties,VLOOKUP(A85,'Trust - Frontsheet'!$A$16:$AC$215,7,0))=0, AND(COUNTIF(Specialties,VLOOKUP(A85,'Trust - Frontsheet'!$A$16:$AC$215,8,0))=0,VLOOKUP(A85,'Trust - Frontsheet'!$A$16:$AC$215,8,0)<>"")),"You have entered unacceptable specialties.","")) ->  | J85: =IF(A85="","",IF(AND(RIGHT(VLOOKUP(A85,'Trust - Frontsheet'!$A$16:$AC$215,7,0),3)<>RIGHT(VLOOKUP(A85,'Trust - Frontsheet'!$A$16:$AC$215,8,0),3),VLOOKUP(A85,'Trust - Frontsheet'!$A$16:$AC$215,8,0)<>""),"Covid statuses do not match","")) ->  | L85: =IF(SUMPRODUCT(--('Trust - Frontsheet'!$D94:$AC94=""))<>26,"","This is a blank row") -> This is a blank row
A86: =IF('Trust - Frontsheet'!A95="","",'Trust - Frontsheet'!A95) ->  | B86: =IF('Trust - Frontsheet'!A95="","",'Trust - Frontsheet'!D95) ->  | C86: =IF(VLOOKUP(A86,'Trust - Frontsheet'!$A$16:$AC$215,5,0)="","",VLOOKUP(A86,'Trust - Frontsheet'!$A$16:$AC$216,5,0)) ->  | D86: =IF(VLOOKUP(A86,'Trust - Frontsheet'!$A$16:$AC$215,6,0)="","",VLOOKUP(A86,'Trust - Frontsheet'!$A$16:$AC$216,6,0)) ->  | E86: =IF(OR(SUMPRODUCT(--(ISTEXT('Trust - Frontsheet'!I95:AC95)))>0,SUMPRODUCT(--(ISERROR('Trust - Frontsheet'!AD95:AT95)))>0),"There is invalid data on this row",IF(SUMPRODUCT(--('Trust - Frontsheet'!I95:AC95<0))>0,"This row contains negative values",IF(AND(L86="This is a blank Row",COUNTBLANK(INDIRECT("L" & ROW() + 1 & ":L" & 206))>0),"No blank rows in the data",""))) ->  | F86: =IF(A86 = "","",IF('Trust - Frontsheet'!D95="", "Site code not present","")) ->  | G86: =IF('Trust - Frontsheet'!D95="","",IF(VLOOKUP(A86,'Trust - Frontsheet'!$A$16:$AC$215,6,0)="","Ward name not present","")) ->  | H86: =IF(A86="","",IF(VLOOKUP(A86,'Trust - Frontsheet'!$A$16:$AC$215,7,0)="","Specialty 1 has not been selected","")) ->  | I86: =IF(A86="","",IF(OR(COUNTIF(Specialties,VLOOKUP(A86,'Trust - Frontsheet'!$A$16:$AC$215,7,0))=0, AND(COUNTIF(Specialties,VLOOKUP(A86,'Trust - Frontsheet'!$A$16:$AC$215,8,0))=0,VLOOKUP(A86,'Trust - Frontsheet'!$A$16:$AC$215,8,0)<>"")),"You have entered unacceptable specialties.","")) ->  | J86: =IF(A86="","",IF(AND(RIGHT(VLOOKUP(A86,'Trust - Frontsheet'!$A$16:$AC$215,7,0),3)<>RIGHT(VLOOKUP(A86,'Trust - Frontsheet'!$A$16:$AC$215,8,0),3),VLOOKUP(A86,'Trust - Frontsheet'!$A$16:$AC$215,8,0)<>""),"Covid statuses do not match","")) ->  | L86: =IF(SUMPRODUCT(--('Trust - Frontsheet'!$D95:$AC95=""))<>26,"","This is a blank row") -> This is a blank row
A87: =IF('Trust - Frontsheet'!A96="","",'Trust - Frontsheet'!A96) ->  | B87: =IF('Trust - Frontsheet'!A96="","",'Trust - Frontsheet'!D96) ->  | C87: =IF(VLOOKUP(A87,'Trust - Frontsheet'!$A$16:$AC$215,5,0)="","",VLOOKUP(A87,'Trust - Frontsheet'!$A$16:$AC$216,5,0)) ->  | D87: =IF(VLOOKUP(A87,'Trust - Frontsheet'!$A$16:$AC$215,6,0)="","",VLOOKUP(A87,'Trust - Frontsheet'!$A$16:$AC$216,6,0)) ->  | E87: =IF(OR(SUMPRODUCT(--(ISTEXT('Trust - Frontsheet'!I96:AC96)))>0,SUMPRODUCT(--(ISERROR('Trust - Frontsheet'!AD96:AT96)))>0),"There is invalid data on this row",IF(SUMPRODUCT(--('Trust - Frontsheet'!I96:AC96<0))>0,"This row contains negative values",IF(AND(L87="This is a blank Row",COUNTBLANK(INDIRECT("L" & ROW() + 1 & ":L" & 206))>0),"No blank rows in the data",""))) ->  | F87: =IF(A87 = "","",IF('Trust - Frontsheet'!D96="", "Site code not present","")) ->  | G87: =IF('Trust - Frontsheet'!D96="","",IF(VLOOKUP(A87,'Trust - Frontsheet'!$A$16:$AC$215,6,0)="","Ward name not present","")) ->  | H87: =IF(A87="","",IF(VLOOKUP(A87,'Trust - Frontsheet'!$A$16:$AC$215,7,0)="","Specialty 1 has not been selected","")) ->  | I87: =IF(A87="","",IF(OR(COUNTIF(Specialties,VLOOKUP(A87,'Trust - Frontsheet'!$A$16:$AC$215,7,0))=0, AND(COUNTIF(Specialties,VLOOKUP(A87,'Trust - Frontsheet'!$A$16:$AC$215,8,0))=0,VLOOKUP(A87,'Trust - Frontsheet'!$A$16:$AC$215,8,0)<>"")),"You have entered unacceptable specialties.","")) ->  | J87: =IF(A87="","",IF(AND(RIGHT(VLOOKUP(A87,'Trust - Frontsheet'!$A$16:$AC$215,7,0),3)<>RIGHT(VLOOKUP(A87,'Trust - Frontsheet'!$A$16:$AC$215,8,0),3),VLOOKUP(A87,'Trust - Frontsheet'!$A$16:$AC$215,8,0)<>""),"Covid statuses do not match","")) ->  | L87: =IF(SUMPRODUCT(--('Trust - Frontsheet'!$D96:$AC96=""))<>26,"","This is a blank row") -> This is a blank row
A88: =IF('Trust - Frontsheet'!A97="","",'Trust - Frontsheet'!A97) ->  | B88: =IF('Trust - Frontsheet'!A97="","",'Trust - Frontsheet'!D97) ->  | C88: =IF(VLOOKUP(A88,'Trust - Frontsheet'!$A$16:$AC$215,5,0)="","",VLOOKUP(A88,'Trust - Frontsheet'!$A$16:$AC$216,5,0)) ->  | D88: =IF(VLOOKUP(A88,'Trust - Frontsheet'!$A$16:$AC$215,6,0)="","",VLOOKUP(A88,'Trust - Frontsheet'!$A$16:$AC$216,6,0)) ->  | E88: =IF(OR(SUMPRODUCT(--(ISTEXT('Trust - Frontsheet'!I97:AC97)))>0,SUMPRODUCT(--(ISERROR('Trust - Frontsheet'!AD97:AT97)))>0),"There is invalid data on this row",IF(SUMPRODUCT(--('Trust - Frontsheet'!I97:AC97<0))>0,"This row contains negative values",IF(AND(L88="This is a blank Row",COUNTBLANK(INDIRECT("L" & ROW() + 1 & ":L" & 206))>0),"No blank rows in the data",""))) ->  | F88: =IF(A88 = "","",IF('Trust - Frontsheet'!D97="", "Site code not present","")) ->  | G88: =IF('Trust - Frontsheet'!D97="","",IF(VLOOKUP(A88,'Trust - Frontsheet'!$A$16:$AC$215,6,0)="","Ward name not present","")) ->  | H88: =IF(A88="","",IF(VLOOKUP(A88,'Trust - Frontsheet'!$A$16:$AC$215,7,0)="","Specialty 1 has not been selected","")) ->  | I88: =IF(A88="","",IF(OR(COUNTIF(Specialties,VLOOKUP(A88,'Trust - Frontsheet'!$A$16:$AC$215,7,0))=0, AND(COUNTIF(Specialties,VLOOKUP(A88,'Trust - Frontsheet'!$A$16:$AC$215,8,0))=0,VLOOKUP(A88,'Trust - Frontsheet'!$A$16:$AC$215,8,0)<>"")),"You have entered unacceptable specialties.","")) ->  | J88: =IF(A88="","",IF(AND(RIGHT(VLOOKUP(A88,'Trust - Frontsheet'!$A$16:$AC$215,7,0),3)<>RIGHT(VLOOKUP(A88,'Trust - Frontsheet'!$A$16:$AC$215,8,0),3),VLOOKUP(A88,'Trust - Frontsheet'!$A$16:$AC$215,8,0)<>""),"Covid statuses do not match","")) ->  | L88: =IF(SUMPRODUCT(--('Trust - Frontsheet'!$D97:$AC97=""))<>26,"","This is a blank row") -> This is a blank row
A89: =IF('Trust - Frontsheet'!A98="","",'Trust - Frontsheet'!A98) ->  | B89: =IF('Trust - Frontsheet'!A98="","",'Trust - Frontsheet'!D98) ->  | C89: =IF(VLOOKUP(A89,'Trust - Frontsheet'!$A$16:$AC$215,5,0)="","",VLOOKUP(A89,'Trust - Frontsheet'!$A$16:$AC$216,5,0)) ->  | D89: =IF(VLOOKUP(A89,'Trust - Frontsheet'!$A$16:$AC$215,6,0)="","",VLOOKUP(A89,'Trust - Frontsheet'!$A$16:$AC$216,6,0)) ->  | E89: =IF(OR(SUMPRODUCT(--(ISTEXT('Trust - Frontsheet'!I98:AC98)))>0,SUMPRODUCT(--(ISERROR('Trust - Frontsheet'!AD98:AT98)))>0),"There is invalid data on this row",IF(SUMPRODUCT(--('Trust - Frontsheet'!I98:AC98<0))>0,"This row contains negative values",IF(AND(L89="This is a blank Row",COUNTBLANK(INDIRECT("L" & ROW() + 1 & ":L" & 206))>0),"No blank rows in the data",""))) ->  | F89: =IF(A89 = "","",IF('Trust - Frontsheet'!D98="", "Site code not present","")) ->  | G89: =IF('Trust - Frontsheet'!D98="","",IF(VLOOKUP(A89,'Trust - Frontsheet'!$A$16:$AC$215,6,0)="","Ward name not present","")) ->  | H89: =IF(A89="","",IF(VLOOKUP(A89,'Trust - Frontsheet'!$A$16:$AC$215,7,0)="","Specialty 1 has not been selected","")) ->  | I89: =IF(A89="","",IF(OR(COUNTIF(Specialties,VLOOKUP(A89,'Trust - Frontsheet'!$A$16:$AC$215,7,0))=0, AND(COUNTIF(Specialties,VLOOKUP(A89,'Trust - Frontsheet'!$A$16:$AC$215,8,0))=0,VLOOKUP(A89,'Trust - Frontsheet'!$A$16:$AC$215,8,0)<>"")),"You have entered unacceptable specialties.","")) ->  | J89: =IF(A89="","",IF(AND(RIGHT(VLOOKUP(A89,'Trust - Frontsheet'!$A$16:$AC$215,7,0),3)<>RIGHT(VLOOKUP(A89,'Trust - Frontsheet'!$A$16:$AC$215,8,0),3),VLOOKUP(A89,'Trust - Frontsheet'!$A$16:$AC$215,8,0)<>""),"Covid statuses do not match","")) ->  | L89: =IF(SUMPRODUCT(--('Trust - Frontsheet'!$D98:$AC98=""))<>26,"","This is a blank row") -> This is a blank row
A90: =IF('Trust - Frontsheet'!A99="","",'Trust - Frontsheet'!A99) ->  | B90: =IF('Trust - Frontsheet'!A99="","",'Trust - Frontsheet'!D99) ->  | C90: =IF(VLOOKUP(A90,'Trust - Frontsheet'!$A$16:$AC$215,5,0)="","",VLOOKUP(A90,'Trust - Frontsheet'!$A$16:$AC$216,5,0)) ->  | D90: =IF(VLOOKUP(A90,'Trust - Frontsheet'!$A$16:$AC$215,6,0)="","",VLOOKUP(A90,'Trust - Frontsheet'!$A$16:$AC$216,6,0)) ->  | E90: =IF(OR(SUMPRODUCT(--(ISTEXT('Trust - Frontsheet'!I99:AC99)))>0,SUMPRODUCT(--(ISERROR('Trust - Frontsheet'!AD99:AT99)))>0),"There is invalid data on this row",IF(SUMPRODUCT(--('Trust - Frontsheet'!I99:AC99<0))>0,"This row contains negative values",IF(AND(L90="This is a blank Row",COUNTBLANK(INDIRECT("L" & ROW() + 1 & ":L" & 206))>0),"No blank rows in the data",""))) ->  | F90: =IF(A90 = "","",IF('Trust - Frontsheet'!D99="", "Site code not present","")) ->  | G90: =IF('Trust - Frontsheet'!D99="","",IF(VLOOKUP(A90,'Trust - Frontsheet'!$A$16:$AC$215,6,0)="","Ward name not present","")) ->  | H90: =IF(A90="","",IF(VLOOKUP(A90,'Trust - Frontsheet'!$A$16:$AC$215,7,0)="","Specialty 1 has not been selected","")) ->  | I90: =IF(A90="","",IF(OR(COUNTIF(Specialties,VLOOKUP(A90,'Trust - Frontsheet'!$A$16:$AC$215,7,0))=0, AND(COUNTIF(Specialties,VLOOKUP(A90,'Trust - Frontsheet'!$A$16:$AC$215,8,0))=0,VLOOKUP(A90,'Trust - Frontsheet'!$A$16:$AC$215,8,0)<>"")),"You have entered unacceptable specialties.","")) ->  | J90: =IF(A90="","",IF(AND(RIGHT(VLOOKUP(A90,'Trust - Frontsheet'!$A$16:$AC$215,7,0),3)<>RIGHT(VLOOKUP(A90,'Trust - Frontsheet'!$A$16:$AC$215,8,0),3),VLOOKUP(A90,'Trust - Frontsheet'!$A$16:$AC$215,8,0)<>""),"Covid statuses do not match","")) ->  | L90: =IF(SUMPRODUCT(--('Trust - Frontsheet'!$D99:$AC99=""))<>26,"","This is a blank row") -> This is a blank row
A91: =IF('Trust - Frontsheet'!A100="","",'Trust - Frontsheet'!A100) ->  | B91: =IF('Trust - Frontsheet'!A100="","",'Trust - Frontsheet'!D100) ->  | C91: =IF(VLOOKUP(A91,'Trust - Frontsheet'!$A$16:$AC$215,5,0)="","",VLOOKUP(A91,'Trust - Frontsheet'!$A$16:$AC$216,5,0)) ->  | D91: =IF(VLOOKUP(A91,'Trust - Frontsheet'!$A$16:$AC$215,6,0)="","",VLOOKUP(A91,'Trust - Frontsheet'!$A$16:$AC$216,6,0)) ->  | E91: =IF(OR(SUMPRODUCT(--(ISTEXT('Trust - Frontsheet'!I100:AC100)))>0,SUMPRODUCT(--(ISERROR('Trust - Frontsheet'!AD100:AT100)))>0),"There is invalid data on this row",IF(SUMPRODUCT(--('Trust - Frontsheet'!I100:AC100<0))>0,"This row contains negative values",IF(AND(L91="This is a blank Row",COUNTBLANK(INDIRECT("L" & ROW() + 1 & ":L" & 206))>0),"No blank rows in the data",""))) ->  | F91: =IF(A91 = "","",IF('Trust - Frontsheet'!D100="", "Site code not present","")) ->  | G91: =IF('Trust - Frontsheet'!D100="","",IF(VLOOKUP(A91,'Trust - Frontsheet'!$A$16:$AC$215,6,0)="","Ward name not present","")) ->  | H91: =IF(A91="","",IF(VLOOKUP(A91,'Trust - Frontsheet'!$A$16:$AC$215,7,0)="","Specialty 1 has not been selected","")) ->  | I91: =IF(A91="","",IF(OR(COUNTIF(Specialties,VLOOKUP(A91,'Trust - Frontsheet'!$A$16:$AC$215,7,0))=0, AND(COUNTIF(Specialties,VLOOKUP(A91,'Trust - Frontsheet'!$A$16:$AC$215,8,0))=0,VLOOKUP(A91,'Trust - Frontsheet'!$A$16:$AC$215,8,0)<>"")),"You have entered unacceptable specialties.","")) ->  | J91: =IF(A91="","",IF(AND(RIGHT(VLOOKUP(A91,'Trust - Frontsheet'!$A$16:$AC$215,7,0),3)<>RIGHT(VLOOKUP(A91,'Trust - Frontsheet'!$A$16:$AC$215,8,0),3),VLOOKUP(A91,'Trust - Frontsheet'!$A$16:$AC$215,8,0)<>""),"Covid statuses do not match","")) ->  | L91: =IF(SUMPRODUCT(--('Trust - Frontsheet'!$D100:$AC100=""))<>26,"","This is a blank row") -> This is a blank row
A92: =IF('Trust - Frontsheet'!A101="","",'Trust - Frontsheet'!A101) ->  | B92: =IF('Trust - Frontsheet'!A101="","",'Trust - Frontsheet'!D101) ->  | C92: =IF(VLOOKUP(A92,'Trust - Frontsheet'!$A$16:$AC$215,5,0)="","",VLOOKUP(A92,'Trust - Frontsheet'!$A$16:$AC$216,5,0)) ->  | D92: =IF(VLOOKUP(A92,'Trust - Frontsheet'!$A$16:$AC$215,6,0)="","",VLOOKUP(A92,'Trust - Frontsheet'!$A$16:$AC$216,6,0)) ->  | E92: =IF(OR(SUMPRODUCT(--(ISTEXT('Trust - Frontsheet'!I101:AC101)))>0,SUMPRODUCT(--(ISERROR('Trust - Frontsheet'!AD101:AT101)))>0),"There is invalid data on this row",IF(SUMPRODUCT(--('Trust - Frontsheet'!I101:AC101<0))>0,"This row contains negative values",IF(AND(L92="This is a blank Row",COUNTBLANK(INDIRECT("L" & ROW() + 1 & ":L" & 206))>0),"No blank rows in the data",""))) ->  | F92: =IF(A92 = "","",IF('Trust - Frontsheet'!D101="", "Site code not present","")) ->  | G92: =IF('Trust - Frontsheet'!D101="","",IF(VLOOKUP(A92,'Trust - Frontsheet'!$A$16:$AC$215,6,0)="","Ward name not present","")) ->  | H92: =IF(A92="","",IF(VLOOKUP(A92,'Trust - Frontsheet'!$A$16:$AC$215,7,0)="","Specialty 1 has not been selected","")) ->  | I92: =IF(A92="","",IF(OR(COUNTIF(Specialties,VLOOKUP(A92,'Trust - Frontsheet'!$A$16:$AC$215,7,0))=0, AND(COUNTIF(Specialties,VLOOKUP(A92,'Trust - Frontsheet'!$A$16:$AC$215,8,0))=0,VLOOKUP(A92,'Trust - Frontsheet'!$A$16:$AC$215,8,0)<>"")),"You have entered unacceptable specialties.","")) ->  | J92: =IF(A92="","",IF(AND(RIGHT(VLOOKUP(A92,'Trust - Frontsheet'!$A$16:$AC$215,7,0),3)<>RIGHT(VLOOKUP(A92,'Trust - Frontsheet'!$A$16:$AC$215,8,0),3),VLOOKUP(A92,'Trust - Frontsheet'!$A$16:$AC$215,8,0)<>""),"Covid statuses do not match","")) ->  | L92: =IF(SUMPRODUCT(--('Trust - Frontsheet'!$D101:$AC101=""))<>26,"","This is a blank row") -> This is a blank row
A93: =IF('Trust - Frontsheet'!A102="","",'Trust - Frontsheet'!A102) ->  | B93: =IF('Trust - Frontsheet'!A102="","",'Trust - Frontsheet'!D102) ->  | C93: =IF(VLOOKUP(A93,'Trust - Frontsheet'!$A$16:$AC$215,5,0)="","",VLOOKUP(A93,'Trust - Frontsheet'!$A$16:$AC$216,5,0)) ->  | D93: =IF(VLOOKUP(A93,'Trust - Frontsheet'!$A$16:$AC$215,6,0)="","",VLOOKUP(A93,'Trust - Frontsheet'!$A$16:$AC$216,6,0)) ->  | E93: =IF(OR(SUMPRODUCT(--(ISTEXT('Trust - Frontsheet'!I102:AC102)))>0,SUMPRODUCT(--(ISERROR('Trust - Frontsheet'!AD102:AT102)))>0),"There is invalid data on this row",IF(SUMPRODUCT(--('Trust - Frontsheet'!I102:AC102<0))>0,"This row contains negative values",IF(AND(L93="This is a blank Row",COUNTBLANK(INDIRECT("L" & ROW() + 1 & ":L" & 206))>0),"No blank rows in the data",""))) ->  | F93: =IF(A93 = "","",IF('Trust - Frontsheet'!D102="", "Site code not present","")) ->  | G93: =IF('Trust - Frontsheet'!D102="","",IF(VLOOKUP(A93,'Trust - Frontsheet'!$A$16:$AC$215,6,0)="","Ward name not present","")) ->  | H93: =IF(A93="","",IF(VLOOKUP(A93,'Trust - Frontsheet'!$A$16:$AC$215,7,0)="","Specialty 1 has not been selected","")) ->  | I93: =IF(A93="","",IF(OR(COUNTIF(Specialties,VLOOKUP(A93,'Trust - Frontsheet'!$A$16:$AC$215,7,0))=0, AND(COUNTIF(Specialties,VLOOKUP(A93,'Trust - Frontsheet'!$A$16:$AC$215,8,0))=0,VLOOKUP(A93,'Trust - Frontsheet'!$A$16:$AC$215,8,0)<>"")),"You have entered unacceptable specialties.","")) ->  | J93: =IF(A93="","",IF(AND(RIGHT(VLOOKUP(A93,'Trust - Frontsheet'!$A$16:$AC$215,7,0),3)<>RIGHT(VLOOKUP(A93,'Trust - Frontsheet'!$A$16:$AC$215,8,0),3),VLOOKUP(A93,'Trust - Frontsheet'!$A$16:$AC$215,8,0)<>""),"Covid statuses do not match","")) ->  | L93: =IF(SUMPRODUCT(--('Trust - Frontsheet'!$D102:$AC102=""))<>26,"","This is a blank row") -> This is a blank row
A94: =IF('Trust - Frontsheet'!A103="","",'Trust - Frontsheet'!A103) ->  | B94: =IF('Trust - Frontsheet'!A103="","",'Trust - Frontsheet'!D103) ->  | C94: =IF(VLOOKUP(A94,'Trust - Frontsheet'!$A$16:$AC$215,5,0)="","",VLOOKUP(A94,'Trust - Frontsheet'!$A$16:$AC$216,5,0)) ->  | D94: =IF(VLOOKUP(A94,'Trust - Frontsheet'!$A$16:$AC$215,6,0)="","",VLOOKUP(A94,'Trust - Frontsheet'!$A$16:$AC$216,6,0)) ->  | E94: =IF(OR(SUMPRODUCT(--(ISTEXT('Trust - Frontsheet'!I103:AC103)))>0,SUMPRODUCT(--(ISERROR('Trust - Frontsheet'!AD103:AT103)))>0),"There is invalid data on this row",IF(SUMPRODUCT(--('Trust - Frontsheet'!I103:AC103<0))>0,"This row contains negative values",IF(AND(L94="This is a blank Row",COUNTBLANK(INDIRECT("L" & ROW() + 1 & ":L" & 206))>0),"No blank rows in the data",""))) ->  | F94: =IF(A94 = "","",IF('Trust - Frontsheet'!D103="", "Site code not present","")) ->  | G94: =IF('Trust - Frontsheet'!D103="","",IF(VLOOKUP(A94,'Trust - Frontsheet'!$A$16:$AC$215,6,0)="","Ward name not present","")) ->  | H94: =IF(A94="","",IF(VLOOKUP(A94,'Trust - Frontsheet'!$A$16:$AC$215,7,0)="","Specialty 1 has not been selected","")) ->  | I94: =IF(A94="","",IF(OR(COUNTIF(Specialties,VLOOKUP(A94,'Trust - Frontsheet'!$A$16:$AC$215,7,0))=0, AND(COUNTIF(Specialties,VLOOKUP(A94,'Trust - Frontsheet'!$A$16:$AC$215,8,0))=0,VLOOKUP(A94,'Trust - Frontsheet'!$A$16:$AC$215,8,0)<>"")),"You have entered unacceptable specialties.","")) ->  | J94: =IF(A94="","",IF(AND(RIGHT(VLOOKUP(A94,'Trust - Frontsheet'!$A$16:$AC$215,7,0),3)<>RIGHT(VLOOKUP(A94,'Trust - Frontsheet'!$A$16:$AC$215,8,0),3),VLOOKUP(A94,'Trust - Frontsheet'!$A$16:$AC$215,8,0)<>""),"Covid statuses do not match","")) ->  | L94: =IF(SUMPRODUCT(--('Trust - Frontsheet'!$D103:$AC103=""))<>26,"","This is a blank row") -> This is a blank row
A95: =IF('Trust - Frontsheet'!A104="","",'Trust - Frontsheet'!A104) ->  | B95: =IF('Trust - Frontsheet'!A104="","",'Trust - Frontsheet'!D104) ->  | C95: =IF(VLOOKUP(A95,'Trust - Frontsheet'!$A$16:$AC$215,5,0)="","",VLOOKUP(A95,'Trust - Frontsheet'!$A$16:$AC$216,5,0)) ->  | D95: =IF(VLOOKUP(A95,'Trust - Frontsheet'!$A$16:$AC$215,6,0)="","",VLOOKUP(A95,'Trust - Frontsheet'!$A$16:$AC$216,6,0)) ->  | E95: =IF(OR(SUMPRODUCT(--(ISTEXT('Trust - Frontsheet'!I104:AC104)))>0,SUMPRODUCT(--(ISERROR('Trust - Frontsheet'!AD104:AT104)))>0),"There is invalid data on this row",IF(SUMPRODUCT(--('Trust - Frontsheet'!I104:AC104<0))>0,"This row contains negative values",IF(AND(L95="This is a blank Row",COUNTBLANK(INDIRECT("L" & ROW() + 1 & ":L" & 206))>0),"No blank rows in the data",""))) ->  | F95: =IF(A95 = "","",IF('Trust - Frontsheet'!D104="", "Site code not present","")) ->  | G95: =IF('Trust - Frontsheet'!D104="","",IF(VLOOKUP(A95,'Trust - Frontsheet'!$A$16:$AC$215,6,0)="","Ward name not present","")) ->  | H95: =IF(A95="","",IF(VLOOKUP(A95,'Trust - Frontsheet'!$A$16:$AC$215,7,0)="","Specialty 1 has not been selected","")) ->  | I95: =IF(A95="","",IF(OR(COUNTIF(Specialties,VLOOKUP(A95,'Trust - Frontsheet'!$A$16:$AC$215,7,0))=0, AND(COUNTIF(Specialties,VLOOKUP(A95,'Trust - Frontsheet'!$A$16:$AC$215,8,0))=0,VLOOKUP(A95,'Trust - Frontsheet'!$A$16:$AC$215,8,0)<>"")),"You have entered unacceptable specialties.","")) ->  | J95: =IF(A95="","",IF(AND(RIGHT(VLOOKUP(A95,'Trust - Frontsheet'!$A$16:$AC$215,7,0),3)<>RIGHT(VLOOKUP(A95,'Trust - Frontsheet'!$A$16:$AC$215,8,0),3),VLOOKUP(A95,'Trust - Frontsheet'!$A$16:$AC$215,8,0)<>""),"Covid statuses do not match","")) ->  | L95: =IF(SUMPRODUCT(--('Trust - Frontsheet'!$D104:$AC104=""))<>26,"","This is a blank row") -> This is a blank row
A96: =IF('Trust - Frontsheet'!A105="","",'Trust - Frontsheet'!A105) ->  | B96: =IF('Trust - Frontsheet'!A105="","",'Trust - Frontsheet'!D105) ->  | C96: =IF(VLOOKUP(A96,'Trust - Frontsheet'!$A$16:$AC$215,5,0)="","",VLOOKUP(A96,'Trust - Frontsheet'!$A$16:$AC$216,5,0)) ->  | D96: =IF(VLOOKUP(A96,'Trust - Frontsheet'!$A$16:$AC$215,6,0)="","",VLOOKUP(A96,'Trust - Frontsheet'!$A$16:$AC$216,6,0)) ->  | E96: =IF(OR(SUMPRODUCT(--(ISTEXT('Trust - Frontsheet'!I105:AC105)))>0,SUMPRODUCT(--(ISERROR('Trust - Frontsheet'!AD105:AT105)))>0),"There is invalid data on this row",IF(SUMPRODUCT(--('Trust - Frontsheet'!I105:AC105<0))>0,"This row contains negative values",IF(AND(L96="This is a blank Row",COUNTBLANK(INDIRECT("L" & ROW() + 1 & ":L" & 206))>0),"No blank rows in the data",""))) ->  | F96: =IF(A96 = "","",IF('Trust - Frontsheet'!D105="", "Site code not present","")) ->  | G96: =IF('Trust - Frontsheet'!D105="","",IF(VLOOKUP(A96,'Trust - Frontsheet'!$A$16:$AC$215,6,0)="","Ward name not present","")) ->  | H96: =IF(A96="","",IF(VLOOKUP(A96,'Trust - Frontsheet'!$A$16:$AC$215,7,0)="","Specialty 1 has not been selected","")) ->  | I96: =IF(A96="","",IF(OR(COUNTIF(Specialties,VLOOKUP(A96,'Trust - Frontsheet'!$A$16:$AC$215,7,0))=0, AND(COUNTIF(Specialties,VLOOKUP(A96,'Trust - Frontsheet'!$A$16:$AC$215,8,0))=0,VLOOKUP(A96,'Trust - Frontsheet'!$A$16:$AC$215,8,0)<>"")),"You have entered unacceptable specialties.","")) ->  | J96: =IF(A96="","",IF(AND(RIGHT(VLOOKUP(A96,'Trust - Frontsheet'!$A$16:$AC$215,7,0),3)<>RIGHT(VLOOKUP(A96,'Trust - Frontsheet'!$A$16:$AC$215,8,0),3),VLOOKUP(A96,'Trust - Frontsheet'!$A$16:$AC$215,8,0)<>""),"Covid statuses do not match","")) ->  | L96: =IF(SUMPRODUCT(--('Trust - Frontsheet'!$D105:$AC105=""))<>26,"","This is a blank row") -> This is a blank row
A97: =IF('Trust - Frontsheet'!A106="","",'Trust - Frontsheet'!A106) ->  | B97: =IF('Trust - Frontsheet'!A106="","",'Trust - Frontsheet'!D106) ->  | C97: =IF(VLOOKUP(A97,'Trust - Frontsheet'!$A$16:$AC$215,5,0)="","",VLOOKUP(A97,'Trust - Frontsheet'!$A$16:$AC$216,5,0)) ->  | D97: =IF(VLOOKUP(A97,'Trust - Frontsheet'!$A$16:$AC$215,6,0)="","",VLOOKUP(A97,'Trust - Frontsheet'!$A$16:$AC$216,6,0)) ->  | E97: =IF(OR(SUMPRODUCT(--(ISTEXT('Trust - Frontsheet'!I106:AC106)))>0,SUMPRODUCT(--(ISERROR('Trust - Frontsheet'!AD106:AT106)))>0),"There is invalid data on this row",IF(SUMPRODUCT(--('Trust - Frontsheet'!I106:AC106<0))>0,"This row contains negative values",IF(AND(L97="This is a blank Row",COUNTBLANK(INDIRECT("L" & ROW() + 1 & ":L" & 206))>0),"No blank rows in the data",""))) ->  | F97: =IF(A97 = "","",IF('Trust - Frontsheet'!D106="", "Site code not present","")) ->  | G97: =IF('Trust - Frontsheet'!D106="","",IF(VLOOKUP(A97,'Trust - Frontsheet'!$A$16:$AC$215,6,0)="","Ward name not present","")) ->  | H97: =IF(A97="","",IF(VLOOKUP(A97,'Trust - Frontsheet'!$A$16:$AC$215,7,0)="","Specialty 1 has not been selected","")) ->  | I97: =IF(A97="","",IF(OR(COUNTIF(Specialties,VLOOKUP(A97,'Trust - Frontsheet'!$A$16:$AC$215,7,0))=0, AND(COUNTIF(Specialties,VLOOKUP(A97,'Trust - Frontsheet'!$A$16:$AC$215,8,0))=0,VLOOKUP(A97,'Trust - Frontsheet'!$A$16:$AC$215,8,0)<>"")),"You have entered unacceptable specialties.","")) ->  | J97: =IF(A97="","",IF(AND(RIGHT(VLOOKUP(A97,'Trust - Frontsheet'!$A$16:$AC$215,7,0),3)<>RIGHT(VLOOKUP(A97,'Trust - Frontsheet'!$A$16:$AC$215,8,0),3),VLOOKUP(A97,'Trust - Frontsheet'!$A$16:$AC$215,8,0)<>""),"Covid statuses do not match","")) ->  | L97: =IF(SUMPRODUCT(--('Trust - Frontsheet'!$D106:$AC106=""))<>26,"","This is a blank row") -> This is a blank row
A98: =IF('Trust - Frontsheet'!A107="","",'Trust - Frontsheet'!A107) ->  | B98: =IF('Trust - Frontsheet'!A107="","",'Trust - Frontsheet'!D107) ->  | C98: =IF(VLOOKUP(A98,'Trust - Frontsheet'!$A$16:$AC$215,5,0)="","",VLOOKUP(A98,'Trust - Frontsheet'!$A$16:$AC$216,5,0)) ->  | D98: =IF(VLOOKUP(A98,'Trust - Frontsheet'!$A$16:$AC$215,6,0)="","",VLOOKUP(A98,'Trust - Frontsheet'!$A$16:$AC$216,6,0)) ->  | E98: =IF(OR(SUMPRODUCT(--(ISTEXT('Trust - Frontsheet'!I107:AC107)))>0,SUMPRODUCT(--(ISERROR('Trust - Frontsheet'!AD107:AT107)))>0),"There is invalid data on this row",IF(SUMPRODUCT(--('Trust - Frontsheet'!I107:AC107<0))>0,"This row contains negative values",IF(AND(L98="This is a blank Row",COUNTBLANK(INDIRECT("L" & ROW() + 1 & ":L" & 206))>0),"No blank rows in the data",""))) ->  | F98: =IF(A98 = "","",IF('Trust - Frontsheet'!D107="", "Site code not present","")) ->  | G98: =IF('Trust - Frontsheet'!D107="","",IF(VLOOKUP(A98,'Trust - Frontsheet'!$A$16:$AC$215,6,0)="","Ward name not present","")) ->  | H98: =IF(A98="","",IF(VLOOKUP(A98,'Trust - Frontsheet'!$A$16:$AC$215,7,0)="","Specialty 1 has not been selected","")) ->  | I98: =IF(A98="","",IF(OR(COUNTIF(Specialties,VLOOKUP(A98,'Trust - Frontsheet'!$A$16:$AC$215,7,0))=0, AND(COUNTIF(Specialties,VLOOKUP(A98,'Trust - Frontsheet'!$A$16:$AC$215,8,0))=0,VLOOKUP(A98,'Trust - Frontsheet'!$A$16:$AC$215,8,0)<>"")),"You have entered unacceptable specialties.","")) ->  | J98: =IF(A98="","",IF(AND(RIGHT(VLOOKUP(A98,'Trust - Frontsheet'!$A$16:$AC$215,7,0),3)<>RIGHT(VLOOKUP(A98,'Trust - Frontsheet'!$A$16:$AC$215,8,0),3),VLOOKUP(A98,'Trust - Frontsheet'!$A$16:$AC$215,8,0)<>""),"Covid statuses do not match","")) ->  | L98: =IF(SUMPRODUCT(--('Trust - Frontsheet'!$D107:$AC107=""))<>26,"","This is a blank row") -> This is a blank row
A99: =IF('Trust - Frontsheet'!A108="","",'Trust - Frontsheet'!A108) ->  | B99: =IF('Trust - Frontsheet'!A108="","",'Trust - Frontsheet'!D108) ->  | C99: =IF(VLOOKUP(A99,'Trust - Frontsheet'!$A$16:$AC$215,5,0)="","",VLOOKUP(A99,'Trust - Frontsheet'!$A$16:$AC$216,5,0)) ->  | D99: =IF(VLOOKUP(A99,'Trust - Frontsheet'!$A$16:$AC$215,6,0)="","",VLOOKUP(A99,'Trust - Frontsheet'!$A$16:$AC$216,6,0)) ->  | E99: =IF(OR(SUMPRODUCT(--(ISTEXT('Trust - Frontsheet'!I108:AC108)))>0,SUMPRODUCT(--(ISERROR('Trust - Frontsheet'!AD108:AT108)))>0),"There is invalid data on this row",IF(SUMPRODUCT(--('Trust - Frontsheet'!I108:AC108<0))>0,"This row contains negative values",IF(AND(L99="This is a blank Row",COUNTBLANK(INDIRECT("L" & ROW() + 1 & ":L" & 206))>0),"No blank rows in the data",""))) ->  | F99: =IF(A99 = "","",IF('Trust - Frontsheet'!D108="", "Site code not present","")) ->  | G99: =IF('Trust - Frontsheet'!D108="","",IF(VLOOKUP(A99,'Trust - Frontsheet'!$A$16:$AC$215,6,0)="","Ward name not present","")) ->  | H99: =IF(A99="","",IF(VLOOKUP(A99,'Trust - Frontsheet'!$A$16:$AC$215,7,0)="","Specialty 1 has not been selected","")) ->  | I99: =IF(A99="","",IF(OR(COUNTIF(Specialties,VLOOKUP(A99,'Trust - Frontsheet'!$A$16:$AC$215,7,0))=0, AND(COUNTIF(Specialties,VLOOKUP(A99,'Trust - Frontsheet'!$A$16:$AC$215,8,0))=0,VLOOKUP(A99,'Trust - Frontsheet'!$A$16:$AC$215,8,0)<>"")),"You have entered unacceptable specialties.","")) ->  | J99: =IF(A99="","",IF(AND(RIGHT(VLOOKUP(A99,'Trust - Frontsheet'!$A$16:$AC$215,7,0),3)<>RIGHT(VLOOKUP(A99,'Trust - Frontsheet'!$A$16:$AC$215,8,0),3),VLOOKUP(A99,'Trust - Frontsheet'!$A$16:$AC$215,8,0)<>""),"Covid statuses do not match","")) ->  | L99: =IF(SUMPRODUCT(--('Trust - Frontsheet'!$D108:$AC108=""))<>26,"","This is a blank row") -> This is a blank row
A100: =IF('Trust - Frontsheet'!A109="","",'Trust - Frontsheet'!A109) ->  | B100: =IF('Trust - Frontsheet'!A109="","",'Trust - Frontsheet'!D109) ->  | C100: =IF(VLOOKUP(A100,'Trust - Frontsheet'!$A$16:$AC$215,5,0)="","",VLOOKUP(A100,'Trust - Frontsheet'!$A$16:$AC$216,5,0)) ->  | D100: =IF(VLOOKUP(A100,'Trust - Frontsheet'!$A$16:$AC$215,6,0)="","",VLOOKUP(A100,'Trust - Frontsheet'!$A$16:$AC$216,6,0)) ->  | E100: =IF(OR(SUMPRODUCT(--(ISTEXT('Trust - Frontsheet'!I109:AC109)))>0,SUMPRODUCT(--(ISERROR('Trust - Frontsheet'!AD109:AT109)))>0),"There is invalid data on this row",IF(SUMPRODUCT(--('Trust - Frontsheet'!I109:AC109<0))>0,"This row contains negative values",IF(AND(L100="This is a blank Row",COUNTBLANK(INDIRECT("L" & ROW() + 1 & ":L" & 206))>0),"No blank rows in the data",""))) ->  | F100: =IF(A100 = "","",IF('Trust - Frontsheet'!D109="", "Site code not present","")) ->  | G100: =IF('Trust - Frontsheet'!D109="","",IF(VLOOKUP(A100,'Trust - Frontsheet'!$A$16:$AC$215,6,0)="","Ward name not present","")) ->  | H100: =IF(A100="","",IF(VLOOKUP(A100,'Trust - Frontsheet'!$A$16:$AC$215,7,0)="","Specialty 1 has not been selected","")) ->  | I100: =IF(A100="","",IF(OR(COUNTIF(Specialties,VLOOKUP(A100,'Trust - Frontsheet'!$A$16:$AC$215,7,0))=0, AND(COUNTIF(Specialties,VLOOKUP(A100,'Trust - Frontsheet'!$A$16:$AC$215,8,0))=0,VLOOKUP(A100,'Trust - Frontsheet'!$A$16:$AC$215,8,0)<>"")),"You have entered unacceptable specialties.","")) ->  | J100: =IF(A100="","",IF(AND(RIGHT(VLOOKUP(A100,'Trust - Frontsheet'!$A$16:$AC$215,7,0),3)<>RIGHT(VLOOKUP(A100,'Trust - Frontsheet'!$A$16:$AC$215,8,0),3),VLOOKUP(A100,'Trust - Frontsheet'!$A$16:$AC$215,8,0)<>""),"Covid statuses do not match","")) ->  | L100: =IF(SUMPRODUCT(--('Trust - Frontsheet'!$D109:$AC109=""))<>26,"","This is a blank row") -> This is a blank row
A101: =IF('Trust - Frontsheet'!A110="","",'Trust - Frontsheet'!A110) ->  | B101: =IF('Trust - Frontsheet'!A110="","",'Trust - Frontsheet'!D110) ->  | C101: =IF(VLOOKUP(A101,'Trust - Frontsheet'!$A$16:$AC$215,5,0)="","",VLOOKUP(A101,'Trust - Frontsheet'!$A$16:$AC$216,5,0)) ->  | D101: =IF(VLOOKUP(A101,'Trust - Frontsheet'!$A$16:$AC$215,6,0)="","",VLOOKUP(A101,'Trust - Frontsheet'!$A$16:$AC$216,6,0)) ->  | E101: =IF(OR(SUMPRODUCT(--(ISTEXT('Trust - Frontsheet'!I110:AC110)))>0,SUMPRODUCT(--(ISERROR('Trust - Frontsheet'!AD110:AT110)))>0),"There is invalid data on this row",IF(SUMPRODUCT(--('Trust - Frontsheet'!I110:AC110<0))>0,"This row contains negative values",IF(AND(L101="This is a blank Row",COUNTBLANK(INDIRECT("L" & ROW() + 1 & ":L" & 206))>0),"No blank rows in the data",""))) ->  | F101: =IF(A101 = "","",IF('Trust - Frontsheet'!D110="", "Site code not present","")) ->  | G101: =IF('Trust - Frontsheet'!D110="","",IF(VLOOKUP(A101,'Trust - Frontsheet'!$A$16:$AC$215,6,0)="","Ward name not present","")) ->  | H101: =IF(A101="","",IF(VLOOKUP(A101,'Trust - Frontsheet'!$A$16:$AC$215,7,0)="","Specialty 1 has not been selected","")) ->  | I101: =IF(A101="","",IF(OR(COUNTIF(Specialties,VLOOKUP(A101,'Trust - Frontsheet'!$A$16:$AC$215,7,0))=0, AND(COUNTIF(Specialties,VLOOKUP(A101,'Trust - Frontsheet'!$A$16:$AC$215,8,0))=0,VLOOKUP(A101,'Trust - Frontsheet'!$A$16:$AC$215,8,0)<>"")),"You have entered unacceptable specialties.","")) ->  | J101: =IF(A101="","",IF(AND(RIGHT(VLOOKUP(A101,'Trust - Frontsheet'!$A$16:$AC$215,7,0),3)<>RIGHT(VLOOKUP(A101,'Trust - Frontsheet'!$A$16:$AC$215,8,0),3),VLOOKUP(A101,'Trust - Frontsheet'!$A$16:$AC$215,8,0)<>""),"Covid statuses do not match","")) ->  | L101: =IF(SUMPRODUCT(--('Trust - Frontsheet'!$D110:$AC110=""))<>26,"","This is a blank row") -> This is a blank row
A102: =IF('Trust - Frontsheet'!A111="","",'Trust - Frontsheet'!A111) ->  | B102: =IF('Trust - Frontsheet'!A111="","",'Trust - Frontsheet'!D111) ->  | C102: =IF(VLOOKUP(A102,'Trust - Frontsheet'!$A$16:$AC$215,5,0)="","",VLOOKUP(A102,'Trust - Frontsheet'!$A$16:$AC$216,5,0)) ->  | D102: =IF(VLOOKUP(A102,'Trust - Frontsheet'!$A$16:$AC$215,6,0)="","",VLOOKUP(A102,'Trust - Frontsheet'!$A$16:$AC$216,6,0)) ->  | E102: =IF(OR(SUMPRODUCT(--(ISTEXT('Trust - Frontsheet'!I111:AC111)))>0,SUMPRODUCT(--(ISERROR('Trust - Frontsheet'!AD111:AT111)))>0),"There is invalid data on this row",IF(SUMPRODUCT(--('Trust - Frontsheet'!I111:AC111<0))>0,"This row contains negative values",IF(AND(L102="This is a blank Row",COUNTBLANK(INDIRECT("L" & ROW() + 1 & ":L" & 206))>0),"No blank rows in the data",""))) ->  | F102: =IF(A102 = "","",IF('Trust - Frontsheet'!D111="", "Site code not present","")) ->  | G102: =IF('Trust - Frontsheet'!D111="","",IF(VLOOKUP(A102,'Trust - Frontsheet'!$A$16:$AC$215,6,0)="","Ward name not present","")) ->  | H102: =IF(A102="","",IF(VLOOKUP(A102,'Trust - Frontsheet'!$A$16:$AC$215,7,0)="","Specialty 1 has not been selected","")) ->  | I102: =IF(A102="","",IF(OR(COUNTIF(Specialties,VLOOKUP(A102,'Trust - Frontsheet'!$A$16:$AC$215,7,0))=0, AND(COUNTIF(Specialties,VLOOKUP(A102,'Trust - Frontsheet'!$A$16:$AC$215,8,0))=0,VLOOKUP(A102,'Trust - Frontsheet'!$A$16:$AC$215,8,0)<>"")),"You have entered unacceptable specialties.","")) ->  | J102: =IF(A102="","",IF(AND(RIGHT(VLOOKUP(A102,'Trust - Frontsheet'!$A$16:$AC$215,7,0),3)<>RIGHT(VLOOKUP(A102,'Trust - Frontsheet'!$A$16:$AC$215,8,0),3),VLOOKUP(A102,'Trust - Frontsheet'!$A$16:$AC$215,8,0)<>""),"Covid statuses do not match","")) ->  | L102: =IF(SUMPRODUCT(--('Trust - Frontsheet'!$D111:$AC111=""))<>26,"","This is a blank row") -> This is a blank row
A103: =IF('Trust - Frontsheet'!A112="","",'Trust - Frontsheet'!A112) ->  | B103: =IF('Trust - Frontsheet'!A112="","",'Trust - Frontsheet'!D112) ->  | C103: =IF(VLOOKUP(A103,'Trust - Frontsheet'!$A$16:$AC$215,5,0)="","",VLOOKUP(A103,'Trust - Frontsheet'!$A$16:$AC$216,5,0)) ->  | D103: =IF(VLOOKUP(A103,'Trust - Frontsheet'!$A$16:$AC$215,6,0)="","",VLOOKUP(A103,'Trust - Frontsheet'!$A$16:$AC$216,6,0)) ->  | E103: =IF(OR(SUMPRODUCT(--(ISTEXT('Trust - Frontsheet'!I112:AC112)))>0,SUMPRODUCT(--(ISERROR('Trust - Frontsheet'!AD112:AT112)))>0),"There is invalid data on this row",IF(SUMPRODUCT(--('Trust - Frontsheet'!I112:AC112<0))>0,"This row contains negative values",IF(AND(L103="This is a blank Row",COUNTBLANK(INDIRECT("L" & ROW() + 1 & ":L" & 206))>0),"No blank rows in the data",""))) ->  | F103: =IF(A103 = "","",IF('Trust - Frontsheet'!D112="", "Site code not present","")) ->  | G103: =IF('Trust - Frontsheet'!D112="","",IF(VLOOKUP(A103,'Trust - Frontsheet'!$A$16:$AC$215,6,0)="","Ward name not present","")) ->  | H103: =IF(A103="","",IF(VLOOKUP(A103,'Trust - Frontsheet'!$A$16:$AC$215,7,0)="","Specialty 1 has not been selected","")) ->  | I103: =IF(A103="","",IF(OR(COUNTIF(Specialties,VLOOKUP(A103,'Trust - Frontsheet'!$A$16:$AC$215,7,0))=0, AND(COUNTIF(Specialties,VLOOKUP(A103,'Trust - Frontsheet'!$A$16:$AC$215,8,0))=0,VLOOKUP(A103,'Trust - Frontsheet'!$A$16:$AC$215,8,0)<>"")),"You have entered unacceptable specialties.","")) ->  | J103: =IF(A103="","",IF(AND(RIGHT(VLOOKUP(A103,'Trust - Frontsheet'!$A$16:$AC$215,7,0),3)<>RIGHT(VLOOKUP(A103,'Trust - Frontsheet'!$A$16:$AC$215,8,0),3),VLOOKUP(A103,'Trust - Frontsheet'!$A$16:$AC$215,8,0)<>""),"Covid statuses do not match","")) ->  | L103: =IF(SUMPRODUCT(--('Trust - Frontsheet'!$D112:$AC112=""))<>26,"","This is a blank row") -> This is a blank row
A104: =IF('Trust - Frontsheet'!A113="","",'Trust - Frontsheet'!A113) ->  | B104: =IF('Trust - Frontsheet'!A113="","",'Trust - Frontsheet'!D113) ->  | C104: =IF(VLOOKUP(A104,'Trust - Frontsheet'!$A$16:$AC$215,5,0)="","",VLOOKUP(A104,'Trust - Frontsheet'!$A$16:$AC$216,5,0)) ->  | D104: =IF(VLOOKUP(A104,'Trust - Frontsheet'!$A$16:$AC$215,6,0)="","",VLOOKUP(A104,'Trust - Frontsheet'!$A$16:$AC$216,6,0)) ->  | E104: =IF(OR(SUMPRODUCT(--(ISTEXT('Trust - Frontsheet'!I113:AC113)))>0,SUMPRODUCT(--(ISERROR('Trust - Frontsheet'!AD113:AT113)))>0),"There is invalid data on this row",IF(SUMPRODUCT(--('Trust - Frontsheet'!I113:AC113<0))>0,"This row contains negative values",IF(AND(L104="This is a blank Row",COUNTBLANK(INDIRECT("L" & ROW() + 1 & ":L" & 206))>0),"No blank rows in the data",""))) ->  | F104: =IF(A104 = "","",IF('Trust - Frontsheet'!D113="", "Site code not present","")) ->  | G104: =IF('Trust - Frontsheet'!D113="","",IF(VLOOKUP(A104,'Trust - Frontsheet'!$A$16:$AC$215,6,0)="","Ward name not present","")) ->  | H104: =IF(A104="","",IF(VLOOKUP(A104,'Trust - Frontsheet'!$A$16:$AC$215,7,0)="","Specialty 1 has not been selected","")) ->  | I104: =IF(A104="","",IF(OR(COUNTIF(Specialties,VLOOKUP(A104,'Trust - Frontsheet'!$A$16:$AC$215,7,0))=0, AND(COUNTIF(Specialties,VLOOKUP(A104,'Trust - Frontsheet'!$A$16:$AC$215,8,0))=0,VLOOKUP(A104,'Trust - Frontsheet'!$A$16:$AC$215,8,0)<>"")),"You have entered unacceptable specialties.","")) ->  | J104: =IF(A104="","",IF(AND(RIGHT(VLOOKUP(A104,'Trust - Frontsheet'!$A$16:$AC$215,7,0),3)<>RIGHT(VLOOKUP(A104,'Trust - Frontsheet'!$A$16:$AC$215,8,0),3),VLOOKUP(A104,'Trust - Frontsheet'!$A$16:$AC$215,8,0)<>""),"Covid statuses do not match","")) ->  | L104: =IF(SUMPRODUCT(--('Trust - Frontsheet'!$D113:$AC113=""))<>26,"","This is a blank row") -> This is a blank row
A105: =IF('Trust - Frontsheet'!A114="","",'Trust - Frontsheet'!A114) ->  | B105: =IF('Trust - Frontsheet'!A114="","",'Trust - Frontsheet'!D114) ->  | C105: =IF(VLOOKUP(A105,'Trust - Frontsheet'!$A$16:$AC$215,5,0)="","",VLOOKUP(A105,'Trust - Frontsheet'!$A$16:$AC$216,5,0)) ->  | D105: =IF(VLOOKUP(A105,'Trust - Frontsheet'!$A$16:$AC$215,6,0)="","",VLOOKUP(A105,'Trust - Frontsheet'!$A$16:$AC$216,6,0)) ->  | E105: =IF(OR(SUMPRODUCT(--(ISTEXT('Trust - Frontsheet'!I114:AC114)))>0,SUMPRODUCT(--(ISERROR('Trust - Frontsheet'!AD114:AT114)))>0),"There is invalid data on this row",IF(SUMPRODUCT(--('Trust - Frontsheet'!I114:AC114<0))>0,"This row contains negative values",IF(AND(L105="This is a blank Row",COUNTBLANK(INDIRECT("L" & ROW() + 1 & ":L" & 206))>0),"No blank rows in the data",""))) ->  | F105: =IF(A105 = "","",IF('Trust - Frontsheet'!D114="", "Site code not present","")) ->  | G105: =IF('Trust - Frontsheet'!D114="","",IF(VLOOKUP(A105,'Trust - Frontsheet'!$A$16:$AC$215,6,0)="","Ward name not present","")) ->  | H105: =IF(A105="","",IF(VLOOKUP(A105,'Trust - Frontsheet'!$A$16:$AC$215,7,0)="","Specialty 1 has not been selected","")) ->  | I105: =IF(A105="","",IF(OR(COUNTIF(Specialties,VLOOKUP(A105,'Trust - Frontsheet'!$A$16:$AC$215,7,0))=0, AND(COUNTIF(Specialties,VLOOKUP(A105,'Trust - Frontsheet'!$A$16:$AC$215,8,0))=0,VLOOKUP(A105,'Trust - Frontsheet'!$A$16:$AC$215,8,0)<>"")),"You have entered unacceptable specialties.","")) ->  | J105: =IF(A105="","",IF(AND(RIGHT(VLOOKUP(A105,'Trust - Frontsheet'!$A$16:$AC$215,7,0),3)<>RIGHT(VLOOKUP(A105,'Trust - Frontsheet'!$A$16:$AC$215,8,0),3),VLOOKUP(A105,'Trust - Frontsheet'!$A$16:$AC$215,8,0)<>""),"Covid statuses do not match","")) ->  | L105: =IF(SUMPRODUCT(--('Trust - Frontsheet'!$D114:$AC114=""))<>26,"","This is a blank row") -> This is a blank row
A106: =IF('Trust - Frontsheet'!A115="","",'Trust - Frontsheet'!A115) ->  | B106: =IF('Trust - Frontsheet'!A115="","",'Trust - Frontsheet'!D115) ->  | C106: =IF(VLOOKUP(A106,'Trust - Frontsheet'!$A$16:$AC$215,5,0)="","",VLOOKUP(A106,'Trust - Frontsheet'!$A$16:$AC$216,5,0)) ->  | D106: =IF(VLOOKUP(A106,'Trust - Frontsheet'!$A$16:$AC$215,6,0)="","",VLOOKUP(A106,'Trust - Frontsheet'!$A$16:$AC$216,6,0)) ->  | E106: =IF(OR(SUMPRODUCT(--(ISTEXT('Trust - Frontsheet'!I115:AC115)))>0,SUMPRODUCT(--(ISERROR('Trust - Frontsheet'!AD115:AT115)))>0),"There is invalid data on this row",IF(SUMPRODUCT(--('Trust - Frontsheet'!I115:AC115<0))>0,"This row contains negative values",IF(AND(L106="This is a blank Row",COUNTBLANK(INDIRECT("L" & ROW() + 1 & ":L" & 206))>0),"No blank rows in the data",""))) ->  | F106: =IF(A106 = "","",IF('Trust - Frontsheet'!D115="", "Site code not present","")) ->  | G106: =IF('Trust - Frontsheet'!D115="","",IF(VLOOKUP(A106,'Trust - Frontsheet'!$A$16:$AC$215,6,0)="","Ward name not present","")) ->  | H106: =IF(A106="","",IF(VLOOKUP(A106,'Trust - Frontsheet'!$A$16:$AC$215,7,0)="","Specialty 1 has not been selected","")) ->  | I106: =IF(A106="","",IF(OR(COUNTIF(Specialties,VLOOKUP(A106,'Trust - Frontsheet'!$A$16:$AC$215,7,0))=0, AND(COUNTIF(Specialties,VLOOKUP(A106,'Trust - Frontsheet'!$A$16:$AC$215,8,0))=0,VLOOKUP(A106,'Trust - Frontsheet'!$A$16:$AC$215,8,0)<>"")),"You have entered unacceptable specialties.","")) ->  | J106: =IF(A106="","",IF(AND(RIGHT(VLOOKUP(A106,'Trust - Frontsheet'!$A$16:$AC$215,7,0),3)<>RIGHT(VLOOKUP(A106,'Trust - Frontsheet'!$A$16:$AC$215,8,0),3),VLOOKUP(A106,'Trust - Frontsheet'!$A$16:$AC$215,8,0)<>""),"Covid statuses do not match","")) ->  | L106: =IF(SUMPRODUCT(--('Trust - Frontsheet'!$D115:$AC115=""))<>26,"","This is a blank row") -> This is a blank row
A107: =IF('Trust - Frontsheet'!A116="","",'Trust - Frontsheet'!A116) ->  | B107: =IF('Trust - Frontsheet'!A116="","",'Trust - Frontsheet'!D116) ->  | C107: =IF(VLOOKUP(A107,'Trust - Frontsheet'!$A$16:$AC$215,5,0)="","",VLOOKUP(A107,'Trust - Frontsheet'!$A$16:$AC$216,5,0)) ->  | D107: =IF(VLOOKUP(A107,'Trust - Frontsheet'!$A$16:$AC$215,6,0)="","",VLOOKUP(A107,'Trust - Frontsheet'!$A$16:$AC$216,6,0)) ->  | E107: =IF(OR(SUMPRODUCT(--(ISTEXT('Trust - Frontsheet'!I116:AC116)))>0,SUMPRODUCT(--(ISERROR('Trust - Frontsheet'!AD116:AT116)))>0),"There is invalid data on this row",IF(SUMPRODUCT(--('Trust - Frontsheet'!I116:AC116<0))>0,"This row contains negative values",IF(AND(L107="This is a blank Row",COUNTBLANK(INDIRECT("L" & ROW() + 1 & ":L" & 206))>0),"No blank rows in the data",""))) ->  | F107: =IF(A107 = "","",IF('Trust - Frontsheet'!D116="", "Site code not present","")) ->  | G107: =IF('Trust - Frontsheet'!D116="","",IF(VLOOKUP(A107,'Trust - Frontsheet'!$A$16:$AC$215,6,0)="","Ward name not present","")) ->  | H107: =IF(A107="","",IF(VLOOKUP(A107,'Trust - Frontsheet'!$A$16:$AC$215,7,0)="","Specialty 1 has not been selected","")) ->  | I107: =IF(A107="","",IF(OR(COUNTIF(Specialties,VLOOKUP(A107,'Trust - Frontsheet'!$A$16:$AC$215,7,0))=0, AND(COUNTIF(Specialties,VLOOKUP(A107,'Trust - Frontsheet'!$A$16:$AC$215,8,0))=0,VLOOKUP(A107,'Trust - Frontsheet'!$A$16:$AC$215,8,0)<>"")),"You have entered unacceptable specialties.","")) ->  | J107: =IF(A107="","",IF(AND(RIGHT(VLOOKUP(A107,'Trust - Frontsheet'!$A$16:$AC$215,7,0),3)<>RIGHT(VLOOKUP(A107,'Trust - Frontsheet'!$A$16:$AC$215,8,0),3),VLOOKUP(A107,'Trust - Frontsheet'!$A$16:$AC$215,8,0)<>""),"Covid statuses do not match","")) ->  | L107: =IF(SUMPRODUCT(--('Trust - Frontsheet'!$D116:$AC116=""))<>26,"","This is a blank row") -> This is a blank row
A108: =IF('Trust - Frontsheet'!A117="","",'Trust - Frontsheet'!A117) ->  | B108: =IF('Trust - Frontsheet'!A117="","",'Trust - Frontsheet'!D117) ->  | C108: =IF(VLOOKUP(A108,'Trust - Frontsheet'!$A$16:$AC$215,5,0)="","",VLOOKUP(A108,'Trust - Frontsheet'!$A$16:$AC$216,5,0)) ->  | D108: =IF(VLOOKUP(A108,'Trust - Frontsheet'!$A$16:$AC$215,6,0)="","",VLOOKUP(A108,'Trust - Frontsheet'!$A$16:$AC$216,6,0)) ->  | E108: =IF(OR(SUMPRODUCT(--(ISTEXT('Trust - Frontsheet'!I117:AC117)))>0,SUMPRODUCT(--(ISERROR('Trust - Frontsheet'!AD117:AT117)))>0),"There is invalid data on this row",IF(SUMPRODUCT(--('Trust - Frontsheet'!I117:AC117<0))>0,"This row contains negative values",IF(AND(L108="This is a blank Row",COUNTBLANK(INDIRECT("L" & ROW() + 1 & ":L" & 206))>0),"No blank rows in the data",""))) ->  | F108: =IF(A108 = "","",IF('Trust - Frontsheet'!D117="", "Site code not present","")) ->  | G108: =IF('Trust - Frontsheet'!D117="","",IF(VLOOKUP(A108,'Trust - Frontsheet'!$A$16:$AC$215,6,0)="","Ward name not present","")) ->  | H108: =IF(A108="","",IF(VLOOKUP(A108,'Trust - Frontsheet'!$A$16:$AC$215,7,0)="","Specialty 1 has not been selected","")) ->  | I108: =IF(A108="","",IF(OR(COUNTIF(Specialties,VLOOKUP(A108,'Trust - Frontsheet'!$A$16:$AC$215,7,0))=0, AND(COUNTIF(Specialties,VLOOKUP(A108,'Trust - Frontsheet'!$A$16:$AC$215,8,0))=0,VLOOKUP(A108,'Trust - Frontsheet'!$A$16:$AC$215,8,0)<>"")),"You have entered unacceptable specialties.","")) ->  | J108: =IF(A108="","",IF(AND(RIGHT(VLOOKUP(A108,'Trust - Frontsheet'!$A$16:$AC$215,7,0),3)<>RIGHT(VLOOKUP(A108,'Trust - Frontsheet'!$A$16:$AC$215,8,0),3),VLOOKUP(A108,'Trust - Frontsheet'!$A$16:$AC$215,8,0)<>""),"Covid statuses do not match","")) ->  | L108: =IF(SUMPRODUCT(--('Trust - Frontsheet'!$D117:$AC117=""))<>26,"","This is a blank row") -> This is a blank row
A109: =IF('Trust - Frontsheet'!A118="","",'Trust - Frontsheet'!A118) ->  | B109: =IF('Trust - Frontsheet'!A118="","",'Trust - Frontsheet'!D118) ->  | C109: =IF(VLOOKUP(A109,'Trust - Frontsheet'!$A$16:$AC$215,5,0)="","",VLOOKUP(A109,'Trust - Frontsheet'!$A$16:$AC$216,5,0)) ->  | D109: =IF(VLOOKUP(A109,'Trust - Frontsheet'!$A$16:$AC$215,6,0)="","",VLOOKUP(A109,'Trust - Frontsheet'!$A$16:$AC$216,6,0)) ->  | E109: =IF(OR(SUMPRODUCT(--(ISTEXT('Trust - Frontsheet'!I118:AC118)))>0,SUMPRODUCT(--(ISERROR('Trust - Frontsheet'!AD118:AT118)))>0),"There is invalid data on this row",IF(SUMPRODUCT(--('Trust - Frontsheet'!I118:AC118<0))>0,"This row contains negative values",IF(AND(L109="This is a blank Row",COUNTBLANK(INDIRECT("L" & ROW() + 1 & ":L" & 206))>0),"No blank rows in the data",""))) ->  | F109: =IF(A109 = "","",IF('Trust - Frontsheet'!D118="", "Site code not present","")) ->  | G109: =IF('Trust - Frontsheet'!D118="","",IF(VLOOKUP(A109,'Trust - Frontsheet'!$A$16:$AC$215,6,0)="","Ward name not present","")) ->  | H109: =IF(A109="","",IF(VLOOKUP(A109,'Trust - Frontsheet'!$A$16:$AC$215,7,0)="","Specialty 1 has not been selected","")) ->  | I109: =IF(A109="","",IF(OR(COUNTIF(Specialties,VLOOKUP(A109,'Trust - Frontsheet'!$A$16:$AC$215,7,0))=0, AND(COUNTIF(Specialties,VLOOKUP(A109,'Trust - Frontsheet'!$A$16:$AC$215,8,0))=0,VLOOKUP(A109,'Trust - Frontsheet'!$A$16:$AC$215,8,0)<>"")),"You have entered unacceptable specialties.","")) ->  | J109: =IF(A109="","",IF(AND(RIGHT(VLOOKUP(A109,'Trust - Frontsheet'!$A$16:$AC$215,7,0),3)<>RIGHT(VLOOKUP(A109,'Trust - Frontsheet'!$A$16:$AC$215,8,0),3),VLOOKUP(A109,'Trust - Frontsheet'!$A$16:$AC$215,8,0)<>""),"Covid statuses do not match","")) ->  | L109: =IF(SUMPRODUCT(--('Trust - Frontsheet'!$D118:$AC118=""))<>26,"","This is a blank row") -> This is a blank row
A110: =IF('Trust - Frontsheet'!A119="","",'Trust - Frontsheet'!A119) ->  | B110: =IF('Trust - Frontsheet'!A119="","",'Trust - Frontsheet'!D119) ->  | C110: =IF(VLOOKUP(A110,'Trust - Frontsheet'!$A$16:$AC$215,5,0)="","",VLOOKUP(A110,'Trust - Frontsheet'!$A$16:$AC$216,5,0)) ->  | D110: =IF(VLOOKUP(A110,'Trust - Frontsheet'!$A$16:$AC$215,6,0)="","",VLOOKUP(A110,'Trust - Frontsheet'!$A$16:$AC$216,6,0)) ->  | E110: =IF(OR(SUMPRODUCT(--(ISTEXT('Trust - Frontsheet'!I119:AC119)))>0,SUMPRODUCT(--(ISERROR('Trust - Frontsheet'!AD119:AT119)))>0),"There is invalid data on this row",IF(SUMPRODUCT(--('Trust - Frontsheet'!I119:AC119<0))>0,"This row contains negative values",IF(AND(L110="This is a blank Row",COUNTBLANK(INDIRECT("L" & ROW() + 1 & ":L" & 206))>0),"No blank rows in the data",""))) ->  | F110: =IF(A110 = "","",IF('Trust - Frontsheet'!D119="", "Site code not present","")) ->  | G110: =IF('Trust - Frontsheet'!D119="","",IF(VLOOKUP(A110,'Trust - Frontsheet'!$A$16:$AC$215,6,0)="","Ward name not present","")) ->  | H110: =IF(A110="","",IF(VLOOKUP(A110,'Trust - Frontsheet'!$A$16:$AC$215,7,0)="","Specialty 1 has not been selected","")) ->  | I110: =IF(A110="","",IF(OR(COUNTIF(Specialties,VLOOKUP(A110,'Trust - Frontsheet'!$A$16:$AC$215,7,0))=0, AND(COUNTIF(Specialties,VLOOKUP(A110,'Trust - Frontsheet'!$A$16:$AC$215,8,0))=0,VLOOKUP(A110,'Trust - Frontsheet'!$A$16:$AC$215,8,0)<>"")),"You have entered unacceptable specialties.","")) ->  | J110: =IF(A110="","",IF(AND(RIGHT(VLOOKUP(A110,'Trust - Frontsheet'!$A$16:$AC$215,7,0),3)<>RIGHT(VLOOKUP(A110,'Trust - Frontsheet'!$A$16:$AC$215,8,0),3),VLOOKUP(A110,'Trust - Frontsheet'!$A$16:$AC$215,8,0)<>""),"Covid statuses do not match","")) ->  | L110: =IF(SUMPRODUCT(--('Trust - Frontsheet'!$D119:$AC119=""))<>26,"","This is a blank row") -> This is a blank row
A111: =IF('Trust - Frontsheet'!A120="","",'Trust - Frontsheet'!A120) ->  | B111: =IF('Trust - Frontsheet'!A120="","",'Trust - Frontsheet'!D120) ->  | C111: =IF(VLOOKUP(A111,'Trust - Frontsheet'!$A$16:$AC$215,5,0)="","",VLOOKUP(A111,'Trust - Frontsheet'!$A$16:$AC$216,5,0)) ->  | D111: =IF(VLOOKUP(A111,'Trust - Frontsheet'!$A$16:$AC$215,6,0)="","",VLOOKUP(A111,'Trust - Frontsheet'!$A$16:$AC$216,6,0)) ->  | E111: =IF(OR(SUMPRODUCT(--(ISTEXT('Trust - Frontsheet'!I120:AC120)))>0,SUMPRODUCT(--(ISERROR('Trust - Frontsheet'!AD120:AT120)))>0),"There is invalid data on this row",IF(SUMPRODUCT(--('Trust - Frontsheet'!I120:AC120<0))>0,"This row contains negative values",IF(AND(L111="This is a blank Row",COUNTBLANK(INDIRECT("L" & ROW() + 1 & ":L" & 206))>0),"No blank rows in the data",""))) ->  | F111: =IF(A111 = "","",IF('Trust - Frontsheet'!D120="", "Site code not present","")) ->  | G111: =IF('Trust - Frontsheet'!D120="","",IF(VLOOKUP(A111,'Trust - Frontsheet'!$A$16:$AC$215,6,0)="","Ward name not present","")) ->  | H111: =IF(A111="","",IF(VLOOKUP(A111,'Trust - Frontsheet'!$A$16:$AC$215,7,0)="","Specialty 1 has not been selected","")) ->  | I111: =IF(A111="","",IF(OR(COUNTIF(Specialties,VLOOKUP(A111,'Trust - Frontsheet'!$A$16:$AC$215,7,0))=0, AND(COUNTIF(Specialties,VLOOKUP(A111,'Trust - Frontsheet'!$A$16:$AC$215,8,0))=0,VLOOKUP(A111,'Trust - Frontsheet'!$A$16:$AC$215,8,0)<>"")),"You have entered unacceptable specialties.","")) ->  | J111: =IF(A111="","",IF(AND(RIGHT(VLOOKUP(A111,'Trust - Frontsheet'!$A$16:$AC$215,7,0),3)<>RIGHT(VLOOKUP(A111,'Trust - Frontsheet'!$A$16:$AC$215,8,0),3),VLOOKUP(A111,'Trust - Frontsheet'!$A$16:$AC$215,8,0)<>""),"Covid statuses do not match","")) ->  | L111: =IF(SUMPRODUCT(--('Trust - Frontsheet'!$D120:$AC120=""))<>26,"","This is a blank row") -> This is a blank row
A112: =IF('Trust - Frontsheet'!A121="","",'Trust - Frontsheet'!A121) ->  | B112: =IF('Trust - Frontsheet'!A121="","",'Trust - Frontsheet'!D121) ->  | C112: =IF(VLOOKUP(A112,'Trust - Frontsheet'!$A$16:$AC$215,5,0)="","",VLOOKUP(A112,'Trust - Frontsheet'!$A$16:$AC$216,5,0)) ->  | D112: =IF(VLOOKUP(A112,'Trust - Frontsheet'!$A$16:$AC$215,6,0)="","",VLOOKUP(A112,'Trust - Frontsheet'!$A$16:$AC$216,6,0)) ->  | E112: =IF(OR(SUMPRODUCT(--(ISTEXT('Trust - Frontsheet'!I121:AC121)))>0,SUMPRODUCT(--(ISERROR('Trust - Frontsheet'!AD121:AT121)))>0),"There is invalid data on this row",IF(SUMPRODUCT(--('Trust - Frontsheet'!I121:AC121<0))>0,"This row contains negative values",IF(AND(L112="This is a blank Row",COUNTBLANK(INDIRECT("L" & ROW() + 1 & ":L" & 206))>0),"No blank rows in the data",""))) ->  | F112: =IF(A112 = "","",IF('Trust - Frontsheet'!D121="", "Site code not present","")) ->  | G112: =IF('Trust - Frontsheet'!D121="","",IF(VLOOKUP(A112,'Trust - Frontsheet'!$A$16:$AC$215,6,0)="","Ward name not present","")) ->  | H112: =IF(A112="","",IF(VLOOKUP(A112,'Trust - Frontsheet'!$A$16:$AC$215,7,0)="","Specialty 1 has not been selected","")) ->  | I112: =IF(A112="","",IF(OR(COUNTIF(Specialties,VLOOKUP(A112,'Trust - Frontsheet'!$A$16:$AC$215,7,0))=0, AND(COUNTIF(Specialties,VLOOKUP(A112,'Trust - Frontsheet'!$A$16:$AC$215,8,0))=0,VLOOKUP(A112,'Trust - Frontsheet'!$A$16:$AC$215,8,0)<>"")),"You have entered unacceptable specialties.","")) ->  | J112: =IF(A112="","",IF(AND(RIGHT(VLOOKUP(A112,'Trust - Frontsheet'!$A$16:$AC$215,7,0),3)<>RIGHT(VLOOKUP(A112,'Trust - Frontsheet'!$A$16:$AC$215,8,0),3),VLOOKUP(A112,'Trust - Frontsheet'!$A$16:$AC$215,8,0)<>""),"Covid statuses do not match","")) ->  | L112: =IF(SUMPRODUCT(--('Trust - Frontsheet'!$D121:$AC121=""))<>26,"","This is a blank row") -> This is a blank row
A113: =IF('Trust - Frontsheet'!A122="","",'Trust - Frontsheet'!A122) ->  | B113: =IF('Trust - Frontsheet'!A122="","",'Trust - Frontsheet'!D122) ->  | C113: =IF(VLOOKUP(A113,'Trust - Frontsheet'!$A$16:$AC$215,5,0)="","",VLOOKUP(A113,'Trust - Frontsheet'!$A$16:$AC$216,5,0)) ->  | D113: =IF(VLOOKUP(A113,'Trust - Frontsheet'!$A$16:$AC$215,6,0)="","",VLOOKUP(A113,'Trust - Frontsheet'!$A$16:$AC$216,6,0)) ->  | E113: =IF(OR(SUMPRODUCT(--(ISTEXT('Trust - Frontsheet'!I122:AC122)))>0,SUMPRODUCT(--(ISERROR('Trust - Frontsheet'!AD122:AT122)))>0),"There is invalid data on this row",IF(SUMPRODUCT(--('Trust - Frontsheet'!I122:AC122<0))>0,"This row contains negative values",IF(AND(L113="This is a blank Row",COUNTBLANK(INDIRECT("L" & ROW() + 1 & ":L" & 206))>0),"No blank rows in the data",""))) ->  | F113: =IF(A113 = "","",IF('Trust - Frontsheet'!D122="", "Site code not present","")) ->  | G113: =IF('Trust - Frontsheet'!D122="","",IF(VLOOKUP(A113,'Trust - Frontsheet'!$A$16:$AC$215,6,0)="","Ward name not present","")) ->  | H113: =IF(A113="","",IF(VLOOKUP(A113,'Trust - Frontsheet'!$A$16:$AC$215,7,0)="","Specialty 1 has not been selected","")) ->  | I113: =IF(A113="","",IF(OR(COUNTIF(Specialties,VLOOKUP(A113,'Trust - Frontsheet'!$A$16:$AC$215,7,0))=0, AND(COUNTIF(Specialties,VLOOKUP(A113,'Trust - Frontsheet'!$A$16:$AC$215,8,0))=0,VLOOKUP(A113,'Trust - Frontsheet'!$A$16:$AC$215,8,0)<>"")),"You have entered unacceptable specialties.","")) ->  | J113: =IF(A113="","",IF(AND(RIGHT(VLOOKUP(A113,'Trust - Frontsheet'!$A$16:$AC$215,7,0),3)<>RIGHT(VLOOKUP(A113,'Trust - Frontsheet'!$A$16:$AC$215,8,0),3),VLOOKUP(A113,'Trust - Frontsheet'!$A$16:$AC$215,8,0)<>""),"Covid statuses do not match","")) ->  | L113: =IF(SUMPRODUCT(--('Trust - Frontsheet'!$D122:$AC122=""))<>26,"","This is a blank row") -> This is a blank row
A114: =IF('Trust - Frontsheet'!A123="","",'Trust - Frontsheet'!A123) ->  | B114: =IF('Trust - Frontsheet'!A123="","",'Trust - Frontsheet'!D123) ->  | C114: =IF(VLOOKUP(A114,'Trust - Frontsheet'!$A$16:$AC$215,5,0)="","",VLOOKUP(A114,'Trust - Frontsheet'!$A$16:$AC$216,5,0)) ->  | D114: =IF(VLOOKUP(A114,'Trust - Frontsheet'!$A$16:$AC$215,6,0)="","",VLOOKUP(A114,'Trust - Frontsheet'!$A$16:$AC$216,6,0)) ->  | E114: =IF(OR(SUMPRODUCT(--(ISTEXT('Trust - Frontsheet'!I123:AC123)))>0,SUMPRODUCT(--(ISERROR('Trust - Frontsheet'!AD123:AT123)))>0),"There is invalid data on this row",IF(SUMPRODUCT(--('Trust - Frontsheet'!I123:AC123<0))>0,"This row contains negative values",IF(AND(L114="This is a blank Row",COUNTBLANK(INDIRECT("L" & ROW() + 1 & ":L" & 206))>0),"No blank rows in the data",""))) ->  | F114: =IF(A114 = "","",IF('Trust - Frontsheet'!D123="", "Site code not present","")) ->  | G114: =IF('Trust - Frontsheet'!D123="","",IF(VLOOKUP(A114,'Trust - Frontsheet'!$A$16:$AC$215,6,0)="","Ward name not present","")) ->  | H114: =IF(A114="","",IF(VLOOKUP(A114,'Trust - Frontsheet'!$A$16:$AC$215,7,0)="","Specialty 1 has not been selected","")) ->  | I114: =IF(A114="","",IF(OR(COUNTIF(Specialties,VLOOKUP(A114,'Trust - Frontsheet'!$A$16:$AC$215,7,0))=0, AND(COUNTIF(Specialties,VLOOKUP(A114,'Trust - Frontsheet'!$A$16:$AC$215,8,0))=0,VLOOKUP(A114,'Trust - Frontsheet'!$A$16:$AC$215,8,0)<>"")),"You have entered unacceptable specialties.","")) ->  | J114: =IF(A114="","",IF(AND(RIGHT(VLOOKUP(A114,'Trust - Frontsheet'!$A$16:$AC$215,7,0),3)<>RIGHT(VLOOKUP(A114,'Trust - Frontsheet'!$A$16:$AC$215,8,0),3),VLOOKUP(A114,'Trust - Frontsheet'!$A$16:$AC$215,8,0)<>""),"Covid statuses do not match","")) ->  | L114: =IF(SUMPRODUCT(--('Trust - Frontsheet'!$D123:$AC123=""))<>26,"","This is a blank row") -> This is a blank row
A115: =IF('Trust - Frontsheet'!A124="","",'Trust - Frontsheet'!A124) ->  | B115: =IF('Trust - Frontsheet'!A124="","",'Trust - Frontsheet'!D124) ->  | C115: =IF(VLOOKUP(A115,'Trust - Frontsheet'!$A$16:$AC$215,5,0)="","",VLOOKUP(A115,'Trust - Frontsheet'!$A$16:$AC$216,5,0)) ->  | D115: =IF(VLOOKUP(A115,'Trust - Frontsheet'!$A$16:$AC$215,6,0)="","",VLOOKUP(A115,'Trust - Frontsheet'!$A$16:$AC$216,6,0)) ->  | E115: =IF(OR(SUMPRODUCT(--(ISTEXT('Trust - Frontsheet'!I124:AC124)))>0,SUMPRODUCT(--(ISERROR('Trust - Frontsheet'!AD124:AT124)))>0),"There is invalid data on this row",IF(SUMPRODUCT(--('Trust - Frontsheet'!I124:AC124<0))>0,"This row contains negative values",IF(AND(L115="This is a blank Row",COUNTBLANK(INDIRECT("L" & ROW() + 1 & ":L" & 206))>0),"No blank rows in the data",""))) ->  | F115: =IF(A115 = "","",IF('Trust - Frontsheet'!D124="", "Site code not present","")) ->  | G115: =IF('Trust - Frontsheet'!D124="","",IF(VLOOKUP(A115,'Trust - Frontsheet'!$A$16:$AC$215,6,0)="","Ward name not present","")) ->  | H115: =IF(A115="","",IF(VLOOKUP(A115,'Trust - Frontsheet'!$A$16:$AC$215,7,0)="","Specialty 1 has not been selected","")) ->  | I115: =IF(A115="","",IF(OR(COUNTIF(Specialties,VLOOKUP(A115,'Trust - Frontsheet'!$A$16:$AC$215,7,0))=0, AND(COUNTIF(Specialties,VLOOKUP(A115,'Trust - Frontsheet'!$A$16:$AC$215,8,0))=0,VLOOKUP(A115,'Trust - Frontsheet'!$A$16:$AC$215,8,0)<>"")),"You have entered unacceptable specialties.","")) ->  | J115: =IF(A115="","",IF(AND(RIGHT(VLOOKUP(A115,'Trust - Frontsheet'!$A$16:$AC$215,7,0),3)<>RIGHT(VLOOKUP(A115,'Trust - Frontsheet'!$A$16:$AC$215,8,0),3),VLOOKUP(A115,'Trust - Frontsheet'!$A$16:$AC$215,8,0)<>""),"Covid statuses do not match","")) ->  | L115: =IF(SUMPRODUCT(--('Trust - Frontsheet'!$D124:$AC124=""))<>26,"","This is a blank row") -> This is a blank row
A116: =IF('Trust - Frontsheet'!A125="","",'Trust - Frontsheet'!A125) ->  | B116: =IF('Trust - Frontsheet'!A125="","",'Trust - Frontsheet'!D125) ->  | C116: =IF(VLOOKUP(A116,'Trust - Frontsheet'!$A$16:$AC$215,5,0)="","",VLOOKUP(A116,'Trust - Frontsheet'!$A$16:$AC$216,5,0)) ->  | D116: =IF(VLOOKUP(A116,'Trust - Frontsheet'!$A$16:$AC$215,6,0)="","",VLOOKUP(A116,'Trust - Frontsheet'!$A$16:$AC$216,6,0)) ->  | E116: =IF(OR(SUMPRODUCT(--(ISTEXT('Trust - Frontsheet'!I125:AC125)))>0,SUMPRODUCT(--(ISERROR('Trust - Frontsheet'!AD125:AT125)))>0),"There is invalid data on this row",IF(SUMPRODUCT(--('Trust - Frontsheet'!I125:AC125<0))>0,"This row contains negative values",IF(AND(L116="This is a blank Row",COUNTBLANK(INDIRECT("L" & ROW() + 1 & ":L" & 206))>0),"No blank rows in the data",""))) ->  | F116: =IF(A116 = "","",IF('Trust - Frontsheet'!D125="", "Site code not present","")) ->  | G116: =IF('Trust - Frontsheet'!D125="","",IF(VLOOKUP(A116,'Trust - Frontsheet'!$A$16:$AC$215,6,0)="","Ward name not present","")) ->  | H116: =IF(A116="","",IF(VLOOKUP(A116,'Trust - Frontsheet'!$A$16:$AC$215,7,0)="","Specialty 1 has not been selected","")) ->  | I116: =IF(A116="","",IF(OR(COUNTIF(Specialties,VLOOKUP(A116,'Trust - Frontsheet'!$A$16:$AC$215,7,0))=0, AND(COUNTIF(Specialties,VLOOKUP(A116,'Trust - Frontsheet'!$A$16:$AC$215,8,0))=0,VLOOKUP(A116,'Trust - Frontsheet'!$A$16:$AC$215,8,0)<>"")),"You have entered unacceptable specialties.","")) ->  | J116: =IF(A116="","",IF(AND(RIGHT(VLOOKUP(A116,'Trust - Frontsheet'!$A$16:$AC$215,7,0),3)<>RIGHT(VLOOKUP(A116,'Trust - Frontsheet'!$A$16:$AC$215,8,0),3),VLOOKUP(A116,'Trust - Frontsheet'!$A$16:$AC$215,8,0)<>""),"Covid statuses do not match","")) ->  | L116: =IF(SUMPRODUCT(--('Trust - Frontsheet'!$D125:$AC125=""))<>26,"","This is a blank row") -> This is a blank row
A117: =IF('Trust - Frontsheet'!A126="","",'Trust - Frontsheet'!A126) ->  | B117: =IF('Trust - Frontsheet'!A126="","",'Trust - Frontsheet'!D126) ->  | C117: =IF(VLOOKUP(A117,'Trust - Frontsheet'!$A$16:$AC$215,5,0)="","",VLOOKUP(A117,'Trust - Frontsheet'!$A$16:$AC$216,5,0)) ->  | D117: =IF(VLOOKUP(A117,'Trust - Frontsheet'!$A$16:$AC$215,6,0)="","",VLOOKUP(A117,'Trust - Frontsheet'!$A$16:$AC$216,6,0)) ->  | E117: =IF(OR(SUMPRODUCT(--(ISTEXT('Trust - Frontsheet'!I126:AC126)))>0,SUMPRODUCT(--(ISERROR('Trust - Frontsheet'!AD126:AT126)))>0),"There is invalid data on this row",IF(SUMPRODUCT(--('Trust - Frontsheet'!I126:AC126<0))>0,"This row contains negative values",IF(AND(L117="This is a blank Row",COUNTBLANK(INDIRECT("L" & ROW() + 1 & ":L" & 206))>0),"No blank rows in the data",""))) ->  | F117: =IF(A117 = "","",IF('Trust - Frontsheet'!D126="", "Site code not present","")) ->  | G117: =IF('Trust - Frontsheet'!D126="","",IF(VLOOKUP(A117,'Trust - Frontsheet'!$A$16:$AC$215,6,0)="","Ward name not present","")) ->  | H117: =IF(A117="","",IF(VLOOKUP(A117,'Trust - Frontsheet'!$A$16:$AC$215,7,0)="","Specialty 1 has not been selected","")) ->  | I117: =IF(A117="","",IF(OR(COUNTIF(Specialties,VLOOKUP(A117,'Trust - Frontsheet'!$A$16:$AC$215,7,0))=0, AND(COUNTIF(Specialties,VLOOKUP(A117,'Trust - Frontsheet'!$A$16:$AC$215,8,0))=0,VLOOKUP(A117,'Trust - Frontsheet'!$A$16:$AC$215,8,0)<>"")),"You have entered unacceptable specialties.","")) ->  | J117: =IF(A117="","",IF(AND(RIGHT(VLOOKUP(A117,'Trust - Frontsheet'!$A$16:$AC$215,7,0),3)<>RIGHT(VLOOKUP(A117,'Trust - Frontsheet'!$A$16:$AC$215,8,0),3),VLOOKUP(A117,'Trust - Frontsheet'!$A$16:$AC$215,8,0)<>""),"Covid statuses do not match","")) ->  | L117: =IF(SUMPRODUCT(--('Trust - Frontsheet'!$D126:$AC126=""))<>26,"","This is a blank row") -> This is a blank row
A118: =IF('Trust - Frontsheet'!A127="","",'Trust - Frontsheet'!A127) ->  | B118: =IF('Trust - Frontsheet'!A127="","",'Trust - Frontsheet'!D127) ->  | C118: =IF(VLOOKUP(A118,'Trust - Frontsheet'!$A$16:$AC$215,5,0)="","",VLOOKUP(A118,'Trust - Frontsheet'!$A$16:$AC$216,5,0)) ->  | D118: =IF(VLOOKUP(A118,'Trust - Frontsheet'!$A$16:$AC$215,6,0)="","",VLOOKUP(A118,'Trust - Frontsheet'!$A$16:$AC$216,6,0)) ->  | E118: =IF(OR(SUMPRODUCT(--(ISTEXT('Trust - Frontsheet'!I127:AC127)))>0,SUMPRODUCT(--(ISERROR('Trust - Frontsheet'!AD127:AT127)))>0),"There is invalid data on this row",IF(SUMPRODUCT(--('Trust - Frontsheet'!I127:AC127<0))>0,"This row contains negative values",IF(AND(L118="This is a blank Row",COUNTBLANK(INDIRECT("L" & ROW() + 1 & ":L" & 206))>0),"No blank rows in the data",""))) ->  | F118: =IF(A118 = "","",IF('Trust - Frontsheet'!D127="", "Site code not present","")) ->  | G118: =IF('Trust - Frontsheet'!D127="","",IF(VLOOKUP(A118,'Trust - Frontsheet'!$A$16:$AC$215,6,0)="","Ward name not present","")) ->  | H118: =IF(A118="","",IF(VLOOKUP(A118,'Trust - Frontsheet'!$A$16:$AC$215,7,0)="","Specialty 1 has not been selected","")) ->  | I118: =IF(A118="","",IF(OR(COUNTIF(Specialties,VLOOKUP(A118,'Trust - Frontsheet'!$A$16:$AC$215,7,0))=0, AND(COUNTIF(Specialties,VLOOKUP(A118,'Trust - Frontsheet'!$A$16:$AC$215,8,0))=0,VLOOKUP(A118,'Trust - Frontsheet'!$A$16:$AC$215,8,0)<>"")),"You have entered unacceptable specialties.","")) ->  | J118: =IF(A118="","",IF(AND(RIGHT(VLOOKUP(A118,'Trust - Frontsheet'!$A$16:$AC$215,7,0),3)<>RIGHT(VLOOKUP(A118,'Trust - Frontsheet'!$A$16:$AC$215,8,0),3),VLOOKUP(A118,'Trust - Frontsheet'!$A$16:$AC$215,8,0)<>""),"Covid statuses do not match","")) ->  | L118: =IF(SUMPRODUCT(--('Trust - Frontsheet'!$D127:$AC127=""))<>26,"","This is a blank row") -> This is a blank row
A119: =IF('Trust - Frontsheet'!A128="","",'Trust - Frontsheet'!A128) ->  | B119: =IF('Trust - Frontsheet'!A128="","",'Trust - Frontsheet'!D128) ->  | C119: =IF(VLOOKUP(A119,'Trust - Frontsheet'!$A$16:$AC$215,5,0)="","",VLOOKUP(A119,'Trust - Frontsheet'!$A$16:$AC$216,5,0)) ->  | D119: =IF(VLOOKUP(A119,'Trust - Frontsheet'!$A$16:$AC$215,6,0)="","",VLOOKUP(A119,'Trust - Frontsheet'!$A$16:$AC$216,6,0)) ->  | E119: =IF(OR(SUMPRODUCT(--(ISTEXT('Trust - Frontsheet'!I128:AC128)))>0,SUMPRODUCT(--(ISERROR('Trust - Frontsheet'!AD128:AT128)))>0),"There is invalid data on this row",IF(SUMPRODUCT(--('Trust - Frontsheet'!I128:AC128<0))>0,"This row contains negative values",IF(AND(L119="This is a blank Row",COUNTBLANK(INDIRECT("L" & ROW() + 1 & ":L" & 206))>0),"No blank rows in the data",""))) ->  | F119: =IF(A119 = "","",IF('Trust - Frontsheet'!D128="", "Site code not present","")) ->  | G119: =IF('Trust - Frontsheet'!D128="","",IF(VLOOKUP(A119,'Trust - Frontsheet'!$A$16:$AC$215,6,0)="","Ward name not present","")) ->  | H119: =IF(A119="","",IF(VLOOKUP(A119,'Trust - Frontsheet'!$A$16:$AC$215,7,0)="","Specialty 1 has not been selected","")) ->  | I119: =IF(A119="","",IF(OR(COUNTIF(Specialties,VLOOKUP(A119,'Trust - Frontsheet'!$A$16:$AC$215,7,0))=0, AND(COUNTIF(Specialties,VLOOKUP(A119,'Trust - Frontsheet'!$A$16:$AC$215,8,0))=0,VLOOKUP(A119,'Trust - Frontsheet'!$A$16:$AC$215,8,0)<>"")),"You have entered unacceptable specialties.","")) ->  | J119: =IF(A119="","",IF(AND(RIGHT(VLOOKUP(A119,'Trust - Frontsheet'!$A$16:$AC$215,7,0),3)<>RIGHT(VLOOKUP(A119,'Trust - Frontsheet'!$A$16:$AC$215,8,0),3),VLOOKUP(A119,'Trust - Frontsheet'!$A$16:$AC$215,8,0)<>""),"Covid statuses do not match","")) ->  | L119: =IF(SUMPRODUCT(--('Trust - Frontsheet'!$D128:$AC128=""))<>26,"","This is a blank row") -> This is a blank row
A120: =IF('Trust - Frontsheet'!A129="","",'Trust - Frontsheet'!A129) ->  | B120: =IF('Trust - Frontsheet'!A129="","",'Trust - Frontsheet'!D129) ->  | C120: =IF(VLOOKUP(A120,'Trust - Frontsheet'!$A$16:$AC$215,5,0)="","",VLOOKUP(A120,'Trust - Frontsheet'!$A$16:$AC$216,5,0)) ->  | D120: =IF(VLOOKUP(A120,'Trust - Frontsheet'!$A$16:$AC$215,6,0)="","",VLOOKUP(A120,'Trust - Frontsheet'!$A$16:$AC$216,6,0)) ->  | E120: =IF(OR(SUMPRODUCT(--(ISTEXT('Trust - Frontsheet'!I129:AC129)))>0,SUMPRODUCT(--(ISERROR('Trust - Frontsheet'!AD129:AT129)))>0),"There is invalid data on this row",IF(SUMPRODUCT(--('Trust - Frontsheet'!I129:AC129<0))>0,"This row contains negative values",IF(AND(L120="This is a blank Row",COUNTBLANK(INDIRECT("L" & ROW() + 1 & ":L" & 206))>0),"No blank rows in the data",""))) ->  | F120: =IF(A120 = "","",IF('Trust - Frontsheet'!D129="", "Site code not present","")) ->  | G120: =IF('Trust - Frontsheet'!D129="","",IF(VLOOKUP(A120,'Trust - Frontsheet'!$A$16:$AC$215,6,0)="","Ward name not present","")) ->  | H120: =IF(A120="","",IF(VLOOKUP(A120,'Trust - Frontsheet'!$A$16:$AC$215,7,0)="","Specialty 1 has not been selected","")) ->  | I120: =IF(A120="","",IF(OR(COUNTIF(Specialties,VLOOKUP(A120,'Trust - Frontsheet'!$A$16:$AC$215,7,0))=0, AND(COUNTIF(Specialties,VLOOKUP(A120,'Trust - Frontsheet'!$A$16:$AC$215,8,0))=0,VLOOKUP(A120,'Trust - Frontsheet'!$A$16:$AC$215,8,0)<>"")),"You have entered unacceptable specialties.","")) ->  | J120: =IF(A120="","",IF(AND(RIGHT(VLOOKUP(A120,'Trust - Frontsheet'!$A$16:$AC$215,7,0),3)<>RIGHT(VLOOKUP(A120,'Trust - Frontsheet'!$A$16:$AC$215,8,0),3),VLOOKUP(A120,'Trust - Frontsheet'!$A$16:$AC$215,8,0)<>""),"Covid statuses do not match","")) ->  | L120: =IF(SUMPRODUCT(--('Trust - Frontsheet'!$D129:$AC129=""))<>26,"","This is a blank row") -> This is a blank row
A121: =IF('Trust - Frontsheet'!A130="","",'Trust - Frontsheet'!A130) ->  | B121: =IF('Trust - Frontsheet'!A130="","",'Trust - Frontsheet'!D130) ->  | C121: =IF(VLOOKUP(A121,'Trust - Frontsheet'!$A$16:$AC$215,5,0)="","",VLOOKUP(A121,'Trust - Frontsheet'!$A$16:$AC$216,5,0)) ->  | D121: =IF(VLOOKUP(A121,'Trust - Frontsheet'!$A$16:$AC$215,6,0)="","",VLOOKUP(A121,'Trust - Frontsheet'!$A$16:$AC$216,6,0)) ->  | E121: =IF(OR(SUMPRODUCT(--(ISTEXT('Trust - Frontsheet'!I130:AC130)))>0,SUMPRODUCT(--(ISERROR('Trust - Frontsheet'!AD130:AT130)))>0),"There is invalid data on this row",IF(SUMPRODUCT(--('Trust - Frontsheet'!I130:AC130<0))>0,"This row contains negative values",IF(AND(L121="This is a blank Row",COUNTBLANK(INDIRECT("L" & ROW() + 1 & ":L" & 206))>0),"No blank rows in the data",""))) ->  | F121: =IF(A121 = "","",IF('Trust - Frontsheet'!D130="", "Site code not present","")) ->  | G121: =IF('Trust - Frontsheet'!D130="","",IF(VLOOKUP(A121,'Trust - Frontsheet'!$A$16:$AC$215,6,0)="","Ward name not present","")) ->  | H121: =IF(A121="","",IF(VLOOKUP(A121,'Trust - Frontsheet'!$A$16:$AC$215,7,0)="","Specialty 1 has not been selected","")) ->  | I121: =IF(A121="","",IF(OR(COUNTIF(Specialties,VLOOKUP(A121,'Trust - Frontsheet'!$A$16:$AC$215,7,0))=0, AND(COUNTIF(Specialties,VLOOKUP(A121,'Trust - Frontsheet'!$A$16:$AC$215,8,0))=0,VLOOKUP(A121,'Trust - Frontsheet'!$A$16:$AC$215,8,0)<>"")),"You have entered unacceptable specialties.","")) ->  | J121: =IF(A121="","",IF(AND(RIGHT(VLOOKUP(A121,'Trust - Frontsheet'!$A$16:$AC$215,7,0),3)<>RIGHT(VLOOKUP(A121,'Trust - Frontsheet'!$A$16:$AC$215,8,0),3),VLOOKUP(A121,'Trust - Frontsheet'!$A$16:$AC$215,8,0)<>""),"Covid statuses do not match","")) ->  | L121: =IF(SUMPRODUCT(--('Trust - Frontsheet'!$D130:$AC130=""))<>26,"","This is a blank row") -> This is a blank row
A122: =IF('Trust - Frontsheet'!A131="","",'Trust - Frontsheet'!A131) ->  | B122: =IF('Trust - Frontsheet'!A131="","",'Trust - Frontsheet'!D131) ->  | C122: =IF(VLOOKUP(A122,'Trust - Frontsheet'!$A$16:$AC$215,5,0)="","",VLOOKUP(A122,'Trust - Frontsheet'!$A$16:$AC$216,5,0)) ->  | D122: =IF(VLOOKUP(A122,'Trust - Frontsheet'!$A$16:$AC$215,6,0)="","",VLOOKUP(A122,'Trust - Frontsheet'!$A$16:$AC$216,6,0)) ->  | E122: =IF(OR(SUMPRODUCT(--(ISTEXT('Trust - Frontsheet'!I131:AC131)))>0,SUMPRODUCT(--(ISERROR('Trust - Frontsheet'!AD131:AT131)))>0),"There is invalid data on this row",IF(SUMPRODUCT(--('Trust - Frontsheet'!I131:AC131<0))>0,"This row contains negative values",IF(AND(L122="This is a blank Row",COUNTBLANK(INDIRECT("L" & ROW() + 1 & ":L" & 206))>0),"No blank rows in the data",""))) ->  | F122: =IF(A122 = "","",IF('Trust - Frontsheet'!D131="", "Site code not present","")) ->  | G122: =IF('Trust - Frontsheet'!D131="","",IF(VLOOKUP(A122,'Trust - Frontsheet'!$A$16:$AC$215,6,0)="","Ward name not present","")) ->  | H122: =IF(A122="","",IF(VLOOKUP(A122,'Trust - Frontsheet'!$A$16:$AC$215,7,0)="","Specialty 1 has not been selected","")) ->  | I122: =IF(A122="","",IF(OR(COUNTIF(Specialties,VLOOKUP(A122,'Trust - Frontsheet'!$A$16:$AC$215,7,0))=0, AND(COUNTIF(Specialties,VLOOKUP(A122,'Trust - Frontsheet'!$A$16:$AC$215,8,0))=0,VLOOKUP(A122,'Trust - Frontsheet'!$A$16:$AC$215,8,0)<>"")),"You have entered unacceptable specialties.","")) ->  | J122: =IF(A122="","",IF(AND(RIGHT(VLOOKUP(A122,'Trust - Frontsheet'!$A$16:$AC$215,7,0),3)<>RIGHT(VLOOKUP(A122,'Trust - Frontsheet'!$A$16:$AC$215,8,0),3),VLOOKUP(A122,'Trust - Frontsheet'!$A$16:$AC$215,8,0)<>""),"Covid statuses do not match","")) ->  | L122: =IF(SUMPRODUCT(--('Trust - Frontsheet'!$D131:$AC131=""))<>26,"","This is a blank row") -> This is a blank row
A123: =IF('Trust - Frontsheet'!A132="","",'Trust - Frontsheet'!A132) ->  | B123: =IF('Trust - Frontsheet'!A132="","",'Trust - Frontsheet'!D132) ->  | C123: =IF(VLOOKUP(A123,'Trust - Frontsheet'!$A$16:$AC$215,5,0)="","",VLOOKUP(A123,'Trust - Frontsheet'!$A$16:$AC$216,5,0)) ->  | D123: =IF(VLOOKUP(A123,'Trust - Frontsheet'!$A$16:$AC$215,6,0)="","",VLOOKUP(A123,'Trust - Frontsheet'!$A$16:$AC$216,6,0)) ->  | E123: =IF(OR(SUMPRODUCT(--(ISTEXT('Trust - Frontsheet'!I132:AC132)))>0,SUMPRODUCT(--(ISERROR('Trust - Frontsheet'!AD132:AT132)))>0),"There is invalid data on this row",IF(SUMPRODUCT(--('Trust - Frontsheet'!I132:AC132<0))>0,"This row contains negative values",IF(AND(L123="This is a blank Row",COUNTBLANK(INDIRECT("L" & ROW() + 1 & ":L" & 206))>0),"No blank rows in the data",""))) ->  | F123: =IF(A123 = "","",IF('Trust - Frontsheet'!D132="", "Site code not present","")) ->  | G123: =IF('Trust - Frontsheet'!D132="","",IF(VLOOKUP(A123,'Trust - Frontsheet'!$A$16:$AC$215,6,0)="","Ward name not present","")) ->  | H123: =IF(A123="","",IF(VLOOKUP(A123,'Trust - Frontsheet'!$A$16:$AC$215,7,0)="","Specialty 1 has not been selected","")) ->  | I123: =IF(A123="","",IF(OR(COUNTIF(Specialties,VLOOKUP(A123,'Trust - Frontsheet'!$A$16:$AC$215,7,0))=0, AND(COUNTIF(Specialties,VLOOKUP(A123,'Trust - Frontsheet'!$A$16:$AC$215,8,0))=0,VLOOKUP(A123,'Trust - Frontsheet'!$A$16:$AC$215,8,0)<>"")),"You have entered unacceptable specialties.","")) ->  | J123: =IF(A123="","",IF(AND(RIGHT(VLOOKUP(A123,'Trust - Frontsheet'!$A$16:$AC$215,7,0),3)<>RIGHT(VLOOKUP(A123,'Trust - Frontsheet'!$A$16:$AC$215,8,0),3),VLOOKUP(A123,'Trust - Frontsheet'!$A$16:$AC$215,8,0)<>""),"Covid statuses do not match","")) ->  | L123: =IF(SUMPRODUCT(--('Trust - Frontsheet'!$D132:$AC132=""))<>26,"","This is a blank row") -> This is a blank row
A124: =IF('Trust - Frontsheet'!A133="","",'Trust - Frontsheet'!A133) ->  | B124: =IF('Trust - Frontsheet'!A133="","",'Trust - Frontsheet'!D133) ->  | C124: =IF(VLOOKUP(A124,'Trust - Frontsheet'!$A$16:$AC$215,5,0)="","",VLOOKUP(A124,'Trust - Frontsheet'!$A$16:$AC$216,5,0)) ->  | D124: =IF(VLOOKUP(A124,'Trust - Frontsheet'!$A$16:$AC$215,6,0)="","",VLOOKUP(A124,'Trust - Frontsheet'!$A$16:$AC$216,6,0)) ->  | E124: =IF(OR(SUMPRODUCT(--(ISTEXT('Trust - Frontsheet'!I133:AC133)))>0,SUMPRODUCT(--(ISERROR('Trust - Frontsheet'!AD133:AT133)))>0),"There is invalid data on this row",IF(SUMPRODUCT(--('Trust - Frontsheet'!I133:AC133<0))>0,"This row contains negative values",IF(AND(L124="This is a blank Row",COUNTBLANK(INDIRECT("L" & ROW() + 1 & ":L" & 206))>0),"No blank rows in the data",""))) ->  | F124: =IF(A124 = "","",IF('Trust - Frontsheet'!D133="", "Site code not present","")) ->  | G124: =IF('Trust - Frontsheet'!D133="","",IF(VLOOKUP(A124,'Trust - Frontsheet'!$A$16:$AC$215,6,0)="","Ward name not present","")) ->  | H124: =IF(A124="","",IF(VLOOKUP(A124,'Trust - Frontsheet'!$A$16:$AC$215,7,0)="","Specialty 1 has not been selected","")) ->  | I124: =IF(A124="","",IF(OR(COUNTIF(Specialties,VLOOKUP(A124,'Trust - Frontsheet'!$A$16:$AC$215,7,0))=0, AND(COUNTIF(Specialties,VLOOKUP(A124,'Trust - Frontsheet'!$A$16:$AC$215,8,0))=0,VLOOKUP(A124,'Trust - Frontsheet'!$A$16:$AC$215,8,0)<>"")),"You have entered unacceptable specialties.","")) ->  | J124: =IF(A124="","",IF(AND(RIGHT(VLOOKUP(A124,'Trust - Frontsheet'!$A$16:$AC$215,7,0),3)<>RIGHT(VLOOKUP(A124,'Trust - Frontsheet'!$A$16:$AC$215,8,0),3),VLOOKUP(A124,'Trust - Frontsheet'!$A$16:$AC$215,8,0)<>""),"Covid statuses do not match","")) ->  | L124: =IF(SUMPRODUCT(--('Trust - Frontsheet'!$D133:$AC133=""))<>26,"","This is a blank row") -> This is a blank row
A125: =IF('Trust - Frontsheet'!A134="","",'Trust - Frontsheet'!A134) ->  | B125: =IF('Trust - Frontsheet'!A134="","",'Trust - Frontsheet'!D134) ->  | C125: =IF(VLOOKUP(A125,'Trust - Frontsheet'!$A$16:$AC$215,5,0)="","",VLOOKUP(A125,'Trust - Frontsheet'!$A$16:$AC$216,5,0)) ->  | D125: =IF(VLOOKUP(A125,'Trust - Frontsheet'!$A$16:$AC$215,6,0)="","",VLOOKUP(A125,'Trust - Frontsheet'!$A$16:$AC$216,6,0)) ->  | E125: =IF(OR(SUMPRODUCT(--(ISTEXT('Trust - Frontsheet'!I134:AC134)))>0,SUMPRODUCT(--(ISERROR('Trust - Frontsheet'!AD134:AT134)))>0),"There is invalid data on this row",IF(SUMPRODUCT(--('Trust - Frontsheet'!I134:AC134<0))>0,"This row contains negative values",IF(AND(L125="This is a blank Row",COUNTBLANK(INDIRECT("L" & ROW() + 1 & ":L" & 206))>0),"No blank rows in the data",""))) ->  | F125: =IF(A125 = "","",IF('Trust - Frontsheet'!D134="", "Site code not present","")) ->  | G125: =IF('Trust - Frontsheet'!D134="","",IF(VLOOKUP(A125,'Trust - Frontsheet'!$A$16:$AC$215,6,0)="","Ward name not present","")) ->  | H125: =IF(A125="","",IF(VLOOKUP(A125,'Trust - Frontsheet'!$A$16:$AC$215,7,0)="","Specialty 1 has not been selected","")) ->  | I125: =IF(A125="","",IF(OR(COUNTIF(Specialties,VLOOKUP(A125,'Trust - Frontsheet'!$A$16:$AC$215,7,0))=0, AND(COUNTIF(Specialties,VLOOKUP(A125,'Trust - Frontsheet'!$A$16:$AC$215,8,0))=0,VLOOKUP(A125,'Trust - Frontsheet'!$A$16:$AC$215,8,0)<>"")),"You have entered unacceptable specialties.","")) ->  | J125: =IF(A125="","",IF(AND(RIGHT(VLOOKUP(A125,'Trust - Frontsheet'!$A$16:$AC$215,7,0),3)<>RIGHT(VLOOKUP(A125,'Trust - Frontsheet'!$A$16:$AC$215,8,0),3),VLOOKUP(A125,'Trust - Frontsheet'!$A$16:$AC$215,8,0)<>""),"Covid statuses do not match","")) ->  | L125: =IF(SUMPRODUCT(--('Trust - Frontsheet'!$D134:$AC134=""))<>26,"","This is a blank row") -> This is a blank row
A126: =IF('Trust - Frontsheet'!A135="","",'Trust - Frontsheet'!A135) ->  | B126: =IF('Trust - Frontsheet'!A135="","",'Trust - Frontsheet'!D135) ->  | C126: =IF(VLOOKUP(A126,'Trust - Frontsheet'!$A$16:$AC$215,5,0)="","",VLOOKUP(A126,'Trust - Frontsheet'!$A$16:$AC$216,5,0)) ->  | D126: =IF(VLOOKUP(A126,'Trust - Frontsheet'!$A$16:$AC$215,6,0)="","",VLOOKUP(A126,'Trust - Frontsheet'!$A$16:$AC$216,6,0)) ->  | E126: =IF(OR(SUMPRODUCT(--(ISTEXT('Trust - Frontsheet'!I135:AC135)))>0,SUMPRODUCT(--(ISERROR('Trust - Frontsheet'!AD135:AT135)))>0),"There is invalid data on this row",IF(SUMPRODUCT(--('Trust - Frontsheet'!I135:AC135<0))>0,"This row contains negative values",IF(AND(L126="This is a blank Row",COUNTBLANK(INDIRECT("L" & ROW() + 1 & ":L" & 206))>0),"No blank rows in the data",""))) ->  | F126: =IF(A126 = "","",IF('Trust - Frontsheet'!D135="", "Site code not present","")) ->  | G126: =IF('Trust - Frontsheet'!D135="","",IF(VLOOKUP(A126,'Trust - Frontsheet'!$A$16:$AC$215,6,0)="","Ward name not present","")) ->  | H126: =IF(A126="","",IF(VLOOKUP(A126,'Trust - Frontsheet'!$A$16:$AC$215,7,0)="","Specialty 1 has not been selected","")) ->  | I126: =IF(A126="","",IF(OR(COUNTIF(Specialties,VLOOKUP(A126,'Trust - Frontsheet'!$A$16:$AC$215,7,0))=0, AND(COUNTIF(Specialties,VLOOKUP(A126,'Trust - Frontsheet'!$A$16:$AC$215,8,0))=0,VLOOKUP(A126,'Trust - Frontsheet'!$A$16:$AC$215,8,0)<>"")),"You have entered unacceptable specialties.","")) ->  | J126: =IF(A126="","",IF(AND(RIGHT(VLOOKUP(A126,'Trust - Frontsheet'!$A$16:$AC$215,7,0),3)<>RIGHT(VLOOKUP(A126,'Trust - Frontsheet'!$A$16:$AC$215,8,0),3),VLOOKUP(A126,'Trust - Frontsheet'!$A$16:$AC$215,8,0)<>""),"Covid statuses do not match","")) ->  | L126: =IF(SUMPRODUCT(--('Trust - Frontsheet'!$D135:$AC135=""))<>26,"","This is a blank row") -> This is a blank row
A127: =IF('Trust - Frontsheet'!A136="","",'Trust - Frontsheet'!A136) ->  | B127: =IF('Trust - Frontsheet'!A136="","",'Trust - Frontsheet'!D136) ->  | C127: =IF(VLOOKUP(A127,'Trust - Frontsheet'!$A$16:$AC$215,5,0)="","",VLOOKUP(A127,'Trust - Frontsheet'!$A$16:$AC$216,5,0)) ->  | D127: =IF(VLOOKUP(A127,'Trust - Frontsheet'!$A$16:$AC$215,6,0)="","",VLOOKUP(A127,'Trust - Frontsheet'!$A$16:$AC$216,6,0)) ->  | E127: =IF(OR(SUMPRODUCT(--(ISTEXT('Trust - Frontsheet'!I136:AC136)))>0,SUMPRODUCT(--(ISERROR('Trust - Frontsheet'!AD136:AT136)))>0),"There is invalid data on this row",IF(SUMPRODUCT(--('Trust - Frontsheet'!I136:AC136<0))>0,"This row contains negative values",IF(AND(L127="This is a blank Row",COUNTBLANK(INDIRECT("L" & ROW() + 1 & ":L" & 206))>0),"No blank rows in the data",""))) ->  | F127: =IF(A127 = "","",IF('Trust - Frontsheet'!D136="", "Site code not present","")) ->  | G127: =IF('Trust - Frontsheet'!D136="","",IF(VLOOKUP(A127,'Trust - Frontsheet'!$A$16:$AC$215,6,0)="","Ward name not present","")) ->  | H127: =IF(A127="","",IF(VLOOKUP(A127,'Trust - Frontsheet'!$A$16:$AC$215,7,0)="","Specialty 1 has not been selected","")) ->  | I127: =IF(A127="","",IF(OR(COUNTIF(Specialties,VLOOKUP(A127,'Trust - Frontsheet'!$A$16:$AC$215,7,0))=0, AND(COUNTIF(Specialties,VLOOKUP(A127,'Trust - Frontsheet'!$A$16:$AC$215,8,0))=0,VLOOKUP(A127,'Trust - Frontsheet'!$A$16:$AC$215,8,0)<>"")),"You have entered unacceptable specialties.","")) ->  | J127: =IF(A127="","",IF(AND(RIGHT(VLOOKUP(A127,'Trust - Frontsheet'!$A$16:$AC$215,7,0),3)<>RIGHT(VLOOKUP(A127,'Trust - Frontsheet'!$A$16:$AC$215,8,0),3),VLOOKUP(A127,'Trust - Frontsheet'!$A$16:$AC$215,8,0)<>""),"Covid statuses do not match","")) ->  | L127: =IF(SUMPRODUCT(--('Trust - Frontsheet'!$D136:$AC136=""))<>26,"","This is a blank row") -> This is a blank row
A128: =IF('Trust - Frontsheet'!A137="","",'Trust - Frontsheet'!A137) ->  | B128: =IF('Trust - Frontsheet'!A137="","",'Trust - Frontsheet'!D137) ->  | C128: =IF(VLOOKUP(A128,'Trust - Frontsheet'!$A$16:$AC$215,5,0)="","",VLOOKUP(A128,'Trust - Frontsheet'!$A$16:$AC$216,5,0)) ->  | D128: =IF(VLOOKUP(A128,'Trust - Frontsheet'!$A$16:$AC$215,6,0)="","",VLOOKUP(A128,'Trust - Frontsheet'!$A$16:$AC$216,6,0)) ->  | E128: =IF(OR(SUMPRODUCT(--(ISTEXT('Trust - Frontsheet'!I137:AC137)))>0,SUMPRODUCT(--(ISERROR('Trust - Frontsheet'!AD137:AT137)))>0),"There is invalid data on this row",IF(SUMPRODUCT(--('Trust - Frontsheet'!I137:AC137<0))>0,"This row contains negative values",IF(AND(L128="This is a blank Row",COUNTBLANK(INDIRECT("L" & ROW() + 1 & ":L" & 206))>0),"No blank rows in the data",""))) ->  | F128: =IF(A128 = "","",IF('Trust - Frontsheet'!D137="", "Site code not present","")) ->  | G128: =IF('Trust - Frontsheet'!D137="","",IF(VLOOKUP(A128,'Trust - Frontsheet'!$A$16:$AC$215,6,0)="","Ward name not present","")) ->  | H128: =IF(A128="","",IF(VLOOKUP(A128,'Trust - Frontsheet'!$A$16:$AC$215,7,0)="","Specialty 1 has not been selected","")) ->  | I128: =IF(A128="","",IF(OR(COUNTIF(Specialties,VLOOKUP(A128,'Trust - Frontsheet'!$A$16:$AC$215,7,0))=0, AND(COUNTIF(Specialties,VLOOKUP(A128,'Trust - Frontsheet'!$A$16:$AC$215,8,0))=0,VLOOKUP(A128,'Trust - Frontsheet'!$A$16:$AC$215,8,0)<>"")),"You have entered unacceptable specialties.","")) ->  | J128: =IF(A128="","",IF(AND(RIGHT(VLOOKUP(A128,'Trust - Frontsheet'!$A$16:$AC$215,7,0),3)<>RIGHT(VLOOKUP(A128,'Trust - Frontsheet'!$A$16:$AC$215,8,0),3),VLOOKUP(A128,'Trust - Frontsheet'!$A$16:$AC$215,8,0)<>""),"Covid statuses do not match","")) ->  | L128: =IF(SUMPRODUCT(--('Trust - Frontsheet'!$D137:$AC137=""))<>26,"","This is a blank row") -> This is a blank row
A129: =IF('Trust - Frontsheet'!A138="","",'Trust - Frontsheet'!A138) ->  | B129: =IF('Trust - Frontsheet'!A138="","",'Trust - Frontsheet'!D138) ->  | C129: =IF(VLOOKUP(A129,'Trust - Frontsheet'!$A$16:$AC$215,5,0)="","",VLOOKUP(A129,'Trust - Frontsheet'!$A$16:$AC$216,5,0)) ->  | D129: =IF(VLOOKUP(A129,'Trust - Frontsheet'!$A$16:$AC$215,6,0)="","",VLOOKUP(A129,'Trust - Frontsheet'!$A$16:$AC$216,6,0)) ->  | E129: =IF(OR(SUMPRODUCT(--(ISTEXT('Trust - Frontsheet'!I138:AC138)))>0,SUMPRODUCT(--(ISERROR('Trust - Frontsheet'!AD138:AT138)))>0),"There is invalid data on this row",IF(SUMPRODUCT(--('Trust - Frontsheet'!I138:AC138<0))>0,"This row contains negative values",IF(AND(L129="This is a blank Row",COUNTBLANK(INDIRECT("L" & ROW() + 1 & ":L" & 206))>0),"No blank rows in the data",""))) ->  | F129: =IF(A129 = "","",IF('Trust - Frontsheet'!D138="", "Site code not present","")) ->  | G129: =IF('Trust - Frontsheet'!D138="","",IF(VLOOKUP(A129,'Trust - Frontsheet'!$A$16:$AC$215,6,0)="","Ward name not present","")) ->  | H129: =IF(A129="","",IF(VLOOKUP(A129,'Trust - Frontsheet'!$A$16:$AC$215,7,0)="","Specialty 1 has not been selected","")) ->  | I129: =IF(A129="","",IF(OR(COUNTIF(Specialties,VLOOKUP(A129,'Trust - Frontsheet'!$A$16:$AC$215,7,0))=0, AND(COUNTIF(Specialties,VLOOKUP(A129,'Trust - Frontsheet'!$A$16:$AC$215,8,0))=0,VLOOKUP(A129,'Trust - Frontsheet'!$A$16:$AC$215,8,0)<>"")),"You have entered unacceptable specialties.","")) ->  | J129: =IF(A129="","",IF(AND(RIGHT(VLOOKUP(A129,'Trust - Frontsheet'!$A$16:$AC$215,7,0),3)<>RIGHT(VLOOKUP(A129,'Trust - Frontsheet'!$A$16:$AC$215,8,0),3),VLOOKUP(A129,'Trust - Frontsheet'!$A$16:$AC$215,8,0)<>""),"Covid statuses do not match","")) ->  | L129: =IF(SUMPRODUCT(--('Trust - Frontsheet'!$D138:$AC138=""))<>26,"","This is a blank row") -> This is a blank row
A130: =IF('Trust - Frontsheet'!A139="","",'Trust - Frontsheet'!A139) ->  | B130: =IF('Trust - Frontsheet'!A139="","",'Trust - Frontsheet'!D139) ->  | C130: =IF(VLOOKUP(A130,'Trust - Frontsheet'!$A$16:$AC$215,5,0)="","",VLOOKUP(A130,'Trust - Frontsheet'!$A$16:$AC$216,5,0)) ->  | D130: =IF(VLOOKUP(A130,'Trust - Frontsheet'!$A$16:$AC$215,6,0)="","",VLOOKUP(A130,'Trust - Frontsheet'!$A$16:$AC$216,6,0)) ->  | E130: =IF(OR(SUMPRODUCT(--(ISTEXT('Trust - Frontsheet'!I139:AC139)))>0,SUMPRODUCT(--(ISERROR('Trust - Frontsheet'!AD139:AT139)))>0),"There is invalid data on this row",IF(SUMPRODUCT(--('Trust - Frontsheet'!I139:AC139<0))>0,"This row contains negative values",IF(AND(L130="This is a blank Row",COUNTBLANK(INDIRECT("L" & ROW() + 1 & ":L" & 206))>0),"No blank rows in the data",""))) ->  | F130: =IF(A130 = "","",IF('Trust - Frontsheet'!D139="", "Site code not present","")) ->  | G130: =IF('Trust - Frontsheet'!D139="","",IF(VLOOKUP(A130,'Trust - Frontsheet'!$A$16:$AC$215,6,0)="","Ward name not present","")) ->  | H130: =IF(A130="","",IF(VLOOKUP(A130,'Trust - Frontsheet'!$A$16:$AC$215,7,0)="","Specialty 1 has not been selected","")) ->  | I130: =IF(A130="","",IF(OR(COUNTIF(Specialties,VLOOKUP(A130,'Trust - Frontsheet'!$A$16:$AC$215,7,0))=0, AND(COUNTIF(Specialties,VLOOKUP(A130,'Trust - Frontsheet'!$A$16:$AC$215,8,0))=0,VLOOKUP(A130,'Trust - Frontsheet'!$A$16:$AC$215,8,0)<>"")),"You have entered unacceptable specialties.","")) ->  | J130: =IF(A130="","",IF(AND(RIGHT(VLOOKUP(A130,'Trust - Frontsheet'!$A$16:$AC$215,7,0),3)<>RIGHT(VLOOKUP(A130,'Trust - Frontsheet'!$A$16:$AC$215,8,0),3),VLOOKUP(A130,'Trust - Frontsheet'!$A$16:$AC$215,8,0)<>""),"Covid statuses do not match","")) ->  | L130: =IF(SUMPRODUCT(--('Trust - Frontsheet'!$D139:$AC139=""))<>26,"","This is a blank row") -> This is a blank row
A131: =IF('Trust - Frontsheet'!A140="","",'Trust - Frontsheet'!A140) ->  | B131: =IF('Trust - Frontsheet'!A140="","",'Trust - Frontsheet'!D140) ->  | C131: =IF(VLOOKUP(A131,'Trust - Frontsheet'!$A$16:$AC$215,5,0)="","",VLOOKUP(A131,'Trust - Frontsheet'!$A$16:$AC$216,5,0)) ->  | D131: =IF(VLOOKUP(A131,'Trust - Frontsheet'!$A$16:$AC$215,6,0)="","",VLOOKUP(A131,'Trust - Frontsheet'!$A$16:$AC$216,6,0)) ->  | E131: =IF(OR(SUMPRODUCT(--(ISTEXT('Trust - Frontsheet'!I140:AC140)))>0,SUMPRODUCT(--(ISERROR('Trust - Frontsheet'!AD140:AT140)))>0),"There is invalid data on this row",IF(SUMPRODUCT(--('Trust - Frontsheet'!I140:AC140<0))>0,"This row contains negative values",IF(AND(L131="This is a blank Row",COUNTBLANK(INDIRECT("L" & ROW() + 1 & ":L" & 206))>0),"No blank rows in the data",""))) ->  | F131: =IF(A131 = "","",IF('Trust - Frontsheet'!D140="", "Site code not present","")) ->  | G131: =IF('Trust - Frontsheet'!D140="","",IF(VLOOKUP(A131,'Trust - Frontsheet'!$A$16:$AC$215,6,0)="","Ward name not present","")) ->  | H131: =IF(A131="","",IF(VLOOKUP(A131,'Trust - Frontsheet'!$A$16:$AC$215,7,0)="","Specialty 1 has not been selected","")) ->  | I131: =IF(A131="","",IF(OR(COUNTIF(Specialties,VLOOKUP(A131,'Trust - Frontsheet'!$A$16:$AC$215,7,0))=0, AND(COUNTIF(Specialties,VLOOKUP(A131,'Trust - Frontsheet'!$A$16:$AC$215,8,0))=0,VLOOKUP(A131,'Trust - Frontsheet'!$A$16:$AC$215,8,0)<>"")),"You have entered unacceptable specialties.","")) ->  | J131: =IF(A131="","",IF(AND(RIGHT(VLOOKUP(A131,'Trust - Frontsheet'!$A$16:$AC$215,7,0),3)<>RIGHT(VLOOKUP(A131,'Trust - Frontsheet'!$A$16:$AC$215,8,0),3),VLOOKUP(A131,'Trust - Frontsheet'!$A$16:$AC$215,8,0)<>""),"Covid statuses do not match","")) ->  | L131: =IF(SUMPRODUCT(--('Trust - Frontsheet'!$D140:$AC140=""))<>26,"","This is a blank row") -> This is a blank row
A132: =IF('Trust - Frontsheet'!A141="","",'Trust - Frontsheet'!A141) ->  | B132: =IF('Trust - Frontsheet'!A141="","",'Trust - Frontsheet'!D141) ->  | C132: =IF(VLOOKUP(A132,'Trust - Frontsheet'!$A$16:$AC$215,5,0)="","",VLOOKUP(A132,'Trust - Frontsheet'!$A$16:$AC$216,5,0)) ->  | D132: =IF(VLOOKUP(A132,'Trust - Frontsheet'!$A$16:$AC$215,6,0)="","",VLOOKUP(A132,'Trust - Frontsheet'!$A$16:$AC$216,6,0)) ->  | E132: =IF(OR(SUMPRODUCT(--(ISTEXT('Trust - Frontsheet'!I141:AC141)))>0,SUMPRODUCT(--(ISERROR('Trust - Frontsheet'!AD141:AT141)))>0),"There is invalid data on this row",IF(SUMPRODUCT(--('Trust - Frontsheet'!I141:AC141<0))>0,"This row contains negative values",IF(AND(L132="This is a blank Row",COUNTBLANK(INDIRECT("L" & ROW() + 1 & ":L" & 206))>0),"No blank rows in the data",""))) ->  | F132: =IF(A132 = "","",IF('Trust - Frontsheet'!D141="", "Site code not present","")) ->  | G132: =IF('Trust - Frontsheet'!D141="","",IF(VLOOKUP(A132,'Trust - Frontsheet'!$A$16:$AC$215,6,0)="","Ward name not present","")) ->  | H132: =IF(A132="","",IF(VLOOKUP(A132,'Trust - Frontsheet'!$A$16:$AC$215,7,0)="","Specialty 1 has not been selected","")) ->  | I132: =IF(A132="","",IF(OR(COUNTIF(Specialties,VLOOKUP(A132,'Trust - Frontsheet'!$A$16:$AC$215,7,0))=0, AND(COUNTIF(Specialties,VLOOKUP(A132,'Trust - Frontsheet'!$A$16:$AC$215,8,0))=0,VLOOKUP(A132,'Trust - Frontsheet'!$A$16:$AC$215,8,0)<>"")),"You have entered unacceptable specialties.","")) ->  | J132: =IF(A132="","",IF(AND(RIGHT(VLOOKUP(A132,'Trust - Frontsheet'!$A$16:$AC$215,7,0),3)<>RIGHT(VLOOKUP(A132,'Trust - Frontsheet'!$A$16:$AC$215,8,0),3),VLOOKUP(A132,'Trust - Frontsheet'!$A$16:$AC$215,8,0)<>""),"Covid statuses do not match","")) ->  | L132: =IF(SUMPRODUCT(--('Trust - Frontsheet'!$D141:$AC141=""))<>26,"","This is a blank row") -> This is a blank row
A133: =IF('Trust - Frontsheet'!A142="","",'Trust - Frontsheet'!A142) ->  | B133: =IF('Trust - Frontsheet'!A142="","",'Trust - Frontsheet'!D142) ->  | C133: =IF(VLOOKUP(A133,'Trust - Frontsheet'!$A$16:$AC$215,5,0)="","",VLOOKUP(A133,'Trust - Frontsheet'!$A$16:$AC$216,5,0)) ->  | D133: =IF(VLOOKUP(A133,'Trust - Frontsheet'!$A$16:$AC$215,6,0)="","",VLOOKUP(A133,'Trust - Frontsheet'!$A$16:$AC$216,6,0)) ->  | E133: =IF(OR(SUMPRODUCT(--(ISTEXT('Trust - Frontsheet'!I142:AC142)))>0,SUMPRODUCT(--(ISERROR('Trust - Frontsheet'!AD142:AT142)))>0),"There is invalid data on this row",IF(SUMPRODUCT(--('Trust - Frontsheet'!I142:AC142<0))>0,"This row contains negative values",IF(AND(L133="This is a blank Row",COUNTBLANK(INDIRECT("L" & ROW() + 1 & ":L" & 206))>0),"No blank rows in the data",""))) ->  | F133: =IF(A133 = "","",IF('Trust - Frontsheet'!D142="", "Site code not present","")) ->  | G133: =IF('Trust - Frontsheet'!D142="","",IF(VLOOKUP(A133,'Trust - Frontsheet'!$A$16:$AC$215,6,0)="","Ward name not present","")) ->  | H133: =IF(A133="","",IF(VLOOKUP(A133,'Trust - Frontsheet'!$A$16:$AC$215,7,0)="","Specialty 1 has not been selected","")) ->  | I133: =IF(A133="","",IF(OR(COUNTIF(Specialties,VLOOKUP(A133,'Trust - Frontsheet'!$A$16:$AC$215,7,0))=0, AND(COUNTIF(Specialties,VLOOKUP(A133,'Trust - Frontsheet'!$A$16:$AC$215,8,0))=0,VLOOKUP(A133,'Trust - Frontsheet'!$A$16:$AC$215,8,0)<>"")),"You have entered unacceptable specialties.","")) ->  | J133: =IF(A133="","",IF(AND(RIGHT(VLOOKUP(A133,'Trust - Frontsheet'!$A$16:$AC$215,7,0),3)<>RIGHT(VLOOKUP(A133,'Trust - Frontsheet'!$A$16:$AC$215,8,0),3),VLOOKUP(A133,'Trust - Frontsheet'!$A$16:$AC$215,8,0)<>""),"Covid statuses do not match","")) ->  | L133: =IF(SUMPRODUCT(--('Trust - Frontsheet'!$D142:$AC142=""))<>26,"","This is a blank row") -> This is a blank row
A134: =IF('Trust - Frontsheet'!A143="","",'Trust - Frontsheet'!A143) ->  | B134: =IF('Trust - Frontsheet'!A143="","",'Trust - Frontsheet'!D143) ->  | C134: =IF(VLOOKUP(A134,'Trust - Frontsheet'!$A$16:$AC$215,5,0)="","",VLOOKUP(A134,'Trust - Frontsheet'!$A$16:$AC$216,5,0)) ->  | D134: =IF(VLOOKUP(A134,'Trust - Frontsheet'!$A$16:$AC$215,6,0)="","",VLOOKUP(A134,'Trust - Frontsheet'!$A$16:$AC$216,6,0)) ->  | E134: =IF(OR(SUMPRODUCT(--(ISTEXT('Trust - Frontsheet'!I143:AC143)))>0,SUMPRODUCT(--(ISERROR('Trust - Frontsheet'!AD143:AT143)))>0),"There is invalid data on this row",IF(SUMPRODUCT(--('Trust - Frontsheet'!I143:AC143<0))>0,"This row contains negative values",IF(AND(L134="This is a blank Row",COUNTBLANK(INDIRECT("L" & ROW() + 1 & ":L" & 206))>0),"No blank rows in the data",""))) ->  | F134: =IF(A134 = "","",IF('Trust - Frontsheet'!D143="", "Site code not present","")) ->  | G134: =IF('Trust - Frontsheet'!D143="","",IF(VLOOKUP(A134,'Trust - Frontsheet'!$A$16:$AC$215,6,0)="","Ward name not present","")) ->  | H134: =IF(A134="","",IF(VLOOKUP(A134,'Trust - Frontsheet'!$A$16:$AC$215,7,0)="","Specialty 1 has not been selected","")) ->  | I134: =IF(A134="","",IF(OR(COUNTIF(Specialties,VLOOKUP(A134,'Trust - Frontsheet'!$A$16:$AC$215,7,0))=0, AND(COUNTIF(Specialties,VLOOKUP(A134,'Trust - Frontsheet'!$A$16:$AC$215,8,0))=0,VLOOKUP(A134,'Trust - Frontsheet'!$A$16:$AC$215,8,0)<>"")),"You have entered unacceptable specialties.","")) ->  | J134: =IF(A134="","",IF(AND(RIGHT(VLOOKUP(A134,'Trust - Frontsheet'!$A$16:$AC$215,7,0),3)<>RIGHT(VLOOKUP(A134,'Trust - Frontsheet'!$A$16:$AC$215,8,0),3),VLOOKUP(A134,'Trust - Frontsheet'!$A$16:$AC$215,8,0)<>""),"Covid statuses do not match","")) ->  | L134: =IF(SUMPRODUCT(--('Trust - Frontsheet'!$D143:$AC143=""))<>26,"","This is a blank row") -> This is a blank row
A135: =IF('Trust - Frontsheet'!A144="","",'Trust - Frontsheet'!A144) ->  | B135: =IF('Trust - Frontsheet'!A144="","",'Trust - Frontsheet'!D144) ->  | C135: =IF(VLOOKUP(A135,'Trust - Frontsheet'!$A$16:$AC$215,5,0)="","",VLOOKUP(A135,'Trust - Frontsheet'!$A$16:$AC$216,5,0)) ->  | D135: =IF(VLOOKUP(A135,'Trust - Frontsheet'!$A$16:$AC$215,6,0)="","",VLOOKUP(A135,'Trust - Frontsheet'!$A$16:$AC$216,6,0)) ->  | E135: =IF(OR(SUMPRODUCT(--(ISTEXT('Trust - Frontsheet'!I144:AC144)))>0,SUMPRODUCT(--(ISERROR('Trust - Frontsheet'!AD144:AT144)))>0),"There is invalid data on this row",IF(SUMPRODUCT(--('Trust - Frontsheet'!I144:AC144<0))>0,"This row contains negative values",IF(AND(L135="This is a blank Row",COUNTBLANK(INDIRECT("L" & ROW() + 1 & ":L" & 206))>0),"No blank rows in the data",""))) ->  | F135: =IF(A135 = "","",IF('Trust - Frontsheet'!D144="", "Site code not present","")) ->  | G135: =IF('Trust - Frontsheet'!D144="","",IF(VLOOKUP(A135,'Trust - Frontsheet'!$A$16:$AC$215,6,0)="","Ward name not present","")) ->  | H135: =IF(A135="","",IF(VLOOKUP(A135,'Trust - Frontsheet'!$A$16:$AC$215,7,0)="","Specialty 1 has not been selected","")) ->  | I135: =IF(A135="","",IF(OR(COUNTIF(Specialties,VLOOKUP(A135,'Trust - Frontsheet'!$A$16:$AC$215,7,0))=0, AND(COUNTIF(Specialties,VLOOKUP(A135,'Trust - Frontsheet'!$A$16:$AC$215,8,0))=0,VLOOKUP(A135,'Trust - Frontsheet'!$A$16:$AC$215,8,0)<>"")),"You have entered unacceptable specialties.","")) ->  | J135: =IF(A135="","",IF(AND(RIGHT(VLOOKUP(A135,'Trust - Frontsheet'!$A$16:$AC$215,7,0),3)<>RIGHT(VLOOKUP(A135,'Trust - Frontsheet'!$A$16:$AC$215,8,0),3),VLOOKUP(A135,'Trust - Frontsheet'!$A$16:$AC$215,8,0)<>""),"Covid statuses do not match","")) ->  | L135: =IF(SUMPRODUCT(--('Trust - Frontsheet'!$D144:$AC144=""))<>26,"","This is a blank row") -> This is a blank row
A136: =IF('Trust - Frontsheet'!A145="","",'Trust - Frontsheet'!A145) ->  | B136: =IF('Trust - Frontsheet'!A145="","",'Trust - Frontsheet'!D145) ->  | C136: =IF(VLOOKUP(A136,'Trust - Frontsheet'!$A$16:$AC$215,5,0)="","",VLOOKUP(A136,'Trust - Frontsheet'!$A$16:$AC$216,5,0)) ->  | D136: =IF(VLOOKUP(A136,'Trust - Frontsheet'!$A$16:$AC$215,6,0)="","",VLOOKUP(A136,'Trust - Frontsheet'!$A$16:$AC$216,6,0)) ->  | E136: =IF(OR(SUMPRODUCT(--(ISTEXT('Trust - Frontsheet'!I145:AC145)))>0,SUMPRODUCT(--(ISERROR('Trust - Frontsheet'!AD145:AT145)))>0),"There is invalid data on this row",IF(SUMPRODUCT(--('Trust - Frontsheet'!I145:AC145<0))>0,"This row contains negative values",IF(AND(L136="This is a blank Row",COUNTBLANK(INDIRECT("L" & ROW() + 1 & ":L" & 206))>0),"No blank rows in the data",""))) ->  | F136: =IF(A136 = "","",IF('Trust - Frontsheet'!D145="", "Site code not present","")) ->  | G136: =IF('Trust - Frontsheet'!D145="","",IF(VLOOKUP(A136,'Trust - Frontsheet'!$A$16:$AC$215,6,0)="","Ward name not present","")) ->  | H136: =IF(A136="","",IF(VLOOKUP(A136,'Trust - Frontsheet'!$A$16:$AC$215,7,0)="","Specialty 1 has not been selected","")) ->  | I136: =IF(A136="","",IF(OR(COUNTIF(Specialties,VLOOKUP(A136,'Trust - Frontsheet'!$A$16:$AC$215,7,0))=0, AND(COUNTIF(Specialties,VLOOKUP(A136,'Trust - Frontsheet'!$A$16:$AC$215,8,0))=0,VLOOKUP(A136,'Trust - Frontsheet'!$A$16:$AC$215,8,0)<>"")),"You have entered unacceptable specialties.","")) ->  | J136: =IF(A136="","",IF(AND(RIGHT(VLOOKUP(A136,'Trust - Frontsheet'!$A$16:$AC$215,7,0),3)<>RIGHT(VLOOKUP(A136,'Trust - Frontsheet'!$A$16:$AC$215,8,0),3),VLOOKUP(A136,'Trust - Frontsheet'!$A$16:$AC$215,8,0)<>""),"Covid statuses do not match","")) ->  | K136: =IF(A136="","",IF(COUNTIF($A$7:$A$206,A136)>1,"You have entered a duplicate site-ward pair","")) ->  | L136: =IF(SUMPRODUCT(--('Trust - Frontsheet'!$D145:$AC145=""))<>26,"","This is a blank row") -> This is a blank row
A137: =IF('Trust - Frontsheet'!A146="","",'Trust - Frontsheet'!A146) ->  | B137: =IF('Trust - Frontsheet'!A146="","",'Trust - Frontsheet'!D146) ->  | C137: =IF(VLOOKUP(A137,'Trust - Frontsheet'!$A$16:$AC$215,5,0)="","",VLOOKUP(A137,'Trust - Frontsheet'!$A$16:$AC$216,5,0)) ->  | D137: =IF(VLOOKUP(A137,'Trust - Frontsheet'!$A$16:$AC$215,6,0)="","",VLOOKUP(A137,'Trust - Frontsheet'!$A$16:$AC$216,6,0)) ->  | E137: =IF(OR(SUMPRODUCT(--(ISTEXT('Trust - Frontsheet'!I146:AC146)))>0,SUMPRODUCT(--(ISERROR('Trust - Frontsheet'!AD146:AT146)))>0),"There is invalid data on this row",IF(SUMPRODUCT(--('Trust - Frontsheet'!I146:AC146<0))>0,"This row contains negative values",IF(AND(L137="This is a blank Row",COUNTBLANK(INDIRECT("L" & ROW() + 1 & ":L" & 206))>0),"No blank rows in the data",""))) ->  | F137: =IF(A137 = "","",IF('Trust - Frontsheet'!D146="", "Site code not present","")) ->  | G137: =IF('Trust - Frontsheet'!D146="","",IF(VLOOKUP(A137,'Trust - Frontsheet'!$A$16:$AC$215,6,0)="","Ward name not present","")) ->  | H137: =IF(A137="","",IF(VLOOKUP(A137,'Trust - Frontsheet'!$A$16:$AC$215,7,0)="","Specialty 1 has not been selected","")) ->  | I137: =IF(A137="","",IF(OR(COUNTIF(Specialties,VLOOKUP(A137,'Trust - Frontsheet'!$A$16:$AC$215,7,0))=0, AND(COUNTIF(Specialties,VLOOKUP(A137,'Trust - Frontsheet'!$A$16:$AC$215,8,0))=0,VLOOKUP(A137,'Trust - Frontsheet'!$A$16:$AC$215,8,0)<>"")),"You have entered unacceptable specialties.","")) ->  | J137: =IF(A137="","",IF(AND(RIGHT(VLOOKUP(A137,'Trust - Frontsheet'!$A$16:$AC$215,7,0),3)<>RIGHT(VLOOKUP(A137,'Trust - Frontsheet'!$A$16:$AC$215,8,0),3),VLOOKUP(A137,'Trust - Frontsheet'!$A$16:$AC$215,8,0)<>""),"Covid statuses do not match","")) ->  | L137: =IF(SUMPRODUCT(--('Trust - Frontsheet'!$D146:$AC146=""))<>26,"","This is a blank row") -> This is a blank row
A138: =IF('Trust - Frontsheet'!A147="","",'Trust - Frontsheet'!A147) ->  | B138: =IF('Trust - Frontsheet'!A147="","",'Trust - Frontsheet'!D147) ->  | C138: =IF(VLOOKUP(A138,'Trust - Frontsheet'!$A$16:$AC$215,5,0)="","",VLOOKUP(A138,'Trust - Frontsheet'!$A$16:$AC$216,5,0)) ->  | D138: =IF(VLOOKUP(A138,'Trust - Frontsheet'!$A$16:$AC$215,6,0)="","",VLOOKUP(A138,'Trust - Frontsheet'!$A$16:$AC$216,6,0)) ->  | E138: =IF(OR(SUMPRODUCT(--(ISTEXT('Trust - Frontsheet'!I147:AC147)))>0,SUMPRODUCT(--(ISERROR('Trust - Frontsheet'!AD147:AT147)))>0),"There is invalid data on this row",IF(SUMPRODUCT(--('Trust - Frontsheet'!I147:AC147<0))>0,"This row contains negative values",IF(AND(L138="This is a blank Row",COUNTBLANK(INDIRECT("L" & ROW() + 1 & ":L" & 206))>0),"No blank rows in the data",""))) ->  | F138: =IF(A138 = "","",IF('Trust - Frontsheet'!D147="", "Site code not present","")) ->  | G138: =IF('Trust - Frontsheet'!D147="","",IF(VLOOKUP(A138,'Trust - Frontsheet'!$A$16:$AC$215,6,0)="","Ward name not present","")) ->  | H138: =IF(A138="","",IF(VLOOKUP(A138,'Trust - Frontsheet'!$A$16:$AC$215,7,0)="","Specialty 1 has not been selected","")) ->  | I138: =IF(A138="","",IF(OR(COUNTIF(Specialties,VLOOKUP(A138,'Trust - Frontsheet'!$A$16:$AC$215,7,0))=0, AND(COUNTIF(Specialties,VLOOKUP(A138,'Trust - Frontsheet'!$A$16:$AC$215,8,0))=0,VLOOKUP(A138,'Trust - Frontsheet'!$A$16:$AC$215,8,0)<>"")),"You have entered unacceptable specialties.","")) ->  | J138: =IF(A138="","",IF(AND(RIGHT(VLOOKUP(A138,'Trust - Frontsheet'!$A$16:$AC$215,7,0),3)<>RIGHT(VLOOKUP(A138,'Trust - Frontsheet'!$A$16:$AC$215,8,0),3),VLOOKUP(A138,'Trust - Frontsheet'!$A$16:$AC$215,8,0)<>""),"Covid statuses do not match","")) ->  | L138: =IF(SUMPRODUCT(--('Trust - Frontsheet'!$D147:$AC147=""))<>26,"","This is a blank row") -> This is a blank row
A139: =IF('Trust - Frontsheet'!A148="","",'Trust - Frontsheet'!A148) ->  | B139: =IF('Trust - Frontsheet'!A148="","",'Trust - Frontsheet'!D148) ->  | C139: =IF(VLOOKUP(A139,'Trust - Frontsheet'!$A$16:$AC$215,5,0)="","",VLOOKUP(A139,'Trust - Frontsheet'!$A$16:$AC$216,5,0)) ->  | D139: =IF(VLOOKUP(A139,'Trust - Frontsheet'!$A$16:$AC$215,6,0)="","",VLOOKUP(A139,'Trust - Frontsheet'!$A$16:$AC$216,6,0)) ->  | E139: =IF(OR(SUMPRODUCT(--(ISTEXT('Trust - Frontsheet'!I148:AC148)))>0,SUMPRODUCT(--(ISERROR('Trust - Frontsheet'!AD148:AT148)))>0),"There is invalid data on this row",IF(SUMPRODUCT(--('Trust - Frontsheet'!I148:AC148<0))>0,"This row contains negative values",IF(AND(L139="This is a blank Row",COUNTBLANK(INDIRECT("L" & ROW() + 1 & ":L" & 206))>0),"No blank rows in the data",""))) ->  | F139: =IF(A139 = "","",IF('Trust - Frontsheet'!D148="", "Site code not present","")) ->  | G139: =IF('Trust - Frontsheet'!D148="","",IF(VLOOKUP(A139,'Trust - Frontsheet'!$A$16:$AC$215,6,0)="","Ward name not present","")) ->  | H139: =IF(A139="","",IF(VLOOKUP(A139,'Trust - Frontsheet'!$A$16:$AC$215,7,0)="","Specialty 1 has not been selected","")) ->  | I139: =IF(A139="","",IF(OR(COUNTIF(Specialties,VLOOKUP(A139,'Trust - Frontsheet'!$A$16:$AC$215,7,0))=0, AND(COUNTIF(Specialties,VLOOKUP(A139,'Trust - Frontsheet'!$A$16:$AC$215,8,0))=0,VLOOKUP(A139,'Trust - Frontsheet'!$A$16:$AC$215,8,0)<>"")),"You have entered unacceptable specialties.","")) ->  | J139: =IF(A139="","",IF(AND(RIGHT(VLOOKUP(A139,'Trust - Frontsheet'!$A$16:$AC$215,7,0),3)<>RIGHT(VLOOKUP(A139,'Trust - Frontsheet'!$A$16:$AC$215,8,0),3),VLOOKUP(A139,'Trust - Frontsheet'!$A$16:$AC$215,8,0)<>""),"Covid statuses do not match","")) ->  | L139: =IF(SUMPRODUCT(--('Trust - Frontsheet'!$D148:$AC148=""))<>26,"","This is a blank row") -> This is a blank row
A140: =IF('Trust - Frontsheet'!A149="","",'Trust - Frontsheet'!A149) ->  | B140: =IF('Trust - Frontsheet'!A149="","",'Trust - Frontsheet'!D149) ->  | C140: =IF(VLOOKUP(A140,'Trust - Frontsheet'!$A$16:$AC$215,5,0)="","",VLOOKUP(A140,'Trust - Frontsheet'!$A$16:$AC$216,5,0)) ->  | D140: =IF(VLOOKUP(A140,'Trust - Frontsheet'!$A$16:$AC$215,6,0)="","",VLOOKUP(A140,'Trust - Frontsheet'!$A$16:$AC$216,6,0)) ->  | E140: =IF(OR(SUMPRODUCT(--(ISTEXT('Trust - Frontsheet'!I149:AC149)))>0,SUMPRODUCT(--(ISERROR('Trust - Frontsheet'!AD149:AT149)))>0),"There is invalid data on this row",IF(SUMPRODUCT(--('Trust - Frontsheet'!I149:AC149<0))>0,"This row contains negative values",IF(AND(L140="This is a blank Row",COUNTBLANK(INDIRECT("L" & ROW() + 1 & ":L" & 206))>0),"No blank rows in the data",""))) ->  | F140: =IF(A140 = "","",IF('Trust - Frontsheet'!D149="", "Site code not present","")) ->  | G140: =IF('Trust - Frontsheet'!D149="","",IF(VLOOKUP(A140,'Trust - Frontsheet'!$A$16:$AC$215,6,0)="","Ward name not present","")) ->  | H140: =IF(A140="","",IF(VLOOKUP(A140,'Trust - Frontsheet'!$A$16:$AC$215,7,0)="","Specialty 1 has not been selected","")) ->  | I140: =IF(A140="","",IF(OR(COUNTIF(Specialties,VLOOKUP(A140,'Trust - Frontsheet'!$A$16:$AC$215,7,0))=0, AND(COUNTIF(Specialties,VLOOKUP(A140,'Trust - Frontsheet'!$A$16:$AC$215,8,0))=0,VLOOKUP(A140,'Trust - Frontsheet'!$A$16:$AC$215,8,0)<>"")),"You have entered unacceptable specialties.","")) ->  | J140: =IF(A140="","",IF(AND(RIGHT(VLOOKUP(A140,'Trust - Frontsheet'!$A$16:$AC$215,7,0),3)<>RIGHT(VLOOKUP(A140,'Trust - Frontsheet'!$A$16:$AC$215,8,0),3),VLOOKUP(A140,'Trust - Frontsheet'!$A$16:$AC$215,8,0)<>""),"Covid statuses do not match","")) ->  | L140: =IF(SUMPRODUCT(--('Trust - Frontsheet'!$D149:$AC149=""))<>26,"","This is a blank row") -> This is a blank row
A141: =IF('Trust - Frontsheet'!A150="","",'Trust - Frontsheet'!A150) ->  | B141: =IF('Trust - Frontsheet'!A150="","",'Trust - Frontsheet'!D150) ->  | C141: =IF(VLOOKUP(A141,'Trust - Frontsheet'!$A$16:$AC$215,5,0)="","",VLOOKUP(A141,'Trust - Frontsheet'!$A$16:$AC$216,5,0)) ->  | D141: =IF(VLOOKUP(A141,'Trust - Frontsheet'!$A$16:$AC$215,6,0)="","",VLOOKUP(A141,'Trust - Frontsheet'!$A$16:$AC$216,6,0)) ->  | E141: =IF(OR(SUMPRODUCT(--(ISTEXT('Trust - Frontsheet'!I150:AC150)))>0,SUMPRODUCT(--(ISERROR('Trust - Frontsheet'!AD150:AT150)))>0),"There is invalid data on this row",IF(SUMPRODUCT(--('Trust - Frontsheet'!I150:AC150<0))>0,"This row contains negative values",IF(AND(L141="This is a blank Row",COUNTBLANK(INDIRECT("L" & ROW() + 1 & ":L" & 206))>0),"No blank rows in the data",""))) ->  | F141: =IF(A141 = "","",IF('Trust - Frontsheet'!D150="", "Site code not present","")) ->  | G141: =IF('Trust - Frontsheet'!D150="","",IF(VLOOKUP(A141,'Trust - Frontsheet'!$A$16:$AC$215,6,0)="","Ward name not present","")) ->  | H141: =IF(A141="","",IF(VLOOKUP(A141,'Trust - Frontsheet'!$A$16:$AC$215,7,0)="","Specialty 1 has not been selected","")) ->  | I141: =IF(A141="","",IF(OR(COUNTIF(Specialties,VLOOKUP(A141,'Trust - Frontsheet'!$A$16:$AC$215,7,0))=0, AND(COUNTIF(Specialties,VLOOKUP(A141,'Trust - Frontsheet'!$A$16:$AC$215,8,0))=0,VLOOKUP(A141,'Trust - Frontsheet'!$A$16:$AC$215,8,0)<>"")),"You have entered unacceptable specialties.","")) ->  | J141: =IF(A141="","",IF(AND(RIGHT(VLOOKUP(A141,'Trust - Frontsheet'!$A$16:$AC$215,7,0),3)<>RIGHT(VLOOKUP(A141,'Trust - Frontsheet'!$A$16:$AC$215,8,0),3),VLOOKUP(A141,'Trust - Frontsheet'!$A$16:$AC$215,8,0)<>""),"Covid statuses do not match","")) ->  | L141: =IF(SUMPRODUCT(--('Trust - Frontsheet'!$D150:$AC150=""))<>26,"","This is a blank row") -> This is a blank row
